Workbook

Sheet Menu
B3: Instructions
A4: This program is used to view PMF data and plots from sampling sites related to the Sydney Particle Characterisation Study
A5: 1) First, press the (1) INITIALISE DATABASE button to intialise the macro program and clear any previous data. This ONLY needs to be perfomed once prior to the first site selection and extraction.
A7: 2) Using the Option Buttons (in cells C17 down), select the sampling site you wish to extract the PMF data for and press the (2) EXTRACT PMF Data & Plots button. Once completed, use navigation buttons
A8: on right side of menu page to view and navigate between the various extracted plots and data worksheets. To exctract another site, simply select another site using the option buttons and press macro
A9: button (2) again. All plots and data worksheets are locked to preserve the integrity of data contained in this workbook. To be able to edit the extracted data and plots, see option (3) below.
A11: 3) OPTIONAL: To export an editable xlsx version of the data/plots or a PDF, type the folder path where you want to save the file in the "Export Folder Path Location" text box (in cell F33)
A12: and press either the macro buttons (3) for an xlsx file or (4) for a pdf file. NOTE: macro buttons (3) and (4) will appear only after a PMF site has been extracted using button (2).
A13: 4) OPTIONAL: click on the map image or small map icon to view an interactive map of the sampling sites. NB: This function requires internet access.
B14: PMF Data and Plots for Sampling Sites | F14: 4
B16: SITE | D16: COMMENT
B17: Lucas Heights | D17: Southern Sydney semi-rural / urban Site (2000 - 2014)
B18: Richmond | D18: North-West Sydney Rural / Semi-urban Site (2000-2014) | F18: SUMMARY INFORMATION
B19: Mascot | D19: Central Sydney CBD / airport Site (2000-2014) | F19: Extracted Site: | G19: Liverpool
B20: Liverpool | D20: Western Sydney Urban Site (2000-2014) | F20: Points: | G20: 1453
B21: Liverpool (2000-2004) | D21: As above but for 5 year period | F21: Species: | G21: 23
B22: Liverpool (2005-2009) | D22: As above but for 5 year period | F22: Factors: | G22: 7
B23: Liverpool (2010-2014) | D23: As above but for 5 year period | F23: Chi²: | G23: 0.9714024992
F24: Q: | G24: 22426.7695
F25: Fpeak: | G25: 0
F26: Seed: | G26: 15
F27: Mass Plot (StDev): | G27: 6
F32: Export Folder Path Location:
F34: Type the folder location where the extracted file will be exported
F35: For example: "C:\PMF\SiteFingerprints" and press either of the
F36: macro buttons below that appear only after PMF data has been extracted

Sheet CoverPage (hidden)
F7: Sydney Particle Characterisation Study
F8: PMF Receptor Source Apportionment of Long Term Sydney Fine Particle Pollution
D10: Date of Extraction: | E10: 2016-08-11
D11: Data File: | E11: Liverpool
D13: Comment: | E13: Western Sydney Urban Site (2000-2014) | F13: Western Sydney Urban Site (2000-2014) | G13: Western Sydney Urban Site (2000-2014) | H13: Western Sydney Urban Site (2000-2014)
B21: SUMMARY INFORMATION
D22: Number of Points: | E22: 1453
D23: Number of Species: | E23: 23
D24: Number of Factors: | E24: 7
D25: χ²: | E25: 0.9714024992
D26: Q: | E26: 22426.7695
D27: Fpeak: | E27: 0
D28: Seed: | E28: 15

Sheet FingerprintPlots

Sheet PercentPlots

Sheet DailyPlots

Sheet DailyPlots%

Sheet MassPlots

Sheet PMFvsIBAplots

Sheet Lucas Heights (hidden)
B1: FFactor | D1: 1383 | E1: points | F1: EM=-14
B2: i= | C2: %Mass | D2: Error | E2: H | F2: Na | G2: Al | H2: Si | I2: P | J2: S | K2: Cl | L2: K | M2: Ca | N2: Ti | O2: V | P2: Cr | Q2: Mn | R2: Fe | S2: Co | T2: Ni | U2: Cu | V2: Zn | W2: Se | X2: Br | Y2: Pb | Z2: BC | AA2: TotN
A3: p1 | B3: Soil | C3: 3.104447031 | D3: 0.2220512209 | E3: 1e-50 | F3: 1e-06 | G3: 0.321328 | H3: 1 | I3: 1e-50 | J3: 8e-06 | K3: 0.003376 | L3: 0.026913 | M3: 0.076614 | N3: 0.025882 | O3: 1e-50 | P3: 0.000473 | Q3: 0.003823 | R3: 0.176424 | S3: 0.001047 | T3: 1e-50 | U3: 0.000375 | V3: 1e-50 | W3: 1.7e-05 | X3: 3e-06 | Y3: 1e-06 | Z3: 6e-06 | AA3: 1e-50
A4: p2 | B4: Sea | C4: 17.08302819 | D4: 0.3410390188 | E4: 1e-06 | F4: 0.512968 | G4: 1e-50 | H4: 0.000423 | I4: 1e-50 | J4: 0.061622 | K4: 1 | L4: 0.020059 | M4: 0.010377 | N4: 0.00011 | O4: 6.8e-05 | P4: 1e-50 | Q4: 0.00023 | R4: 1e-50 | S4: 0.000187 | T4: 0.000218 | U4: 9.1e-05 | V4: 1e-50 | W4: 9.3e-05 | X4: 0.000823 | Y4: 1e-06 | Z4: 0.052715 | AA4: 0.006091
A5: p3 | B5: Mixed-Ind-Ca-Saged | C5: 9.186753806 | D5: 0.4181220098 | E5: 0.023485 | F5: 1 | G5: 1e-50 | H5: 0.014605 | I5: 1e-50 | J5: 0.037694 | K5: 2e-06 | L5: 3e-06 | M5: 0.086309 | N5: 1e-50 | O5: 0.001053 | P5: 1e-50 | Q5: 1e-50 | R5: 0.011448 | S5: 0.000141 | T5: 0.000236 | U5: 0.000345 | V5: 1e-50 | W5: 1e-50 | X5: 0.000675 | Y5: 1e-50 | Z5: 0.245898 | AA5: 3e-06
A6: p4 | B6: Mixed-2ndryS | C6: 29.82702404 | D6: 0.4043742529 | E6: 0.169327 | F6: 0.110959 | G6: 1e-50 | H6: 0.010257 | I6: 0.010067 | J6: 1 | K6: 1e-50 | L6: 4e-06 | M6: 1e-50 | N6: 0.000932 | O6: 0.001137 | P6: 0.000175 | Q6: 0.00026 | R6: 0.00028 | S6: 0.000109 | T6: 0.000533 | U6: 9.9e-05 | V6: 1e-50 | W6: 0.000291 | X6: 0.001133 | Y6: 0.000162 | Z6: 0.293833 | AA6: 0.523417
A7: p5 | B7: Mixed-Smoke-Auto | C7: 11.58937883 | D7: 0.5054602343 | E7: 1 | F7: 3e-06 | G7: 0.010346 | H7: 9e-06 | I7: 1e-06 | J7: 0.400827 | K7: 0.000279 | L7: 0.977321 | M7: 1e-06 | N7: 1e-06 | O7: 1e-50 | P7: 1e-06 | Q7: 5.4e-05 | R7: 0.038597 | S7: 0.003246 | T7: 1e-50 | U7: 6.2e-05 | V7: 1e-06 | W7: 0.002159 | X7: 0.025483 | Y7: 0.009028 | Z7: 5.5e-05 | AA7: 0.284062
A8: p6 | B8: Auto2 | C8: 3.502103745 | D8: 0.5857269315 | E8: 4e-06 | F8: 2e-06 | G8: 1e-06 | H8: 0.017165 | I8: 1e-06 | J8: 0.834342 | K8: 6e-06 | L8: 0.083522 | M8: 0.029665 | N8: 0.005593 | O8: 0.003805 | P8: 0.001584 | Q8: 0.011087 | R8: 0.415143 | S8: 0.001042 | T8: 0.002891 | U8: 0.011529 | V8: 0.081122 | W8: 0.00039 | X8: 0.005611 | Y8: 0.010734 | Z8: 1 | AA8: 1.2e-05
A9: p7 | B9: Auto1 | C9: 25.70726436 | D9: 0.6441171157 | E9: 0.139748 | F9: 1e-50 | G9: 1e-50 | H9: 0.004475 | I9: 0.001934 | J9: 3e-06 | K9: 0.000288 | L9: 1e-06 | M9: 0.005115 | N9: 0.000486 | O9: 0.00014 | P9: 0.000401 | Q9: 0.000646 | R9: 1e-50 | S9: 7.6e-05 | T9: 0.000175 | U9: 0.001022 | V9: 0.005003 | W9: 0.00086 | X9: 0.001727 | Y9: 0.004058 | Z9: 1 | AA9: 0.175362
A10: p8 | B10: f8 | C10: 0 | E10: 1e-50 | F10: 1e-50 | G10: 1e-50 | H10: 1e-50 | I10: 1e-50 | J10: 1e-50 | K10: 1e-50 | L10: 1e-50 | M10: 1e-50 | N10: 1e-50 | O10: 1e-50 | P10: 1e-50 | Q10: 1e-50 | R10: 1e-50 | S10: 1e-50 | T10: 1e-50 | U10: 1e-50 | V10: 1e-50 | W10: 1e-50 | X10: 1e-50 | Y10: 1e-50 | Z10: 1e-50 | AA10: 1e-50
A11: p9 | B11: f9 | C11: 0 | E11: 1e-50 | F11: 1e-50 | G11: 1e-50 | H11: 1e-50 | I11: 1e-50 | J11: 1e-50 | K11: 1e-50 | L11: 1e-50 | M11: 1e-50 | N11: 1e-50 | O11: 1e-50 | P11: 1e-50 | Q11: 1e-50 | R11: 1e-50 | S11: 1e-50 | T11: 1e-50 | U11: 1e-50 | V11: 1e-50 | W11: 1e-50 | X11: 1e-50 | Y11: 1e-50 | Z11: 1e-50 | AA11: 1e-50
A12: p10 | B12: f10 | C12: 0 | E12: 1e-50 | F12: 1e-50 | G12: 1e-50 | H12: 1e-50 | I12: 1e-50 | J12: 1e-50 | K12: 1e-50 | L12: 1e-50 | M12: 1e-50 | N12: 1e-50 | O12: 1e-50 | P12: 1e-50 | Q12: 1e-50 | R12: 1e-50 | S12: 1e-50 | T12: 1e-50 | U12: 1e-50 | V12: 1e-50 | W12: 1e-50 | X12: 1e-50 | Y12: 1e-50 | Z12: 1e-50 | AA12: 1e-50
A13: p11 | B13: f11 | C13: 0 | E13: 1e-50 | F13: 1e-50 | G13: 1e-50 | H13: 1e-50 | I13: 1e-50 | J13: 1e-50 | K13: 1e-50 | L13: 1e-50 | M13: 1e-50 | N13: 1e-50 | O13: 1e-50 | P13: 1e-50 | Q13: 1e-50 | R13: 1e-50 | S13: 1e-50 | T13: 1e-50 | U13: 1e-50 | V13: 1e-50 | W13: 1e-50 | X13: 1e-50 | Y13: 1e-50 | Z13: 1e-50 | AA13: 1e-50
A14: p12 | B14: f12 | C14: 0 | E14: 1e-50 | F14: 1e-50 | G14: 1e-50 | H14: 1e-50 | I14: 1e-50 | J14: 1e-50 | K14: 1e-50 | L14: 1e-50 | M14: 1e-50 | N14: 1e-50 | O14: 1e-50 | P14: 1e-50 | Q14: 1e-50 | R14: 1e-50 | S14: 1e-50 | T14: 1e-50 | U14: 1e-50 | V14: 1e-50 | W14: 1e-50 | X14: 1e-50 | Y14: 1e-50 | Z14: 1e-50 | AA14: 1e-50
A15: p13 | B15: f13 | C15: 0 | E15: 1e-50 | F15: 1e-50 | G15: 1e-50 | H15: 1e-50 | I15: 1e-50 | J15: 1e-50 | K15: 1e-50 | L15: 1e-50 | M15: 1e-50 | N15: 1e-50 | O15: 1e-50 | P15: 1e-50 | Q15: 1e-50 | R15: 1e-50 | S15: 1e-50 | T15: 1e-50 | U15: 1e-50 | V15: 1e-50 | W15: 1e-50 | X15: 1e-50 | Y15: 1e-50 | Z15: 1e-50 | AA15: 1e-50
A16: p14 | B16: f14 | C16: 0 | E16: 1e-50 | F16: 1e-50 | G16: 1e-50 | H16: 1e-50 | I16: 1e-50 | J16: 1e-50 | K16: 1e-50 | L16: 1e-50 | M16: 1e-50 | N16: 1e-50 | O16: 1e-50 | P16: 1e-50 | Q16: 1e-50 | R16: 1e-50 | S16: 1e-50 | T16: 1e-50 | U16: 1e-50 | V16: 1e-50 | W16: 1e-50 | X16: 1e-50 | Y16: 1e-50 | Z16: 1e-50 | AA16: 1e-50
A17: p15 | B17: f15 | C17: 0 | E17: 1e-50 | F17: 1e-50 | G17: 1e-50 | H17: 1e-50 | I17: 1e-50 | J17: 1e-50 | K17: 1e-50 | L17: 1e-50 | M17: 1e-50 | N17: 1e-50 | O17: 1e-50 | P17: 1e-50 | Q17: 1e-50 | R17: 1e-50 | S17: 1e-50 | T17: 1e-50 | U17: 1e-50 | V17: 1e-50 | W17: 1e-50 | X17: 1e-50 | Y17: 1e-50 | Z17: 1e-50 | AA17: 1e-50
A18: p16 | B18: f16 | C18: 0 | E18: 1e-50 | F18: 1e-50 | G18: 1e-50 | H18: 1e-50 | I18: 1e-50 | J18: 1e-50 | K18: 1e-50 | L18: 1e-50 | M18: 1e-50 | N18: 1e-50 | O18: 1e-50 | P18: 1e-50 | Q18: 1e-50 | R18: 1e-50 | S18: 1e-50 | T18: 1e-50 | U18: 1e-50 | V18: 1e-50 | W18: 1e-50 | X18: 1e-50 | Y18: 1e-50 | Z18: 1e-50 | AA18: 1e-50
A19: p17 | B19: f17 | C19: 0 | E19: 1e-50 | F19: 1e-50 | G19: 1e-50 | H19: 1e-50 | I19: 1e-50 | J19: 1e-50 | K19: 1e-50 | L19: 1e-50 | M19: 1e-50 | N19: 1e-50 | O19: 1e-50 | P19: 1e-50 | Q19: 1e-50 | R19: 1e-50 | S19: 1e-50 | T19: 1e-50 | U19: 1e-50 | V19: 1e-50 | W19: 1e-50 | X19: 1e-50 | Y19: 1e-50 | Z19: 1e-50 | AA19: 1e-50
A20: p18 | B20: f18 | C20: 0 | E20: 1e-50 | F20: 1e-50 | G20: 1e-50 | H20: 1e-50 | I20: 1e-50 | J20: 1e-50 | K20: 1e-50 | L20: 1e-50 | M20: 1e-50 | N20: 1e-50 | O20: 1e-50 | P20: 1e-50 | Q20: 1e-50 | R20: 1e-50 | S20: 1e-50 | T20: 1e-50 | U20: 1e-50 | V20: 1e-50 | W20: 1e-50 | X20: 1e-50 | Y20: 1e-50 | Z20: 1e-50 | AA20: 1e-50
A21: p19 | B21: f19 | C21: 0 | E21: 1e-50 | F21: 1e-50 | G21: 1e-50 | H21: 1e-50 | I21: 1e-50 | J21: 1e-50 | K21: 1e-50 | L21: 1e-50 | M21: 1e-50 | N21: 1e-50 | O21: 1e-50 | P21: 1e-50 | Q21: 1e-50 | R21: 1e-50 | S21: 1e-50 | T21: 1e-50 | U21: 1e-50 | V21: 1e-50 | W21: 1e-50 | X21: 1e-50 | Y21: 1e-50 | Z21: 1e-50 | AA21: 1e-50
A22: p20 | B22: f20 | C22: 0 | E22: 1e-50 | F22: 1e-50 | G22: 1e-50 | H22: 1e-50 | I22: 1e-50 | J22: 1e-50 | K22: 1e-50 | L22: 1e-50 | M22: 1e-50 | N22: 1e-50 | O22: 1e-50 | P22: 1e-50 | Q22: 1e-50 | R22: 1e-50 | S22: 1e-50 | T22: 1e-50 | U22: 1e-50 | V22: 1e-50 | W22: 1e-50 | X22: 1e-50 | Y22: 1e-50 | Z22: 1e-50 | AA22: 1e-50
C23: 100
A25: Computed 1.95996 SD of F (corresponding to 95% confidence interval)
E26: H | F26: Na | G26: Al | H26: Si | I26: P | J26: S | K26: Cl | L26: K | M26: Ca | N26: Ti | O26: V | P26: Cr | Q26: Mn | R26: Fe | S26: Co | T26: Ni | U26: Cu | V26: Zn | W26: Se | X26: Br | Y26: Pb | Z26: BC | AA26: TotN
B27: Soil | E27: 0.00160128732 | F27: 0.0031065366 | G27: 0.0097214016 | H27: 0.0128671374 | I27: 0.00058210812 | J27: 0.00928237056 | K27: 0.00449418828 | L27: 0.0044001102 | M27: 0.00372196404 | N27: 0.00156992796 | O27: 0.00079770372 | P27: 0.00096822024 | Q27: 0.00094666068 | R27: 0.00410807616 | S27: 0.00154248852 | T27: 0.00047627028 | U27: 0.00101721924 | V27: 0.00066442644 | W27: 0.00268318524 | X27: 0.0033025326 | Y27: 0.00248718924 | Z27: 0.01487217648 | AA27: 0.00161500704
B28: Sea | E28: 0.00102505908 | F28: 0.01717120956 | G28: 0.00026655456 | H28: 0.00075262464 | I28: 4.311912e-05 | J28: 0.00214223628 | K28: 0.00464902512 | L28: 0.0004997898 | M28: 0.00053702904 | N28: 0.0001861962 | O28: 0.00021167568 | P28: 4.703904e-05 | Q28: 0.00012347748 | R28: 6.075876e-05 | S28: 0.00012347748 | T28: 0.00012543744 | U28: 0.00011955756 | V28: 6.663864e-05 | W28: 0.000342993 | X28: 0.00045471072 | Y28: 0.00061150752 | Z28: 0.00880806024 | AA28: 0.0131611314
B29: Mixed-Ind-Ca-Saged | E29: 0.00453142752 | F29: 0.04014390072 | G29: 0.00039591192 | H29: 0.00241271076 | I29: 7.251852e-05 | J29: 0.00506061672 | K29: 0.00147780984 | L29: 0.00117009612 | M29: 0.00137785188 | N29: 0.00017443644 | O29: 0.00044295096 | P29: 0.00015875676 | Q29: 0.00022343544 | R29: 0.00070950552 | S29: 0.00037827228 | T29: 0.00029203404 | U29: 0.00025871472 | V29: 9.7998e-05 | W29: 0.00067422624 | X29: 0.00097802004 | Y29: 0.0006957858 | Z29: 0.02567155608 | AA29: 0.00788295912
B30: Mixed-2ndryS | E30: 0.00428055264 | F30: 0.01351784412 | G30: 0.00021755556 | H30: 0.00128965368 | I30: 0.00089962164 | J30: 0.00687553968 | K30: 0.00047431032 | L30: 0.00078202404 | M30: 9.7998e-05 | N30: 0.00031555356 | O30: 0.000342993 | P30: 0.00022735536 | Q30: 0.00021167568 | R30: 0.00052330932 | S30: 0.00026067468 | T30: 0.00022931532 | U30: 0.00023127528 | V30: 5.487888e-05 | W30: 0.00065070672 | X30: 0.00085650252 | Y30: 0.00145821024 | Z30: 0.01723000836 | AA30: 0.0265280586
B31: Mixed-Smoke-Auto | E31: 0.0594063876 | F31: 0.00869830248 | G31: 0.01756320156 | H31: 0.01272602028 | I31: 0.00267142548 | J31: 0.0499397808 | K31: 0.01316701128 | L31: 0.01450174404 | M31: 0.002302953 | N31: 0.00160520724 | O31: 0.00073302504 | P31: 0.0016071672 | Q31: 0.00296149956 | R31: 0.00711661476 | S31: 0.00377488296 | T31: 0.00079182384 | U31: 0.00320649456 | V31: 0.00171888492 | W31: 0.00895897716 | X31: 0.01205571396 | Y31: 0.02249642088 | Z31: 0.1176838382 | AA31: 0.3531985117
B32: Auto2 | E32: 0.00888449868 | F32: 0.00471958368 | G32: 0.002351952 | H32: 0.006761862 | I32: 0.0027831432 | J32: 0.0241663068 | K32: 0.00689121936 | L32: 0.00489598008 | M32: 0.00412963572 | N32: 0.00235783188 | O32: 0.0021461562 | P32: 0.00159932736 | Q32: 0.00144449052 | R32: 0.00429427236 | S32: 0.0018815616 | T32: 0.00167380584 | U32: 0.00169928532 | V32: 0.0027145446 | W32: 0.00450398808 | X32: 0.00602491704 | Y32: 0.01072490112 | Z32: 0.1090031754 | AA32: 0.03006774636
B33: Auto1 | E33: 0.00335349156 | F33: 0.00033711312 | G33: 0.000832983 | H33: 0.00111521724 | I33: 0.00062130732 | J33: 0.00307321728 | K33: 0.00093686088 | L33: 0.00073106508 | M33: 0.00051350952 | N33: 0.00028027428 | O33: 0.00024695496 | P33: 0.00020187588 | Q33: 0.00020187588 | R33: 0.00025283484 | S33: 0.00024303504 | T33: 0.00018423624 | U33: 0.00023127528 | V33: 0.00031947348 | W33: 0.00065854656 | X33: 0.00087022224 | Y33: 0.00161304708 | Z33: 0.0156208812 | AA33: 0.0218633538
B34: f8 | E34: 0 | F34: 0 | G34: 0 | H34: 0 | I34: 0 | J34: 0 | K34: 0 | L34: 0 | M34: 0 | N34: 0 | O34: 0 | P34: 0 | Q34: 0 | R34: 0 | S34: 0 | T34: 0 | U34: 0 | V34: 0 | W34: 0 | X34: 0 | Y34: 0 | Z34: 0 | AA34: 0
B35: f9 | E35: 0 | F35: 0 | G35: 0 | H35: 0 | I35: 0 | J35: 0 | K35: 0 | L35: 0 | M35: 0 | N35: 0 | O35: 0 | P35: 0 | Q35: 0 | R35: 0 | S35: 0 | T35: 0 | U35: 0 | V35: 0 | W35: 0 | X35: 0 | Y35: 0 | Z35: 0 | AA35: 0
B36: f10 | E36: 0 | F36: 0 | G36: 0 | H36: 0 | I36: 0 | J36: 0 | K36: 0 | L36: 0 | M36: 0 | N36: 0 | O36: 0 | P36: 0 | Q36: 0 | R36: 0 | S36: 0 | T36: 0 | U36: 0 | V36: 0 | W36: 0 | X36: 0 | Y36: 0 | Z36: 0 | AA36: 0
B37: f11 | E37: 0 | F37: 0 | G37: 0 | H37: 0 | I37: 0 | J37: 0 | K37: 0 | L37: 0 | M37: 0 | N37: 0 | O37: 0 | P37: 0 | Q37: 0 | R37: 0 | S37: 0 | T37: 0 | U37: 0 | V37: 0 | W37: 0 | X37: 0 | Y37: 0 | Z37: 0 | AA37: 0
B38: f12 | E38: 0 | F38: 0 | G38: 0 | H38: 0 | I38: 0 | J38: 0 | K38: 0 | L38: 0 | M38: 0 | N38: 0 | O38: 0 | P38: 0 | Q38: 0 | R38: 0 | S38: 0 | T38: 0 | U38: 0 | V38: 0 | W38: 0 | X38: 0 | Y38: 0 | Z38: 0 | AA38: 0
B39: f13 | E39: 0 | F39: 0 | G39: 0 | H39: 0 | I39: 0 | J39: 0 | K39: 0 | L39: 0 | M39: 0 | N39: 0 | O39: 0 | P39: 0 | Q39: 0 | R39: 0 | S39: 0 | T39: 0 | U39: 0 | V39: 0 | W39: 0 | X39: 0 | Y39: 0 | Z39: 0 | AA39: 0
B40: f14 | E40: 0 | F40: 0 | G40: 0 | H40: 0 | I40: 0 | J40: 0 | K40: 0 | L40: 0 | M40: 0 | N40: 0 | O40: 0 | P40: 0 | Q40: 0 | R40: 0 | S40: 0 | T40: 0 | U40: 0 | V40: 0 | W40: 0 | X40: 0 | Y40: 0 | Z40: 0 | AA40: 0
B41: f15 | E41: 0 | F41: 0 | G41: 0 | H41: 0 | I41: 0 | J41: 0 | K41: 0 | L41: 0 | M41: 0 | N41: 0 | O41: 0 | P41: 0 | Q41: 0 | R41: 0 | S41: 0 | T41: 0 | U41: 0 | V41: 0 | W41: 0 | X41: 0 | Y41: 0 | Z41: 0 | AA41: 0
B42: f16 | E42: 0 | F42: 0 | G42: 0 | H42: 0 | I42: 0 | J42: 0 | K42: 0 | L42: 0 | M42: 0 | N42: 0 | O42: 0 | P42: 0 | Q42: 0 | R42: 0 | S42: 0 | T42: 0 | U42: 0 | V42: 0 | W42: 0 | X42: 0 | Y42: 0 | Z42: 0 | AA42: 0
B43: f17 | E43: 0 | F43: 0 | G43: 0 | H43: 0 | I43: 0 | J43: 0 | K43: 0 | L43: 0 | M43: 0 | N43: 0 | O43: 0 | P43: 0 | Q43: 0 | R43: 0 | S43: 0 | T43: 0 | U43: 0 | V43: 0 | W43: 0 | X43: 0 | Y43: 0 | Z43: 0 | AA43: 0
B44: f18 | E44: 0 | F44: 0 | G44: 0 | H44: 0 | I44: 0 | J44: 0 | K44: 0 | L44: 0 | M44: 0 | N44: 0 | O44: 0 | P44: 0 | Q44: 0 | R44: 0 | S44: 0 | T44: 0 | U44: 0 | V44: 0 | W44: 0 | X44: 0 | Y44: 0 | Z44: 0 | AA44: 0
B45: f19 | E45: 0 | F45: 0 | G45: 0 | H45: 0 | I45: 0 | J45: 0 | K45: 0 | L45: 0 | M45: 0 | N45: 0 | O45: 0 | P45: 0 | Q45: 0 | R45: 0 | S45: 0 | T45: 0 | U45: 0 | V45: 0 | W45: 0 | X45: 0 | Y45: 0 | Z45: 0 | AA45: 0
B46: f20 | E46: 0 | F46: 0 | G46: 0 | H46: 0 | I46: 0 | J46: 0 | K46: 0 | L46: 0 | M46: 0 | N46: 0 | O46: 0 | P46: 0 | Q46: 0 | R46: 0 | S46: 0 | T46: 0 | U46: 0 | V46: 0 | W46: 0 | X46: 0 | Y46: 0 | Z46: 0 | AA46: 0
A48: Elemental Percent Across Factors | E48: 100 | F48: 100 | G48: 100 | H48: 100 | I48: 100 | J48: 100 | K48: 100 | L48: 100 | M48: 100 | N48: 100 | O48: 100 | P48: 100 | Q48: 100 | R48: 100 | S48: 100 | T48: 100 | U48: 100 | V48: 100 | W48: 100 | X48: 100 | Y48: 100 | Z48: 100 | AA48: 100
A49: 0 | B49: i= | C49: %Mass | D49: Error | E49: H | F49: Na | G49: Al | H49: Si | I49: P | J49: S | K49: Cl | L49: K | M49: Ca | N49: Ti | O49: V | P49: Cr | Q49: Mn | R49: Fe | S49: Co | T49: Ni | U49: Cu | V49: Zn | W49: Se | X49: Br | Y49: Pb | Z49: BC | AA49: TotN
A50: p1 | B50: Soil | C50: 3.104447031 | D50: 0.2220512209 | E50: 2.013920491e-49 | F50: 1.428697358e-05 | G50: 93.32864592 | H50: 84.33167929 | I50: 1.062858579e-47 | J50: 8.538919756e-05 | K50: 0.06238798945 | L50: 1.137317169 | M50: 15.32129237 | N50: 61.05144465 | O50: 6.031489435e-47 | P50: 6.772784444 | Q50: 17.55878728 | R50: 29.025028 | S50: 8.664678765 | T50: 1.018532844e-46 | U50: 1.728442131 | V50: 9.085311744e-48 | W50: 0.1034056996 | X50: 0.00321632978 | Y50: 0.001426266273 | Z50: 4.2455288e-05 | AA50: 1.584578472e-49
A51: p2 | B51: Sea | C51: 17.08302819 | D51: 0.3410390188 | E51: 0.0001088399658 | F51: 39.60742344 | G51: 1.569684862e-47 | H51: 0.1927867543 | I51: 5.744094265e-47 | J51: 3.554633348 | K51: 99.87220262 | L51: 4.581153442 | M51: 11.21515178 | N51: 1.402286888 | O51: 2.216560349 | P51: 7.738418069e-46 | Q51: 5.709053746 | R51: 8.89121391e-48 | S51: 8.363604104 | T51: 11.99989946 | U51: 2.266788727 | V51: 4.910049945e-47 | W51: 3.057205135 | X51: 4.768537787 | Y51: 0.00770808843 | Z51: 2.015862137 | AA51: 0.5216130241
A52: p3 | B52: Mixed-Ind-Ca-Saged | C52: 9.186753806 | D52: 0.4181220098 | E52: 1.610657179 | F52: 48.65309462 | G52: 9.890918455e-48 | H52: 4.194329426 | I52: 3.619476072e-47 | J52: 1.370109883 | K52: 0.0001258632017 | L52: 0.0004317287458 | M52: 58.77783362 | N52: 8.032825629e-47 | O52: 21.6283391 | P52: 4.876141955e-46 | Q52: 1.564085346e-46 | R52: 6.413791403 | S52: 3.973700443 | T52: 8.185727224 | U52: 5.415180017 | V52: 3.093926992e-47 | W52: 2.071408639e-46 | X52: 2.464412015 | Y52: 4.857030603e-47 | Z52: 5.925237528 | AA52: 0.0001618844871
A53: p4 | B53: Mixed-2ndryS | C53: 29.82702404 | D53: 0.4043742529 | E53: 25.25281903 | F53: 11.73935153 | G53: 2.150838123e-47 | H53: 6.405491154 | I53: 79.23496726 | J53: 79.04133686 | K53: 1.368484503e-48 | L53: 0.001251759244 | M53: 1.480909758e-47 | N53: 16.28003583 | O53: 50.78393718 | P53: 18.55604826 | Q53: 8.843107394 | R53: 0.3411256263 | S53: 6.679956191 | T53: 40.20162227 | U53: 3.37909267 | V53: 6.727925373e-47 | W53: 13.10780212 | X53: 8.995194509 | Y53: 1.711027378 | Z53: 15.39651544 | AA53: 61.41902345
A54: p5 | B54: Mixed-Smoke-Auto | C54: 11.58937883 | D54: 0.5054602343 | E54: 44.70988657 | F54: 9.515305661e-05 | G54: 6.671140929 | H54: 0.001684979049 | I54: 0.002359590993 | J54: 9.497978035 | K54: 0.01144627044 | L54: 91.68915326 | M54: 0.0004439647714 | N54: 0.005236720074 | O54: 1.339016161e-46 | P54: 0.03178830419 | Q54: 0.5506114353 | R54: 14.09709999 | S54: 59.6369669 | T54: 2.261185986e-46 | U54: 0.6344194846 | V54: 0.002016977628 | W54: 29.15475831 | X54: 60.6528369 | Y54: 28.58600137 | Z54: 0.0008639815686 | AA54: 9.992821715
A55: p6 | B55: Auto2 | C55: 3.502103745 | D55: 0.5857269315 | E55: 5.91188907e-05 | F55: 2.096979582e-05 | G55: 0.0002131524644 | H55: 1.062327736 | I55: 0.0007800087002 | J55: 6.535533059 | K55: 8.137177075e-05 | L55: 2.590265813 | M55: 4.353670729 | N55: 9.682040521 | O55: 16.84236973 | P55: 16.64505577 | Q55: 37.37044174 | R55: 50.12295498 | S55: 6.328451672 | T55: 21.60961821 | U55: 38.99771665 | V55: 54.08818988 | W55: 1.740941296 | X55: 4.414723927 | Y55: 11.23533866 | Z55: 5.192834784 | AA55: 0.0001395465043
A56: p7 | B56: Auto1 | C56: 25.70726436 | D56: 0.6441171157 | E56: 28.42646927 | F56: 1.443029604e-48 | G56: 2.933603352e-47 | H56: 3.811700661 | I56: 20.76189314 | J56: 0.0003234217326 | K56: 0.05375588784 | L56: 0.0004268295546 | M56: 10.33160753 | N56: 11.57895539 | O56: 8.528793638 | P56: 57.99432323 | Q56: 29.9679984 | R56: 1.661689908e-47 | S56: 6.352641921 | T56: 18.00313283 | U56: 47.57836032 | V56: 45.90979315 | W56: 52.83588744 | X56: 18.70107854 | Y56: 58.45849824 | Z56: 71.46864367 | AA56: 28.06624038
A57: p8 | B57: f8 | C57: 0 | E57: 0 | F57: 0 | G57: 0 | H57: 0 | I57: 0 | J57: 0 | K57: 0 | L57: 0 | M57: 0 | N57: 0 | O57: 0 | P57: 0 | Q57: 0 | R57: 0 | S57: 0 | T57: 0 | U57: 0 | V57: 0 | W57: 0 | X57: 0 | Y57: 0 | Z57: 0 | AA57: 0
A58: p9 | B58: f9 | C58: 0 | E58: 0 | F58: 0 | G58: 0 | H58: 0 | I58: 0 | J58: 0 | K58: 0 | L58: 0 | M58: 0 | N58: 0 | O58: 0 | P58: 0 | Q58: 0 | R58: 0 | S58: 0 | T58: 0 | U58: 0 | V58: 0 | W58: 0 | X58: 0 | Y58: 0 | Z58: 0 | AA58: 0
A59: p10 | B59: f10 | C59: 0 | E59: 0 | F59: 0 | G59: 0 | H59: 0 | I59: 0 | J59: 0 | K59: 0 | L59: 0 | M59: 0 | N59: 0 | O59: 0 | P59: 0 | Q59: 0 | R59: 0 | S59: 0 | T59: 0 | U59: 0 | V59: 0 | W59: 0 | X59: 0 | Y59: 0 | Z59: 0 | AA59: 0
A60: p11 | B60: f11 | C60: 0 | E60: 0 | F60: 0 | G60: 0 | H60: 0 | I60: 0 | J60: 0 | K60: 0 | L60: 0 | M60: 0 | N60: 0 | O60: 0 | P60: 0 | Q60: 0 | R60: 0 | S60: 0 | T60: 0 | U60: 0 | V60: 0 | W60: 0 | X60: 0 | Y60: 0 | Z60: 0 | AA60: 0
A61: p12 | B61: f12 | C61: 0 | E61: 0 | F61: 0 | G61: 0 | H61: 0 | I61: 0 | J61: 0 | K61: 0 | L61: 0 | M61: 0 | N61: 0 | O61: 0 | P61: 0 | Q61: 0 | R61: 0 | S61: 0 | T61: 0 | U61: 0 | V61: 0 | W61: 0 | X61: 0 | Y61: 0 | Z61: 0 | AA61: 0
A62: p13 | B62: f13 | C62: 0 | E62: 0 | F62: 0 | G62: 0 | H62: 0 | I62: 0 | J62: 0 | K62: 0 | L62: 0 | M62: 0 | N62: 0 | O62: 0 | P62: 0 | Q62: 0 | R62: 0 | S62: 0 | T62: 0 | U62: 0 | V62: 0 | W62: 0 | X62: 0 | Y62: 0 | Z62: 0 | AA62: 0
A63: p14 | B63: f14 | C63: 0 | E63: 0 | F63: 0 | G63: 0 | H63: 0 | I63: 0 | J63: 0 | K63: 0 | L63: 0 | M63: 0 | N63: 0 | O63: 0 | P63: 0 | Q63: 0 | R63: 0 | S63: 0 | T63: 0 | U63: 0 | V63: 0 | W63: 0 | X63: 0 | Y63: 0 | Z63: 0 | AA63: 0
A64: p15 | B64: f15 | C64: 0 | E64: 0 | F64: 0 | G64: 0 | H64: 0 | I64: 0 | J64: 0 | K64: 0 | L64: 0 | M64: 0 | N64: 0 | O64: 0 | P64: 0 | Q64: 0 | R64: 0 | S64: 0 | T64: 0 | U64: 0 | V64: 0 | W64: 0 | X64: 0 | Y64: 0 | Z64: 0 | AA64: 0
A65: p16 | B65: f16 | C65: 0 | E65: 0 | F65: 0 | G65: 0 | H65: 0 | I65: 0 | J65: 0 | K65: 0 | L65: 0 | M65: 0 | N65: 0 | O65: 0 | P65: 0 | Q65: 0 | R65: 0 | S65: 0 | T65: 0 | U65: 0 | V65: 0 | W65: 0 | X65: 0 | Y65: 0 | Z65: 0 | AA65: 0
A66: p17 | B66: f17 | C66: 0 | E66: 0 | F66: 0 | G66: 0 | H66: 0 | I66: 0 | J66: 0 | K66: 0 | L66: 0 | M66: 0 | N66: 0 | O66: 0 | P66: 0 | Q66: 0 | R66: 0 | S66: 0 | T66: 0 | U66: 0 | V66: 0 | W66: 0 | X66: 0 | Y66: 0 | Z66: 0 | AA66: 0
A67: p18 | B67: f18 | C67: 0 | E67: 0 | F67: 0 | G67: 0 | H67: 0 | I67: 0 | J67: 0 | K67: 0 | L67: 0 | M67: 0 | N67: 0 | O67: 0 | P67: 0 | Q67: 0 | R67: 0 | S67: 0 | T67: 0 | U67: 0 | V67: 0 | W67: 0 | X67: 0 | Y67: 0 | Z67: 0 | AA67: 0
A68: p19 | B68: f19 | C68: 0 | E68: 0 | F68: 0 | G68: 0 | H68: 0 | I68: 0 | J68: 0 | K68: 0 | L68: 0 | M68: 0 | N68: 0 | O68: 0 | P68: 0 | Q68: 0 | R68: 0 | S68: 0 | T68: 0 | U68: 0 | V68: 0 | W68: 0 | X68: 0 | Y68: 0 | Z68: 0 | AA68: 0
A69: p20 | B69: f20 | C69: 0 | E69: 0 | F69: 0 | G69: 0 | H69: 0 | I69: 0 | J69: 0 | K69: 0 | L69: 0 | M69: 0 | N69: 0 | O69: 0 | P69: 0 | Q69: 0 | R69: 0 | S69: 0 | T69: 0 | U69: 0 | V69: 0 | W69: 0 | X69: 0 | Y69: 0 | Z69: 0 | AA69: 0
A70: Fkey Manual Element Pull-down Strength (0-9)
A71: p1 | B71: Soil | E71: 9 | F71: 0 | G71: 0 | H71: 0 | I71: 0 | J71: 0 | K71: 0 | L71: 0 | M71: 0 | N71: 0 | O71: 0 | P71: 0 | Q71: 0 | R71: 0 | S71: 0 | T71: 0 | U71: 0 | V71: 0 | W71: 0 | X71: 0 | Y71: 0 | Z71: 0 | AA71: 9
A72: p2 | B72: Sea | E72: 0 | F72: 0 | G72: 0 | H72: 0 | I72: 0 | J72: 0 | K72: 0 | L72: 0 | M72: 0 | N72: 0 | O72: 0 | P72: 0 | Q72: 0 | R72: 0 | S72: 0 | T72: 0 | U72: 0 | V72: 0 | W72: 0 | X72: 0 | Y72: 0 | Z72: 0 | AA72: 0
A73: p3 | B73: Mixed-Ind-Ca-Saged | E73: 0 | F73: 0 | G73: 0 | H73: 0 | I73: 0 | J73: 0 | K73: 0 | L73: 0 | M73: 0 | N73: 0 | O73: 0 | P73: 0 | Q73: 0 | R73: 0 | S73: 0 | T73: 0 | U73: 0 | V73: 0 | W73: 0 | X73: 0 | Y73: 0 | Z73: 0 | AA73: 0
A74: p4 | B74: Mixed-2ndryS | E74: 0 | F74: 0 | G74: 0 | H74: 0 | I74: 0 | J74: 0 | K74: 0 | L74: 0 | M74: 0 | N74: 0 | O74: 0 | P74: 0 | Q74: 0 | R74: 0 | S74: 0 | T74: 0 | U74: 0 | V74: 0 | W74: 0 | X74: 0 | Y74: 0 | Z74: 0 | AA74: 0
A75: p5 | B75: Mixed-Smoke-Auto | E75: 0 | F75: 0 | G75: 0 | H75: 0 | I75: 0 | J75: 0 | K75: 0 | L75: 0 | M75: 0 | N75: 0 | O75: 0 | P75: 0 | Q75: 0 | R75: 0 | S75: 0 | T75: 0 | U75: 0 | V75: 0 | W75: 0 | X75: 0 | Y75: 0 | Z75: 0 | AA75: 0
A76: p6 | B76: Auto2 | E76: 0 | F76: 0 | G76: 0 | H76: 0 | I76: 0 | J76: 0 | K76: 0 | L76: 0 | M76: 0 | N76: 0 | O76: 0 | P76: 0 | Q76: 0 | R76: 0 | S76: 0 | T76: 0 | U76: 0 | V76: 0 | W76: 0 | X76: 0 | Y76: 0 | Z76: 0 | AA76: 0
A77: p7 | B77: Auto1 | E77: 0 | F77: 0 | G77: 0 | H77: 0 | I77: 0 | J77: 0 | K77: 0 | L77: 0 | M77: 0 | N77: 0 | O77: 0 | P77: 0 | Q77: 0 | R77: 0 | S77: 0 | T77: 0 | U77: 0 | V77: 0 | W77: 0 | X77: 0 | Y77: 0 | Z77: 0 | AA77: 0
A78: p8 | B78: f8 | E78: 0 | F78: 0 | G78: 0 | H78: 0 | I78: 0 | J78: 0 | K78: 0 | L78: 0 | M78: 0 | N78: 0 | O78: 0 | P78: 0 | Q78: 0 | R78: 0 | S78: 0 | T78: 0 | U78: 0 | V78: 0 | W78: 0 | X78: 0 | Y78: 0 | Z78: 0 | AA78: 0
A79: p9 | B79: f9 | E79: 0 | F79: 0 | G79: 0 | H79: 0 | I79: 0 | J79: 0 | K79: 0 | L79: 0 | M79: 0 | N79: 0 | O79: 0 | P79: 0 | Q79: 0 | R79: 0 | S79: 0 | T79: 0 | U79: 0 | V79: 0 | W79: 0 | X79: 0 | Y79: 0 | Z79: 0 | AA79: 0
A80: p10 | B80: f10 | E80: 0 | F80: 0 | G80: 0 | H80: 0 | I80: 0 | J80: 0 | K80: 0 | L80: 0 | M80: 0 | N80: 0 | O80: 0 | P80: 0 | Q80: 0 | R80: 0 | S80: 0 | T80: 0 | U80: 0 | V80: 0 | W80: 0 | X80: 0 | Y80: 0 | Z80: 0 | AA80: 0
A81: p11 | B81: f11 | E81: 0 | F81: 0 | G81: 0 | H81: 0 | I81: 0 | J81: 0 | K81: 0 | L81: 0 | M81: 0 | N81: 0 | O81: 0 | P81: 0 | Q81: 0 | R81: 0 | S81: 0 | T81: 0 | U81: 0 | V81: 0 | W81: 0 | X81: 0 | Y81: 0 | Z81: 0 | AA81: 0
A82: p12 | B82: f12 | E82: 0 | F82: 0 | G82: 0 | H82: 0 | I82: 0 | J82: 0 | K82: 0 | L82: 0 | M82: 0 | N82: 0 | O82: 0 | P82: 0 | Q82: 0 | R82: 0 | S82: 0 | T82: 0 | U82: 0 | V82: 0 | W82: 0 | X82: 0 | Y82: 0 | Z82: 0 | AA82: 0
A83: p13 | B83: f13 | E83: 0 | F83: 0 | G83: 0 | H83: 0 | I83: 0 | J83: 0 | K83: 0 | L83: 0 | M83: 0 | N83: 0 | O83: 0 | P83: 0 | Q83: 0 | R83: 0 | S83: 0 | T83: 0 | U83: 0 | V83: 0 | W83: 0 | X83: 0 | Y83: 0 | Z83: 0 | AA83: 0
A84: p14 | B84: f14 | E84: 0 | F84: 0 | G84: 0 | H84: 0 | I84: 0 | J84: 0 | K84: 0 | L84: 0 | M84: 0 | N84: 0 | O84: 0 | P84: 0 | Q84: 0 | R84: 0 | S84: 0 | T84: 0 | U84: 0 | V84: 0 | W84: 0 | X84: 0 | Y84: 0 | Z84: 0 | AA84: 0
A85: p15 | B85: f15 | E85: 0 | F85: 0 | G85: 0 | H85: 0 | I85: 0 | J85: 0 | K85: 0 | L85: 0 | M85: 0 | N85: 0 | O85: 0 | P85: 0 | Q85: 0 | R85: 0 | S85: 0 | T85: 0 | U85: 0 | V85: 0 | W85: 0 | X85: 0 | Y85: 0 | Z85: 0 | AA85: 0
A86: p16 | B86: f16 | E86: 0 | F86: 0 | G86: 0 | H86: 0 | I86: 0 | J86: 0 | K86: 0 | L86: 0 | M86: 0 | N86: 0 | O86: 0 | P86: 0 | Q86: 0 | R86: 0 | S86: 0 | T86: 0 | U86: 0 | V86: 0 | W86: 0 | X86: 0 | Y86: 0 | Z86: 0 | AA86: 0
A87: p17 | B87: f17 | E87: 0 | F87: 0 | G87: 0 | H87: 0 | I87: 0 | J87: 0 | K87: 0 | L87: 0 | M87: 0 | N87: 0 | O87: 0 | P87: 0 | Q87: 0 | R87: 0 | S87: 0 | T87: 0 | U87: 0 | V87: 0 | W87: 0 | X87: 0 | Y87: 0 | Z87: 0 | AA87: 0
A88: p18 | B88: f18 | E88: 0 | F88: 0 | G88: 0 | H88: 0 | I88: 0 | J88: 0 | K88: 0 | L88: 0 | M88: 0 | N88: 0 | O88: 0 | P88: 0 | Q88: 0 | R88: 0 | S88: 0 | T88: 0 | U88: 0 | V88: 0 | W88: 0 | X88: 0 | Y88: 0 | Z88: 0 | AA88: 0
A89: p19 | B89: f19 | E89: 0 | F89: 0 | G89: 0 | H89: 0 | I89: 0 | J89: 0 | K89: 0 | L89: 0 | M89: 0 | N89: 0 | O89: 0 | P89: 0 | Q89: 0 | R89: 0 | S89: 0 | T89: 0 | U89: 0 | V89: 0 | W89: 0 | X89: 0 | Y89: 0 | Z89: 0 | AA89: 0
A90: p20 | B90: f20 | E90: 0 | F90: 0 | G90: 0 | H90: 0 | I90: 0 | J90: 0 | K90: 0 | L90: 0 | M90: 0 | N90: 0 | O90: 0 | P90: 0 | Q90: 0 | R90: 0 | S90: 0 | T90: 0 | U90: 0 | V90: 0 | W90: 0 | X90: 0 | Y90: 0 | Z90: 0 | AA90: 0
D92: Av= | E92: =AVERAGE(E98:E1480) -> 4931.283442 | F92: =AVERAGE(F98:F1480) -> 160.9341419 | G92: 739.0571364 | H92: 462.5441136 | I92: 1650.53408 | J92: 611.0028478 | K92: 156.165666 | L92: 1188.820156 | M92: 0 | N92: 0 | O92: 0 | P92: 0 | Q92: 0 | R92: 0 | S92: 0 | T92: 0 | U92: 0 | V92: 0 | W92: 0 | X92: 0 | Y92: 0 | Z92: 4969.058142
D93: Std= | E93: =STDEV(E98:E1480) -> 2635.025103 | F93: =STDEV(F98:F1480) -> 303.3227488 | G93: 979.2995603 | H93: 489.6307446 | I93: 1574.246525 | J93: 582.5689819 | K93: 124.5955269 | L93: 921.1767186 | M93: 0 | N93: 0 | O93: 0 | P93: 0 | Q93: 0 | R93: 0 | S93: 0 | T93: 0 | U93: 0 | V93: 0 | W93: 0 | X93: 0 | Y93: 0 | Z93: 2461.17185
B94: GFactor | D94: Q= | E94: 18529.3047 | F94: Fpeak= | G94: 0.05 | I94: c2= | J94: 0.8435063823 | L94: Seed= | M94: 25
E95: skcoeff | F95: 3.855744368 | G95: 2.626543243 | H95: 2.69341025 | I95: 5.705499608 | J95: 23.09913481 | K95: 3.221950192 | L95: 2.810924316 | M95: 0 | N95: 0 | O95: 0 | P95: 0 | Q95: 0 | R95: 0 | S95: 0 | T95: 0 | U95: 0 | V95: 0 | W95: 0 | X95: 0 | Y95: 0 | Z95: Percent% | AB95: PercentPMF
A96: 2000-2014 | E96: k= | F96: Soil | G96: Sea | H96: Mixed-Ind-Ca-Saged | I96: Mixed-2ndryS | J96: Mixed-Smoke-Auto | K96: Auto2 | L96: Auto1 | M96: f8 | N96: f9 | O96: f10 | P96: f11 | Q96: f12 | R96: f13 | S96: f14 | T96: f15 | U96: f16 | V96: f17 | W96: f18 | X96: f19 | Y96: f20 | AB96: Soil | AC96: Sea | AD96: Mixed-Ind-Ca-Saged | AE96: Mixed-2ndryS | AF96: Mixed-Smoke-Auto | AG96: Auto2 | AH96: Auto1 | AI96: f8 | AJ96: f9 | AK96: f10 | AL96: f11 | AM96: f12 | AN96: f13 | AO96: f14 | AP96: f15 | AQ96: f16 | AR96: f17 | AS96: f18 | AT96: f19 | AU96: f20 | AW96: Tramline Data | BA96: Tolerance | BB96: STDEV(Distances) | BD96: PMFvsNATplots Data
A97: Site | B97: Day | C97: Mnth | D97: Year | E97: CMass | F97: p1 | G97: p2 | H97: p3 | I97: p4 | J97: p5 | K97: p6 | L97: p7 | M97: p8 | N97: p9 | O97: p10 | P97: p11 | Q97: p12 | R97: p13 | S97: p14 | T97: p15 | U97: p16 | V97: p17 | W97: p18 | X97: p19 | Y97: p20 | Z97: FitCmass | AA97: DateCode | AW97: x | AX97: Upper Tram Line | AY97: Lower Tram Line | AZ97: Distances | BA97: 5 | BB97: 339.1960558 | BD97: H | BE97: Na | BF97: Al | BG97: Si | BH97: P | BI97: S | BJ97: Cl | BK97: K | BL97: Ca | BM97: Ti | BN97: V | BO97: Cr | BP97: Mn | BQ97: Fe | BR97: Co | BS97: Ni | BT97: Cu | BU97: Zn | BV97: Se | BW97: Br | BX97: Pb | BY97: BC | BZ97: TotN | CB97: Check | CC97: H | CD97: Na | CE97: Al | CF97: Si | CG97: P | CH97: S | CI97: Cl | CJ97: K | CK97: Ca | CL97: Ti | CM97: V | CN97: Cr | CO97: Mn | CP97: Fe | CQ97: Co | CR97: Ni | CS97: Cu | CT97: Zn | CU97: Se | CV97: Br | CW97: Pb | CX97: BC | CY97: TotN
A98: 1 | B98: 2 | C98: 1 | D98: 2000 | E98: 2783 | F98: 9.832148138 | G98: 618.6297299 | H98: 143.3432935 | I98: 1257.092729 | J98: 567.0837596 | K98: 202.0162771 | L98: 426.220454 | M98: 0 | N98: 0 | O98: 0 | P98: 0 | Q98: 0 | R98: 0 | S98: 0 | T98: 0 | U98: 0 | V98: 0 | W98: 0 | X98: 0 | Y98: 0 | Z98: 3224.218391 | AA98: 2000-01-02 | AB98: =100*(F98/$Z98) -> 0.3049467172 | AC98: =100*(G98/$Z98) -> 19.18696735 | AD98: 4.445830776 | AE98: 38.98906886 | AF98: 17.58825523 | AG98: 6.265589131 | AH98: 13.21934194 | AI98: 0 | AJ98: 0 | AK98: 0 | AL98: 0 | AM98: 0 | AN98: 0 | AO98: 0 | AP98: 0 | AQ98: 0 | AR98: 0 | AS98: 0 | AT98: 0 | AU98: 0 | AW98: 0 | AX98: 2378.938867 | AY98: -2378.938867 | AZ98: 347.0112838 | BD98: 84.29816518 | BE98: 198.4871511 | BF98: 1.0734434 | BG98: 7.4418428 | BH98: 2.51140178 | BI98: 299.0039259 | BJ98: 235.5896103 | BK98: 34.02437698 | BL98: 9.86843299 | BM98: 0.72165279 | BN98: 0.58237361 | BO98: 0.19990888 | BP98: 0.91563993 | BQ98: 28.09785861 | BR98: 0.23478053 | BS98: 0.3891423 | BT98: 0.94191931 | BU98: 5.84497884 | BV98: 0.29392192 | BW98: 1.71868859 | BX98: 1.54590528 | BY98: 304.5742459 | BZ98: 150.3238551 | CB98: 1 | CC98: 50.732 | CD98: 0 | CE98: 2.484 | CF98: 7.193 | CG98: 2.695 | CH98: 304.729 | CI98: 236.663 | CJ98: 35.165 | CK98: 11.265 | CL98: 0.229 | CM98: 0 | CN98: 0.077 | CO98: 0.85 | CP98: 27.759 | CQ98: 0.127 | CR98: 0.057 | CS98: 0.652 | CT98: 0.85 | CU98: 1.7 | CV98: 1.316 | CW98: 7.122 | CX98: 339.077 | CY98: 128.192
A99: 1 | B99: 5 | C99: 1 | D99: 2000 | E99: 2994 | F99: 94.5428519 | G99: 605.9960569 | H99: 163.4900022 | I99: 970.3343183 | J99: 354.5717193 | K99: 97.01292029 | L99: 802.7999846 | M99: 0 | N99: 0 | O99: 0 | P99: 0 | Q99: 0 | R99: 0 | S99: 0 | T99: 0 | U99: 0 | V99: 0 | W99: 0 | X99: 0 | Y99: 0 | Z99: 3088.747854 | AA99: 2000-01-05 | AB99: =100*(F99/$Z99) -> 3.060879566 | AC99: 19.61947319 | AD99: 5.293083473 | AE99: 31.41513533 | AF99: 11.47946469 | AG99: 3.14084946 | AH99: 25.99111429 | AI99: 0 | AJ99: 0 | AK99: 0 | AL99: 0 | AM99: 0 | AN99: 0 | AO99: 0 | AP99: 0 | AQ99: 0 | AR99: 0 | AS99: 0 | AT99: 0 | AU99: 0 | AW99: 34.13426854 | AX99: 2412.514676 | AY99: -2345.363058 | AZ99: 102.4684287 | BD99: 85.48536235 | BE99: 197.9229049 | BF99: 8.03780377 | BG99: 29.04356235 | BH99: 2.26449055 | BI99: 217.8512387 | BJ99: 230.889617 | BK99: 22.80579199 | BL99: 11.86578552 | BM99: 1.12573326 | BN99: 0.4275282 | BO99: 0.2035954 | BP99: 0.71017983 | BQ99: 18.16084936 | BR99: 0.19881973 | BS99: 0.29229748 | BT99: 0.70794204 | BU99: 3.87145557 | BV99: 0.36186372 | BW99: 1.47696039 | BX99: 1.64855192 | BY99: 392.7715831 | BZ99: 144.867127 | CB99: 1 | CC99: 58.172 | CD99: 0 | CE99: 3.441 | CF99: 29.073 | CG99: 2.382 | CH99: 221.353 | CI99: 231.954 | CJ99: 23.418 | CK99: 13.086 | CL99: 0.979 | CM99: 0 | CN99: 0.153 | CO99: 0.731 | CP99: 18.05 | CQ99: 0.805 | CR99: 0.186 | CS99: 0.642 | CT99: 2.763 | CU99: 0.2 | CV99: 0.812 | CW99: 2.88 | CX99: 436.141 | CY99: 0
A100: 1 | B100: 9 | C100: 1 | D100: 2000 | E100: 2792 | F100: 18.2762283 | G100: 1080.664952 | H100: 163.6246727 | I100: 791.7521806 | J100: 108.796925 | K100: 15.94865345 | L100: 657.9530546 | M100: 0 | N100: 0 | O100: 0 | P100: 0 | Q100: 0 | R100: 0 | S100: 0 | T100: 0 | U100: 0 | V100: 0 | W100: 0 | X100: 0 | Y100: 0 | Z100: 2837.016666 | AA100: 2000-01-09 | AB100: 0.6442058843 | AC100: 38.09159687 | AD100: 5.767490711 | AE100: 27.90791432 | AF100: 3.834906092 | AG100: 0.5621628396 | AH100: 23.19172328 | AI100: 0 | AJ100: 0 | AK100: 0 | AL100: 0 | AM100: 0 | AN100: 0 | AO100: 0 | AP100: 0 | AQ100: 0 | AR100: 0 | AS100: 0 | AT100: 0 | AU100: 0 | AW100: 68.26853707 | AX100: 2446.090485 | AY100: -2311.787249 | AZ100: 64.65825898 | BD100: 62.34546714 | BE100: 287.2033631 | BF100: 1.57182933 | BG100: 8.35712915 | BH100: 1.84969863 | BI100: 172.4322944 | BJ100: 411.5248797 | BK100: 13.39822979 | BL100: 11.2200495 | BM100: 0.4387208 | BN100: 0.30133371 | BO100: 0.12823435 | BP100: 0.35517663 | BQ100: 3.80732108 | BR100: 0.14382962 | BS100: 0.23326803 | BT100: 0.37049563 | BU100: 1.57261082 | BV100: 0.29212616 | BW100: 1.08890027 | BX100: 1.06840816 | BY100: 316.422856 | BZ100: 117.5258151 | CB100: 1 | CC100: 48.32 | CD100: 249.483 | CE100: 3.489 | CF100: 8.163 | CG100: 2.715 | CH100: 173.785 | CI100: 411.192 | CJ100: 13.638 | CK100: 11.368 | CL100: 0.76 | CM100: 0.014 | CN100: 0.356 | CO100: 0.049 | CP100: 3.783 | CQ100: 0 | CR100: 0.474 | CS100: 0.474 | CT100: 0.303 | CU100: 0 | CV100: 0.869 | CW100: 0 | CX100: 337.308 | CY100: 0
A101: 1 | B101: 12 | C101: 1 | D101: 2000 | E101: 3600 | F101: 3.855744368 | G101: 2641.251885 | H101: 464.047652 | I101: 1008.447056 | J101: 92.62753059 | K101: 0.9343655558 | L101: 322.8908762 | M101: 0 | N101: 0 | O101: 0 | P101: 0 | Q101: 0 | R101: 0 | S101: 0 | T101: 0 | U101: 0 | V101: 0 | W101: 0 | X101: 0 | Y101: 0 | Z101: 4534.055109 | AA101: 2000-01-12 | AB101: 0.08503964498 | AC101: 58.25363436 | AD101: 10.23471574 | AE101: 22.24161444 | AF101: 2.042929086 | AG101: 0.02060772384 | AH101: 7.121459012 | AI101: 0 | AJ101: 0 | AK101: 0 | AL101: 0 | AM101: 0 | AN101: 0 | AO101: 0 | AP101: 0 | AQ101: 0 | AR101: 0 | AS101: 0 | AT101: 0 | AU101: 0 | AW101: 102.4028056 | AX101: 2479.666294 | AY101: -2278.21144 | AZ101: 707.8910739 | BD101: 54.03863742 | BE101: 707.7426377 | BF101: 0.36281575 | BG101: 6.27364619 | BH101: 2.00150513 | BI101: 247.0610105 | BJ101: 1005.637924 | BK101: 24.14286073 | BL101: 25.97806972 | BM101: 0.3586818 | BN101: 0.46795217 | BO101: 0.07793049 | BP101: 0.35870379 | BQ101: 2.47345536 | BR101: 0.2547016 | BS101: 0.37502963 | BT101: 0.28981207 | BU101: 0.598224 | BV101: 0.25253094 | BW101: 1.44635981 | BX101: 0.5350977 | BY101: 262.4711797 | BZ101: 119.9225063 | CB101: 1 | CC101: 38.774 | CD101: 822.007 | CE101: 3.811 | CF101: 5.571 | CG101: 3.039 | CH101: 249.129 | CI101: 992.892 | CJ101: 24.53 | CK101: 25.021 | CL101: 1.192 | CM101: 0.668 | CN101: 0 | CO101: 0.39 | CP101: 2.576 | CQ101: 0.293 | CR101: 0.715 | CS101: 0 | CT101: 0 | CU101: 0.8 | CV101: 0.453 | CW101: 1.483 | CX101: 289.124 | CY101: 0
A102: 1 | B102: 16 | C102: 1 | D102: 2000 | E102: 5506 | F102: 35.16438864 | G102: 259.5287378 | H102: 435.928449 | I102: 3787.19653 | J102: 493.6285109 | K102: 93.53321409 | L102: 1492.516484 | M102: 0 | N102: 0 | O102: 0 | P102: 0 | Q102: 0 | R102: 0 | S102: 0 | T102: 0 | U102: 0 | V102: 0 | W102: 0 | X102: 0 | Y102: 0 | Z102: 6597.496314 | AA102: 2000-01-16 | AB102: 0.5329959573 | AC102: 3.933745855 | AD102: 6.607483024 | AE102: 57.40354142 | AF102: 7.482058154 | AG102: 1.417707713 | AH102: 22.62246787 | AI102: 0 | AJ102: 0 | AK102: 0 | AL102: 0 | AM102: 0 | AN102: 0 | AO102: 0 | AP102: 0 | AQ102: 0 | AR102: 0 | AS102: 0 | AT102: 0 | AU102: 0 | AW102: 136.5370741 | AX102: 2513.242103 | AY102: -2244.635631 | AZ102: 842.3643373 | BD102: 211.7691338 | BE102: 286.1888644 | BF102: 3.15163441 | BG102: 21.20859037 | BH102: 7.70921964 | BI102: 708.7579308 | BJ102: 99.00016859 | BK102: 25.54114142 | BL102: 19.27029057 | BM102: 1.28599348 | BN102: 1.11665994 | BO102: 0.37939912 | BP102: 0.89619107 | BQ102: 16.52412326 | BR102: 0.26316898 | BS102: 0.5903774 | BT102: 1.01262733 | BU102: 5.01143594 | BV102: 0.71659808 | BW102: 2.56710371 | BX102: 2.76685293 | BY102: 800.0490593 | BZ102: 447.218788 | CB102: 1 | CC102: 172.895 | CD102: 301.427 | CE102: 1.334 | CF102: 22.038 | CG102: 7.689 | CH102: 718.039 | CI102: 98.805 | CJ102: 26.094 | CK102: 19.298 | CL102: 0.954 | CM102: 1.413 | CN102: 0.288 | CO102: 1.51 | CP102: 15.861 | CQ102: 0.075 | CR102: 0.379 | CS102: 0.276 | CT102: 8.029 | CU102: 1.3 | CV102: 1.861 | CW102: 11.542 | CX102: 820.855 | CY102: 557.613
A103: 1 | B103: 19 | C103: 1 | D103: 2000 | E103: 7744 | F103: 299.7841246 | G103: 824.5244547 | H103: 988.5892982 | I103: 3428.206494 | J103: 847.7382476 | K103: 338.4014287 | L103: 2032.663701 | M103: 0 | N103: 0 | O103: 0 | P103: 0 | Q103: 0 | R103: 0 | S103: 0 | T103: 0 | U103: 0 | V103: 0 | W103: 0 | X103: 0 | Y103: 0 | Z103: 8759.907749 | AA103: 2000-01-19 | AB103: 3.422229243 | AC103: 9.412478742 | AD103: 11.28538481 | AE103: 39.13518946 | AF103: 9.677479169 | AG103: 3.86307069 | AH103: 23.20416789 | AI103: 0 | AJ103: 0 | AK103: 0 | AL103: 0 | AM103: 0 | AN103: 0 | AO103: 0 | AP103: 0 | AQ103: 0 | AR103: 0 | AS103: 0 | AT103: 0 | AU103: 0 | AW103: 170.6713427 | AX103: 2546.817912 | AY103: -2211.059822 | AZ103: 814.5796409 | BD103: 248.1184609 | BE103: 594.7421372 | BF103: 25.36305523 | BG103: 94.44560538 | BH103: 7.44753277 | BI103: 736.3836665 | BJ103: 314.402349 | BK103: 53.03363108 | BL103: 47.7077033 | BM103: 3.54576889 | BN103: 1.59189485 | BO103: 0.5983056 | BP103: 2.15925484 | BQ103: 63.10605991 | BR103: 0.54088101 | BS103: 0.90550386 | BT103: 2.19604204 | BU103: 12.13809975 | BV103: 0.94745537 | BW103: 3.96051073 | BX103: 4.49091215 | BY103: 1111.517676 | BZ103: 453.6493853 | CB103: 1 | CC103: 162.686 | CD103: 773.526 | CE103: 21.868 | CF103: 100.27 | CG103: 3.319 | CH103: 763.39 | CI103: 311.198 | CJ103: 55.4 | CK103: 46.145 | CL103: 2.877 | CM103: 0.442 | CN103: 0.341 | CO103: 5.337 | CP103: 55.865 | CQ103: 0 | CR103: 0.011 | CS103: 0.907 | CT103: 29.915 | CU103: 0 | CV103: 3.155 | CW103: 11.183 | CX103: 1202.893 | CY103: 51.359
A104: 1 | B104: 23 | C104: 1 | D104: 2000 | E104: 2527 | F104: 30.30615073 | G104: 1036.906741 | H104: 173.4556201 | I104: 1108.920904 | J104: 513.9557495 | K104: 134.2586645 | L104: 563.5622161 | M104: 0 | N104: 0 | O104: 0 | P104: 0 | Q104: 0 | R104: 0 | S104: 0 | T104: 0 | U104: 0 | V104: 0 | W104: 0 | X104: 0 | Y104: 0 | Z104: 3561.366046 | AA104: 2000-01-23 | AB104: 0.8509698341 | AC104: 29.11542166 | AD104: 4.870479975 | AE104: 31.13751548 | AF104: 14.43142162 | AG104: 3.769864226 | AH104: 15.82432721 | AI104: 0 | AJ104: 0 | AK104: 0 | AL104: 0 | AM104: 0 | AN104: 0 | AO104: 0 | AP104: 0 | AQ104: 0 | AR104: 0 | AS104: 0 | AT104: 0 | AU104: 0 | AW104: 204.8056112 | AX104: 2580.393721 | AY104: -2177.484013 | AZ104: 766.8889914 | BD104: 84.6914677 | BE104: 288.4756562 | BF104: 2.75587825 | BG104: 12.57376301 | BH104: 2.3444337 | BI104: 264.800723 | BJ104: 394.8708631 | BK104: 33.35735332 | BL104: 12.51878685 | BM104: 0.75852254 | BN104: 0.50226851 | BO104: 0.1841548 | BP104: 0.76409511 | BQ104: 20.3361567 | BR104: 0.2431998 | BS104: 0.36040804 | BT104: 0.76702583 | BU104: 4.38342746 | BV104: 0.33011737 | BW104: 1.73566075 | BX104: 1.49363616 | BY104: 335.9173117 | BZ104: 145.6153332 | CB104: 1 | CC104: 73.277 | CD104: 192.754 | CE104: 1.221 | CF104: 12.393 | CG104: 2.11 | CH104: 266.32 | CI104: 396.24 | CJ104: 33.778 | CK104: 13.189 | CL104: 0.708 | CM104: 0 | CN104: 0.399 | CO104: 1.113 | CP104: 20.468 | CQ104: 0 | CR104: 0 | CS104: 0.324 | CT104: 1.885 | CU104: 1.1 | CV104: 0 | CW104: 4.167 | CX104: 351.751 | CY104: 179.527
A105: 1 | B105: 30 | C105: 1 | D105: 2000 | E105: 4198 | F105: 0 | G105: 1571.434557 | H105: 540.8637123 | I105: 2010.960392 | J105: 367.5072348 | K105: 49.61803296 | L105: 732.3020028 | M105: 0 | N105: 0 | O105: 0 | P105: 0 | Q105: 0 | R105: 0 | S105: 0 | T105: 0 | U105: 0 | V105: 0 | W105: 0 | X105: 0 | Y105: 0 | Z105: 5272.685931 | AA105: 2000-01-30 | AB105: 0 | AC105: 29.80330285 | AD105: 10.25784049 | AE105: 38.13920302 | AF105: 6.970019448 | AG105: 0.941039038 | AH105: 13.88859516 | AI105: 0 | AJ105: 0 | AK105: 0 | AL105: 0 | AM105: 0 | AN105: 0 | AO105: 0 | AP105: 0 | AQ105: 0 | AR105: 0 | AS105: 0 | AT105: 0 | AU105: 0 | AW105: 238.9398798 | AX105: 2613.96953 | AY105: -2143.908204 | AZ105: 815.1237708 | BD105: 116.7148261 | BE105: 546.8223124 | BF105: 0.16462026 | BG105: 8.23140013 | BH105: 4.05209181 | BI105: 416.1239644 | BJ105: 598.3699627 | BK105: 28.83878781 | BL105: 25.32958233 | BM105: 0.60706545 | BN105: 0.74795347 | BO105: 0.19055853 | BP105: 0.56914116 | BQ105: 9.40484215 | BR105: 0.26610276 | BS105: 0.45579196 | BT105: 0.60340184 | BU105: 2.55267627 | BV105: 0.42260972 | BW105: 1.96903857 | BX105: 1.42382605 | BY105: 460.402889 | BZ105: 238.3332621 | CB105: 1 | CC105: 71.149 | CD105: 605.67 | CE105: 1.004 | CF105: 7.133 | CG105: 2.685 | CH105: 425.798 | CI105: 592.081 | CJ105: 29.848 | CK105: 25.039 | CL105: 1.242 | CM105: 0.238 | CN105: 0 | CO105: 0.635 | CP105: 9.097 | CQ105: 0.734 | CR105: 0 | CS105: 0 | CT105: 4.329 | CU105: 0.9 | CV105: 4.1 | CW105: 8.672 | CX105: 509.928 | CY105: 223.43
A106: 1 | B106: 6 | C106: 2 | D106: 2000 | E106: 9955 | F106: 0 | G106: 5911.403283 | H106: 1069.903354 | I106: 2009.591072 | J106: 389.4514129 | K106: 11.40570368 | L106: 443.1422184 | M106: 0 | N106: 0 | O106: 0 | P106: 0 | Q106: 0 | R106: 0 | S106: 0 | T106: 0 | U106: 0 | V106: 0 | W106: 0 | X106: 0 | Y106: 0 | Z106: 9834.897044 | AA106: 2000-02-06 | AB106: 0 | AC106: 60.10640739 | AD106: 10.87864315 | AE106: 20.43327005 | AF106: 3.959893135 | AG106: 0.1159717649 | AH106: 4.505814514 | AI106: 0 | AJ106: 0 | AK106: 0 | AL106: 0 | AM106: 0 | AN106: 0 | AO106: 0 | AP106: 0 | AQ106: 0 | AR106: 0 | AS106: 0 | AT106: 0 | AU106: 0 | AW106: 273.0741483 | AX106: 2647.545339 | AY106: -2110.332395 | AZ106: 30.48958509 | BD106: 107.8628395 | BE106: 1590.818336 | BF106: 0.1744371 | BG106: 11.132685 | BH106: 3.85071424 | BI106: 515.5941125 | BJ106: 2250.690923 | BK106: 61.92164592 | BL106: 58.55082606 | BM106: 0.67227342 | BN106: 1.00734155 | BO106: 0.13048037 | BP106: 0.75122472 | BQ106: 6.76646228 | BR106: 0.58566873 | BS106: 0.80994195 | BT106: 0.57969865 | BU106: 1.07591169 | BV106: 0.48516588 | BW106: 3.2412401 | BX106: 0.88926442 | BY106: 481.0053367 | BZ106: 230.5029228 | CB106: 1 | CC106: 141.291 | CD106: 2045.178 | CE106: 3.604 | CF106: 8.597 | CG106: 0 | CH106: 502.349 | CI106: 2228.028 | CJ106: 59.745 | CK106: 54.668 | CL106: 1.199 | CM106: 2.6 | CN106: 0 | CO106: 1.073 | CP106: 7.258 | CQ106: 0.366 | CR106: 0.356 | CS106: 0 | CT106: 0.407 | CU106: 0.2 | CV106: 1.137 | CW106: 0.252 | CX106: 455.187 | CY106: 474.586
A107: 1 | B107: 13 | C107: 2 | D107: 2000 | E107: 5301 | F107: 5.398042115 | G107: 3629.672638 | H107: 490.2814678 | I107: 982.3158675 | J107: 106.7180028 | K107: 10.82575265 | L107: 480.3026379 | M107: 0 | N107: 0 | O107: 0 | P107: 0 | Q107: 0 | R107: 0 | S107: 0 | T107: 0 | U107: 0 | V107: 0 | W107: 0 | X107: 0 | Y107: 0 | Z107: 5705.514408 | AA107: 2000-02-13 | AB107: 0.09461096281 | AC107: 63.61692177 | AD107: 8.593115935 | AE107: 17.21695534 | AF107: 1.870436129 | AG107: 0.1897419211 | AH107: 8.418217947 | AI107: 0 | AJ107: 0 | AK107: 0 | AL107: 0 | AM107: 0 | AN107: 0 | AO107: 0 | AP107: 0 | AQ107: 0 | AR107: 0 | AS107: 0 | AT107: 0 | AU107: 0 | AW107: 307.2084168 | AX107: 2681.121148 | AY107: -2076.756586 | AZ107: 350.2138278 | BD107: 61.92814026 | BE107: 910.0145716 | BF107: 0.49766108 | BG107: 7.23140723 | BH107: 2.06370595 | BI107: 268.8438467 | BJ107: 1381.97561 | BK107: 32.55487406 | BL107: 31.13194978 | BM107: 0.45054836 | BN107: 0.51811204 | BO107: 0.10463768 | BP107: 0.51584182 | BQ107: 3.95227926 | BR107: 0.33580136 | BS107: 0.47560026 | BT107: 0.41977792 | BU107: 1.12743715 | BV107: 0.33687701 | BW107: 1.88694013 | BX107: 0.80044092 | BY107: 342.4282159 | BZ107: 129.8110374 | CB107: 1 | CC107: 33.604 | CD107: 1136.711 | CE107: 2.496 | CF107: 7.366 | CG107: 0 | CH107: 273.147 | CI107: 1345.206 | CJ107: 33.798 | CK107: 29.181 | CL107: 0.474 | CM107: 1.079 | CN107: 0 | CO107: 0.376 | CP107: 3.944 | CQ107: 0 | CR107: 0 | CS107: 0 | CT107: 0.404 | CU107: 0 | CV107: 0.882 | CW107: 0 | CX107: 380.391 | CY107: 147.9
A108: 1 | B108: 16 | C108: 2 | D108: 2000 | E108: 3542 | F108: 93.15478393 | G108: 1.707253108 | H108: 140.596015 | I108: 1771.158243 | J108: 39.49952053 | K108: 200.9530335 | L108: 2578.966841 | M108: 0 | N108: 0 | O108: 0 | P108: 0 | Q108: 0 | R108: 0 | S108: 0 | T108: 0 | U108: 0 | V108: 0 | W108: 0 | X108: 0 | Y108: 0 | Z108: 4826.035691 | AA108: 2000-02-16 | AB108: 1.930254766 | AC108: 0.03537589063 | AD108: 2.913281709 | AE108: 36.70006516 | AF108: 0.8184672277 | AG108: 4.163935917 | AH108: 53.43861933 | AI108: 0 | AJ108: 0 | AK108: 0 | AL108: 0 | AM108: 0 | AN108: 0 | AO108: 0 | AP108: 0 | AQ108: 0 | AR108: 0 | AS108: 0 | AT108: 0 | AU108: 0 | AW108: 341.3426854 | AX108: 2714.696957 | AY108: -2043.180777 | AZ108: 956.7208463 | BD108: 183.7163428 | BE108: 86.9785856 | BF108: 7.78103851 | BG108: 33.2830559 | BH108: 4.89956921 | BI108: 365.1639515 | BJ108: 0.99675411 | BK108: 7.54605828 | BL108: 12.90618705 | BM108: 1.70943378 | BN108: 0.77373476 | BO108: 0.5324582 | BP108: 1.45750559 | BQ108: 30.90537962 | BR108: 0.20688282 | BS108: 0.51879076 | BT108: 1.71469503 | BU108: 9.64973329 | BV108: 0.90785529 | BW108: 2.36558158 | BX108: 4.45836577 | BY108: 1083.934958 | BZ108: 323.8660773 | CB108: 1 | CC108: 105.668 | CD108: 140.359 | CE108: 4.818 | CF108: 33.479 | CG108: 8.168 | CH108: 369.935 | CI108: 0.685 | CJ108: 8.327 | CK108: 12.155 | CL108: 2.996 | CM108: 0.556 | CN108: 0.319 | CO108: 1.035 | CP108: 30.719 | CQ108: 0 | CR108: 0.451 | CS108: 1.227 | CT108: 8.22 | CU108: 0 | CV108: 2.636 | CW108: 18.296 | CX108: 1314.971 | CY108: 464.526
A109: 1 | B109: 20 | C109: 2 | D109: 2000 | E109: 9192 | F109: 326.6586629 | G109: 26.55435218 | H109: 138.2527481 | I109: 3096.716967 | J109: 1765.004891 | K109: 226.2453425 | L109: 3331.535609 | M109: 0 | N109: 0 | O109: 0 | P109: 0 | Q109: 0 | R109: 0 | S109: 0 | T109: 0 | U109: 0 | V109: 0 | W109: 0 | X109: 0 | Y109: 0 | Z109: 8910.968572 | AA109: 2000-02-20 | AB109: 3.66580423 | AC109: 0.29799625 | AD109: 1.551489572 | AE109: 34.75174379 | AF109: 19.80710488 | AG109: 2.538953433 | AH109: 37.38690785 | AI109: 0 | AJ109: 0 | AK109: 0 | AL109: 0 | AM109: 0 | AN109: 0 | AO109: 0 | AP109: 0 | AQ109: 0 | AR109: 0 | AS109: 0 | AT109: 0 | AU109: 0 | AW109: 375.4769539 | AX109: 2748.272766 | AY109: -2009.604968 | AZ109: 93.13812317 | BD109: 335.1504256 | BE109: 116.7406677 | BF109: 28.01351624 | BG109: 97.55086924 | BH109: 7.75630769 | BI109: 634.5367511 | BJ109: 10.75919757 | BK109: 83.02838854 | BL109: 19.17139238 | BM109: 3.66851639 | BN109: 1.10497259 | BO109: 0.72162966 | BP109: 2.0156284 | BQ109: 47.78677815 | BR109: 0.56826284 | BS109: 0.71402671 | BT109: 2.12972052 | BU109: 11.62606888 | BV109: 1.37195922 | BW109: 5.04618764 | BX109: 6.34117509 | BY109: 1428.070403 | BZ109: 513.698361 | CB109: 1 | CC109: 299.85 | CD109: 321.278 | CE109: 20.425 | CF109: 101.554 | CG109: 6.894 | CH109: 630.711 | CI109: 10.286 | CJ109: 84.37 | CK109: 15.018 | CL109: 4.262 | CM109: 1.056 | CN109: 0.803 | CO109: 1.9 | CP109: 46.097 | CQ109: 0.03 | CR109: 0.191 | CS109: 1.871 | CT109: 17.796 | CU109: 1.2 | CV109: 5.524 | CW109: 17.455 | CX109: 1421.669 | CY109: 764.666
A110: 1 | B110: 23 | C110: 2 | D110: 2000 | E110: 5893 | F110: 85.82886963 | G110: 1262.658133 | H110: 597.7485368 | I110: 1822.907125 | J110: 323.6188787 | K110: 125.9782525 | L110: 1793.425932 | M110: 0 | N110: 0 | O110: 0 | P110: 0 | Q110: 0 | R110: 0 | S110: 0 | T110: 0 | U110: 0 | V110: 0 | W110: 0 | X110: 0 | Y110: 0 | Z110: 6012.165727 | AA110: 2000-02-23 | AB110: 1.427586556 | AC110: 21.00171869 | AD110: 9.942316361 | AE110: 30.32030731 | AF110: 5.382733833 | AG110: 2.095388887 | AH110: 29.82994836 | AI110: 0 | AJ110: 0 | AK110: 0 | AL110: 0 | AM110: 0 | AN110: 0 | AO110: 0 | AP110: 0 | AQ110: 0 | AR110: 0 | AS110: 0 | AT110: 0 | AU110: 0 | AW110: 409.6112224 | AX110: 2781.848575 | AY110: -1976.029158 | AZ110: 153.6895299 | BD110: 162.4846586 | BE110: 503.9806496 | BF110: 7.29774784 | BG110: 32.50816503 | BH110: 4.45039029 | BI110: 395.7294241 | BJ110: 480.9934868 | BK110: 27.20260567 | BL110: 30.27190703 | BM110: 1.45556565 | BN110: 0.86775173 | BO110: 0.38423591 | BP110: 1.12515704 | BQ110: 23.33014815 | BR110: 0.31402854 | BS110: 0.55215972 | BT110: 1.26399924 | BU110: 6.36389827 | BV110: 0.7322546 | BW110: 2.58577129 | BX110: 3.18752883 | BY110: 850.9143727 | BZ110: 286.0251648 | CB110: 1 | CC110: 96.536 | CD110: 668.848 | CE110: 0.098 | CF110: 33.732 | CG110: 0 | CH110: 401.288 | CI110: 473.98 | CJ110: 28.606 | CK110: 28.501 | CL110: 1.25 | CM110: 0.531 | CN110: 0.298 | CO110: 1.703 | CP110: 22.49 | CQ110: 0.332 | CR110: 0.252 | CS110: 0.253 | CT110: 9.211 | CU110: 1 | CV110: 3.617 | CW110: 4.274 | CX110: 944.475 | CY110: 556.717
A111: 1 | B111: 27 | C111: 2 | D111: 2000 | E111: 7702 | F111: 0 | G111: 2704.787966 | H111: 770.8001453 | I111: 2753.645276 | J111: 690.4331395 | K111: 133.968689 | L111: 594.5386021 | M111: 0 | N111: 0 | O111: 0 | P111: 0 | Q111: 0 | R111: 0 | S111: 0 | T111: 0 | U111: 0 | V111: 0 | W111: 0 | X111: 0 | Y111: 0 | Z111: 7648.173817 | AA111: 2000-02-27 | AB111: 0 | AC111: 35.36514769 | AD111: 10.07822473 | AE111: 36.00395783 | AF111: 9.027424794 | AG111: 1.751642839 | AH111: 7.773602121 | AI111: 0 | AJ111: 0 | AK111: =100*(O111/$Z111) -> 0 | AL111: =100*(P111/$Z111) -> 0 | AM111: =100*(Q111/$Z111) -> 0 | AN111: =100*(R111/$Z111) -> 0 | AO111: =100*(S111/$Z111) -> 0 | AP111: =100*(T111/$Z111) -> 0 | AQ111: =100*(U111/$Z111) -> 0 | AR111: =100*(V111/$Z111) -> 0 | AS111: =100*(W111/$Z111) -> 0 | AT111: =100*(X111/$Z111) -> 0 | AU111: =100*(Y111/$Z111) -> 0 | AW111: 443.745491 | AX111: 2815.424384 | AY111: -1942.453349 | AZ111: 51.46081254 | BD111: 147.8925229 | BE111: 867.9816317 | BF111: 0.30928352 | BG111: 11.22609294 | BH111: 5.26776802 | BI111: 603.5482822 | BJ111: 1029.860076 | BK111: 53.34452763 | BL111: 37.70141469 | BM111: 0.89846875 | BN111: 1.10794687 | BO111: 0.23516837 | BP111: 0.96158248 | BQ111: 21.82663531 | BR111: 0.44195284 | BS111: 0.70649652 | BT111: 0.93761558 | BU111: 4.43126718 | BV111: 0.49886311 | BW111: 2.94777848 | BX111: 1.65369007 | BY111: 519.5607342 | BZ111: 304.4719849 | CB111: 1 | CC111: 95.735 | CD111: 1141.464 | CE111: 2.173 | CF111: 6.378 | CG111: 0 | CH111: 609.586 | CI111: 1005.346 | CJ111: 55.618 | CK111: 34.993 | CL111: 1.215 | CM111: 1.362 | CN111: 0 | CO111: 1.527 | CP111: 21.642 | CQ111: 0.425 | CR111: 0 | CS111: 0 | CT111: 4.681 | CU111: 0.6 | CV111: 2.953 | CW111: 0 | CX111: 565.036 | CY111: 738.748
A112: 1 | B112: 1 | C112: 3 | D112: 2000 | E112: 6351 | F112: 61.73046733 | G112: 1813.96956 | H112: 431.9152677 | I112: 1630.346513 | J112: 166.3137706 | K112: 172.0199208 | L112: 1870.726351 | M112: 0 | N112: 0 | O112: 0 | P112: 0 | Q112: 0 | R112: 0 | S112: 0 | T112: 0 | U112: 0 | V112: 0 | W112: 0 | X112: 0 | Y112: 0 | Z112: 6147.02185 | AA112: 2000-03-01 | AB112: 1.004233739 | AC112: =100*(G112/$Z112) -> 29.50973014 | AD112: =100*(H112/$Z112) -> 7.026415039 | AE112: =100*(I112/$Z112) -> 26.52254299 | AF112: =100*(J112/$Z112) -> 2.705599145 | AG112: =100*(K112/$Z112) -> 2.798427027 | AH112: =100*(L112/$Z112) -> 30.43305192 | AI112: =100*(M112/$Z112) -> 0 | AJ112: =100*(N112/$Z112) -> 0 | AK112: 0 | AL112: 0 | AM112: 0 | AN112: 0 | AO112: 0 | AP112: 0 | AQ112: 0 | AR112: 0 | AS112: 0 | AT112: 0 | AU112: 0 | AW112: 477.8797595 | AX112: 2849.000193 | AY112: -1908.87754 | AZ112: 71.34245982 | BD112: 152.357238 | BE112: 546.3377685 | BF112: 5.21900587 | BG112: 25.46983819 | BH112: 4.16382152 | BI112: 381.7862101 | BJ112: 690.8783694 | BK112: 25.78246468 | BL112: 27.22172524 | BM112: 1.37871931 | BN112: 0.83704142 | BO112: 0.40902946 | BP112: 1.31659578 | BQ112: 27.18274269 | BR112: 0.32925089 | BS112: 0.61152354 | BT112: 1.44860568 | BU112: 7.66070734 | BV112: 0.75636811 | BW112: 2.6328362 | BX112: 3.38576816 | BY112: 878.7120355 | BZ112: 272.5263215 | CB112: 1 | CC112: 93.343 | CD112: 475.351 | CE112: 6.164 | CF112: 25.533 | CG112: 4.553 | CH112: 396.56 | CI112: 688.335 | CJ112: 26.952 | CK112: 27.626 | CL112: 0.779 | CM112: 0.933 | CN112: 0 | CO112: 0.982 | CP112: 26.91 | CQ112: 0.115 | CR112: 0.916 | CS112: 0.814 | CT112: 2.098 | CU112: 0 | CV112: 3.892 | CW112: 11.095 | CX112: 1053.132 | CY112: 0
A113: 1 | B113: 5 | C113: 3 | D113: 2000 | E113: 7919 | F113: 25.83348727 | G113: 487.8541419 | H113: 469.6499453 | I113: 3238.156302 | J113: 1825.986607 | K113: 556.5596762 | L113: 1433.290309 | M113: 0 | N113: 0 | O113: 0 | P113: 0 | Q113: 0 | R113: 0 | S113: 0 | T113: 0 | U113: 0 | V113: 0 | W113: 0 | X113: 0 | Y113: 0 | Z113: 8037.330468 | AA113: 2000-03-05 | AB113: 0.3214187517 | AC113: 6.069852966 | AD113: 5.843357407 | AE113: 40.28895309 | AF113: 22.71881956 | AG113: 6.924683244 | AH113: 17.83291498 | AI113: 0 | AJ113: 0 | AK113: 0 | AL113: 0 | AM113: 0 | AN113: 0 | AO113: 0 | AP113: 0 | AQ113: 0 | AR113: 0 | AS113: 0 | AT113: 0 | AU113: 0 | AW113: 512.0140281 | AX113: 2882.576002 | AY113: -1875.301731 | AZ113: 176.7248408 | BD113: 250.5050002 | BE113: 332.6240461 | BF113: 2.97092164 | BG113: 20.39419827 | BH113: 6.69992424 | BI113: 761.3795678 | BJ113: 185.9329105 | BK113: 95.5941943 | BL113: 25.22298776 | BM113: 1.93682267 | BN113: 1.57020798 | BO113: 0.58065946 | BP113: 2.46472978 | BQ113: 78.10003723 | BR113: 0.60354118 | BS113: 0.97277063 | BT113: 2.6532983 | BU113: 16.56412303 | BV113: 0.85909632 | BW113: 4.77789061 | BX113: 4.7291643 | BY113: 902.0778255 | BZ113: 410.0714416 | CB113: 1 | CC113: 250.661 | CD113: 446.9 | CE113: 2.296 | CF113: 20.661 | CG113: 7.521 | CH113: 786.318 | CI113: 184.815 | CJ113: 95.53 | CK113: 22.338 | CL113: 0.783 | CM113: 0.835 | CN113: 0.807 | CO113: 2.996 | CP113: 79.294 | CQ113: 2.322 | CR113: 0.338 | CS113: 1.08 | CT113: 10.995 | CU113: 2.8 | CV113: 9.489 | CW113: 17.115 | CX113: 965.407 | CY113: 0
A114: 1 | B114: 12 | C114: 3 | D114: 2000 | E114: 6185 | F114: 20.70534726 | G114: 4.701512404 | H114: 0 | I114: 3068.189469 | J114: 168.8546755 | K114: 290.0399563 | L114: 2703.462679 | M114: 0 | N114: 0 | O114: 0 | P114: 0 | Q114: 0 | R114: 0 | S114: 0 | T114: 0 | U114: 0 | V114: 0 | W114: 0 | X114: 0 | Y114: 0 | Z114: 6255.95364 | AA114: 2000-03-12 | AB114: 0.3309702796 | AC114: 0.07515260941 | AD114: 0 | AE114: 49.04431276 | AF114: 2.699103689 | AG114: 4.636222917 | AH114: 43.21423775 | AI114: 0 | AJ114: 0 | AK114: 0 | AL114: 0 | AM114: 0 | AN114: 0 | AO114: 0 | AP114: 0 | AQ114: 0 | AR114: 0 | AS114: 0 | AT114: 0 | AU114: 0 | AW114: 546.1482966 | AX114: 2916.151811 | AY114: -1841.725922 | AZ114: 122.7242464 | BD114: 232.7730834 | BE114: 60.5877319 | BF114: 1.80125064 | BG114: 16.73574133 | BH114: 7.27379043 | BI114: 615.9107439 | BJ114: 2.08769849 | BK114: 14.84640818 | BL114: 8.01989617 | BM114: 1.61128495 | BN114: 1.08872874 | BO114: 0.62491677 | BP114: 1.78050871 | BQ114: 38.75128661 | BR114: 0.25519658 | BS114: 0.71557387 | BT114: 2.07663762 | BU114: 12.11434506 | BV114: 1.03475821 | BW114: 2.9631311 | BX114: 5.0222563 | BY114: 1209.896428 | BZ114: 452.219113 | CB114: 1 | CC114: 258.279 | CD114: 0 | CE114: 8.967 | CF114: 16.204 | CG114: 18.217 | CH114: 627.402 | CI114: 2.409 | CJ114: 14.66 | CK114: 6.005 | CL114: 1.855 | CM114: 2.028 | CN114: 0.827 | CO114: 1.481 | CP114: 39.46 | CQ114: 0 | CR114: 0 | CS114: 0.233 | CT114: 8.234 | CU114: 0 | CV114: 2.401 | CW114: 21.422 | CX114: 1261.321 | CY114: 0
A115: 1 | B115: 15 | C115: 3 | D115: 2000 | E115: 7342 | F115: 13.10953085 | G115: 1638.253817 | H115: 774.3015787 | I115: 2727.057647 | J115: 1134.167519 | K115: 317.2332159 | L115: 1277.930522 | M115: 0 | N115: 0 | O115: 0 | P115: 0 | Q115: 0 | R115: 0 | S115: 0 | T115: 0 | U115: 0 | V115: 0 | W115: 0 | X115: 0 | Y115: 0 | Z115: 7882.053831 | AA115: 2000-03-15 | AB115: 0.166321255 | AC115: 20.78460579 | AD115: 9.823601758 | AE115: 34.5983129 | AF115: 14.38923843 | AG115: 4.024753228 | AH115: 16.21316663 | AI115: 0 | AJ115: 0 | AK115: 0 | AL115: 0 | AM115: 0 | AN115: 0 | AO115: 0 | AP115: 0 | AQ115: 0 | AR115: 0 | AS115: 0 | AT115: 0 | AU115: 0 | AW115: 580.2825651 | AX115: 2949.72762 | AY115: -1808.150113 | AZ115: 470.6475979 | BD115: 200.3193448 | BE115: 660.4689515 | BF115: 1.60060226 | BG115: 16.48999853 | BH115: 5.69112597 | BI115: 629.0730713 | BJ115: 623.8872765 | BK115: 68.81617044 | BL115: 36.79134258 | BM115: 1.3737632 | BN115: 1.32687047 | BO115: 0.42356932 | BP115: 1.6686967 | BQ115: 46.79483672 | BR115: 0.50935652 | BS115: 0.82278454 | BT115: 1.80735546 | BU115: 10.26183511 | BV115: 0.73254206 | BW115: 3.83774937 | BX115: 3.42309125 | BY115: 797.1067639 | BZ115: 347.6510771 | CB115: 1 | CC115: 151.691 | CD115: 673.508 | CE115: 0 | CF115: 17.364 | CG115: 2.394 | CH115: 660.977 | CI115: 619.262 | CJ115: 71.01 | CK115: 35.934 | CL115: 1.688 | CM115: 0 | CN115: 0.471 | CO115: 2.688 | CP115: 46.133 | CQ115: 0.676 | CR115: 0.566 | CS115: 4.76 | CT115: 5.648 | CU115: 0 | CV115: 2.907 | CW115: 15.974 | CX115: 903.863 | CY115: 0
A116: 1 | B116: 19 | C116: 3 | D116: 2000 | E116: 11590 | F116: 51.43562987 | G116: 2915.436734 | H116: 1463.033514 | I116: 2694.42219 | J116: 1446.467822 | K116: 228.4684881 | L116: 391.7023034 | M116: 0 | N116: 0 | O116: 0 | P116: 0 | Q116: 0 | R116: 0 | S116: 0 | T116: 0 | U116: 0 | V116: 0 | W116: 0 | X116: 0 | Y116: 0 | Z116: 9190.96668 | AA116: 2000-03-19 | AB116: 0.5596324267 | AC116: 31.72067569 | AD116: 15.91816796 | AE116: 29.31598257 | AF116: 15.73792912 | AG116: 2.48579389 | AH116: 4.261818338 | AI116: 0 | AJ116: 0 | AK116: 0 | AL116: 0 | AM116: 0 | AN116: 0 | AO116: 0 | AP116: 0 | AQ116: 0 | AR116: 0 | AS116: 0 | AT116: 0 | AU116: 0 | AW116: 614.4168337 | AX116: 2983.30343 | AY116: -1774.574304 | AZ116: 1575.122922 | BD116: 174.8167703 | BE116: 1164.980081 | BF116: 4.93445295 | BG116: 28.42800895 | BH116: 5.02377718 | BI116: 645.3883104 | BJ116: 1110.094151 | BK116: 89.75035279 | BL116: 62.23896572 | BM116: 1.37188813 | BN116: 1.47372819 | BO116: 0.25721698 | BP116: 1.30866227 | BQ116: 40.55889955 | BR116: 0.63734349 | BS116: 0.85126697 | BT116: 1.30398442 | BU116: 6.44959169 | BV116: 0.52357308 | BW116: 4.04955321 | BX116: 1.96959143 | BY116: 541.1086159 | BZ116: 296.171765 | CB116: 1 | CC116: 240.807 | CD116: 1376.688 | CE116: 5.03 | CF116: 27.587 | CG116: 0.542 | CH116: 650.14 | CI116: 1104.63 | CJ116: 86.39 | CK116: 58.78 | CL116: 8.791 | CM116: 0 | CN116: 0 | CO116: 1.781 | CP116: 41.316 | CQ116: 1.219 | CR116: 0.115 | CS116: 1.685 | CT116: 4.405 | CU116: 2.2 | CV116: 6.68 | CW116: 12.79 | CX116: 526.814 | CY116: 0
A117: 1 | B117: 26 | C117: 3 | D117: 2000 | E117: 3669 | F117: 16.84960289 | G117: 104.9041371 | H117: 162.0086265 | I117: 2077.600627 | J117: 413.4745131 | K117: 121.9185953 | L117: 1071.271366 | M117: 0 | N117: 0 | O117: 0 | P117: 0 | Q117: 0 | R117: 0 | S117: 0 | T117: 0 | U117: 0 | V117: 0 | W117: 0 | X117: 0 | Y117: 0 | Z117: 3968.027468 | AA117: 2000-03-26 | AB117: 0.4246342301 | AC117: 2.643735154 | AD117: 4.08285043 | AE117: 52.35852433 | AF117: 10.42015249 | AG117: 3.072523975 | AH117: 26.99757939 | AI117: 0 | AJ117: 0 | AK117: 0 | AL117: 0 | AM117: 0 | AN117: 0 | AO117: 0 | AP117: 0 | AQ117: 0 | AR117: 0 | AS117: 0 | AT117: 0 | AU117: 0 | AW117: 648.5511022 | AX117: 3016.879239 | AY117: -1740.998495 | AZ117: 255.9753893 | BD117: 134.2309081 | BE117: 121.0426859 | BF117: 1.5894346 | BG117: 11.3555213 | BH117: 4.40291986 | BI117: 407.6159596 | BJ117: 40.06985424 | BK117: 21.57530277 | BL117: 9.01266606 | BM117: 0.8537527 | BN117: 0.67741765 | BO117: 0.27857308 | BP117: 0.78726485 | BQ117: 17.9614267 | BR117: 0.18671362 | BS117: 0.39307863 | BT117: 0.88893648 | BU117: 4.97636771 | BV117: 0.49091175 | BW117: 1.81269851 | BX117: 2.17335513 | BY117: 542.8435611 | BZ117: 262.7578971 | CB117: 1 | CC117: 97.767 | CD117: 186.052 | CE117: 4.469 | CF117: 11.3 | CG117: 7.275 | CH117: 418.808 | CI117: 39.826 | CJ117: 22.182 | CK117: 8.173 | CL117: 0.9 | CM117: 0.866 | CN117: 0.7 | CO117: 0.444 | CP117: 17.873 | CQ117: 0.364 | CR117: 0.461 | CS117: 0.662 | CT117: 2.749 | CU117: 0.4 | CV117: 3.968 | CW117: 11.869 | CX117: 615.407 | CY117: 0
A118: 1 | B118: 29 | C118: 3 | D118: 2000 | E118: 6196 | F118: 81.24053383 | G118: 236.5727499 | H118: 473.6631266 | I118: 2857.542424 | J118: 1278.999094 | K118: 87.86258175 | L118: 1776.05442 | M118: 0 | N118: 0 | O118: 0 | P118: 0 | Q118: 0 | R118: 0 | S118: 0 | T118: 0 | U118: 0 | V118: 0 | W118: 0 | X118: 0 | Y118: 0 | Z118: 6791.93493 | AA118: 2000-03-29 | AB118: 1.196132393 | AC118: 3.483142172 | AD118: 6.973905543 | AE118: 42.07258245 | AF118: 18.8311447 | AG118: 1.293631088 | AH118: 26.14946165 | AI118: 0 | AJ118: 0 | AK118: 0 | AL118: 0 | AM118: 0 | AN118: 0 | AO118: 0 | AP118: 0 | AQ118: 0 | AR118: 0 | AS118: 0 | AT118: 0 | AU118: 0 | AW118: 682.6853707 | AX118: 3050.455048 | AY118: -1707.422686 | AZ118: 497.1193803 | BD118: 232.6043823 | BE118: 277.635975 | BF118: 7.34326625 | BG118: 32.10972267 | BH118: 6.26401748 | BI118: 557.9675218 | BJ118: 90.33906581 | BK118: 58.76884253 | BL118: 21.76809563 | BM118: 1.48167504 | BN118: 0.95298037 | BO118: 0.394232 | BP118: 0.94498622 | BQ118: 19.32879966 | BR118: 0.3744574 | BS118: 0.51749551 | BT118: 1.08992173 | BU118: 5.37334783 | BV118: 0.82804067 | BW118: 3.4155414 | BX118: 3.43785048 | BY118: 854.2681538 | BZ118: 389.2268805 | CB118: 1 | CC118: 293.843 | CD118: 264.144 | CE118: 6.392 | CF118: 31.843 | CG118: 5.322 | CH118: 558.278 | CI118: 90.495 | CJ118: 57.624 | CK118: 21.804 | CL118: 0.938 | CM118: 0.364 | CN118: 0.506 | CO118: 0.464 | CP118: 19.787 | CQ118: 0.458 | CR118: 0.097 | CS118: 1.093 | CT118: 2.192 | CU118: 1.5 | CV118: 2.035 | CW118: 3.083 | CX118: 837.454 | CY118: 0
A119: 1 | B119: 2 | C119: 4 | D119: 2000 | E119: 7828 | F119: 25.91060215 | G119: 290.4956826 | H119: 33.55989171 | I119: 3265.143315 | J119: 2306.448611 | K119: 396.9120442 | L119: 2107.771598 | M119: 0 | N119: 0 | O119: 0 | P119: 0 | Q119: 0 | R119: 0 | S119: 0 | T119: 0 | U119: 0 | V119: 0 | W119: 0 | X119: 0 | Y119: 0 | Z119: 8426.241745 | AA119: 2000-04-02 | AB119: 0.3074989175 | AC119: 3.447511849 | AD119: 0.3982782921 | AE119: 38.74969903 | AF119: 27.3722103 | AG119: 4.710427925 | AH119: 25.01437369 | AI119: 0 | AJ119: 0 | AK119: 0 | AL119: 0 | AM119: 0 | AN119: 0 | AO119: 0 | AP119: 0 | AQ119: 0 | AR119: 0 | AS119: 0 | AT119: 0 | AU119: 0 | AW119: 716.8196393 | AX119: 3084.030857 | AY119: -1673.846877 | AZ119: 517.7992002 | BD119: 301.8357198 | BE119: 132.69443 | BF119: 3.19249545 | BG119: 18.28967181 | BH119: 7.2115757 | BI119: 722.3725307 | BJ119: 110.8672657 | BK119: 110.2770341 | BL119: 10.22796637 | BM119: 1.77298662 | BN119: 1.24504049 | BO119: 0.59925022 | BP119: 2.05552389 | BQ119: 56.48382638 | BR119: 0.6013191 | BS119: 0.81944264 | BT119: 2.26633393 | BU119: 13.74501858 | BV119: 1.08542477 | BW119: 5.27853529 | BX119: 5.35948524 | BY119: 1050.094449 | BZ119: 460.0750474 | CB119: 1 | CC119: 353.247 | CD119: 0 | CE119: 6.563 | CF119: 17.053 | CG119: 7.941 | CH119: 729.859 | CI119: 111.868 | CJ119: 107.752 | CK119: 12.28 | CL119: 2.064 | CM119: 0.127 | CN119: 0.501 | CO119: 1.468 | CP119: 58.5 | CQ119: 0 | CR119: 0.016 | CS119: 1.541 | CT119: 7.478 | CU119: 1.6 | CV119: 13.151 | CW119: 23.827 | CX119: 1037.225 | CY119: 0
A120: 1 | B120: 5 | C120: 4 | D120: 2000 | E120: 6470 | F120: 193.5583673 | G120: 124.1566991 | H120: 221.2097838 | I120: 3692.428181 | J120: 939.6728041 | K120: 394.1733865 | L120: 3058.48242 | M120: 0 | N120: 0 | O120: 0 | P120: 0 | Q120: 0 | R120: 0 | S120: 0 | T120: 0 | U120: 0 | V120: 0 | W120: 0 | X120: 0 | Y120: 0 | Z120: 8623.681642 | AA120: 2000-04-05 | AB120: 2.244498061 | AC120: 1.439718026 | AD120: 2.565143207 | AE120: 42.81730628 | AF120: 10.8964227 | AG120: 4.570824885 | AH120: 35.46608684 | AI120: 0 | AJ120: 0 | AK120: 0 | AL120: 0 | AM120: 0 | AN120: 0 | AO120: 0 | AP120: 0 | AQ120: 0 | AR120: 0 | AS120: 0 | AT120: 0 | AU120: 0 | AW120: 750.9539078 | AX120: 3117.606666 | AY120: -1640.271068 | AZ120: 1610.855644 | BD120: 304.2483206 | BE120: 178.1877503 | BF120: 16.55166322 | BG120: 65.02697202 | BH120: 8.61955079 | BI120: 771.5613886 | BJ120: 47.76508738 | BK120: 52.27864443 | BL120: 20.61983659 | BM120: 3.12072886 | BN120: 1.44336304 | BO120: 0.76714266 | BP120: 2.43252442 | BQ120: 62.33663722 | BR120: 0.48573963 | BS120: 0.91872634 | BT120: 2.64051881 | BU120: 15.36812037 | BV120: 1.2648569 | BW120: 4.42993024 | BX120: 6.20078367 | BY120: 1423.259882 | BZ120: 541.3911894 | CB120: 1 | CC120: 466.681 | CD120: 221.391 | CE120: 17.156 | CF120: 66.421 | CG120: 9.544 | CH120: 766.145 | CI120: 47.748 | CJ120: 50.758 | CK120: 20.184 | CL120: 2.317 | CM120: 0.216 | CN120: 1.033 | CO120: 2.657 | CP120: 59.986 | CQ120: 0.778 | CR120: 0.205 | CS120: 3.298 | CT120: 24.015 | CU120: 2.1 | CV120: 7.411 | CW120: 14.647 | CX120: 1220.973 | CY120: 0
A121: 1 | B121: 12 | C121: 4 | D121: 2000 | E121: 6395 | F121: 83.39975068 | G121: 7.774567998 | H121: 90.84872773 | I121: 3095.290592 | J121: 612.1270725 | K121: 252.020944 | L121: 3278.521576 | M121: 0 | N121: 0 | O121: 0 | P121: 0 | Q121: 0 | R121: 0 | S121: 0 | T121: 0 | U121: 0 | V121: 0 | W121: 0 | X121: 0 | Y121: 0 | Z121: 7419.983231 | AA121: 2000-04-12 | AB121: 1.123988398 | AC121: 0.1047787812 | AD121: 1.224379152 | AE121: 41.71560091 | AF121: 8.249709648 | AG121: 3.396516356 | AH121: 44.18502676 | AI121: 0 | AJ121: 0 | AK121: 0 | AL121: 0 | AM121: 0 | AN121: 0 | AO121: 0 | AP121: 0 | AQ121: 0 | AR121: 0 | AS121: 0 | AT121: 0 | AU121: 0 | AW121: 785.0881764 | AX121: 3151.182475 | AY121: -1606.695259 | AZ121: 805.3152718 | BD121: 282.1491355 | BE121: 95.44500994 | BF121: 7.22457186 | BG121: 34.25070485 | BH121: 7.71727379 | BI121: 619.8516386 | BJ121: 3.37686196 | BK121: 33.07703775 | BL121: 12.88538236 | BM121: 2.07012964 | BN121: 1.11346894 | BO121: 0.69680357 | BP121: 1.84654313 | BQ121: 37.84940092 | BR121: 0.34325649 | BS121: 0.72800866 | BT121: 2.16917703 | BU121: 12.18063839 | BV121: 1.2492937 | BW121: 3.76841092 | BX121: 5.89981499 | BY121: 1412.429104 | BZ121: 496.0391376 | CB121: 1 | CC121: 321.786 | CD121: 0 | CE121: 12.982 | CF121: 32.501 | CG121: 13.216 | CH121: 623.369 | CI121: 3.585 | CJ121: 32.614 | CK121: 14.159 | CL121: 2.351 | CM121: 1.535 | CN121: 0.774 | CO121: 1.279 | CP121: 39.167 | CQ121: 0.274 | CR121: 0.652 | CS121: 1.381 | CT121: 6.089 | CU121: 2.1 | CV121: 6.872 | CW121: 34.867 | CX121: 1420.891 | CY121: 0
A122: 1 | B122: 16 | C122: 4 | D122: 2000 | E122: 6040 | F122: 87.29405249 | G122: 14.02574092 | H122: 0 | I122: 2384.214176 | J122: 730.6256341 | K122: 211.4243716 | L122: 3451.871279 | M122: 0 | N122: 0 | O122: 0 | P122: 0 | Q122: 0 | R122: 0 | S122: 0 | T122: 0 | U122: 0 | V122: 0 | W122: 0 | X122: 0 | Y122: 0 | Z122: 6879.455254 | AA122: 2000-04-16 | AB122: 1.268909373 | AC122: 0.2038786561 | AD122: 0 | AE122: 34.6570199 | AF122: 10.62039954 | AG122: 3.073271994 | AH122: 50.17652054 | AI122: 0 | AJ122: 0 | AK122: 0 | AL122: 0 | AM122: 0 | AN122: 0 | AO122: 0 | AP122: 0 | AQ122: 0 | AR122: 0 | AS122: 0 | AT122: 0 | AU122: 0 | AW122: 819.2224449 | AX122: 3184.758284 | AY122: -1573.11945 | AZ122: 668.9090308 | BD122: 274.0019735 | BE122: 49.10704481 | BF122: 7.60217552 | BG122: 33.55049545 | BH122: 6.58188589 | BI122: 485.6406067 | BJ122: 5.77932089 | BK122: 37.11270179 | BL122: 10.01792537 | BM122: 1.93988205 | BN122: 0.89709958 | BO122: 0.68024745 | BP122: 1.7189676 | BQ122: 32.57375253 | BR122: 0.33462812 | BS122: 0.62850508 | BT122: 2.06387654 | BU122: 11.46704133 | BV122: 1.27246275 | BW122: 3.77293243 | BX122: 6.04095042 | BY122: 1416.710308 | BZ122: 443.0917336 | CB122: 1 | CC122: 392.926 | CD122: 0 | CE122: 16.988 | CF122: 34.089 | CG122: 11.703 | CH122: 484.188 | CI122: 6.036 | CJ122: 36.243 | CK122: 7.202 | CL122: 1.263 | CM122: 0.343 | CN122: 1.053 | CO122: 1.792 | CP122: 31.203 | CQ122: 0 | CR122: 0 | CS122: 1.96 | CT122: 29.627 | CU122: 4.6 | CV122: 9.614 | CW122: 26.653 | CX122: 1207.691 | CY122: 0
A123: 1 | B123: 26 | C123: 4 | D123: 2000 | E123: 4923 | F123: 0 | G123: 2168.605428 | H123: 446.4058148 | I123: 1218.466496 | J123: 869.913417 | K123: 221.7990512 | L123: 987.6744769 | M123: 0 | N123: 0 | O123: 0 | P123: 0 | Q123: 0 | R123: 0 | S123: 0 | T123: 0 | U123: 0 | V123: 0 | W123: 0 | X123: 0 | Y123: 0 | Z123: 5912.864684 | AA123: 2000-04-26 | AB123: 0 | AC123: 36.67605372 | AD123: 7.549738387 | AE123: 20.60704179 | AF123: 14.71221588 | AG123: 3.75112679 | AH123: 16.70382344 | AI123: 0 | AJ123: 0 | AK123: 0 | AL123: 0 | AM123: 0 | AN123: 0 | AO123: 0 | AP123: 0 | AQ123: 0 | AR123: 0 | AS123: 0 | AT123: 0 | AU123: 0 | AW123: 853.3567134 | AX123: 3218.334093 | AY123: -1539.543641 | AZ123: 763.109691 | BD123: 126.8182338 | BE123: 612.9686839 | BF123: 0.3896992 | BG123: 7.71472586 | BH123: 2.8295646 | BI123: 343.2179101 | BJ123: 825.7624462 | BK123: 59.11897952 | BL123: 26.71205752 | BM123: 0.84568502 | BN123: 0.78461414 | BO123: 0.28735259 | BP123: 1.23767284 | BQ123: 31.98919546 | BR123: 0.42172369 | BS123: 0.59344001 | BT123: 1.30854831 | BU123: 7.34238025 | BV123: 0.54926515 | BW123: 2.98611494 | BX123: 2.54020487 | BY123: 567.242321 | BZ123: 189.1260128 | CB123: 1 | CC123: 185.869 | CD123: 637.914 | CE123: 2.152 | CF123: 5.514 | CG123: 1.071 | CH123: 340.415 | CI123: 830.179 | CJ123: 57.097 | CK123: 26.332 | CL123: 1.846 | CM123: 0.504 | CN123: 0 | CO123: 0.391 | CP123: 33.675 | CQ123: 0 | CR123: 0 | CS123: 0.934 | CT123: 3.214 | CU123: 0.9 | CV123: 4.518 | CW123: 7.948 | CX123: 541.596 | CY123: 0
A124: 1 | B124: 3 | C124: 5 | D124: 2000 | E124: 5475 | F124: 16.5025859 | G124: 2789.80917 | H124: 645.6912392 | I124: 874.0254849 | J124: 101.8671845 | K124: 147.2431238 | L124: 1450.914804 | M124: 0 | N124: 0 | O124: 0 | P124: 0 | Q124: 0 | R124: 0 | S124: 0 | T124: 0 | U124: 0 | V124: 0 | W124: 0 | X124: 0 | Y124: 0 | Z124: 6026.053593 | AA124: 2000-05-03 | AB124: 0.2738539517 | AC124: 46.29579089 | AD124: 10.71499331 | AE124: 14.50411072 | AF124: 1.690446043 | AG124: 2.443441989 | AH124: 24.0773631 | AI124: 0 | AJ124: 0 | AK124: 0 | AL124: 0 | AM124: 0 | AN124: 0 | AO124: 0 | AP124: 0 | AQ124: 0 | AR124: 0 | AS124: 0 | AT124: 0 | AU124: 0 | AW124: 887.490982 | AX124: 3251.909902 | AY124: -1505.967832 | AZ124: 456.713248 | BD124: 108.1142323 | BE124: 801.582009 | BF124: 1.4209554 | BG124: 12.8961611 | BH124: 2.54048662 | BI124: 267.5774654 | BJ124: 1062.32509 | BK124: 29.54984421 | BL124: 36.03670327 | BM124: 0.87684877 | BN124: 0.7449919 | BO124: 0.30821007 | BP124: 1.1408485 | BQ124: 22.68466483 | BR124: 0.3547679 | BS124: 0.59222588 | BT124: 1.25080868 | BU124: 6.28967832 | BV124: 0.61468232 | BW124: 2.46978086 | BX124: 2.65085836 | BY124: 721.8234374 | BZ124: 178.4224513 | CB124: 1 | CC124: 50.639 | CD124: 979.79 | CE124: 0.984 | CF124: 13.486 | CG124: 0.655 | CH124: 269.736 | CI124: 1041.439 | CJ124: 30.487 | CK124: 34.531 | CL124: 0.842 | CM124: 0.954 | CN124: 0.214 | CO124: 0.824 | CP124: 22.186 | CQ124: 0 | CR124: 0.418 | CS124: 1.551 | CT124: 7.124 | CU124: 0.3 | CV124: 3.88 | CW124: 10.344 | CX124: 779.197 | CY124: 274.291
A125: 1 | B125: 7 | C125: 5 | D125: 2000 | E125: 3417 | F125: 12.1841522 | G125: 461.9038946 | H125: 223.7685236 | I125: 1325.729889 | J125: 1316.881676 | K125: 304.7642687 | L125: 805.2173796 | M125: 0 | N125: 0 | O125: 0 | P125: 0 | Q125: 0 | R125: 0 | S125: 0 | T125: 0 | U125: 0 | V125: 0 | W125: 0 | X125: 0 | Y125: 0 | Z125: 4450.449783 | AA125: 2000-05-07 | AB125: 0.2737735015 | AC125: 10.37881376 | AD125: 5.027997944 | AE125: 29.78867201 | AF125: 29.58985585 | AG125: 6.847943097 | AH125: 18.09294383 | AI125: 0 | AJ125: 0 | AK125: 0 | AL125: 0 | AM125: 0 | AN125: 0 | AO125: 0 | AP125: 0 | AQ125: 0 | AR125: 0 | AS125: 0 | AT125: 0 | AU125: 0 | AW125: 921.6252505 | AX125: 3285.485711 | AY125: -1472.392023 | AZ125: 776.6165211 | BD125: 138.3387218 | BE125: 199.0733491 | BF125: 1.60531653 | BG125: 9.73714764 | BH125: 2.89333336 | BI125: 348.1009042 | BJ125: 175.9698081 | BK125: 67.23150215 | BL125: 13.50886344 | BM125: 0.98600968 | BN125: 0.76365439 | BO125: 0.30691571 | BP125: 1.34979311 | BQ125: 43.04245182 | BR125: 0.37862406 | BS125: 0.50538243 | BT125: 1.45567935 | BU125: 9.10654637 | BV125: 0.49035575 | BW125: 2.94233188 | BX125: 2.73029136 | BY125: 479.0278561 | BZ125: 189.1222948 | CB125: 1 | CC125: 59.55 | CD125: 0 | CE125: 2.93 | CF125: 9.189 | CG125: 6.2 | CH125: 351.77 | CI125: 177.095 | CJ125: 69.738 | CK125: 15.911 | CL125: 0.805 | CM125: 0.38 | CN125: 0.215 | CO125: 1.222 | CP125: 43.317 | CQ125: 0.472 | CR125: 0.379 | CS125: 1.633 | CT125: 4.637 | CU125: 0 | CV125: 4.654 | CW125: 10.98 | CX125: 528.124 | CY125: 437.331
A126: 1 | B126: 10 | C126: 5 | D126: 2000 | E126: 4598 | F126: 17.46652199 | G126: 270.2187688 | H126: 82.44528775 | I126: 1284.422072 | J126: 2052.127137 | K126: 480.7794077 | L126: 1693.750556 | M126: 0 | N126: 0 | O126: 0 | P126: 0 | Q126: 0 | R126: 0 | S126: 0 | T126: 0 | U126: 0 | V126: 0 | W126: 0 | X126: 0 | Y126: 0 | Z126: 5881.20975 | AA126: 2000-05-10 | AB126: 0.2969885913 | AC126: 4.594611998 | AD126: 1.401842329 | AE126: 21.83941954 | AF126: 34.8929425 | AG126: 8.174838649 | AH126: 28.79935639 | AI126: 0 | AJ126: 0 | AK126: 0 | AL126: 0 | AM126: 0 | AN126: 0 | AO126: 0 | AP126: 0 | AQ126: 0 | AR126: 0 | AS126: 0 | AT126: 0 | AU126: 0 | AW126: 955.759519 | AX126: 3319.06152 | AY126: -1438.816214 | AZ126: 968.4489526 | BD126: 211.8850247 | BE126: 108.3638074 | BF126: 2.3749037 | BG126: 12.58824999 | BH126: 3.43187214 | BI126: 392.7253125 | BJ126: 103.0945735 | BK126: 101.4755312 | BL126: 11.56536021 | BM126: 1.46589456 | BN126: 0.94733011 | BO126: 0.51961857 | BP126: 2.14796505 | BQ126: 66.58925354 | BR126: 0.542492 | BS126: 0.68648378 | BT126: 2.38558994 | BU126: 15.11972136 | BV126: 0.84335773 | BW126: 4.5022108 | BX126: 4.88554033 | BY126: 830.8828553 | BZ126: 249.3623544 | CB126: 1 | CC126: 116.782 | CD126: 0 | CE126: 3.441 | CF126: 12.276 | CG126: 6.978 | CH126: 399.514 | CI126: 103.334 | CJ126: 106.712 | CK126: 13.255 | CL126: 1.4 | CM126: 0.514 | CN126: 0.621 | CO126: 1.447 | CP126: 66.289 | CQ126: 0.241 | CR126: 0.292 | CS126: 4.061 | CT126: 11.702 | CU126: 0.3 | CV126: 5.573 | CW126: 14.329 | CX126: 951.181 | CY126: 315.217
A127: 1 | B127: 14 | C127: 5 | D127: 2000 | E127: 2642 | F127: 92.4221925 | G127: 827.9914918 | H127: 308.4762759 | I127: 795.1184253 | J127: 339.095299 | K127: 28.4498202 | L127: 1037.455947 | M127: 0 | N127: 0 | O127: 0 | P127: 0 | Q127: 0 | R127: 0 | S127: 0 | T127: 0 | U127: 0 | V127: 0 | W127: 0 | X127: 0 | Y127: 0 | Z127: 3429.009451 | AA127: 2000-05-14 | AB127: 2.695302938 | AC127: 24.14666695 | AD127: 8.996075406 | AE127: 23.18799165 | AF127: 9.889016167 | AG127: 0.8296804253 | AH127: 30.25526646 | AI127: 0 | AJ127: 0 | AK127: 0 | AL127: 0 | AM127: 0 | AN127: 0 | AO127: 0 | AP127: 0 | AQ127: 0 | AR127: 0 | AS127: 0 | AT127: 0 | AU127: 0 | AW127: 989.8937876 | AX127: 3352.637329 | AY127: -1405.240405 | AZ127: 591.8861932 | BD127: 92.54569017 | BE127: 291.7013642 | BF127: 7.85412027 | BG127: 29.00880476 | BH127: 2.11676135 | BI127: 176.3554923 | BJ127: 315.4315955 | BK127: 22.05434542 | BL127: 17.14245366 | BM127: 1.01372521 | BN127: 0.38575808 | BO127: 0.19772829 | BP127: 0.53749272 | BQ127: 9.81136017 | BR127: 0.20028766 | BS127: 0.26014681 | BT127: 0.57089607 | BU127: 2.56282918 | BV127: 0.42282519 | BW127: 1.55575379 | BX127: 1.74795443 | BY127: 463.6400926 | BZ127: 143.7566066 | CB127: 1 | CC127: 59.36 | CD127: 0 | CE127: 6.145 | CF127: 28.997 | CG127: 3.496 | CH127: 177.778 | CI127: 319.663 | CJ127: 22.552 | CK127: 20.439 | CL127: 0.99 | CM127: 0 | CN127: 0.394 | CO127: 0.76 | CP127: 9.45 | CQ127: 0 | CR127: 0 | CS127: 0 | CT127: 4.187 | CU127: 1.1 | CV127: 0.895 | CW127: 5.03 | CX127: 475.482 | CY127: 231.74
A128: 1 | B128: 17 | C128: 5 | D128: 2000 | E128: 4336 | F128: 99.51676214 | G128: 1201.328348 | H128: 235.0539125 | I128: 693.7316973 | J128: 713.994257 | K128: 166.4459469 | L128: 1960.872694 | M128: 0 | N128: 0 | O128: 0 | P128: 0 | Q128: 0 | R128: 0 | S128: 0 | T128: 0 | U128: 0 | V128: 0 | W128: 0 | X128: 0 | Y128: 0 | Z128: 5070.943618 | AA128: 2000-05-17 | AB128: 1.962490014 | AC128: 23.69043 | AD128: 4.635309131 | AE128: 13.68052476 | AF128: 14.0801064 | AG128: 3.28234663 | AH128: 38.66879306 | AI128: 0 | AJ128: 0 | AK128: 0 | AL128: 0 | AM128: 0 | AN128: 0 | AO128: 0 | AP128: 0 | AQ128: 0 | AR128: 0 | AS128: 0 | AT128: 0 | AU128: 0 | AW128: 1024.028056 | AX128: 3386.213138 | AY128: -1371.664596 | AZ128: 574.5261102 | BD128: 151.0354772 | BE128: 335.3830305 | BF128: 8.6133222 | BG128: 32.53393606 | BH128: 2.57326816 | BI128: 208.5581953 | BJ128: 457.6771489 | BK128: 44.39439434 | BL128: 19.35652369 | BM128: 1.45964213 | BN128: 0.55547388 | BO128: 0.39508032 | BP128: 1.26054913 | BQ128: 28.22593625 | BR128: 0.34529193 | BS128: 0.45653934 | BT128: 1.40388743 | BU128: 7.6808362 | BV128: 0.76516729 | BW128: 2.85545161 | BX128: 3.68457491 | BY128: 830.5493145 | BZ128: 197.5401903 | CB128: 1 | CC128: 71.261 | CD128: 281.53 | CE128: 10.486 | CF128: 32.08 | CG128: 1.213 | CH128: 211.724 | CI128: 456.451 | CJ128: 46.1 | CK128: 19.666 | CL128: 1.766 | CM128: 0.758 | CN128: 0 | CO128: 1.006 | CP128: 28.274 | CQ128: 0 | CR128: 0.203 | CS128: 0.408 | CT128: 3.24 | CU128: 1.7 | CV128: 6.469 | CW128: 11.96 | CX128: 1011.852 | CY128: 22.854
A129: 1 | B129: 21 | C129: 5 | D129: 2000 | E129: 6894 | F129: 328.3551904 | G129: 1956.354469 | H129: 325.4447605 | I129: 595.711214 | J129: 1590.606423 | K129: 493.57055 | L129: 1787.241899 | M129: 0 | N129: 0 | O129: 0 | P129: 0 | Q129: 0 | R129: 0 | S129: 0 | T129: 0 | U129: 0 | V129: 0 | W129: 0 | X129: 0 | Y129: 0 | Z129: 7077.284505 | AA129: 2000-05-21 | AB129: 4.639564654 | AC129: 27.64272748 | AD129: 4.598441115 | AE129: 8.41722858 | AF129: 22.47481251 | AG129: 6.974010295 | AH129: 25.25321537 | AI129: 0 | AJ129: 0 | AK129: 0 | AL129: 0 | AM129: 0 | AN129: 0 | AO129: 0 | AP129: 0 | AQ129: 0 | AR129: 0 | AS129: 0 | AT129: 0 | AU129: 0 | AW129: 1058.162325 | AX129: 3419.788947 | AY129: -1338.088787 | AZ129: 211.076168 | BD129: 178.2330556 | BE129: 514.4949124 | BF129: 28.07687123 | BG129: 93.78614343 | BH129: 2.2809934 | BI129: 310.2794834 | BJ129: 745.3309891 | BK129: 97.32713183 | BL129: 32.4790389 | BM129: 3.54922269 | BN129: 0.96850003 | BO129: 0.55623807 | BP129: 2.63690217 | BQ129: 82.69031007 | BR129: 0.68833118 | BS129: 0.80068232 | BT129: 2.57194325 | BU129: 15.6081555 | BV129: 0.85631919 | BW129: 4.52548519 | BX129: 4.86391152 | BY129: 888.6694977 | BZ129: 190.2481663 | CB129: 1 | CC129: 160.63 | CD129: 744.566 | CE129: 70.627 | CF129: 88.886 | CG129: 0.644 | CH129: 308.619 | CI129: 734.053 | CJ129: 98.413 | CK129: 30.458 | CL129: 2.897 | CM129: 0.622 | CN129: 0 | CO129: 2.517 | CP129: 78.628 | CQ129: 0 | CR129: 0.498 | CS129: 1.507 | CT129: 25.74 | CU129: 1.6 | CV129: 4.952 | CW129: 19.476 | CX129: 867.558 | CY129: 539.401
A130: 1 | B130: 28 | C130: 5 | D130: 2000 | E130: 1650 | F130: 246.1507205 | G130: 197.1746012 | H130: 43.22923451 | I130: 217.3795351 | J130: 158.6910561 | K130: 19.62167667 | L130: 663.546794 | M130: 0 | N130: 0 | O130: 0 | P130: 0 | Q130: 0 | R130: 0 | S130: 0 | T130: 0 | U130: 0 | V130: 0 | W130: 0 | X130: 0 | Y130: 0 | Z130: 1545.793618 | AA130: 2000-05-28 | AB130: 15.92390585 | AC130: 12.75555798 | AD130: 2.796572195 | AE130: 14.06264928 | AF130: 10.26599245 | AG130: 1.269359405 | AH130: 42.92596284 | AI130: 0 | AJ130: 0 | AK130: 0 | AL130: 0 | AM130: 0 | AN130: 0 | AO130: 0 | AP130: 0 | AQ130: 0 | AR130: 0 | AS130: 0 | AT130: 0 | AU130: 0 | AW130: 1092.296593 | AX130: 3453.364756 | AY130: -1304.512978 | AZ130: 55.0450472 | BD130: 46.68730526 | BE130: 58.78614229 | BF130: 20.58466263 | BG130: 65.65792174 | BH130: 0.8401057 | BI130: 51.16699541 | BJ130: 75.35549449 | BK130: 10.44723591 | BL130: 8.44341222 | BM130: 1.84486718 | BN130: 0.12154596 | BO130: 0.14117731 | BP130: 0.49161799 | BQ130: 14.25069882 | BR130: 0.13388088 | BS130: 0.09937705 | BT130: 0.35197139 | BU130: 1.67504803 | BV130: 0.23937292 | BW130: 0.73289 | BX130: 1.09163501 | BY130: 261.2497761 | BZ130: 63.74701996 | CB130: 1 | CC130: 14.694 | CD130: 0 | CE130: 28.882 | CF130: 63.643 | CG130: 2.88 | CH130: 51.244 | CI130: 75.44 | CJ130: 10.613 | CK130: 8.913 | CL130: 1.723 | CM130: 0 | CN130: 0.239 | CO130: 0.067 | CP130: 14.243 | CQ130: 0.306 | CR130: 0.167 | CS130: 0.241 | CT130: 1.263 | CU130: 0.8 | CV130: 2.256 | CW130: 2.355 | CX130: 272.227 | CY130: 116.984
A131: 1 | B131: 31 | C131: 5 | D131: 2000 | E131: 2678 | F131: 416.9216385 | G131: 189.8465456 | H131: 0 | I131: 537.686283 | J131: 417.401366 | K131: 213.7119563 | L131: 1067.757711 | M131: 0 | N131: 0 | O131: 0 | P131: 0 | Q131: 0 | R131: 0 | S131: 0 | T131: 0 | U131: 0 | V131: 0 | W131: 0 | X131: 0 | Y131: 0 | Z131: 2843.3255 | AA131: 2000-05-31 | AB131: 14.66316954 | AC131: 6.676919177 | AD131: 0 | AE131: 18.91047237 | AF131: 14.68004159 | AG131: 7.516267703 | AH131: 37.55312962 | AI131: 0 | AJ131: 0 | AK131: 0 | AL131: 0 | AM131: 0 | AN131: 0 | AO131: 0 | AP131: 0 | AQ131: 0 | AR131: 0 | AS131: 0 | AT131: 0 | AU131: 0 | AW131: 1126.430862 | AX131: 3486.940565 | AY131: -1270.937169 | AZ131: 149.0985158 | BD131: 87.11238936 | BE131: 47.5343982 | BF131: 34.93221519 | BG131: 111.9657847 | BH131: 1.68344772 | BI131: 161.2808915 | BJ131: 72.75988607 | BK131: 27.56092876 | BL131: 12.9450028 | BM131: 3.45001686 | BN131: 0.41763197 | BO131: 0.32504614 | BP131: 1.43627384 | BQ131: 47.3369973 | BR131: 0.29364107 | BS131: 0.32422249 | BT131: 1.21051182 | BU131: 7.28127991 | BV131: 0.42754552 | BW131: 1.65525841 | BX131: 2.43204135 | BY131: 477.6927048 | BZ131: 121.5138812 | CB131: 1 | CC131: 52.008 | CD131: 0 | CE131: 87.554 | CF131: 100.795 | CG131: 3.279 | CH131: 161.809 | CI131: 72.856 | CJ131: 28.076 | CK131: 12.756 | CL131: 3.541 | CM131: 0.733 | CN131: 0.466 | CO131: 1.065 | CP131: 47.976 | CQ131: 0.67 | CR131: 0 | CS131: 0 | CT131: 1.423 | CU131: 0.4 | CV131: 0.813 | CW131: 3.38 | CX131: 520.497 | CY131: 259.178
A132: 1 | B132: 4 | C132: 6 | D132: 2000 | E132: 3989 | F132: 164.0619229 | G132: 422.321888 | H132: 0 | I132: 1544.136414 | J132: 584.4081107 | K132: 112.9937932 | L132: 2036.936306 | M132: 0 | N132: 0 | O132: 0 | P132: 0 | Q132: 0 | R132: 0 | S132: 0 | T132: 0 | U132: 0 | V132: 0 | W132: 0 | X132: 0 | Y132: 0 | Z132: 4864.858434 | AA132: 2000-06-04 | AB132: 3.372388428 | AC132: 8.681072506 | AD132: 0 | AE132: 31.7406238 | AF132: 12.01284927 | AG132: 2.322653265 | AH132: 41.87041274 | AI132: 0 | AJ132: 0 | AK132: 0 | AL132: 0 | AM132: 0 | AN132: 0 | AO132: 0 | AP132: 0 | AQ132: 0 | AR132: 0 | AS132: 0 | AT132: 0 | AU132: 0 | AW132: 1160.56513 | AX132: 3520.516374 | AY132: -1237.36136 | AZ132: 670.9390169 | BD132: 172.3953485 | BE132: 112.5102571 | BF132: 13.93429527 | BG132: 49.23898165 | BH132: 4.12606635 | BI132: 319.9520128 | BJ132: 161.1496171 | BK132: 32.02757981 | BL132: 9.67540513 | BM132: 1.91955419 | BN132: 0.55354375 | BO132: 0.41364898 | BP132: 1.12832794 | BQ132: 23.11818951 | BR132: 0.27785748 | BS132: 0.40750446 | BT132: 1.20386443 | BU132: 6.47039779 | BV132: 0.78593206 | BW132: 2.53206116 | BX132: 3.5895265 | BY132: 847.7206548 | BZ132: 276.9002115 | CB132: 1 | CC132: 162.395 | CD132: 0 | CE132: 35.529 | CF132: 47.313 | CG132: 2.558 | CH132: 319.648 | CI132: 162.907 | CJ132: 32.096 | CK132: 6.666 | CL132: 1.294 | CM132: 0 | CN132: 0.328 | CO132: 0.457 | CP132: 23.271 | CQ132: 0 | CR132: 0.179 | CS132: 0.472 | CT132: 6.839 | CU132: 0.7 | CV132: 4.738 | CW132: 9.723 | CX132: 866.684 | CY132: 504.343
A133: 1 | B133: 7 | C133: 6 | D133: 2000 | E133: 3278 | F133: 153.5742982 | G133: 74.64635895 | H133: 45.92264476 | I133: 996.4655065 | J133: 1153.801784 | K133: 288.0423472 | L133: 1319.897622 | M133: 0 | N133: 0 | O133: 0 | P133: 0 | Q133: 0 | R133: 0 | S133: 0 | T133: 0 | U133: 0 | V133: 0 | W133: 0 | X133: 0 | Y133: 0 | Z133: 4032.350561 | AA133: 2000-06-07 | AB133: 3.80855523 | AC133: 1.851187237 | AD133: 1.138855466 | AE133: 24.71177769 | AF133: 28.61362787 | AG133: 7.143286349 | AH133: 32.73271016 | AI133: 0 | AJ133: 0 | AK133: 0 | AL133: 0 | AM133: 0 | AN133: 0 | AO133: 0 | AP133: 0 | AQ133: 0 | AR133: 0 | AS133: 0 | AT133: 0 | AU133: 0 | AW133: 1194.699399 | AX133: 3554.092183 | AY133: -1203.785551 | AZ133: 576.021345 | BD133: 145.5438367 | BE133: 51.00790839 | BF133: 13.31536634 | BG133: 45.51870351 | BH133: 2.66646994 | BI133: 271.6571907 | BJ133: 28.70420591 | BK133: 57.92729163 | BL133: 9.87191876 | BM133: 1.92505037 | BN133: 0.62436866 | BO133: 0.37935645 | BP133: 1.50142655 | BQ133: 46.31276267 | BR133: 0.35943651 | BS133: 0.44393621 | BT133: 1.55437489 | BU133: 9.60156543 | BV133: 0.60067297 | BW133: 2.81832572 | BX133: 3.34440423 | BY133: 615.9716409 | BZ133: 188.1208868 | CB133: 1 | CC133: 100.26 | CD133: 0 | CE133: 35.009 | CF133: 42.319 | CG133: 5.525 | CH133: 273.549 | CI133: 28.73 | CJ133: 59.27 | CK133: 10.686 | CL133: 1.869 | CM133: 0.509 | CN133: 0.486 | CO133: 1.432 | CP133: 46.593 | CQ133: 0.542 | CR133: 0.231 | CS133: 1.534 | CT133: 6.437 | CU133: 1.3 | CV133: 7.373 | CW133: 10.299 | CX133: 668.618 | CY133: 259.259
A134: 1 | B134: 11 | C134: 6 | D134: 2000 | E134: 3724 | F134: 11.06598634 | G134: 1208.44628 | H134: 217.4659436 | I134: 486.5079515 | J134: 1575.130003 | K134: 337.7570387 | L134: 510.2389818 | M134: 0 | N134: 0 | O134: 0 | P134: 0 | Q134: 0 | R134: 0 | S134: 0 | T134: 0 | U134: 0 | V134: 0 | W134: 0 | X134: 0 | Y134: 0 | Z134: 4346.612185 | AA134: 2000-06-11 | AB134: 0.2545887663 | AC134: 27.8020267 | AD134: 5.003113559 | AE134: 11.19280789 | AF134: 36.23810765 | AG134: 7.770581416 | AH134: 11.73877402 | AI134: 0 | AJ134: 0 | AK134: 0 | AL134: 0 | AM134: 0 | AN134: 0 | AO134: 0 | AP134: 0 | AQ134: 0 | AR134: 0 | AS134: 0 | AT134: 0 | AU134: 0 | AW134: 1228.833667 | AX134: 3587.667992 | AY134: -1170.209742 | AZ134: 487.3051691 | BD134: 109.8926286 | BE134: 326.2133381 | BF134: 1.62780993 | BG134: 7.73076282 | BH134: 1.20964579 | BI134: 231.4621121 | BJ134: 460.1717823 | BK134: 84.70608069 | BL134: 16.00114971 | BM134: 0.87896398 | BN134: 0.63754828 | BO134: 0.25518819 | BP134: 1.4221573 | BQ134: 47.60589412 | BR134: 0.45409361 | BS134: 0.4996327 | BT134: 1.47756776 | BU134: 9.41223201 | BV134: 0.41186384 | BW134: 3.16914503 | BX134: 2.4917494 | BY134: 355.5163564 | BZ134: 98.63757398 | CB134: 1 | CC134: 45.136 | CD134: 0 | CE134: 1.969 | CF134: 7.125 | CG134: 1.551 | CH134: 235.601 | CI134: 468.686 | CJ134: 88.316 | CK134: 19.956 | CL134: 0.85 | CM134: 0.484 | CN134: 0 | CO134: 1.562 | CP134: 47.612 | CQ134: 0.217 | CR134: 0 | CS134: 0.853 | CT134: 4.717 | CU134: 1.6 | CV134: 3.172 | CW134: 4.694 | CX134: 398.735 | CY134: 57.028
A135: 1 | B135: 14 | C135: 6 | D135: 2000 | E135: 2906 | F135: 27.99270411 | G135: 57.78395134 | H135: 35.25674017 | I135: 400.0125775 | J135: 1116.843168 | K135: 266.9063539 | L135: 2220.096134 | M135: 0 | N135: 0 | O135: 0 | P135: 0 | Q135: 0 | R135: 0 | S135: 0 | T135: 0 | U135: 0 | V135: 0 | W135: 0 | X135: 0 | Y135: 0 | Z135: 4124.891629 | AA135: 2000-06-14 | AB135: 0.6786288375 | AC135: 1.400859866 | AD135: 0.8547313079 | AE135: 9.697529377 | AF135: 27.07569722 | AG135: 6.47062706 | AH135: 53.82192633 | AI135: 0 | AJ135: 0 | AK135: 0 | AL135: 0 | AM135: 0 | AN135: 0 | AO135: 0 | AP135: 0 | AQ135: 0 | AR135: 0 | AS135: 0 | AT135: 0 | AU135: 0 | AW135: 1262.967936 | AX135: 3621.243801 | AY135: -1136.633933 | AZ135: 902.8605412 | BD135: 170.9036559 | BE135: 32.15494948 | BF135: 2.83315322 | BG135: 13.13638722 | BH135: 2.2334211 | BI135: 160.4584027 | BJ135: 22.26598791 | BK135: 54.81022873 | BL135: 8.41167155 | BM135: 1.10288597 | BN135: 0.52077444 | BO135: 0.46368395 | BP135: 1.48231882 | BQ135: 37.70693443 | BR135: 0.32449184 | BS135: 0.42296106 | BT135: 1.78142732 | BU135: 10.67161426 | BV135: 0.83850328 | BW135: 3.16731832 | BX135: 4.54214442 | BY135: 897.6318693 | BZ135: 189.0688601 | CB135: 1 | CC135: 59.042 | CD135: 0 | CE135: 2.805 | CF135: 13.064 | CG135: 5.842 | CH135: 162.277 | CI135: 22.239 | CJ135: 57.323 | CK135: 8.672 | CL135: 1.259 | CM135: 0.487 | CN135: 0.115 | CO135: 1.286 | CP135: 37.644 | CQ135: 0.066 | CR135: 0.06 | CS135: 1.185 | CT135: 6.191 | CU135: 0.6 | CV135: 8.632 | CW135: 15.517 | CX135: 1115.496 | CY135: 85.564
A136: 1 | B136: 18 | C136: 6 | D136: 2000 | E136: 3298 | F136: 74.03029187 | G136: 62.72185263 | H136: 135.7748107 | I136: 559.7095115 | J136: 1624.33116 | K136: 280.6963008 | L136: 1502.804467 | M136: 0 | N136: 0 | O136: 0 | P136: 0 | Q136: 0 | R136: 0 | S136: 0 | T136: 0 | U136: 0 | V136: 0 | W136: 0 | X136: 0 | Y136: 0 | Z136: 4240.068394 | AA136: 2000-06-18 | AB136: 1.745969286 | AC136: 1.479265115 | AD136: 3.202184448 | AE136: 13.20048309 | AF136: 38.30907921 | AG136: 6.620088986 | AH136: 35.44292986 | AI136: 0 | AJ136: 0 | AK136: 0 | AL136: 0 | AM136: 0 | AN136: 0 | AO136: 0 | AP136: 0 | AQ136: 0 | AR136: 0 | AS136: 0 | AT136: 0 | AU136: 0 | AW136: 1297.102204 | AX136: 3654.81961 | AY136: -1103.058124 | AZ136: 710.0814064 | BD136: 162.8287031 | BE136: 73.54515814 | BF136: 6.89711544 | BG136: 24.84106792 | BH136: 2.02170456 | BI136: 202.3474751 | BJ136: 24.11903546 | BK136: 76.99846614 | BL136: 11.38874582 | BM136: 1.33815306 | BN136: 0.57258507 | BO136: 0.37870413 | BP136: 1.4194677 | BQ136: 42.87330168 | BR136: 0.40203831 | BS136: 0.41481407 | BT136: 1.59163461 | BU136: 9.74217285 | BV136: 0.67667382 | BW136: 3.36898578 | BX136: 3.75545886 | BY136: 664.2335525 | BZ136: 165.2228833 | CB136: 1 | CC136: 126.568 | CD136: 0 | CE136: 7.671 | CF136: 24.522 | CG136: 5.629 | CH136: 203.384 | CI136: 24.167 | CJ136: 78.725 | CK136: 12.302 | CL136: 0.533 | CM136: 0.653 | CN136: 0.305 | CO136: 0.842 | CP136: 43.358 | CQ136: 0 | CR136: 0.063 | CS136: 0.947 | CT136: 6.443 | CU136: 0.8 | CV136: 3.617 | CW136: 11.867 | CX136: 716.971 | CY136: 153.545
A137: 1 | B137: 21 | C137: 6 | D137: 2000 | E137: 5241 | F137: 202.6193665 | G137: 6.27743835 | H137: 0 | I137: 1327.840924 | J137: 342.0981865 | K137: 306.9229753 | L137: 3499.151026 | M137: 0 | N137: 0 | O137: 0 | P137: 0 | Q137: 0 | R137: 0 | S137: 0 | T137: 0 | U137: 0 | V137: 0 | W137: 0 | X137: 0 | Y137: 0 | Z137: 5684.909916 | AA137: 2000-06-21 | AB137: 3.56416143 | AC137: 0.1104228289 | AD137: 0 | AE137: 23.3572905 | AF137: 6.017653606 | AG137: 5.398906577 | AH137: 61.55156506 | AI137: 0 | AJ137: 0 | AK137: 0 | AL137: 0 | AM137: 0 | AN137: 0 | AO137: 0 | AP137: 0 | AQ137: 0 | AR137: 0 | AS137: 0 | AT137: 0 | AU137: 0 | AW137: 1331.236473 | AX137: 3688.395419 | AY137: -1069.482315 | AZ137: 377.5996351 | BD137: 228.1817565 | BE137: 27.04976909 | BF137: 17.03910592 | BG137: 62.14405277 | BH137: 4.75052354 | BI137: 318.2970983 | BJ137: 2.93062627 | BK137: 23.89482465 | BL137: 13.24412604 | BM137: 2.71506259 | BN137: 0.80151843 | BO137: 0.71567139 | BP137: 2.12307215 | BQ137: 49.45438935 | BR137: 0.32277637 | BS137: 0.61780977 | BT137: 2.41436125 | BU137: 13.95563105 | BV137: 1.20852864 | BW137: 3.32755348 | BX137: 6.24554344 | BY137: 1408.610873 | BZ137: 344.3351293 | CB137: 1 | CC137: 145.317 | CD137: 0 | CE137: 15.445 | CF137: 63.128 | CG137: 13.352 | CH137: 323.138 | CI137: 2.931 | CJ137: 24.663 | CK137: 12.679 | CL137: 1.977 | CM137: 0 | CN137: 0.763 | CO137: 2.552 | CP137: 48.796 | CQ137: 0.495 | CR137: 0.158 | CS137: 3.085 | CT137: 12.57 | CU137: 1.2 | CV137: 7.516 | CW137: 15.532 | CX137: 1708.993 | CY137: 162.469
A138: 1 | B138: 25 | C138: 6 | D138: 2000 | E138: 2700 | F138: 37.82485225 | G138: 80.0307726 | H138: 214.3685218 | I138: 897.2468683 | J138: 1247.35328 | K138: 237.0066562 | L138: 1492.65703 | M138: 0 | N138: 0 | O138: 0 | P138: 0 | Q138: 0 | R138: 0 | S138: 0 | T138: 0 | U138: 0 | V138: 0 | W138: 0 | X138: 0 | Y138: 0 | Z138: 4206.487981 | AA138: 2000-06-25 | AB138: 0.8992026702 | AC138: 1.902555599 | AD138: 5.096140123 | AE138: 21.33007089 | AF138: 29.6530808 | AG138: 5.634311977 | AH138: 35.48463794 | AI138: 0 | AJ138: 0 | AK138: 0 | AL138: 0 | AM138: 0 | AN138: 0 | AO138: 0 | AP138: 0 | AQ138: 0 | AR138: 0 | AS138: 0 | AT138: 0 | AU138: 0 | AW138: 1365.370741 | AX138: 3721.971228 | AY138: -1035.906505 | AZ138: 1105.489448 | BD138: 156.7068428 | BE138: 112.6698662 | BF138: 3.71098524 | BG138: 16.23777448 | BH138: 2.61025666 | BI138: 245.1582149 | BJ138: 30.67171886 | BK138: 59.79582541 | BL138: 12.83548254 | BM138: 1.07337124 | BN138: 0.61892345 | BO138: 0.36167269 | BP138: 1.24691397 | BQ138: 35.30805564 | BR138: 0.33662353 | BS138: 0.41483574 | BT138: 1.44360249 | BU138: 8.62408138 | BV138: 0.65071474 | BW138: 2.96290377 | BX138: 3.4575006 | BY138: 671.9684543 | BZ138: 190.9593489 | CB138: 1 | CC138: 104.627 | CD138: 0 | CE138: 4.778 | CF138: 15.987 | CG138: 4.864 | CH138: 248.263 | CI138: 30.74 | CJ138: 61.757 | CK138: 14.135 | CL138: 0.141 | CM138: 0.178 | CN138: 0.346 | CO138: 1.152 | CP138: 35.116 | CQ138: 0.354 | CR138: 0.071 | CS138: 0.618 | CT138: 7.152 | CU138: 0 | CV138: 3.913 | CW138: 23.556 | CX138: 757.154 | CY138: 11.994
A139: 1 | B139: 28 | C139: 6 | D139: 2000 | E139: 7714 | F139: 188.23744 | G139: 173.9296935 | H139: 0 | I139: 1292.010386 | J139: 856.7469101 | K139: 325.1269939 | L139: 5010.247719 | M139: 0 | N139: 0 | O139: 0 | P139: 0 | Q139: 0 | R139: 0 | S139: 0 | T139: 0 | U139: 0 | V139: 0 | W139: 0 | X139: 0 | Y139: 0 | Z139: 7846.299143 | AA139: 2000-06-28 | AB139: 2.399060202 | AC139: 2.216709946 | AD139: 0 | AE139: 16.46649411 | AF139: 10.91912116 | AG139: 4.143698679 | AH139: 63.8549159 | AI139: 0 | AJ139: 0 | AK139: 0 | AL139: 0 | AM139: 0 | AN139: 0 | AO139: 0 | AP139: 0 | AQ139: 0 | AR139: 0 | AS139: 0 | AT139: 0 | AU139: 0 | AW139: 1399.50501 | AX139: 3755.547037 | AY139: -1002.330696 | AZ139: 184.2922421 | BD139: 324.5241992 | BE139: 59.09576842 | BF139: 16.07106701 | BG139: 60.87949217 | BH139: 5.72701043 | BI139: 329.5964713 | BJ139: 66.90910685 | BK139: 47.32192877 | BL139: 16.53807096 | BM139: 2.91257768 | BN139: 0.89547796 | BO139: 0.93734956 | BP139: 2.53298181 | BQ139: 52.00006854 | BR139: 0.44918701 | BS139: 0.73878812 | BT139: 3.03407628 | BU139: 17.10350537 | BV139: 1.72519876 | BW139: 4.90082319 | BX139: 8.68787676 | BY139: 1953.361603 | BZ139: 442.0369322 | CB139: 1 | CC139: 241.542 | CD139: 0 | CE139: 10.62 | CF139: 63.12 | CG139: 15.381 | CH139: 331.457 | CI139: 67.098 | CJ139: 48.446 | CK139: 15.532 | CL139: 2.927 | CM139: 0.371 | CN139: 1.163 | CO139: 2.345 | CP139: 49.873 | CQ139: 0.16 | CR139: 0.236 | CS139: 4.865 | CT139: 22.066 | CU139: 2.4 | CV139: 15.694 | CW139: 33.98 | CX139: 2070.858 | CY139: 482.489
A140: 1 | B140: 2 | C140: 7 | D140: 2000 | E140: 3002 | F140: 11.02742889 | G140: 1158.962206 | H140: 137.6601979 | I140: 194.5575366 | J140: 1210.625655 | K140: 270.4504991 | L140: 424.365244 | M140: 0 | N140: 0 | O140: 0 | P140: 0 | Q140: 0 | R140: 0 | S140: 0 | T140: 0 | U140: 0 | V140: 0 | W140: 0 | X140: 0 | Y140: 0 | Z140: 3407.648768 | AA140: 2000-07-02 | AB140: 0.3236081429 | AC140: 34.01061215 | AD140: 4.039741395 | AE140: 5.709436326 | AF140: 35.52671469 | AG140: 7.936572035 | AH140: 12.45331526 | AI140: 0 | AJ140: 0 | AK140: 0 | AL140: 0 | AM140: 0 | AN140: 0 | AO140: 0 | AP140: 0 | AQ140: 0 | AR140: 0 | AS140: 0 | AT140: 0 | AU140: 0 | AW140: 1433.639279 | AX140: 3789.122846 | AY140: -968.7548874 | AZ140: 324.2075433 | BD140: 80.48290162 | BE140: 281.2411599 | BF140: 1.46131588 | BG140: 6.25976654 | BH140: 0.63539703 | BI140: 154.2597342 | BJ140: 441.318363 | BK140: 67.16067592 | BL140: 12.47156434 | BM140: 0.69724147 | BN140: 0.46312303 | BO140: 0.20087262 | BP140: 1.15228682 | BQ140: 37.96920011 | BR140: 0.36549364 | BS140: 0.39552005 | BT140: 1.18752012 | BU140: 7.564736 | BV140: 0.32673196 | BW140: 2.50356844 | BX140: 1.99277401 | BY140: 280.7609455 | BZ140: 61.89942462 | CB140: 1 | CC140: 15.906 | CD140: 222.169 | CE140: 3.097 | CF140: 5.995 | CG140: 1.73 | CH140: 155.415 | CI140: 442.08 | CJ140: 68.487 | CK140: 12.936 | CL140: 0.531 | CM140: 0.73 | CN140: 0.464 | CO140: 0.961 | CP140: 38.164 | CQ140: 0 | CR140: 0.41 | CS140: 0.547 | CT140: 5.17 | CU140: 1.5 | CV140: 0.463 | CW140: 6.998 | CX140: 302.918 | CY140: 0
A141: 1 | B141: 5 | C141: 7 | D141: 2000 | E141: 3252 | F141: 9.832148138 | G141: 232.3965461 | H141: 80.50603237 | I141: 405.9462971 | J141: 1073.185803 | K141: 304.7320492 | L141: 2548.299657 | M141: 0 | N141: 0 | O141: 0 | P141: 0 | Q141: 0 | R141: 0 | S141: 0 | T141: 0 | U141: 0 | V141: 0 | W141: 0 | X141: 0 | Y141: 0 | Z141: 4654.898533 | AA141: 2000-07-05 | AB141: 0.2112215351 | AC141: 4.992515829 | AD141: 1.729490596 | AE141: 8.720840942 | AF141: 23.05497737 | AG141: 6.546481025 | AH141: 54.74447271 | AI141: 0 | AJ141: 0 | AK141: 0 | AL141: 0 | AM141: 0 | AN141: 0 | AO141: 0 | AP141: 0 | AQ141: 0 | AR141: 0 | AS141: 0 | AT141: 0 | AU141: 0 | AW141: 1467.773547 | AX141: 3822.698655 | AY141: -935.1790784 | AZ141: 1038.077413 | BD141: 185.9013939 | BE141: 83.17247258 | BF141: 1.30015614 | BG141: 9.43454063 | BH141: 2.46971447 | BI141: 175.2662171 | BJ141: 88.76329056 | BK141: 55.15057373 | BL141: 11.13616638 | BM141: 1.11166912 | BN141: 0.60518506 | BO141: 0.52705315 | BP141: 1.68535957 | BQ141: 41.86942548 | BR141: 0.34944629 | BS141: 0.49634616 | BT141: 2.04617171 | BU141: 12.20813493 | BV141: 0.94582018 | BW141: 3.45389034 | BX141: 5.12514099 | BY141: 1034.072903 | BZ141: 209.9567247 | CB141: 1 | CC141: 42.531 | CD141: 0 | CE141: 5.202 | CF141: 8.888 | CG141: 4.236 | CH141: 178.572 | CI141: 88.833 | CJ141: 57.27 | CK141: 11.963 | CL141: 0.911 | CM141: 0.443 | CN141: 0.239 | CO141: 0.937 | CP141: 42.049 | CQ141: 0 | CR141: 0 | CS141: 1.954 | CT141: 6.501 | CU141: 2.1 | CV141: 11.801 | CW141: 27.888 | CX141: 1335.474 | CY141: 0
A142: 1 | B142: 9 | C142: 7 | D142: 2000 | E142: 5059 | F142: 91.22691175 | G142: 88.67209987 | H142: 196.4573436 | I142: 984.4269023 | J142: 1290.317671 | K142: 56.83520139 | L142: 2808.90045 | M142: 0 | N142: 0 | O142: 0 | P142: 0 | Q142: 0 | R142: 0 | S142: 0 | T142: 0 | U142: 0 | V142: 0 | W142: 0 | X142: 0 | Y142: 0 | Z142: 5516.83658 | AA142: 2000-07-09 | AB142: 1.653609101 | AC142: 1.607299737 | AD142: 3.561050627 | AE142: 17.84404682 | AF142: 23.38872381 | AG142: 1.030213612 | AH142: 50.9150563 | AI142: 0 | AJ142: 0 | AK142: 0 | AL142: 0 | AM142: 0 | AN142: 0 | AO142: 0 | AP142: 0 | AQ142: 0 | AR142: 0 | AS142: 0 | AT142: 0 | AU142: 0 | AW142: 1501.907816 | AX142: 3856.274464 | AY142: -901.6032693 | AZ142: 385.4053529 | BD142: 226.4361622 | BE142: 109.4028921 | BF142: 8.18056568 | BG142: 31.2843833 | BH142: 3.6696412 | BI142: 214.4809353 | BJ142: 34.14350546 | BK142: 57.38234082 | BL142: 14.09305688 | BM142: 1.36125546 | BN142: 0.48229888 | BO142: 0.47009458 | BP142: 0.98720338 | BQ142: 14.5366711 | BR142: 0.33582426 | BS142: 0.34240858 | BT142: 1.28228946 | BU142: 6.43044578 | BV142: 1.04061318 | BW142: 3.52079276 | BX142: 4.77673898 | BY142: 1087.336619 | BZ142: 281.6198745 | CB142: 1 | CC142: 183.305 | CD142: 0 | CE142: 11.874 | CF142: 30.428 | CG142: 3.866 | CH142: 218.487 | CI142: 34.229 | CJ142: 58.419 | CK142: 15.78 | CL142: 3.204 | CM142: 0.357 | CN142: 1.046 | CO142: 0.424 | CP142: 14.211 | CQ142: 0.083 | CR142: 0 | CS142: 0.712 | CT142: 6.963 | CU142: 2.1 | CV142: 12.052 | CW142: 32.042 | CX142: 1202.898 | CY142: 0
A143: 1 | B143: 16 | C143: 7 | D143: 2000 | E143: 2108 | F143: 21.47649613 | G143: 612.6412113 | H143: 175.6911506 | I143: 58.59548097 | J143: 1157.266654 | K143: 404.1936516 | L143: 664.1933066 | M143: 0 | N143: 0 | O143: 0 | P143: 0 | Q143: 0 | R143: 0 | S143: 0 | T143: 0 | U143: 0 | V143: 0 | W143: 0 | X143: 0 | Y143: 0 | Z143: 3094.057951 | AA143: 2000-07-16 | AB143: 0.6941206812 | AC143: 19.80057326 | AD143: 5.678340657 | AE143: 1.893806835 | AF143: 37.40287584 | AG143: 13.06354496 | AH143: 21.46673776 | AI143: 0 | AJ143: 0 | AK143: 0 | AL143: 0 | AM143: 0 | AN143: 0 | AO143: 0 | AP143: 0 | AQ143: 0 | AR143: 0 | AS143: 0 | AT143: 0 | AU143: 0 | AW143: 1536.042084 | AX143: 3889.850273 | AY143: -868.0274603 | AZ143: 727.5623291 | BD143: 86.39270481 | BE143: 186.0197417 | BF143: 2.30825701 | BG143: 9.93788619 | BH143: 0.5605485 | BI143: 151.8525012 | BJ143: 233.3517169 | BK143: 64.27075722 | BL143: 13.407259 | BM143: 0.99592077 | BN143: 0.60664303 | BO143: 0.29794705 | BP143: 1.6238247 | BQ143: 55.74570937 | BR143: 0.37106794 | BS143: 0.47574339 | BT143: 1.73774321 | BU143: 11.35896387 | BV143: 0.38507631 | BW143: 2.6363187 | BX143: 2.75965048 | BY143: 393.0961541 | BZ143: 62.46571261 | CB143: 1 | CC143: 134.993 | CD143: 162.567 | CE143: 4.981 | CF143: 9.261 | CG143: 1.739 | CH143: 150.952 | CI143: 234.37 | CJ143: 61.944 | CK143: 13.606 | CL143: 0.703 | CM143: 0 | CN143: 0.407 | CO143: 0.979 | CP143: 58.898 | CQ143: 0.448 | CR143: 0.142 | CS143: 0.602 | CT143: 3.731 | CU143: 0.1 | CV143: 4.944 | CW143: 4.217 | CX143: 369.589 | CY143: 0
A144: 1 | B144: 19 | C144: 7 | D144: 2000 | E144: 4677 | F144: 129.7843554 | G144: 654.0880637 | H144: 0 | I144: 523.137259 | J144: 553.4552701 | K144: 502.8497665 | L144: 3979.5661 | M144: 0 | N144: 0 | O144: 0 | P144: 0 | Q144: 0 | R144: 0 | S144: 0 | T144: 0 | U144: 0 | V144: 0 | W144: 0 | X144: 0 | Y144: 0 | Z144: 6342.880815 | AA144: 2000-07-19 | AB144: 2.046142111 | AC144: 10.31216072 | AD144: 0 | AE144: 8.247628708 | AF144: 8.725613585 | AG144: 7.927782047 | AH144: 62.74067283 | AI144: 0 | AJ144: 0 | AK144: 0 | AL144: 0 | AM144: 0 | AN144: 0 | AO144: 0 | AP144: 0 | AQ144: 0 | AR144: 0 | AS144: 0 | AT144: 0 | AU144: 0 | AW144: 1570.176353 | AX144: 3923.426083 | AY144: -834.4516513 | AZ144: 1242.182183 | BD144: 237.3346969 | BE144: 137.9186694 | BF144: 11.06394671 | BG144: 43.72044246 | BH144: 3.66128376 | BI144: 246.8598141 | BJ144: 249.5589934 | BK144: 42.35485656 | BL144: 17.03441331 | BM144: 2.54501447 | BN144: 0.91323692 | BO144: 0.84692152 | BP144: 2.85601491 | BQ144: 71.68025717 | BR144: 0.43980094 | BS144: 0.80211393 | BT144: 3.29207459 | BU144: 19.74373175 | BV144: 1.38055574 | BW144: 4.24021914 | BX144: 7.65181623 | BY144: 1611.890684 | BZ144: 304.5856963 | CB144: 1 | CC144: 204.106 | CD144: 0 | CE144: 12.463 | CF144: 44.981 | CG144: 5.153 | CH144: 249.299 | CI144: 252.713 | CJ144: 42.939 | CK144: 15.047 | CL144: 2.753 | CM144: 0.592 | CN144: 0.837 | CO144: 3.141 | CP144: 67.283 | CQ144: 0 | CR144: 0.154 | CS144: 1.807 | CT144: 32.109 | CU144: 1.5 | CV144: 10.949 | CW144: 16.08 | CX144: 1667.369 | CY144: 187.766
A145: 1 | B145: 23 | C145: 7 | D145: 2000 | E145: 7384 | F145: 112.3178334 | G145: 1329.162208 | H145: 365.7920461 | I145: 846.0114818 | J145: 1711.876881 | K145: 130.4567633 | L145: 3201.586577 | M145: 0 | N145: 0 | O145: 0 | P145: 0 | Q145: 0 | R145: 0 | S145: 0 | T145: 0 | U145: 0 | V145: 0 | W145: 0 | X145: 0 | Y145: 0 | Z145: 7697.203791 | AA145: 2000-07-23 | AB145: 1.459203062 | AC145: 17.26811767 | AD145: 4.752271812 | AE145: 10.99115347 | AF145: 22.2402437 | AG145: 1.694859157 | AH145: 41.59415113 | AI145: 0 | AJ145: 0 | AK145: 0 | AL145: 0 | AM145: 0 | AN145: 0 | AO145: 0 | AP145: 0 | AQ145: 0 | AR145: 0 | AS145: 0 | AT145: 0 | AU145: 0 | AW145: 1604.310621 | AX145: 3957.001892 | AY145: -800.8758422 | AZ145: 309.4127677 | BD145: 261.5781505 | BE145: 411.8507894 | BF145: 10.12706719 | BG145: 38.6410855 | BH145: 3.69563668 | BI145: 248.0744818 | BJ145: 506.4975604 | BK145: 86.74803726 | BL145: 26.23176462 | BM145: 1.72788408 | BN145: 0.65953534 | BO145: 0.56066874 | BP145: 1.45500394 | BQ145: 26.40506614 | BR145: 0.52975631 | BS145: 0.53778139 | BT145: 1.75395006 | BU145: 8.98302083 | BV145: 1.24602473 | BW145: 4.75899251 | BX145: 5.75022212 | BY145: 1283.115641 | BZ145: 301.4811622 | CB145: 1 | CC145: 258.95 | CD145: 538.856 | CE145: 14.548 | CF145: 39.031 | CG145: 0.643 | CH145: 248.971 | CI145: 502.27 | CJ145: 86.796 | CK145: 25.067 | CL145: 2.729 | CM145: 0.227 | CN145: 0.771 | CO145: 0.83 | CP145: 25.272 | CQ145: 0.143 | CR145: 0 | CS145: 1.404 | CT145: 13.988 | CU145: 1.5 | CV145: 16.27 | CW145: 30.598 | CX145: 1231.885 | CY145: 146.279
A146: 1 | B146: 26 | C146: 7 | D146: 2000 | E146: 2154 | F146: 74.45442375 | G146: 26.52808675 | H146: 72.34499931 | I146: 490.2165263 | J146: 380.6737417 | K146: 126.5904231 | L146: 1809.47631 | M146: 0 | N146: 0 | O146: 0 | P146: 0 | Q146: 0 | R146: 0 | S146: 0 | T146: 0 | U146: 0 | V146: 0 | W146: 0 | X146: 0 | Y146: 0 | Z146: 2980.284511 | AA146: 2000-07-26 | AB146: 2.498232081 | AC146: 0.8901192706 | AD146: 2.427452784 | AE146: 16.44864859 | AF146: 12.77306715 | AG146: 4.247595241 | AH146: 60.71488488 | AI146: 0 | AJ146: 0 | AK146: 0 | AL146: 0 | AM146: 0 | AN146: 0 | AO146: 0 | AP146: 0 | AQ146: 0 | AR146: 0 | AS146: 0 | AT146: 0 | AU146: 0 | AW146: 1638.44489 | AX146: 3990.577701 | AY146: -767.3000332 | AZ146: 614.1940417 | BD146: 121.6195302 | BE146: 41.57472141 | BF146: 6.37538505 | BG146: 24.14309696 | BH146: 2.10998623 | BI146: 126.9438549 | BJ146: 10.35547218 | BK146: 20.11118338 | BL146: 8.36071706 | BM146: 1.11358809 | BN146: 0.36628207 | BO146: 0.3445572 | BP146: 0.95083206 | BQ146: 20.68534535 | BR146: 0.17861655 | BS146: 0.28057626 | BT146: 1.13782136 | BU146: 6.40788105 | BV146: 0.63078151 | BW146: 1.87598583 | BX146: 3.19672509 | BY146: 715.4043954 | BZ146: 162.6011818 | CB146: 1 | CC146: 45.738 | CD146: 0 | CE146: 9.208 | CF146: 24.286 | CG146: 6.103 | CH146: 128.606 | CI146: 10.336 | CJ146: 20.849 | CK146: 8.776 | CL146: 0.855 | CM146: 0.291 | CN146: 0.15 | CO146: 1.619 | CP146: 19.574 | CQ146: 0.342 | CR146: 0.281 | CS146: 0.491 | CT146: 9.735 | CU146: 1.8 | CV146: 2.738 | CW146: 6.011 | CX146: 811.06 | CY146: 0
A147: 1 | B147: 30 | C147: 7 | D147: 2000 | E147: 6005 | F147: 55.13714446 | G147: 108.7651557 | H147: 116.3822569 | I147: 1548.073209 | J147: 1846.544837 | K147: 242.4839715 | L147: 3153.154351 | M147: 0 | N147: 0 | O147: 0 | P147: 0 | Q147: 0 | R147: 0 | S147: 0 | T147: 0 | U147: 0 | V147: 0 | W147: 0 | X147: 0 | Y147: 0 | Z147: 7070.540925 | AA147: 2000-07-30 | AB147: 0.7798150813 | AC147: 1.538286205 | AD147: 1.646016311 | AE147: 21.89469271 | AF147: 26.1160335 | AG147: 3.429496753 | AH147: 44.59565944 | AI147: 0 | AJ147: 0 | AK147: 0 | AL147: 0 | AM147: 0 | AN147: 0 | AO147: 0 | AP147: 0 | AQ147: 0 | AR147: 0 | AS147: 0 | AT147: 0 | AU147: 0 | AW147: 1672.579158 | AX147: 4024.15351 | AY147: -733.7242242 | AZ147: 829.680578 | BD147: 283.6609432 | BE147: 94.55891499 | BF147: 5.4221249 | BG147: 24.0440189 | BH147: 4.90109881 | BI147: 370.3486937 | BJ147: 41.80418204 | BK147: 85.63074225 | BL147: 13.22512275 | BM147: 1.59372688 | BN147: 0.80022752 | BO147: 0.62336018 | BP147: 1.69811388 | BQ147: 37.42261004 | BR147: 0.48154251 | BS147: 0.57772674 | BT147: 2.06995725 | BU147: 11.71743691 | BV147: 1.24969812 | BW147: 4.7673641 | BX147: 6.12561183 | BY147: 1289.548371 | BZ147: 361.6922354 | CB147: 1 | CC147: 262.976 | CD147: 0 | CE147: 9.895 | CF147: 24.158 | CG147: 6.534 | CH147: 375.082 | CI147: 41.944 | CJ147: 86.543 | CK147: 15.215 | CL147: 1.388 | CM147: 0.306 | CN147: 0.492 | CO147: 1.662 | CP147: 35.008 | CQ147: 0 | CR147: 0.218 | CS147: 1.768 | CT147: 23.061 | CU147: 1.7 | CV147: 11.444 | CW147: 27.392 | CX147: 1240.749 | CY147: 205.742
A148: 1 | B148: 2 | C148: 8 | D148: 2000 | E148: 8190 | F148: 74.37730886 | G148: 7.827098863 | H148: 0 | I148: 4765.233272 | J148: 862.2907025 | K148: 161.0330706 | L148: 2862.729651 | M148: 0 | N148: 0 | O148: 0 | P148: 0 | Q148: 0 | R148: 0 | S148: 0 | T148: 0 | U148: 0 | V148: 0 | W148: 0 | X148: 0 | Y148: 0 | Z148: 8733.491104 | AA148: 2000-08-02 | AB148: 0.8516331896 | AC148: 0.08962165037 | AD148: 0 | AE148: 54.56275406 | AF148: 9.873379296 | AG148: 1.843856812 | AH148: 32.77875499 | AI148: 0 | AJ148: 0 | AK148: 0 | AL148: 0 | AM148: 0 | AN148: 0 | AO148: 0 | AP148: 0 | AQ148: 0 | AR148: 0 | AS148: 0 | AT148: 0 | AU148: 0 | AW148: 1706.713427 | AX148: 4057.729319 | AY148: -700.1484151 | AZ148: 482.9889495 | BD148: 321.0756689 | BE148: 94.20183268 | BF148: 6.58468328 | BG148: 33.27362386 | BH148: 10.37768933 | BI148: 892.0501282 | BJ148: 3.34914583 | BK148: 41.24110931 | BL148: 8.200771 | BM148: 2.05253043 | BN148: 1.28257914 | BO148: 0.64288025 | BP148: 1.50563293 | BQ148: 25.82674811 | BR148: 0.36244371 | BS148: 0.76852867 | BT148: 1.70955907 | BU148: 9.14972018 | BV148: 1.21958574 | BW148: 3.93933879 | BX148: 5.14161417 | BY148: 1313.978581 | BZ148: 626.3745855 | CB148: 1 | CC148: 316.163 | CD148: 0 | CE148: 13.111 | CF148: 32.284 | CG148: 16.333 | CH148: 887.379 | CI148: 3.671 | CJ148: 41.145 | CK148: 8.327 | CL148: 2.254 | CM148: 0.185 | CN148: 0.263 | CO148: 0.442 | CP148: 26.095 | CQ148: 0.233 | CR148: 0 | CS148: 1.141 | CT148: 8.351 | CU148: 1.2 | CV148: 13.525 | CW148: 22.071 | CX148: 1307.767 | CY148: 772.034
A149: 1 | B149: 6 | C149: 8 | D149: 2000 | E149: 2559 | F149: 15.42297747 | G149: 516.9299756 | H149: 92.49170798 | I149: 396.4751677 | J149: 799.6920471 | K149: 261.2679411 | L149: 1074.222837 | M149: 0 | N149: 0 | O149: 0 | P149: 0 | Q149: 0 | R149: 0 | S149: 0 | T149: 0 | U149: 0 | V149: 0 | W149: 0 | X149: 0 | Y149: 0 | Z149: 3156.502654 | AA149: 2000-08-06 | AB149: 0.4886096786 | AC149: 16.37666849 | AD149: 2.930195794 | AE149: 12.56058401 | AF149: 25.33474972 | AG149: 8.27713358 | AH149: 34.03205872 | AI149: 0 | AJ149: 0 | AK149: 0 | AL149: 0 | AM149: 0 | AN149: 0 | AO149: 0 | AP149: 0 | AQ149: 0 | AR149: 0 | AS149: 0 | AT149: 0 | AU149: 0 | AW149: 1740.847695 | AX149: 4091.305128 | AY149: -666.5726061 | AZ149: 455.8159359 | BD149: 100.599625 | BE149: 143.008043 | BF149: 1.64357161 | BG149: 8.39993269 | BH149: 1.43876898 | BI149: 164.4468398 | BJ149: 196.9437803 | BK149: 44.66387893 | BL149: 9.6729223 | BM149: 0.82924253 | BN149: 0.49060308 | BO149: 0.29578009 | BP149: 1.22641537 | BQ149: 36.11845153 | BR149: 0.27932428 | BS149: 0.38935618 | BT149: 1.36573709 | BU149: 8.49016408 | BV149: 0.4736202 | BW149: 2.26110607 | BX149: 2.74523289 | BY149: 502.4893597 | BZ149: 114.4226615 | CB149: 1 | CC149: 36.857 | CD149: 210.856 | CE149: 3.959 | CF149: 8.464 | CG149: 2.414 | CH149: 165.102 | CI149: 196.047 | CJ149: 45.331 | CK149: 8.928 | CL149: 0.536 | CM149: 0.469 | CN149: 0.138 | CO149: 0.716 | CP149: 35.705 | CQ149: 0.342 | CR149: 0.833 | CS149: 0.939 | CT149: 9.17 | CU149: 0 | CV149: 7.348 | CW149: 14.315 | CX149: 527.802 | CY149: 44.966
A150: 1 | B150: 9 | C150: 8 | D150: 2000 | E150: 2530 | F150: 127.5094662 | G150: 28.52425961 | H150: 28.79255557 | I150: 759.5161078 | J150: 471.6843328 | K150: 86.73489918 | L150: 2049.585465 | M150: 0 | N150: 0 | O150: 0 | P150: 0 | Q150: 0 | R150: 0 | S150: 0 | T150: 0 | U150: 0 | V150: 0 | W150: 0 | X150: 0 | Y150: 0 | Z150: 3552.347086 | AA150: 2000-08-09 | AB150: 3.589442787 | AC150: 0.8029693868 | AD150: 0.810522026 | AE150: 21.38068408 | AF150: 13.27810378 | AG150: 2.441622315 | AH150: 57.69665563 | AI150: 0 | AJ150: 0 | AK150: 0 | AL150: 0 | AM150: 0 | AN150: 0 | AO150: 0 | AP150: 0 | AQ150: 0 | AR150: 0 | AS150: 0 | AT150: 0 | AU150: 0 | AW150: 1774.981964 | AX150: 4124.880937 | AY150: -632.9967971 | AZ150: 758.3554906 | BD150: 145.1092376 | BE150: 31.03184273 | BF150: 10.8376092 | BG150: 38.3213449 | BH150: 2.75034248 | BI150: 164.8399898 | BJ150: 11.1875196 | BK150: 23.31445441 | BL150: 8.09716688 | BM150: 1.48613106 | BN150: 0.36786409 | BO150: 0.37398896 | BP150: 0.93413123 | BQ150: 17.9577947 | BR150: 0.20242184 | BS150: 0.28127025 | BT150: 1.08707446 | BU150: 5.83176211 | BV150: 0.72196467 | BW150: 2.09773073 | BX150: 3.45381111 | BY150: 798.387505 | BZ150: 203.4095228 | CB150: 1 | CC150: 55.147 | CD150: 0 | CE150: 15.334 | CF150: 38.507 | CG150: 5.25 | CH150: 167.185 | CI150: 11.176 | CJ150: 23.808 | CK150: 8.503 | CL150: 1.207 | CM150: 0.22 | CN150: 0.63 | CO150: 1.192 | CP150: 17.107 | CQ150: 0.408 | CR150: 0 | CS150: 0.342 | CT150: 9.873 | CU150: 0.9 | CV150: 1.428 | CW150: 8.187 | CX150: 857.408 | CY150: 0
A151: 1 | B151: 13 | C151: 8 | D151: 2000 | E151: 6561 | F151: 54.71301258 | G151: 418.0406225 | H151: 0 | I151: 2417.363129 | J151: 1133.243554 | K151: 115.8613289 | L151: 2822.196122 | M151: 0 | N151: 0 | O151: 0 | P151: 0 | Q151: 0 | R151: 0 | S151: 0 | T151: 0 | U151: 0 | V151: 0 | W151: 0 | X151: 0 | Y151: 0 | Z151: 6961.417769 | AA151: 2000-08-13 | AB151: 0.7859464034 | AC151: 6.005107528 | AD151: 0 | AE151: 34.72515526 | AF151: 16.27891891 | AG151: 1.664335237 | AH151: 40.54053666 | AI151: 0 | AJ151: 0 | AK151: 0 | AL151: 0 | AM151: 0 | AN151: 0 | AO151: 0 | AP151: 0 | AQ151: 0 | AR151: 0 | AS151: 0 | AT151: 0 | AU151: 0 | AW151: 1809.116232 | AX151: 4158.456746 | AY151: -599.420988 | AZ151: 361.9896122 | BD151: 261.1108491 | BE151: 128.6564389 | BF151: 5.06725504 | BG151: 23.7137527 | BH151: 6.20712759 | BI151: 483.168394 | BJ151: 159.5109638 | BK151: 54.52800406 | BL151: 8.94106959 | BM151: 1.46877446 | BN151: 0.76994761 | BO151: 0.54047533 | BP151: 1.25094279 | BQ151: 19.44420086 | BR151: 0.3638259 | BS151: 0.54018576 | BT151: 1.5054729 | BU151: 7.94025821 | BV151: 1.12173044 | BW151: 3.79696483 | BX151: 4.97199203 | BY151: 1172.857007 | BZ151: 412.7377072 | CB151: 1 | CC151: 291.332 | CD151: 0 | CE151: 6.431 | CF151: 23.753 | CG151: 4.254 | CH151: 484.035 | CI151: 161.142 | CJ151: 53.973 | CK151: 8.915 | CL151: 1.611 | CM151: 0 | CN151: 0.383 | CO151: 0.335 | CP151: 19.29 | CQ151: 0 | CR151: 0 | CS151: 1.24 | CT151: 9.97 | CU151: 1.6 | CV151: 13.991 | CW151: 32.579 | CX151: 1112.564 | CY151: 426.696
A152: 1 | B152: 16 | C152: 8 | D152: 2000 | E152: 2121 | F152: 18.8931474 | G152: 894.6006284 | H152: 148.6223776 | I152: 231.3009541 | J152: 251.5495781 | K152: 62.79580925 | L152: 695.6475497 | M152: 0 | N152: 0 | O152: 0 | P152: 0 | Q152: 0 | R152: 0 | S152: 0 | T152: 0 | U152: 0 | V152: 0 | W152: 0 | X152: 0 | Y152: 0 | Z152: 2303.410045 | AA152: 2000-08-16 | AB152: 0.8202251027 | AC152: 38.83809704 | AD152: 6.452276178 | AE152: 10.04167515 | AF152: 10.92074677 | AG152: 2.72621062 | AH152: 30.20076913 | AI152: 0 | AJ152: 0 | AK152: 0 | AL152: 0 | AM152: 0 | AN152: 0 | AO152: 0 | AP152: 0 | AQ152: 0 | AR152: 0 | AS152: 0 | AT152: 0 | AU152: 0 | AW152: 1843.250501 | AX152: 4192.032555 | AY152: -565.845179 | AZ152: 154.7816225 | BD152: 53.63567248 | BE152: 234.3952552 | BF152: 1.68719463 | BG152: 7.70791334 | BH152: 0.88677288 | BI152: 84.23552137 | BJ152: 340.6910823 | BK152: 19.23541375 | BL152: 10.51638736 | BM152: 0.43136482 | BN152: 0.23616597 | BO152: 0.13953473 | BP152: 0.48415687 | BQ152: 10.01898784 | BR152: 0.15548774 | BS152: 0.20853569 | BT152: 0.53418261 | BU152: 2.81922111 | BV152: 0.28750165 | BW152: 1.17777304 | BX152: 1.3187074 | BY152: 310.4059988 | BZ152: 69.78634214 | CB152: 1 | CC152: 58.301 | CD152: 136.456 | CE152: 6.715 | CF152: 7.065 | CG152: 1.253 | CH152: 84.512 | CI152: 342.9 | CJ152: 19.182 | CK152: 11.194 | CL152: 0.179 | CM152: 0.196 | CN152: 0.077 | CO152: 0.182 | CP152: 10.084 | CQ152: 0 | CR152: 0 | CS152: 0.472 | CT152: 0.628 | CU152: 2 | CV152: 2.058 | CW152: 2.886 | CX152: 313.806 | CY152: 0
A153: 1 | B153: 20 | C153: 8 | D153: 2000 | E153: 5419 | F153: 68.63224975 | G153: 22.32561756 | H153: 0.0269341025 | I153: 2012.215602 | J153: 1143.869156 | K153: 69.75522167 | L153: 2647.384739 | M153: 0 | N153: 0 | O153: 0 | P153: 0 | Q153: 0 | R153: 0 | S153: 0 | T153: 0 | U153: 0 | V153: 0 | W153: 0 | X153: 0 | Y153: 0 | Z153: 5964.20952 | AA153: 2000-08-20 | AB153: 1.150735056 | AC153: 0.3743265136 | AD153: 0.0004515955117 | AE153: 33.73817762 | AF153: 19.17888954 | AG153: 1.169563568 | AH153: 44.3878561 | AI153: 0 | AJ153: 0 | AK153: 0 | AL153: 0 | AM153: 0 | AN153: 0 | AO153: 0 | AP153: 0 | AQ153: 0 | AR153: 0 | AS153: 0 | AT153: 0 | AU153: 0 | AW153: 1877.38477 | AX153: 4225.608364 | AY153: -532.26937 | AZ153: 451.8937523 | BD153: 240.8560377 | BE153: 43.50345778 | BF153: 6.23199397 | BG153: 26.00789274 | BH153: 5.37198061 | BI153: 391.1195891 | BJ153: 8.84528296 | BK153: 50.85709269 | BL153: 6.91250286 | BM153: 1.36919485 | BN153: 0.61581874 | BO153: 0.48215134 | BP153: 1.01282455 | BQ153: 14.13838147 | BR153: 0.31354917 | BS153: 0.41724245 | BT153: 1.2575804 | BU153: 6.46826628 | BV153: 1.02904536 | BW153: 3.41656154 | BX153: 4.55852368 | BY153: 1067.552389 | BZ153: 363.87693 | CB153: 1 | CC153: 234.7 | CD153: 0 | CE153: 10.85 | CF153: 25.472 | CG153: 8.674 | CH153: 392.183 | CI153: 8.902 | CJ153: 50.881 | CK153: 7.442 | CL153: 0.592 | CM153: 0.574 | CN153: 0.468 | CO153: 0.858 | CP153: 14.142 | CQ153: 0.625 | CR153: 0.29 | CS153: 1.511 | CT153: 6.218 | CU153: 0 | CV153: 5.52 | CW153: 15.948 | CX153: 1074.472 | CY153: 298.731
A154: 1 | B154: 23 | C154: 8 | D154: 2000 | E154: 2655 | F154: 145.3230052 | G154: 93.71506289 | H154: 190.9627867 | I154: 656.5318399 | J154: 816.3234242 | K154: 66.24329596 | L154: 2460.879911 | M154: 0 | N154: 0 | O154: 0 | P154: 0 | Q154: 0 | R154: 0 | S154: 0 | T154: 0 | U154: 0 | V154: 0 | W154: 0 | X154: 0 | Y154: 0 | Z154: 4429.979326 | AA154: 2000-08-23 | AB154: 3.280444321 | AC154: 2.115474046 | AD154: 4.310692504 | AE154: 14.82020099 | AF154: 18.42725133 | AG154: 1.495340973 | AH154: 55.55059584 | AI154: 0 | AJ154: 0 | AK154: 0 | AL154: 0 | AM154: 0 | AN154: 0 | AO154: 0 | AP154: 0 | AQ154: 0 | AR154: 0 | AS154: 0 | AT154: 0 | AU154: 0 | AW154: 1911.519038 | AX154: 4259.184173 | AY154: -498.6935609 | AZ154: 1296.375982 | BD154: 178.8348439 | BE154: 101.9709352 | BF154: 12.47650052 | BG154: 44.19181884 | BH154: 2.85162457 | BI154: 151.2634032 | BJ154: 36.06950182 | BK154: 37.987341 | BL154: 14.46511791 | BM154: 1.62716846 | BN154: 0.40871513 | BO154: 0.42163047 | BP154: 0.97762417 | BQ154: 17.39266142 | BR154: 0.271346 | BS154: 0.29848916 | BT154: 1.18719072 | BU154: 6.04788007 | BV154: 0.874666 | BW154: 2.73557759 | BX154: 4.11111253 | BY154: 949.1585726 | BZ154: 224.0103017 | CB154: 1 | CC154: 92.752 | CD154: 0 | CE154: 15.163 | CF154: 43.576 | CG154: 4.553 | CH154: 152.79 | CI154: 36.14 | CJ154: 39.079 | CK154: 15.903 | CL154: 1.803 | CM154: 0 | CN154: 0 | CO154: 0.672 | CP154: 17.198 | CQ154: 0.697 | CR154: 0.092 | CS154: 0.646 | CT154: 5.617 | CU154: 1.1 | CV154: 1.836 | CW154: 8.717 | CX154: 1074.681 | CY154: 83.925
A155: 1 | B155: 27 | C155: 8 | D155: 2000 | E155: 3270 | F155: 119.2581733 | G155: 189.0585826 | H155: 0 | I155: 1208.082487 | J155: 1094.667999 | K155: 54.32208024 | L155: 2722.211545 | M155: 0 | N155: 0 | O155: 0 | P155: 0 | Q155: 0 | R155: 0 | S155: 0 | T155: 0 | U155: 0 | V155: 0 | W155: 0 | X155: 0 | Y155: 0 | Z155: 5387.600866 | AA155: 2000-08-27 | AB155: 2.213567342 | AC155: 3.50914233 | AD155: 0 | AE155: 22.42338504 | AF155: 20.31828314 | AG155: 1.008279596 | AH155: 50.52734254 | AI155: 0 | AJ155: 0 | AK155: 0 | AL155: 0 | AM155: 0 | AN155: 0 | AO155: 0 | AP155: 0 | AQ155: 0 | AR155: 0 | AS155: 0 | AT155: 0 | AU155: 0 | AW155: 1945.653307 | AX155: 4292.759982 | AY155: -465.1177519 | AZ155: 1547.809097 | BD155: 218.5809915 | BE155: 60.41810212 | BF155: 10.42898884 | BG155: 37.75586213 | BH155: 4.00461379 | BI155: 249.240902 | BJ155: 72.37665337 | BK155: 50.00150442 | BL155: 8.57037737 | BM155: 1.57079695 | BN155: 0.44537692 | BO155: 0.46678246 | BP155: 1.00495131 | BQ155: 14.34450433 | BR155: 0.31392113 | BS155: 0.34676832 | BT155: 1.22617399 | BU155: 6.21286963 | BV155: 1.0105851 | BW155: 3.27397046 | BX155: 4.57314647 | BY155: 1051.313417 | BZ155: 294.5562215 | CB155: 1 | CC155: 201.736 | CD155: 0 | CE155: 13.568 | CF155: 38.552 | CG155: 4.049 | CH155: 250.54 | CI155: 72.648 | CJ155: 50.445 | CK155: 7.738 | CL155: 0.884 | CM155: 0.317 | CN155: 0.426 | CO155: 1.487 | CP155: 13.783 | CQ155: 0 | CR155: 0.156 | CS155: 0.551 | CT155: 12.255 | CU155: 1 | CV155: 3.496 | CW155: 11.797 | CX155: 1036.815 | CY155: 269.645
A156: 1 | B156: 30 | C156: 8 | D156: 2000 | E156: 1207 | F156: 60.1110547 | G156: 106.3750013 | H156: 79.96735032 | I156: 359.6176403 | J156: 272.3387994 | K156: 22.07035882 | L156: 1146.210608 | M156: 0 | N156: 0 | O156: 0 | P156: 0 | Q156: 0 | R156: 0 | S156: 0 | T156: 0 | U156: 0 | V156: 0 | W156: 0 | X156: 0 | Y156: 0 | Z156: 2046.690813 | AA156: 2000-08-30 | AB156: 2.936987566 | AC156: 5.197414316 | AD156: 3.907153431 | AE156: 17.57068718 | AF156: 13.30629901 | AG156: 1.078343572 | AH156: 56.00311493 | AI156: 0 | AJ156: 0 | AK156: 0 | AL156: 0 | AM156: 0 | AN156: 0 | AO156: 0 | AP156: 0 | AQ156: 0 | AR156: 0 | AS156: 0 | AT156: 0 | AU156: 0 | AW156: 1979.787575 | AX156: 4326.335791 | AY156: -431.5419429 | AZ156: 612.7060093 | BD156: 80.14506032 | BE156: 57.45901443 | BF156: 5.13148971 | BG156: 18.62970977 | BH156: 1.42316883 | BI156: 77.08716692 | BJ156: 40.67345949 | BK156: 13.32745242 | BL156: 6.46615556 | BM156: 0.7031994 | BN156: 0.18883473 | BO156: 0.19278228 | BP156: 0.4253054 | BQ156: 6.40677786 | BR156: 0.11135135 | BS156: 0.14059393 | BT156: 0.52246034 | BU156: 2.5957708 | BV156: 0.40118157 | BW156: 1.16793072 | BX156: 1.84496563 | BY156: 442.5767051 | BZ156: 108.094284 | CB156: 1 | CC156: 47.971 | CD156: 0 | CE156: 7.74 | CF156: 18.254 | CG156: 3.244 | CH156: 77.602 | CI156: 40.704 | CJ156: 13.576 | CK156: 6.867 | CL156: 0.85 | CM156: 0 | CN156: 0.055 | CO156: 0 | CP156: 6.409 | CQ156: 0.091 | CR156: 0 | CS156: 0 | CT156: 1.985 | CU156: 1.2 | CV156: 4.053 | CW156: 5.996 | CX156: 485.312 | CY156: 0
A157: 1 | B157: 3 | C157: 9 | D157: 2000 | E157: 2915 | F157: 49.04506836 | G157: 1150.42594 | H157: 128.8527464 | I157: 597.4799189 | J157: 291.973064 | K157: 19.71833518 | L157: 1225.225691 | M157: 0 | N157: 0 | O157: 0 | P157: 0 | Q157: 0 | R157: 0 | S157: 0 | T157: 0 | U157: 0 | V157: 0 | W157: 0 | X157: 0 | Y157: 0 | Z157: 3462.720764 | AA157: 2000-09-03 | AB157: 1.416373762 | AC157: 33.22317965 | AD157: 3.721141702 | AE157: 17.2546376 | AF157: 8.431897456 | AG157: 0.5694462973 | AH157: 35.38332353 | AI157: 0 | AJ157: 0 | AK157: 0 | AL157: 0 | AM157: 0 | AN157: 0 | AO157: 0 | AP157: 0 | AQ157: 0 | AR157: 0 | AS157: 0 | AT157: 0 | AU157: 0 | AW157: 2013.921844 | AX157: 4359.9116 | AY157: -397.9661338 | AZ157: 424.4779981 | BD157: 92.40926656 | BE157: 284.1396734 | BF157: 4.21807172 | BG157: 16.7338168 | BH157: 1.89722692 | BI157: 143.6877527 | BJ157: 438.1721351 | BK157: 21.99366572 | BL157: 12.05976728 | BM157: 0.72107756 | BN157: 0.28353596 | BO157: 0.20883716 | BP157: 0.52670924 | BQ157: 5.84964844 | BR157: 0.19391712 | BS157: 0.25656192 | BT157: 0.5883106 | BU157: 2.67718692 | BV157: 0.47595712 | BW157: 1.62066112 | BX157: 1.9660224 | BY157: 507.6238936 | BZ157: 137.5076354 | CB157: 1 | CC157: 57.535 | CD157: 0 | CE157: 36.31 | CF157: 13.702 | CG157: 1.841 | CH157: 145.928 | CI157: 445.452 | CJ157: 22.448 | CK157: 14.746 | CL157: 0.651 | CM157: 0.222 | CN157: 0.693 | CO157: 1.847 | CP157: 5.539 | CQ157: 0 | CR157: 0.046 | CS157: 0.481 | CT157: 3.517 | CU157: 0.9 | CV157: 3.55 | CW157: 4.378 | CX157: 535.503 | CY157: 0
A158: 1 | B158: 6 | C158: 9 | D158: 2000 | E158: 2807 | F158: 98.39859627 | G158: 836.2388376 | H158: 291.9118029 | I158: 593.2578492 | J158: 267.7189725 | K158: 48.26481388 | L158: 1406.249217 | M158: 0 | N158: 0 | O158: 0 | P158: 0 | Q158: 0 | R158: 0 | S158: 0 | T158: 0 | U158: 0 | V158: 0 | W158: 0 | X158: 0 | Y158: 0 | Z158: 3542.040089 | AA158: 2000-09-06 | AB158: 2.778020401 | AC158: 23.60896028 | AD158: 8.241346669 | AE158: 16.74904389 | AF158: 7.558327002 | AG158: 1.362627544 | AH158: 39.70167422 | AI158: 0 | AJ158: 0 | AK158: 0 | AL158: 0 | AM158: 0 | AN158: 0 | AO158: 0 | AP158: 0 | AQ158: 0 | AR158: 0 | AS158: 0 | AT158: 0 | AU158: 0 | AW158: 2048.056112 | AX158: 4393.487409 | AY158: -364.3903248 | AZ158: 556.760996 | BD158: 101.6554335 | BE158: 283.2363589 | BF158: 8.32021568 | BG158: 30.80007651 | BH158: 2.01433475 | BI158: 144.8302212 | BJ158: 318.6137764 | BK158: 19.65275547 | BL158: 17.61651345 | BM158: 1.11937061 | BN158: 0.38103734 | BO158: 0.25461965 | BP158: 0.68771516 | BQ158: 12.43837049 | BR158: 0.20412348 | BS158: 0.28126204 | BT158: 0.77093686 | BU158: 3.71811999 | BV158: 0.52140717 | BW158: 1.69645345 | BX158: 2.31275474 | BY158: 589.2473728 | BZ158: 147.3870371 | CB158: 1 | CC158: 23.503 | CD158: 168.915 | CE158: 10.33 | CF158: 30.896 | CG158: 2.569 | CH158: 146.689 | CI158: 319.534 | CJ158: 19.979 | CK158: 18.622 | CL158: 1.217 | CM158: 0.245 | CN158: 0.666 | CO158: 0.975 | CP158: 11.964 | CQ158: 0.384 | CR158: 0.235 | CS158: 0.457 | CT158: 5.567 | CU158: 0.6 | CV158: 0.56 | CW158: 8.926 | CX158: 619.557 | CY158: 0
A159: 1 | B159: 10 | C159: 9 | D159: 2000 | E159: 1092 | F159: 18.19911342 | G159: 190.5294468 | H159: 122.9003097 | I159: 613.1129878 | J159: 386.9105081 | K159: 71.36619676 | L159: 551.8968802 | M159: 0 | N159: 0 | O159: 0 | P159: 0 | Q159: 0 | R159: 0 | S159: 0 | T159: 0 | U159: 0 | V159: 0 | W159: 0 | X159: 0 | Y159: 0 | Z159: 1954.915443 | AA159: 2000-09-10 | AB159: 0.9309412069 | AC159: 9.746173294 | AD159: 6.286732767 | AE159: 31.36263464 | AF159: 19.79167485 | AG159: 3.650602742 | AH159: 28.2312405 | AI159: 0 | AJ159: 0 | AK159: 0 | AL159: 0 | AM159: 0 | AN159: 0 | AO159: 0 | AP159: 0 | AQ159: 0 | AR159: 0 | AS159: 0 | AT159: 0 | AU159: 0 | AW159: 2082.190381 | AX159: 4427.063218 | AY159: -330.8145157 | AZ159: 627.9218546 | BD159: 63.45578343 | BE159: 94.76445213 | BF159: 1.68998581 | BG159: 7.77830479 | BH159: 1.46156028 | BI159: 138.8451914 | BJ159: 72.61737805 | BK159: 19.80301134 | BL159: 6.71402093 | BM159: 0.4496181 | BN159: 0.28693148 | BO159: 0.13487275 | BP159: 0.43598555 | BQ159: 11.22709952 | BR159: 0.12902643 | BS159: 0.18225373 | BT159: 0.49181736 | BU159: 2.77915807 | BV159: 0.25175147 | BW159: 1.10247009 | BX159: 1.2032106 | BY159: 265.1105156 | BZ159: 95.87724823 | CB159: 1 | CC159: 26.442 | CD159: 0 | CE159: 2.902 | CF159: 7.584 | CG159: 2.582 | CH159: 140.07 | CI159: 72.756 | CJ159: 20.062 | CK159: 7.21 | CL159: 0.544 | CM159: 0.82 | CN159: 0.011 | CO159: 0.298 | CP159: 11.141 | CQ159: 0.061 | CR159: 0.407 | CS159: 0.111 | CT159: 0.404 | CU159: 1 | CV159: 1.088 | CW159: 4.018 | CX159: 285.15 | CY159: 0
A160: 1 | B160: 13 | C160: 9 | D160: 2000 | E160: 2797 | F160: 106.457102 | G160: 178.6312059 | H160: 413.2768688 | I160: 780.2270713 | J160: 950.7603888 | K160: 98.7205539 | L160: 1669.942027 | M160: 0 | N160: 0 | O160: 0 | P160: 0 | Q160: 0 | R160: 0 | S160: 0 | T160: 0 | U160: 0 | V160: 0 | W160: 0 | X160: 0 | Y160: 0 | Z160: 4198.015218 | AA160: 2000-09-13 | AB160: 2.535891284 | AC160: 4.255134788 | AD160: 9.844577671 | AE160: 18.58561799 | AF160: 22.64785475 | AG160: 2.351600668 | AH160: 39.77932285 | AI160: 0 | AJ160: 0 | AK160: 0 | AL160: 0 | AM160: 0 | AN160: 0 | AO160: 0 | AP160: 0 | AQ160: 0 | AR160: 0 | AS160: 0 | AT160: 0 | AU160: 0 | AW160: 2116.324649 | AX160: 4460.639027 | AY160: -297.2387067 | AZ160: 1031.427759 | BD160: 150.9420855 | BE160: 203.5008093 | BF160: 9.29773808 | BG160: 34.46726297 | BH160: 2.52570411 | BI160: 188.7889609 | BJ160: 68.28628364 | BK160: 44.89452837 | BL160: 20.01205238 | BM160: 1.30967254 | BN160: 0.52143955 | BO160: 0.32379579 | BP160: 0.88246079 | BQ160: 20.9745718 | BR160: 0.28884941 | BS160: 0.31647176 | BT160: 1.04597817 | BU160: 5.45785151 | BV160: 0.65831999 | BW160: 2.56135956 | BX160: 3.13354858 | BY160: 706.2298285 | BZ160: 187.8651542 | CB160: 1 | CC160: 80.777 | CD160: 243.693 | CE160: 11.443 | CF160: 34 | CG160: 3.704 | CH160: 190.281 | CI160: 68.121 | CJ160: 46.057 | CK160: 19.366 | CL160: 2.09 | CM160: 1.527 | CN160: 0.186 | CO160: 0.593 | CP160: 20.983 | CQ160: 0.366 | CR160: 0.06 | CS160: 0.341 | CT160: 3.808 | CU160: 1.2 | CV160: 4.121 | CW160: 12.193 | CX160: 802.418 | CY160: 97.431
A161: 1 | B161: 1 | C161: 10 | D161: 2000 | E161: 3346 | F161: 191.5148228 | G161: 2206.847898 | H161: 661.9055689 | I161: 391.0549431 | J161: 312.3003026 | K161: 8.344850998 | L161: 652.4717522 | M161: 0 | N161: 0 | O161: 0 | P161: 0 | Q161: 0 | R161: 0 | S161: 0 | T161: 0 | U161: 0 | V161: 0 | W161: 0 | X161: 0 | Y161: 0 | Z161: 4424.440138 | AA161: 2000-10-01 | AB161: 4.328566254 | AC161: 49.87857963 | AD161: 14.96021074 | AE161: 8.838518115 | AF161: 7.05852702 | AG161: 0.1886080665 | AH161: 14.74699017 | AI161: 0 | AJ161: 0 | AK161: 0 | AL161: 0 | AM161: 0 | AN161: 0 | AO161: 0 | AP161: 0 | AQ161: 0 | AR161: 0 | AS161: 0 | AT161: 0 | AU161: 0 | AW161: 2150.458918 | AX161: 4494.214836 | AY161: -263.6628977 | AZ161: 807.8626759 | BD161: 63.33626766 | BE161: 684.3560686 | BF161: 16.10024227 | BG161: 55.40091839 | BH161: 1.13892837 | BI161: 137.1599417 | BJ161: 840.4488156 | BK161: 31.62148653 | BL161: 34.99885297 | BM161: 1.56917103 | BN161: 0.43619076 | BO161: 0.13268461 | BP161: 0.58035204 | BQ161: 13.19256909 | BR161: 0.31547119 | BS161: 0.32580329 | BT161: 0.45457956 | BU161: 1.37141586 | BV161: 0.32875204 | BW161: 1.6951128 | BX161: 1.10379594 | BY161: 359.5714591 | BZ161: 85.5390343 | CB161: 1 | CC161: 60.862 | CD161: 362.039 | CE161: 17.344 | CF161: 54.459 | CG161: 1.613 | CH161: 137.631 | CI161: 860.12 | CJ161: 31.671 | CK161: 38.922 | CL161: 2.039 | CM161: 0.055 | CN161: 0 | CO161: 0.842 | CP161: 13.068 | CQ161: 0.104 | CR161: 0 | CS161: 0.304 | CT161: 1.459 | CU161: 0 | CV161: 2.111 | CW161: 4.88 | CX161: 357.992 | CY161: 51.551
A162: 1 | B162: 4 | C162: 10 | D162: 2000 | E162: 5413 | F162: 72.52655156 | G162: 33.98746956 | H162: 244.9925963 | I162: 1915.393273 | J162: 1214.321517 | K162: 129.3613002 | L162: 2204.186302 | M162: 0 | N162: 0 | O162: 0 | P162: 0 | Q162: 0 | R162: 0 | S162: 0 | T162: 0 | U162: 0 | V162: 0 | W162: 0 | X162: 0 | Y162: 0 | Z162: 5814.76901 | AA162: 2000-10-04 | AB162: 1.247281731 | AC162: 0.5845024884 | AD162: 4.213281661 | AE162: 32.94014379 | AF162: 20.88340078 | AG162: 2.224702305 | AH162: 37.90668724 | AI162: 0 | AJ162: 0 | AK162: 0 | AL162: 0 | AM162: 0 | AN162: 0 | AO162: 0 | AP162: 0 | AQ162: 0 | AR162: 0 | AS162: 0 | AT162: 0 | AU162: 0 | AW162: 2184.593186 | AX162: 4527.790645 | AY162: -230.0870886 | AZ162: 349.5629346 | BD162: 221.1345305 | BE162: 134.8481086 | BF162: 6.58810905 | BG162: 27.78604102 | BH162: 4.89623139 | BI162: 394.5088445 | BJ162: 13.24442761 | BK162: 55.49937013 | BL162: 14.62808393 | BM162: 1.40685396 | BN162: 0.74091482 | BO162: 0.4457407 | BP162: 1.11671416 | BQ162: 23.15088006 | BR162: 0.34360552 | BS162: 0.45652081 | BT162: 1.34039777 | BU162: 7.18020332 | BV162: 0.90274093 | BW162: 3.37161349 | BX162: 4.14206953 | BY162: 945.9946948 | BZ162: 328.2391449 | CB162: 1 | CC162: 254.605 | CD162: 0 | CE162: 6.676 | CF162: 27.207 | CG162: 6.26 | CH162: 395.285 | CI162: 13.421 | CJ162: 55.018 | CK162: 16.304 | CL162: 1.32 | CM162: 0.716 | CN162: 0.426 | CO162: 1.192 | CP162: 23.426 | CQ162: 0.312 | CR162: 0.169 | CS162: 2.312 | CT162: 4.588 | CU162: 0 | CV162: 2.119 | CW162: 4.776 | CX162: 933.598 | CY162: 226.573
A163: 1 | B163: 8 | C163: 10 | D163: 2000 | E163: 9923 | F163: 336.7992705 | G163: 953.5927896 | H163: 836.8694988 | I163: 2336.287979 | J163: 3103.13777 | K163: 66.08219845 | L163: 1858.077191 | M163: 0 | N163: 0 | O163: 0 | P163: 0 | Q163: 0 | R163: 0 | S163: 0 | T163: 0 | U163: 0 | V163: 0 | W163: 0 | X163: 0 | Y163: 0 | Z163: 9490.846699 | AA163: 2000-10-08 | AB163: =100*(F163/$Z163) -> 3.548674647 | AC163: 10.04749966 | AD163: 8.817648471 | AE163: 24.61622291 | AF163: 32.69611099 | AG163: 0.6962729517 | AH163: 19.57757037 | AI163: 0 | AJ163: 0 | AK163: 0 | AL163: 0 | AM163: 0 | AN163: 0 | AO163: 0 | AP163: 0 | AQ163: 0 | AR163: 0 | AS163: 0 | AT163: 0 | AU163: 0 | AW163: 2218.727455 | AX163: 4561.366454 | AY163: -196.5112796 | AZ163: 192.348906 | BD163: 303.3497124 | BE163: 542.3841848 | BF163: 29.45790295 | BG163: 99.552858 | BH163: 5.40080269 | BI163: 514.5265215 | BJ163: 363.5834927 | BK163: 142.6430415 | BL163: 41.2664567 | BM163: 3.11846715 | BN163: 0.98802782 | BO163: 0.41066675 | BP163: 1.1855753 | BQ163: 32.78200279 | BR163: 0.75546768 | BS163: 0.54570039 | BT163: 1.13387949 | BU163: 4.97102962 | BV163: 1.02092437 | BW163: 5.65277989 | BX163: 4.18218119 | BY163: 897.3983251 | BZ163: 370.6200482 | CB163: 1 | CC163: 380.93 | CD163: 898.28 | CE163: 28.093 | CF163: 101.119 | CG163: 0.201 | CH163: 502.981 | CI163: 360.568 | CJ163: 139.503 | CK163: 36.762 | CL163: 2.306 | CM163: 0 | CN163: 0.742 | CO163: 1.208 | CP163: 32.982 | CQ163: 0.433 | CR163: 0.801 | CS163: 0.856 | CT163: 5.929 | CU163: 0.8 | CV163: 3.927 | CW163: 2.284 | CX163: 840.242 | CY163: 662.235
A164: 1 | B164: 11 | C164: 10 | D164: 2000 | E164: 5488 | F164: 14.18913927 | G164: 3787.133905 | H164: 593.0081347 | I164: 732.8714246 | J164: 111.5688211 | K164: 72.84829385 | L164: 527.8072588 | M164: 0 | N164: 0 | O164: 0 | P164: 0 | Q164: 0 | R164: 0 | S164: 0 | T164: 0 | U164: 0 | V164: 0 | W164: 0 | X164: 0 | Y164: 0 | Z164: 5839.426978 | AA164: 2000-10-11 | AB164: 0.2429885557 | AC164: 64.85454685 | AD164: 10.15524532 | AE164: 12.55039968 | AF164: 1.910612489 | AG164: 1.247524699 | AH164: 9.038682406 | AI164: 0 | AJ164: 0 | AK164: 0 | AL164: 0 | AM164: 0 | AN164: 0 | AO164: 0 | AP164: 0 | AQ164: 0 | AR164: 0 | AS164: 0 | AT164: 0 | AU164: 0 | AW164: 2252.861723 | AX164: 4594.942263 | AY164: -162.9354706 | AZ164: 314.5481458 | BD164: 57.99275987 | BE164: 974.0559171 | BF164: 1.23248083 | BG164: 10.05142038 | BH164: 1.65628077 | BI164: 246.4010609 | BJ164: 1441.938425 | BK164: 35.6317651 | BL164: 35.87805107 | BM164: 0.59128564 | BN164: 0.58825267 | BO164: 0.13533423 | BP164: 0.75133305 | BQ164: 12.77851922 | BR164: 0.37203599 | BS164: 0.53297689 | BT164: 0.67413646 | BU164: 2.77358656 | BV164: 0.35226349 | BW164: 2.05504504 | BX164: 1.07052609 | BY164: 378.2706763 | BZ164: 110.3160179 | CB164: 1 | CC164: 117.086 | CD164: 1013.464 | CE164: 3.418 | CF164: 9.682 | CG164: 0 | CH164: 245.869 | CI164: 1447.747 | CJ164: 34.782 | CK164: 35.411 | CL164: 0.095 | CM164: 1.052 | CN164: 0 | CO164: 1.111 | CP164: 12.993 | CQ164: 0 | CR164: 0.989 | CS164: 0.645 | CT164: 1.785 | CU164: 0 | CV164: 3.726 | CW164: 1.706 | CX164: 364.99 | CY164: 0
A165: 1 | B165: 15 | C165: 10 | D165: 2000 | E165: 1765 | F165: 42.49030294 | G165: 773.2280652 | H165: 144.3398553 | I165: 481.4300569 | J165: 197.9595853 | K165: 23.4880169 | L165: 983.176998 | M165: 0 | N165: 0 | O165: 0 | P165: 0 | Q165: 0 | R165: 0 | S165: 0 | T165: 0 | U165: 0 | V165: 0 | W165: 0 | X165: 0 | Y165: 0 | Z165: 2646.112881 | AA165: 2000-10-15 | AB165: 1.605763051 | AC165: 29.22128042 | AD165: 5.454788281 | AE165: 18.19385939 | AF165: 7.481146658 | AG165: 0.8876422875 | AH165: 37.1555199 | AI165: 0 | AJ165: 0 | AK165: 0 | AL165: 0 | AM165: 0 | AN165: 0 | AO165: 0 | AP165: 0 | AQ165: 0 | AR165: 0 | AS165: 0 | AT165: 0 | AU165: 0 | AW165: 2286.995992 | AX165: 4628.518072 | AY165: -129.3596615 | AZ165: 648.7447848 | BD165: 72.99635492 | BE165: 213.9654212 | BF165: 3.62970707 | BG165: 14.48312531 | BH165: 1.5259245 | BI165: 114.0595001 | BJ165: 294.5304792 | BK165: 15.18711468 | BL165: 10.52981059 | BM165: 0.60701446 | BN165: 0.2490951 | BO165: 0.17179266 | BP165: 0.43901639 | BQ165: 5.93848596 | BR165: 0.1453394 | BS165: 0.20408394 | BT165: 0.49980685 | BU165: 2.34128726 | BV165: 0.37426812 | BW165: 1.23743811 | BX165: 1.58896245 | BY165: 410.5506087 | BZ165: 109.7300823 | CB165: 1 | CC165: 69.267 | CD165: 215.407 | CE165: 5.708 | CF165: 14.76 | CG165: 1.692 | CH165: 114.716 | CI165: 294.216 | CJ165: 15.258 | CK165: 10.668 | CL165: 0.776 | CM165: 0.304 | CN165: 0 | CO165: 0.557 | CP165: 5.624 | CQ165: 0 | CR165: 0 | CS165: 0.253 | CT165: 5.419 | CU165: 0 | CV165: 2.034 | CW165: 2.513 | CX165: 403.702 | CY165: 0
A166: 1 | B166: 22 | C166: 10 | D166: 2000 | E166: 3547 | F166: 21.90062801 | G166: 428.4154683 | H166: 294.7398837 | I166: 1842.591098 | J166: 515.572689 | K166: 119.7276691 | L166: 910.4583859 | M166: 0 | N166: 0 | O166: 0 | P166: 0 | Q166: 0 | R166: 0 | S166: 0 | T166: 0 | U166: 0 | V166: 0 | W166: 0 | X166: 0 | Y166: 0 | Z166: 4133.405822 | AA166: 2000-10-22 | AB166: 0.5298446112 | AC166: 10.36470859 | AD166: 7.130678581 | AE166: 44.5780351 | AF166: 12.47331405 | AG166: 2.896586357 | AH166: 22.02683272 | AI166: 0 | AJ166: 0 | AK166: 0 | AL166: 0 | AM166: 0 | AN166: 0 | AO166: 0 | AP166: 0 | AQ166: 0 | AR166: 0 | AS166: 0 | AT166: 0 | AU166: 0 | AW166: 2321.130261 | AX166: 4662.093881 | AY166: -95.7838525 | AZ166: 459.4286383 | BD166: 124.8388072 | BE166: 228.9345665 | BF166: 2.05610292 | BG166: 12.74722361 | BH166: 3.87761973 | BI166: 377.0776433 | BJ166: 163.229128 | BK166: 28.34411556 | BL166: 14.33167608 | BM166: 0.83121486 | BN166: 0.68025522 | BO166: 0.24797055 | BP166: 0.76563454 | BQ166: 18.63346788 | BR166: 0.22286755 | BS166: 0.39762787 | BT166: 0.84752569 | BU166: 4.63498754 | BV166: 0.45047952 | BW166: 1.91068479 | BX166: 1.96725329 | BY166: 491.4615908 | BZ166: 233.171813 | CB166: 1 | CC166: 123.47 | CD166: 0 | CE166: 0.069 | CF166: 12.221 | CG166: 1.491 | CH166: 379.086 | CI166: 164.81 | CJ166: 28.332 | CK166: 16.519 | CL166: 0.949 | CM166: 0.445 | CN166: 0.548 | CO166: 0.837 | CP166: 18.797 | CQ166: 0 | CR166: 0 | CS166: 0.272 | CT166: 2.168 | CU166: 1.5 | CV166: 2.334 | CW166: 6.423 | CX166: 492.372 | CY166: 239.823
A167: 1 | B167: 25 | C167: 10 | D167: 2000 | E167: 2460 | F167: 107.0354637 | G167: 2.941728432 | H167: 0 | I167: 985.3968372 | J167: 342.3291779 | K167: 102.5224551 | L167: 2732.893057 | M167: 0 | N167: 0 | O167: 0 | P167: 0 | Q167: 0 | R167: 0 | S167: 0 | T167: 0 | U167: 0 | V167: 0 | W167: 0 | X167: 0 | Y167: 0 | Z167: 4273.118719 | AA167: 2000-10-25 | AB167: 2.504855837 | AC167: 0.06884265626 | AD167: 0 | AE167: 23.06036649 | AF167: 8.011225533 | AG167: 2.399241909 | AH167: 63.95546757 | AI167: 0 | AJ167: 0 | AK167: 0 | AL167: 0 | AM167: 0 | AN167: 0 | AO167: 0 | AP167: 0 | AQ167: 0 | AR167: 0 | AS167: 0 | AT167: 0 | AU167: 0 | AW167: 2355.264529 | AX167: 4695.66969 | AY167: -62.20804347 | AZ167: 1321.291679 | BD167: 179.9331901 | BE167: 19.73838891 | BF167: 9.07342482 | BG167: 34.42905791 | BH167: 3.61903037 | BI167: 205.271174 | BJ167: 1.49804858 | BK167: 17.9128013 | BL167: 8.0553896 | BM167: 1.53006596 | BN167: 0.45363613 | BO167: 0.48364067 | BP167: 1.13294434 | BQ167: 18.72774684 | BR167: 0.20325195 | BS167: 0.35443221 | BT167: 1.38901111 | BU167: 7.44543358 | BV167: 0.93136727 | BW167: 2.43194403 | BX167: 4.44870866 | BY167: 1054.86792 | BZ167: 265.1103036 | CB167: 1 | CC167: 137.868 | CD167: 0 | CE167: 8.884 | CF167: 34.709 | CG167: 8.626 | CH167: 205.281 | CI167: 1.554 | CJ167: 18.106 | CK167: 5.843 | CL167: 0.37 | CM167: 0.549 | CN167: 0.806 | CO167: 0.544 | CP167: 19.134 | CQ167: 0.433 | CR167: 0.081 | CS167: 0.697 | CT167: 3.32 | CU167: 0.6 | CV167: 0.868 | CW167: 5.384 | CX167: 1153.125 | CY167: 271.108
A168: 1 | B168: 29 | C168: 10 | D168: 2000 | E168: 3321 | F168: 16.11701146 | G168: 1373.471992 | H168: 393.6688421 | I168: 1848.638928 | J168: 635.4571986 | K168: 153.3003902 | L168: 849.4613283 | M168: 0 | N168: 0 | O168: 0 | P168: 0 | Q168: 0 | R168: 0 | S168: 0 | T168: 0 | U168: 0 | V168: 0 | W168: 0 | X168: 0 | Y168: 0 | Z168: 5270.115691 | AA168: 2000-10-29 | AB168: 0.3058189308 | AC168: 26.06151502 | AD168: 7.469833021 | AE168: 35.07776748 | AF168: 12.05774666 | AG168: 2.908861952 | AH168: 16.11845694 | AI168: 0 | AJ168: 0 | AK168: 0 | AL168: 0 | AM168: 0 | AN168: 0 | AO168: 0 | AP168: 0 | AQ168: 0 | AR168: 0 | AS168: 0 | AT168: 0 | AU168: 0 | AW168: 2389.398798 | AX168: 4729.245499 | AY168: -28.63223443 | AZ168: 1428.288405 | BD168: 128.0387677 | BE168: 450.353234 | BF168: 1.62781708 | BG168: 12.02853582 | BH168: 3.84633856 | BI168: 412.4684144 | BJ168: 523.0293984 | BK168: 41.46386281 | BL168: 21.31875201 | BM168: 0.88069693 | BN168: 0.78121431 | BO168: 0.25525532 | BP168: 0.94472054 | BQ168: 23.31572221 | BR168: 0.31993117 | BS168: 0.51162643 | BT168: 0.99075925 | BU168: 5.37171887 | BV168: 0.48083182 | BW168: 2.38604514 | BX168: 2.03842832 | BY168: 508.4925479 | BZ168: 233.5873993 | CB168: 1 | CC168: 122.059 | CD168: 406.531 | CE168: 1.912 | CF168: 11.611 | CG168: 1.555 | CH168: 414.711 | CI168: 524.217 | CJ168: 41.478 | CK168: 21.625 | CL168: 1.497 | CM168: 0.406 | CN168: 0.104 | CO168: 1.062 | CP168: 23.612 | CQ168: 0.128 | CR168: 0.12 | CS168: 0.682 | CT168: 1.91 | CU168: 2 | CV168: 5.035 | CW168: 8.764 | CX168: 520.776 | CY168: 129.852
A169: 1 | B169: 1 | C169: 11 | D169: 2000 | E169: 3505 | F169: 41.87338384 | G169: 761.0409045 | H169: 328.4883141 | I169: 1113.998798 | J169: 125.428302 | K169: 328.6389196 | L169: 1042.403173 | M169: 0 | N169: 0 | O169: 0 | P169: 0 | Q169: 0 | R169: 0 | S169: 0 | T169: 0 | U169: 0 | V169: 0 | W169: 0 | X169: 0 | Y169: 0 | Z169: 3741.871796 | AA169: 2000-11-01 | AB169: 1.119049132 | AC169: 20.33850827 | AD169: 8.778716429 | AE169: 29.77116425 | AF169: 3.352020295 | AG169: 8.782741301 | AH169: 27.85780033 | AI169: 0 | AJ169: 0 | AK169: 0 | AL169: 0 | AM169: 0 | AN169: 0 | AO169: 0 | AP169: 0 | AQ169: 0 | AR169: 0 | AS169: 0 | AT169: 0 | AU169: 0 | AW169: 2423.533066 | AX169: 4762.821308 | AY169: 4.943574603 | AZ169: 209.7508455 | BD169: 93.18017342 | BE169: 292.2574539 | BF169: 3.54590286 | BG169: 18.17685717 | BH169: 2.68289374 | BI169: 304.9827087 | BJ169: 289.8958362 | BK169: 19.93198518 | BL169: 19.28769146 | BM169: 1.24564369 | BN169: 0.81015373 | BO169: 0.3495858 | BP169: 1.52965514 | BQ169: 45.92100043 | BR169: 0.2561259 | BS169: 0.55579531 | BT169: 1.64713884 | BU169: 10.12976195 | BV169: 0.45437489 | BW169: 1.89317345 | BX169: 2.68068987 | BY169: 575.4751484 | BZ169: 170.5373271 | CB169: 1 | CC169: 55.223 | CD169: 297.581 | CE169: 1.256 | CF169: 18.292 | CG169: 0.88 | CH169: 306.697 | CI169: 289.129 | CJ169: 20.437 | CK169: 19.17 | CL169: 1.3 | CM169: 0.177 | CN169: 0.322 | CO169: 0.998 | CP169: 45.799 | CQ169: 0.486 | CR169: 0 | CS169: 2.352 | CT169: 1.094 | CU169: 0 | CV169: 2.512 | CW169: 8.415 | CX169: 616.681 | CY169: 301.638
A170: 1 | B170: 5 | C170: 11 | D170: 2000 | E170: 5904 | F170: 0 | G170: 29.86379667 | H170: 490.604677 | I170: 5037.842044 | J170: 575.3994481 | K170: 69.62634366 | L170: 323.790372 | M170: 0 | N170: 0 | O170: 0 | P170: 0 | Q170: 0 | R170: 0 | S170: 0 | T170: 0 | U170: 0 | V170: 0 | W170: 0 | X170: 0 | Y170: 0 | Z170: 6527.126681 | AA170: 2000-11-05 | AB170: 0 | AC170: 0.4575335845 | AD170: 7.51639582 | AE170: 77.18315102 | AF170: 8.815509125 | AG170: 1.066722726 | AH170: 4.960687723 | AI170: 0 | AJ170: 0 | AK170: 0 | AL170: 0 | AM170: 0 | AN170: 0 | AO170: 0 | AP170: 0 | AQ170: 0 | AR170: 0 | AS170: 0 | AT170: 0 | AU170: 0 | AW170: 2457.667335 | AX170: 4796.397117 | AY170: 38.51938364 | AZ170: 513.0989589 | BD170: 194.7978171 | BE170: 285.9571419 | BF170: 0.25774047 | BG170: 12.60847121 | BH170: 9.11178364 | BI170: 918.561681 | BJ170: 11.41061857 | BK170: 26.38224092 | BL170: 17.06945325 | BM170: 1.00106004 | BN170: 1.29487802 | BO170: 0.23496784 | BP170: 0.54753785 | BQ170: 12.2651791 | BR170: 0.23618408 | BS170: 0.59872716 | BT170: 0.51970173 | BU170: 2.3293669 | BV170: 0.41927658 | BW170: 2.08769347 | BX170: 1.06734437 | BY170: 441.6397226 | BZ170: 489.5127363 | CB170: 1 | CC170: 131.209 | CD170: 397.178 | CE170: 0.242 | CF170: 10.034 | CG170: 14.435 | CH170: 945.15 | CI170: 11.085 | CJ170: 27.152 | CK170: 15.947 | CL170: 1.808 | CM170: 0 | CN170: 1.249 | CO170: 0.29 | CP170: 12.239 | CQ170: 0.053 | CR170: 0.015 | CS170: 0.111 | CT170: 1.578 | CU170: 0 | CV170: 2.443 | CW170: 3.475 | CX170: 490.094 | CY170: 450.874
A171: 1 | B171: 12 | C171: 11 | D171: 2000 | E171: 3824 | F171: 27.22155524 | G171: 942.0097339 | H171: 344.9450507 | I171: 1532.383085 | J171: 425.4860632 | K171: 23.29469989 | L171: 929.6288898 | M171: 0 | N171: 0 | O171: 0 | P171: 0 | Q171: 0 | R171: 0 | S171: 0 | T171: 0 | U171: 0 | V171: 0 | W171: 0 | X171: 0 | Y171: 0 | Z171: 4224.969077 | AA171: 2000-11-12 | AB171: 0.644301881 | AC171: 22.29625156 | AD171: 8.164439654 | AE171: 36.26968758 | AF171: 10.07074976 | AG171: 0.5513578789 | AH171: 22.00321169 | AI171: 0 | AJ171: 0 | AK171: 0 | AL171: 0 | AM171: 0 | AN171: 0 | AO171: 0 | AP171: 0 | AQ171: 0 | AR171: 0 | AS171: 0 | AT171: 0 | AU171: 0 | AW171: 2491.801603 | AX171: 4829.972926 | AY171: 72.09519267 | AZ171: 330.458935 | BD171: 113.1234157 | BE171: 341.8474182 | BF171: 2.45915623 | BG171: 13.44123709 | BH171: 3.34343299 | BI171: 308.9247755 | BJ171: 358.7745206 | BK171: 25.99207226 | BL171: 17.22232869 | BM171: 0.67368071 | BN171: 0.53843232 | BO171: 0.19443034 | BP171: 0.47410949 | BQ171: 6.49934183 | BR171: 0.21425216 | BS171: 0.33034129 | BT171: 0.52855077 | BU171: 2.24112264 | BV171: 0.43863893 | BW171: 1.76705635 | BX171: 1.62984001 | BY171: 467.2671142 | BZ171: 205.9924887 | CB171: 1 | CC171: 74.606 | CD171: 322.907 | CE171: 4.282 | CF171: 13.284 | CG171: 1.869 | CH171: 313.189 | CI171: 357.878 | CJ171: 26.631 | CK171: 17.306 | CL171: 0.555 | CM171: 0.021 | CN171: 0.106 | CO171: 0.857 | CP171: 6.466 | CQ171: 0.405 | CR171: 0.39 | CS171: 0.297 | CT171: 1.296 | CU171: 0.8 | CV171: 0.823 | CW171: 2.701 | CX171: 513.386 | CY171: 176.055
A172: 1 | B172: 15 | C172: 11 | D172: 2000 | E172: 2716 | F172: 29.72778908 | G172: 489.2987407 | H172: 109.5948631 | I172: 1085.414245 | J172: 189.1819141 | K172: 34.24933055 | L172: 1061.517459 | M172: 0 | N172: 0 | O172: 0 | P172: 0 | Q172: 0 | R172: 0 | S172: 0 | T172: 0 | U172: 0 | V172: 0 | W172: 0 | X172: 0 | Y172: 0 | Z172: 2998.984341 | AA172: 2000-11-15 | AB172: 0.9912618971 | AC172: 16.31548167 | AD172: 3.65439931 | AE172: 36.192728 | AF172: 6.308199462 | AG172: 1.142030989 | AH172: 35.39589867 | AI172: 0 | AJ172: 0 | AK172: 0 | AL172: 0 | AM172: 0 | AN172: 0 | AO172: 0 | AP172: 0 | AQ172: 0 | AR172: 0 | AS172: 0 | AT172: 0 | AU172: 0 | AW172: 2525.935872 | AX172: 4863.548736 | AY172: 105.6710017 | AZ172: 233.422446 | BD172: 94.13303666 | BE172: 157.3597024 | BF172: 2.56218325 | BG172: 12.20684646 | BH172: 2.64552066 | BI172: 215.4063544 | BJ172: 186.4272194 | BK172: 12.83764886 | BL172: 8.28271422 | BM172: 0.64034062 | BN172: 0.36513392 | BO172: 0.20521858 | BP172: 0.48403694 | BQ172: 6.60839488 | BR172: 0.13574389 | BS172: 0.24843031 | BT172: 0.56172458 | BU172: 2.75166797 | BV172: 0.41941419 | BW172: 1.31688245 | BX172: 1.75151774 | BY172: 463.9951536 | BZ172: 169.2599656 | CB172: 1 | CC172: 83.493 | CD172: 0 | CE172: 0.684 | CF172: 11.868 | CG172: 3.472 | CH172: 215.023 | CI172: 187.965 | CJ172: 12.935 | CK172: 9.867 | CL172: 0.332 | CM172: 0.234 | CN172: 0.416 | CO172: 0.174 | CP172: 6.641 | CQ172: 0.263 | CR172: 0.242 | CS172: 0 | CT172: 2.497 | CU172: 0 | CV172: 0.246 | CW172: 3.542 | CX172: 462.982 | CY172: 417.321
A173: 1 | B173: 22 | C173: 11 | D173: 2000 | E173: 3781 | F173: 0 | G173: 81.9744146 | H173: 90.5255185 | I173: 2132.430478 | J173: 192.415793 | K173: 22.94028537 | L173: 2335.653233 | M173: 0 | N173: 0 | O173: 0 | P173: 0 | Q173: 0 | R173: 0 | S173: 0 | T173: 0 | U173: 0 | V173: 0 | W173: 0 | X173: 0 | Y173: 0 | Z173: 4855.939722 | AA173: 2000-11-22 | AB173: 0 | AC173: 1.688126692 | AD173: 1.864222451 | AE173: 43.91385808 | AF173: 3.962483144 | AG173: 0.4724170126 | AH173: 48.09889262 | AI173: 0 | AJ173: 0 | AK173: 0 | AL173: 0 | AM173: 0 | AN173: 0 | AO173: 0 | AP173: 0 | AQ173: 0 | AR173: 0 | AS173: 0 | AT173: 0 | AU173: 0 | AW173: 2560.07014 | AX173: 4897.124545 | AY173: 139.2468107 | AZ173: 810.4409141 | BD173: 188.524765 | BE173: 91.09069676 | BF173: 0.0861893 | BG173: 8.1782864 | BH173: 5.36955598 | BI173: 386.2220147 | BJ173: 31.45173897 | BK173: 9.36422871 | BL173: 7.68609059 | BM173: 0.79542571 | BN173: 0.60588776 | BO173: 0.40989158 | BP173: 0.72051688 | BQ173: 3.76674845 | BR173: 0.14892217 | BS173: 0.37993941 | BT173: 0.98323999 | BU173: 4.73468973 | BV173: 0.84701625 | BW173: 2.15905388 | BX173: 3.58408139 | BY173: 957.7704088 | BZ173: 343.8954196 | CB173: 1 | CC173: 53.45 | CD173: 0 | CE173: 1.367 | CF173: 3.925 | CG173: 5.858 | CH173: 401.922 | CI173: 31.486 | CJ173: 9.916 | CK173: 8.444 | CL173: 0.49 | CM173: 0.655 | CN173: 0.361 | CO173: 0.55 | CP173: 3.681 | CQ173: 0.192 | CR173: 0.069 | CS173: 0 | CT173: 0.361 | CU173: 0 | CV173: 0 | CW173: 1.015 | CX173: 1280.096 | CY173: 124.064
A174: 1 | B174: 26 | C174: 11 | D174: 2000 | E174: 6816 | F174: 22.67177688 | G174: 47.19898207 | H174: 312.0854457 | I174: 1924.293853 | J174: 290.5871159 | K174: 156.9411939 | L174: 1878.231519 | M174: 0 | N174: 0 | O174: 0 | P174: 0 | Q174: 0 | R174: 0 | S174: 0 | T174: 0 | U174: 0 | V174: 0 | W174: 0 | X174: 0 | Y174: 0 | Z174: 4632.009886 | AA174: 2000-11-26 | AB174: 0.4894587327 | AC174: 1.018974122 | AD174: 6.737581598 | AE174: 41.54338829 | AF174: 6.273456298 | AG174: 3.388187801 | AH174: 40.54895315 | AI174: 0 | AJ174: 0 | AK174: 0 | AL174: 0 | AM174: 0 | AN174: 0 | AO174: 0 | AP174: 0 | AQ174: 0 | AR174: 0 | AS174: 0 | AT174: 0 | AU174: 0 | AW174: 2594.204409 | AX174: 4930.700354 | AY174: 172.8226198 | AZ174: 1477.498272 | BD174: 165.7885532 | BE174: 162.5113179 | BF174: 2.01961003 | BG174: 14.86563167 | BH174: 4.68763784 | BI174: 388.4302052 | BJ174: 18.18632342 | BK174: 16.88412835 | BL174: 15.50037542 | BM174: 1.06568645 | BN174: 0.78559721 | BO174: 0.4069169 | BP174: 1.08668037 | BQ174: 23.16545427 | BR174: 0.20498979 | BS174: 0.46878155 | BT174: 1.32245288 | BU174: 7.29441977 | BV174: 0.72071726 | BW174: 2.22299819 | BX174: 3.40260199 | BY174: 845.4412729 | BZ174: 297.3918737 | CB174: 1 | CC174: 120.066 | CD174: 207.47 | CE174: 3.154 | CF174: 14.682 | CG174: 8.097 | CH174: 394.385 | CI174: 18.066 | CJ174: 17.345 | CK174: 14.869 | CL174: 1.475 | CM174: 0.77 | CN174: 0.579 | CO174: 1.823 | CP174: 23.246 | CQ174: 0 | CR174: 0.089 | CS174: 1.103 | CT174: 4.129 | CU174: 1.1 | CV174: 1.599 | CW174: 10.591 | CX174: 971.652 | CY174: 122.127
A175: 1 | B175: 29 | C175: 11 | D175: 2000 | E175: 10557 | F175: 69.98176028 | G175: 9.140370484 | H175: 791.7818112 | I175: 7151.900813 | J175: 1008.739217 | K175: 224.0221969 | L175: 1592.613499 | M175: 0 | N175: 0 | O175: 0 | P175: 0 | Q175: 0 | R175: 0 | S175: 0 | T175: 0 | U175: 0 | V175: 0 | W175: 0 | X175: 0 | Y175: 0 | Z175: 10848.17967 | AA175: 2000-11-29 | AB175: 0.6451014126 | AC175: 0.08425718198 | AD175: 7.298752744 | AE175: 65.9271973 | AF175: 9.298695708 | AG175: 2.06506717 | AH175: 14.68092848 | AI175: 0 | AJ175: 0 | AK175: =100*(O175/$Z175) -> 0 | AL175: =100*(P175/$Z175) -> 0 | AM175: =100*(Q175/$Z175) -> 0 | AN175: =100*(R175/$Z175) -> 0 | AO175: =100*(S175/$Z175) -> 0 | AP175: =100*(T175/$Z175) -> 0 | AQ175: =100*(U175/$Z175) -> 0 | AR175: =100*(V175/$Z175) -> 0 | AS175: =100*(W175/$Z175) -> 0 | AT175: =100*(X175/$Z175) -> 0 | AU175: =100*(Y175/$Z175) -> 0 | AW175: 2628.338677 | AX175: 4964.276163 | AY175: 206.3984288 | AZ175: 330.7205615 | BD175: 342.0056767 | BE175: 434.843633 | BF175: 6.28398255 | BG175: 39.03147694 | BH175: 13.71496409 | BI175: 1340.323109 | BJ175: 3.71763849 | BK175: 49.05163153 | BL175: 31.75962061 | BM175: 2.30269526 | BN175: 2.07891077 | BO175: 0.56532697 | BP175: 1.53534842 | BQ175: 37.46887074 | BR175: 0.45499933 | BS175: 1.03841912 | BT175: 1.61600374 | BU175: 8.47505607 | BV175: 0.97406263 | BW175: 4.10303417 | BX175: 3.64285967 | BY175: 1076.905198 | BZ175: 767.8929461 | CB175: 1 | CC175: 328.607 | CD175: 647.836 | CE175: 4.061 | CF175: 38.501 | CG175: 22.532 | CH175: 1328.92 | CI175: 3.329 | CJ175: 49.26 | CK175: 28.627 | CL175: 4.818 | CM175: 0.595 | CN175: 0.402 | CO175: 1.868 | CP175: 38.368 | CQ175: 0 | CR175: 0.064 | CS175: 3.529 | CT175: 4.922 | CU175: 0.9 | CV175: 2.254 | CW175: 9.853 | CX175: 1126.704 | CY175: 717.122
A176: 1 | B176: 3 | C176: 12 | D176: 2000 | E176: 4581 | F176: 2.390561508 | G176: 777.7982504 | H176: 326.1719813 | I176: 1413.822803 | J176: 249.2396646 | K176: 68.46644159 | L176: 1258.703799 | M176: 0 | N176: 0 | O176: 0 | P176: 0 | Q176: 0 | R176: 0 | S176: 0 | T176: 0 | U176: 0 | V176: 0 | W176: 0 | X176: 0 | Y176: 0 | Z176: 4096.593502 | AA176: 2000-12-03 | AB176: 0.05835486258 | AC176: =100*(G176/$Z176) -> 18.986464 | AD176: =100*(H176/$Z176) -> 7.962029456 | AE176: =100*(I176/$Z176) -> 34.51215753 | AF176: =100*(J176/$Z176) -> 6.08407118 | AG176: =100*(K176/$Z176) -> 1.671301816 | AH176: =100*(L176/$Z176) -> 30.72562115 | AI176: =100*(M176/$Z176) -> 0 | AJ176: =100*(N176/$Z176) -> 0 | AK176: 0 | AL176: 0 | AM176: 0 | AN176: 0 | AO176: 0 | AP176: 0 | AQ176: 0 | AR176: 0 | AS176: 0 | AT176: 0 | AU176: 0 | AW176: 2662.472946 | AX176: 4997.851972 | AY176: 239.9742378 | AZ176: 291.9087831 | BD176: 118.1714022 | BE176: 300.5009295 | BF176: 0.31087795 | BG176: 7.4243267 | BH176: 3.3606605 | BI176: 292.6689054 | BJ176: 296.2644368 | BK176: 18.27869611 | BL176: 16.49329948 | BM176: 0.61605872 | BN176: 0.57295059 | BO176: 0.25689284 | BP176: 0.66036191 | BQ176: 10.80337006 | BR176: 0.19130963 | BS176: 0.36501034 | BT176: 0.79679364 | BU176: 3.96414666 | BV176: 0.51634294 | BW176: 1.7737454 | BX176: 2.18308179 | BY176: 587.2411553 | BZ176: 213.0974577 | CB176: 1 | CC176: 84.356 | CD176: 426.661 | CE176: 3.692 | CF176: 7.499 | CG176: 1.125 | CH176: 296.381 | CI176: 293.42 | CJ176: 18.714 | CK176: 15.456 | CL176: 0.323 | CM176: 0.6 | CN176: 0.065 | CO176: 1.272 | CP176: 10.657 | CQ176: 0 | CR176: 0 | CS176: 0.196 | CT176: 4.003 | CU176: 1.7 | CV176: 1.141 | CW176: 6.119 | CX176: 644.376 | CY176: 128.938
A177: 1 | B177: 6 | C177: 12 | D177: 2000 | E177: 5835 | F177: 41.06367752 | G177: 1380.90511 | H177: 553.4150041 | I177: 1951.737306 | J177: 831.7998445 | K177: 124.915009 | L177: 1115.740189 | M177: 0 | N177: 0 | O177: 0 | P177: 0 | Q177: 0 | R177: 0 | S177: 0 | T177: 0 | U177: 0 | V177: 0 | W177: 0 | X177: 0 | Y177: 0 | Z177: 5999.576139 | AA177: 2000-12-06 | AB177: 0.6844429767 | AC177: 23.01671114 | AD177: 9.224235033 | AE177: 32.53125322 | AF177: 13.86431016 | AG177: 2.0820639 | AH177: 18.59698357 | AI177: 0 | AJ177: 0 | AK177: 0 | AL177: 0 | AM177: 0 | AN177: 0 | AO177: 0 | AP177: 0 | AQ177: 0 | AR177: 0 | AS177: 0 | AT177: 0 | AU177: 0 | AW177: 2696.607214 | AX177: 5031.427781 | AY177: 273.5500469 | AZ177: 185.386778 | BD177: 154.2296976 | BE177: 513.1199769 | BF177: 3.79474143 | BG177: 19.82406905 | BH177: 4.21145676 | BI177: 429.0052483 | BJ177: 525.9109606 | BK177: 49.26650151 | BL177: 27.18600209 | BM177: 1.06207896 | BN177: 0.84414592 | BO177: 0.28551807 | BP177: 0.93878256 | BQ177: 21.81189064 | BR177: 0.36317727 | BS177: 0.52697988 | BT177: 1.01146448 | BU177: 5.13097674 | BV177: 0.58284677 | BW177: 2.7796725 | BX177: 2.40795076 | BY177: 614.4560104 | BZ177: 262.0894235 | CB177: 1 | CC177: 118.733 | CD177: 612.208 | CE177: 1.339 | CF177: 19.99 | CG177: 15.278 | CH177: 433.734 | CI177: 520.77 | CJ177: 50.381 | CK177: 25.842 | CL177: 0.993 | CM177: 0 | CN177: 0 | CO177: 1.179 | CP177: 21.995 | CQ177: 0 | CR177: 0.045 | CS177: 2.149 | CT177: 1.578 | CU177: 1.2 | CV177: 1.798 | CW177: 0.594 | CX177: 673.8 | CY177: 82.687
A178: 1 | B178: 10 | C178: 12 | D178: 2000 | E178: 4600 | F178: 17.11950499 | G178: 758.3618304 | H178: 448.9106864 | I178: 2180.813115 | J178: 353.647754 | K178: 55.2564458 | L178: 1256.033421 | M178: 0 | N178: 0 | O178: 0 | P178: 0 | Q178: 0 | R178: 0 | S178: 0 | T178: 0 | U178: 0 | V178: 0 | W178: 0 | X178: 0 | Y178: 0 | Z178: 5070.142758 | AA178: 2000-12-10 | AB178: 0.337653313 | AC178: 14.95740587 | AD178: 8.854004863 | AE178: 43.01285426 | AF178: 6.975104466 | AG178: 1.089840039 | AH178: 24.77313719 | AI178: 0 | AJ178: 0 | AK178: 0 | AL178: 0 | AM178: 0 | AN178: 0 | AO178: 0 | AP178: 0 | AQ178: 0 | AR178: 0 | AS178: 0 | AT178: 0 | AU178: 0 | AW178: 2730.741483 | AX178: 5065.00359 | AY178: 307.1258559 | AZ178: 388.8249409 | BD178: 146.3914578 | BE178: 357.1911939 | BF178: 1.58511073 | BG178: 13.21100779 | BH178: 4.71213043 | BI178: 426.7515818 | BJ178: 288.8783871 | BK178: 22.30879137 | BL178: 20.51579506 | BM178: 0.81601424 | BN178: 0.75754601 | BO178: 0.27535412 | BP178: 0.66238925 | BQ178: 10.50900764 | BR178: 0.22533113 | BS178: 0.4337835 | BT178: 0.7786234 | BU178: 3.62679813 | BV178: 0.56218149 | BW178: 2.04127301 | BX178: 2.19779793 | BY178: 632.5068779 | BZ178: 284.5327855 | CB178: 1 | CC178: 105.279 | CD178: 402.993 | CE178: 3.188 | CF178: 12.969 | CG178: 15.057 | CH178: 429.841 | CI178: 287.444 | CJ178: 22.796 | CK178: 20.008 | CL178: 0.764 | CM178: 0 | CN178: 0.163 | CO178: 1.267 | CP178: 10.586 | CQ178: 0 | CR178: 0.099 | CS178: 0.144 | CT178: 1.726 | CU178: 0 | CV178: 1.394 | CW178: 2.417 | CX178: 695.81 | CY178: 18.466
A179: 1 | B179: 17 | C179: 12 | D179: 2000 | E179: 3520 | F179: 18.19911342 | G179: 238.5163919 | H179: 264.3312819 | I179: 2167.633411 | J179: 724.8508504 | K179: 132.4543724 | L179: 840.7193537 | M179: 0 | N179: 0 | O179: 0 | P179: 0 | Q179: 0 | R179: 0 | S179: 0 | T179: 0 | U179: 0 | V179: 0 | W179: 0 | X179: 0 | Y179: 0 | Z179: 4386.704775 | AA179: 2000-12-17 | AB179: 0.4148698021 | AC179: 5.437256531 | AD179: 6.025736755 | AE179: 49.41370624 | AF179: 16.52381201 | AG179: 3.019450344 | AH179: 19.16516832 | AI179: 0 | AJ179: 0 | AK179: 0 | AL179: 0 | AM179: 0 | AN179: 0 | AO179: 0 | AP179: 0 | AQ179: 0 | AR179: 0 | AS179: 0 | AT179: 0 | AU179: 0 | AW179: 2764.875752 | AX179: 5098.579399 | AY179: 340.701665 | AZ179: 658.9429355 | BD179: 139.8130163 | BE179: 186.8783484 | BF179: 1.84136675 | BG179: 12.13295009 | BH179: 4.40316719 | BI179: 436.0938689 | BJ179: 90.9212706 | BK179: 36.05262274 | BL179: 12.52372359 | BM179: 0.86155493 | BN179: 0.73978169 | BO179: 0.25380327 | BP179: 0.78840329 | BQ179: 20.34030819 | BR179: 0.24459927 | BS179: 0.41664474 | BT179: 0.86307682 | BU179: 4.83130407 | BV179: 0.46008201 | BW179: 2.11829783 | BX179: 1.99992317 | BY179: 480.7542664 | BZ179: 260.7733842 | CB179: 1 | CC179: 93.941 | CD179: 217.751 | CE179: 1.271 | CF179: 12.253 | CG179: 10.923 | CH179: 451.317 | CI179: 90.591 | CJ179: 37.048 | CK179: 11.962 | CL179: 0.602 | CM179: 0.966 | CN179: 0.465 | CO179: 0.816 | CP179: 20.401 | CQ179: 0.216 | CR179: 0 | CS179: 0.429 | CT179: 2.664 | CU179: 1.1 | CV179: 1.083 | CW179: 4.051 | CX179: 570.237 | CY179: 0
A180: 1 | B180: 24 | C180: 12 | D180: 2000 | E180: 4480 | F180: 147.8677965 | G180: 321.3838312 | H180: 338.8579436 | I180: 1140.358207 | J180: 556.2271662 | K180: 23.81021192 | L180: 1103.653214 | M180: 0 | N180: 0 | O180: 0 | P180: 0 | Q180: 0 | R180: 0 | S180: 0 | T180: 0 | U180: 0 | V180: 0 | W180: 0 | X180: 0 | Y180: 0 | Z180: 3632.15837 | AA180: 2000-12-24 | AB180: 4.071072388 | AC180: 8.848287944 | AD180: 9.329382395 | AE180: 31.39615871 | AF180: 15.31395687 | AG180: 0.6555389247 | AH180: 30.38560277 | AI180: 0 | AJ180: 0 | AK180: 0 | AL180: 0 | AM180: 0 | AN180: 0 | AO180: 0 | AP180: 0 | AQ180: 0 | AR180: 0 | AS180: 0 | AT180: 0 | AU180: 0 | AW180: 2799.01002 | AX180: 5132.155208 | AY180: 374.277474 | AZ180: 552.1850386 | BD180: 115.7474445 | BE180: 210.7542652 | BF180: 12.57206787 | BG180: 44.17336524 | BH180: 2.77146918 | BI180: 227.9715363 | BJ180: 122.6095613 | BK180: 27.63921959 | BL180: 17.29396279 | BM180: 1.42448767 | BN180: 0.45113775 | BO180: 0.22229127 | BP180: 0.56359328 | BQ180: 12.25941941 | BR180: 0.21826275 | BS180: 0.25297109 | BT180: 0.57666772 | BU180: 2.56384355 | BV180: 0.46272622 | BW180: 1.74535973 | BX180: 1.92255069 | BY180: 496.136591 | BZ180: 181.0537117 | CB180: 1 | CC180: 115.863 | CD180: 0 | CE180: 11.449 | CF180: 43.27 | CG180: 3.823 | CH180: 229.084 | CI180: 123.679 | CJ180: 27.62 | CK180: 20.018 | CL180: 1.691 | CM180: 0.522 | CN180: 0.36 | CO180: 0.953 | CP180: 12.357 | CQ180: 0.136 | CR180: 0.053 | CS180: 0 | CT180: 0.973 | CU180: 0 | CV180: 2.361 | CW180: 1.831 | CX180: 500.143 | CY180: 121.466
A181: 1 | B181: 27 | C181: 12 | D181: 2000 | E181: 5128 | F181: 142.3540821 | G181: 1466.425358 | H181: 676.8539958 | I181: 1490.618827 | J181: 393.6092572 | K181: 55.70751883 | L181: 1210.580775 | M181: 0 | N181: 0 | O181: 0 | P181: 0 | Q181: 0 | R181: 0 | S181: 0 | T181: 0 | U181: 0 | V181: 0 | W181: 0 | X181: 0 | Y181: 0 | Z181: 5436.149814 | AA181: 2000-12-27 | AB181: 2.618656346 | AC181: 26.97544048 | AD181: 12.45098128 | AE181: 27.42048837 | AF181: 7.240588847 | AG181: 1.024760552 | AH181: 22.26908412 | AI181: 0 | AJ181: 0 | AK181: 0 | AL181: 0 | AM181: 0 | AN181: 0 | AO181: 0 | AP181: 0 | AQ181: 0 | AR181: 0 | AS181: 0 | AT181: 0 | AU181: 0 | AW181: 2833.144289 | AX181: 5165.731017 | AY181: 407.853283 | AZ181: 279.49627 | BD181: 127.3660512 | BE181: 566.684435 | BF181: 12.03974289 | BG181: 45.73032991 | BH181: 3.46305453 | BI181: 326.3941336 | BJ181: 558.5640354 | BK181: 30.29264308 | BL181: 33.02742539 | BM181: 1.56649749 | BN181: 0.72571885 | BO181: 0.26328673 | BP181: 0.80831127 | BQ181: 17.29912463 | BR181: 0.31302879 | BS181: 0.4456226 | BT181: 0.81775208 | BU181: 3.55725843 | BV181: 0.54248579 | BW181: 2.20024657 | BX181: 2.13000619 | BY181: 615.9534474 | BZ181: 220.513122 | CB181: 1 | CC181: 230.23 | CD181: 748.352 | CE181: 8.531 | CF181: 45.613 | CG181: 2.733 | CH181: 320.077 | CI181: 557.213 | CJ181: 29.143 | CK181: 31.132 | CL181: 1.754 | CM181: 0.139 | CN181: 0.031 | CO181: 1.354 | CP181: 17.889 | CQ181: 0.599 | CR181: 0 | CS181: 0.098 | CT181: 0.942 | CU181: 0 | CV181: 1.713 | CW181: 1.492 | CX181: 556.622 | CY181: 4.645
A182: 1 | B182: 31 | C182: 12 | D182: 2000 | E182: 4526 | F182: 3.817186924 | G182: 1965.83629 | H182: 353.6447658 | I182: 942.1491502 | J182: 787.9114884 | K182: 136.3529321 | L182: 429.7622187 | M182: 0 | N182: 0 | O182: 0 | P182: 0 | Q182: 0 | R182: 0 | S182: 0 | T182: 0 | U182: 0 | V182: 0 | W182: 0 | X182: 0 | Y182: 0 | Z182: 4619.474032 | AA182: 2000-12-31 | AB182: 0.08263250097 | AC182: 42.5554138 | AD182: 7.65552016 | AE182: 20.39516065 | AF182: 17.05630301 | AG182: 2.951698206 | AH182: 9.303271664 | AI182: 0 | AJ182: 0 | AK182: 0 | AL182: 0 | AM182: 0 | AN182: 0 | AO182: 0 | AP182: 0 | AQ182: 0 | AR182: 0 | AS182: 0 | AT182: 0 | AU182: 0 | AW182: 2867.278557 | AX182: 5199.306826 | AY182: 441.4290921 | AZ182: 119.4291841 | BD182: 86.52153746 | BE182: 533.5537472 | BF182: 0.6710591 | BG182: 6.3288818 | BH182: 1.9581294 | BI182: 265.1822371 | BJ182: 748.5074078 | BK182: 51.91208008 | BL182: 21.21237447 | BM182: 0.57288825 | BN182: 0.55933851 | BO182: 0.1577439 | BP182: 0.78867279 | BQ182: 20.60941399 | BR182: 0.34394729 | BS182: 0.43126606 | BT182: 0.77640225 | BU182: 4.19802582 | BV182: 0.3393092 | BW182: 2.26242079 | BX182: 1.41013608 | BY182: 315.4734744 | BZ182: 127.4920109 | CB182: 1 | CC182: 58.923 | CD182: 483.296 | CE182: 2.651 | CF182: 6.157 | CG182: 1.868 | CH182: 267.902 | CI182: 748.581 | CJ182: 52.854 | CK182: 21.682 | CL182: 0.683 | CM182: 0.85 | CN182: 0 | CO182: 1.3 | CP182: 20.38 | CQ182: 0.256 | CR182: 0 | CS182: 0.506 | CT182: 4.123 | CU182: 1.5 | CV182: 1.651 | CW182: 6.969 | CX182: 333.319 | CY182: 61.423
A183: 1 | B183: 3 | C183: 1 | D183: 2001 | E183: 8144 | F183: 247.5773459 | G183: 266.9618552 | H183: 619.4574234 | I183: 4101.854833 | J183: 785.1395922 | K183: 98.68833439 | L183: 2659.24684 | M183: 0 | N183: 0 | O183: 0 | P183: 0 | Q183: 0 | R183: 0 | S183: 0 | T183: 0 | U183: 0 | V183: 0 | W183: 0 | X183: 0 | Y183: 0 | Z183: 8778.926224 | AA183: 2001-01-03 | AB183: 2.820132435 | AC183: 3.040939727 | AD183: 7.056186686 | AE183: 46.72387862 | AF183: 8.943458143 | AG183: 1.124150401 | AH183: 30.29125399 | AI183: 0 | AJ183: 0 | AK183: 0 | AL183: 0 | AM183: 0 | AN183: 0 | AO183: 0 | AP183: 0 | AQ183: 0 | AR183: 0 | AS183: 0 | AT183: 0 | AU183: 0 | AW183: 2901.412826 | AX183: 5232.882635 | AY183: 475.0049011 | AZ183: 547.6378494 | BD183: 293.3329973 | BE183: 361.9000488 | BF183: 20.98416205 | BG183: 79.74566154 | BH183: 9.06717429 | BI183: 773.0458601 | BJ183: 102.1393595 | BK183: 39.54881187 | BL183: 31.57197767 | BM183: 2.9742294 | BN183: 1.31550715 | BO183: 0.58409803 | BP183: 1.40834594 | BQ183: 28.19015308 | BR183: 0.41117355 | BS183: 0.71373318 | BT183: 1.50594214 | BU183: 7.21783897 | BV183: 1.11867723 | BW183: 3.72547647 | BX183: 4.59130697 | BY183: 1249.829647 | BZ183: 552.4750644 | CB183: 1 | CC183: 353.741 | CD183: 576.706 | CE183: 8.704 | CF183: 80.185 | CG183: 25.393 | CH183: 736.079 | CI183: 101.658 | CJ183: 38.798 | CK183: 28.042 | CL183: 2.82 | CM183: 0.165 | CN183: 0.387 | CO183: 2.479 | CP183: 29.333 | CQ183: 0 | CR183: 0.443 | CS183: 1.299 | CT183: 4.459 | CU183: 0 | CV183: 2.91 | CW183: 5.05 | CX183: 1165.101 | CY183: 949.668
A184: 1 | B184: 7 | C184: 1 | D184: 2001 | E184: 2921 | F184: 0.4626893242 | G184: 797.208405 | H184: 333.1479138 | I184: 1644.382042 | J184: 245.7747944 | K184: 25.93669905 | L184: 758.1906157 | M184: 0 | N184: 0 | O184: 0 | P184: 0 | Q184: 0 | R184: 0 | S184: 0 | T184: 0 | U184: 0 | V184: 0 | W184: 0 | X184: 0 | Y184: 0 | Z184: 3805.103159 | AA184: 2001-01-07 | AB184: 0.01215970513 | AC184: 20.95103264 | AD184: 8.755292561 | AE184: 43.21517639 | AF184: 6.459083607 | AG184: 0.6816293268 | AH184: 19.92562577 | AI184: 0 | AJ184: 0 | AK184: 0 | AL184: 0 | AM184: 0 | AN184: 0 | AO184: 0 | AP184: 0 | AQ184: 0 | AR184: 0 | AS184: 0 | AT184: 0 | AU184: 0 | AW184: 2935.547094 | AX184: 5266.458444 | AY184: 508.5807101 | AZ184: 664.3599055 | BD184: 100.0411581 | BE184: 311.3655889 | BF184: 0.14864885 | BG184: 6.35636714 | BH184: 3.42308658 | BI184: 322.5579428 | BJ184: 303.6013516 | BK184: 17.16437842 | BL184: 15.45286377 | BM184: 0.48122783 | BN184: 0.54697215 | BO184: 0.17141708 | BP184: 0.40927345 | BQ184: 5.27044603 | BR184: 0.16916408 | BS184: 0.31944943 | BT184: 0.46800335 | BU184: 2.00250193 | BV184: 0.37017757 | BW184: 1.44196138 | BX184: 1.32402462 | BY184: 408.8813753 | BZ184: 203.0260335 | CB184: 1 | CC184: 55.054 | CD184: 423.507 | CE184: 0.457 | CF184: 6.588 | CG184: 8.474 | CH184: 326.12 | CI184: 300.53 | CJ184: 17.797 | CK184: 14.413 | CL184: 0.351 | CM184: 0.639 | CN184: 0.289 | CO184: 0.77 | CP184: 5.225 | CQ184: 0.621 | CR184: 0 | CS184: 0.164 | CT184: 0.372 | CU184: 0 | CV184: 0.333 | CW184: 0.107 | CX184: 460.438 | CY184: 218.698
A185: 1 | B185: 10 | C185: 1 | D185: 2001 | E185: 3514 | F185: 0 | G185: 2315.455461 | H185: 309.2034967 | I185: 1018.146405 | J185: 16.86236841 | K185: 29.54528326 | L185: 752.4001117 | M185: 0 | N185: 0 | O185: 0 | P185: 0 | Q185: 0 | R185: 0 | S185: 0 | T185: 0 | U185: 0 | V185: 0 | W185: 0 | X185: 0 | Y185: 0 | Z185: 4441.613126 | AA185: 2001-01-10 | AB185: 0 | AC185: 52.13095772 | AD185: 6.961513485 | AE185: 22.92289707 | AF185: 0.3796451409 | AG185: 0.6651926322 | AH185: 16.93979395 | AI185: 0 | AJ185: 0 | AK185: 0 | AL185: 0 | AM185: 0 | AN185: 0 | AO185: 0 | AP185: 0 | AQ185: 0 | AR185: 0 | AS185: 0 | AT185: 0 | AU185: 0 | AW185: 2969.681363 | AX185: 5300.034253 | AY185: 542.1565192 | AZ185: 702.2954066 | BD185: 71.04974655 | BE185: 586.8127242 | BF185: 0.00756175 | BG185: 5.2351484 | BH185: 2.31413983 | BI185: 245.0450844 | BJ185: 881.6375772 | BK185: 19.16387898 | BL185: 20.69738215 | BM185: 0.44466316 | BN185: 0.45609378 | BO185: 0.15309043 | BP185: 0.52377783 | BQ185: 5.19923352 | BR185: 0.23275721 | BS185: 0.38773945 | BT185: 0.51681944 | BU185: 2.08304248 | BV185: 0.3692626 | BW185: 1.53751928 | BX185: 1.22101654 | BY185: 403.9750648 | BZ185: 145.9203118 | CB185: 1 | CC185: 34.406 | CD185: 676.306 | CE185: 0 | CF185: 3.969 | CG185: 3.621 | CH185: 246.599 | CI185: 868.879 | CJ185: 19.767 | CK185: 20.029 | CL185: 0.693 | CM185: 0.856 | CN185: 0 | CO185: 0.477 | CP185: 5.148 | CQ185: 0.222 | CR185: 0.147 | CS185: 0.2 | CT185: 0.042 | CU185: 0.1 | CV185: 0.74 | CW185: 1.586 | CX185: 436.907 | CY185: 229.083
A186: 1 | B186: 14 | C186: 1 | D186: 2001 | E186: 5712 | F186: 3.238825269 | G186: 215.3502805 | H186: 533.160559 | I186: 3627.670761 | J186: 1230.028929 | K186: 20.1694082 | L186: 1211.339725 | M186: 0 | N186: 0 | O186: 0 | P186: 0 | Q186: 0 | R186: 0 | S186: 0 | T186: 0 | U186: 0 | V186: 0 | W186: 0 | X186: 0 | Y186: 0 | Z186: 6840.958487 | AA186: 2001-01-14 | AB186: 0.04734461224 | AC186: 3.147954791 | AD186: 7.793652892 | AE186: 53.02869134 | AF186: 17.98035949 | AG186: 0.2948330741 | AH186: 17.7071638 | AI186: 0 | AJ186: 0 | AK186: 0 | AL186: 0 | AM186: 0 | AN186: 0 | AO186: 0 | AP186: 0 | AQ186: 0 | AR186: 0 | AS186: 0 | AT186: 0 | AU186: 0 | AW186: 3003.815631 | AX186: 5333.610062 | AY186: 575.7323282 | AZ186: 871.4744024 | BD186: 225.783459 | BE186: 310.5583708 | BF186: 0.82084628 | BG186: 12.32373591 | BH186: 7.23429741 | BI186: 674.9022333 | BJ186: 82.13223677 | BK186: 54.23600337 | BL186: 20.39004679 | BM186: 0.86784629 | BN186: 1.02109491 | BO186: 0.29444185 | BP186: 0.53804958 | BQ186: 7.24644279 | BR186: 0.3255508 | BS186: 0.49699424 | BT186: 0.65490874 | BU186: 2.66386979 | BV186: 0.68067952 | BW186: 3.05780859 | BX186: 2.39977603 | BY186: 677.0254438 | BZ186: 423.9958688 | CB186: 1 | CC186: 165.196 | CD186: 485.859 | CE186: 0 | CF186: 12.829 | CG186: 13.876 | CH186: 687.859 | CI186: 81.469 | CJ186: 56.061 | CK186: 18.262 | CL186: 1.175 | CM186: 0.514 | CN186: 0.428 | CO186: 0.587 | CP186: 7.259 | CQ186: 0 | CR186: 0.532 | CS186: 0.436 | CT186: 1.49 | CU186: 0.7 | CV186: 0.733 | CW186: 0.433 | CX186: 775.024 | CY186: 359.945
A187: 1 | B187: 17 | C187: 1 | D187: 2001 | E187: 5480 | F187: 8.212735504 | G187: 2788.784819 | H187: 672.0866597 | I187: 1642.099842 | J187: 195.8806632 | K187: 64.60010136 | L187: 1298.562706 | M187: 0 | N187: 0 | O187: 0 | P187: 0 | Q187: 0 | R187: 0 | S187: 0 | T187: 0 | U187: 0 | V187: 0 | W187: 0 | X187: 0 | Y187: 0 | Z187: 6670.227527 | AA187: 2001-01-17 | AB187: 0.1231252678 | AC187: 41.80944064 | AD187: 10.07591806 | AE187: 24.61834826 | AF187: 2.936641403 | AG187: 0.9684842248 | AH187: 19.46804215 | AI187: 0 | AJ187: 0 | AK187: 0 | AL187: 0 | AM187: 0 | AN187: 0 | AO187: 0 | AP187: 0 | AQ187: 0 | AR187: 0 | AS187: 0 | AT187: 0 | AU187: 0 | AW187: 3037.9499 | AX187: 5367.185871 | AY187: 609.3081372 | AZ187: 912.4480037 | BD187: 127.6347415 | BE187: 826.1192108 | BF187: 0.77218277 | BG187: 11.58713185 | BH187: 3.79086178 | BI187: 382.7731478 | BJ187: 1061.913224 | BK187: 31.3200291 | BL187: 35.67562816 | BM187: 0.77682783 | BN187: 0.80316147 | BO187: 0.26839189 | BP187: 0.84836558 | BQ187: 11.96390907 | BR187: 0.35086402 | BS187: 0.58256697 | BT187: 0.91581641 | BU187: 3.93774049 | BV187: 0.60595555 | BW187: 2.49478316 | BX187: 2.21413752 | BY187: 683.9186884 | BZ187: 240.5337059 | CB187: 1 | CC187: 84.304 | CD187: 1117.734 | CE187: 2.683 | CF187: 11.872 | CG187: 3.671 | CH187: 383.089 | CI187: 1034.616 | CJ187: 32.259 | CK187: 33.254 | CL187: 1.448 | CM187: 0.167 | CN187: 0.152 | CO187: 1.224 | CP187: 11.732 | CQ187: 0 | CR187: 0.283 | CS187: 0.186 | CT187: 4.827 | CU187: 2.1 | CV187: 3.629 | CW187: 4.033 | CX187: 724.101 | CY187: 508.465
A188: 1 | B188: 21 | C188: 1 | D188: 2001 | E188: 7858 | F188: 46.65450685 | G188: 700.7354717 | H188: 814.1909845 | I188: 4550.250047 | J188: 1418.286877 | K188: 138.8660533 | L188: 1389.299343 | M188: 0 | N188: 0 | O188: 0 | P188: 0 | Q188: 0 | R188: 0 | S188: 0 | T188: 0 | U188: 0 | V188: 0 | W188: 0 | X188: 0 | Y188: 0 | Z188: 9058.283284 | AA188: 2001-01-21 | AB188: 0.5150479996 | AC188: 7.735852917 | AD188: 8.988358599 | AE188: 50.23302876 | AF188: 15.65734735 | AG188: 1.533028378 | AH188: 15.337336 | AI188: 0 | AJ188: 0 | AK188: 0 | AL188: 0 | AM188: 0 | AN188: 0 | AO188: 0 | AP188: 0 | AQ188: 0 | AR188: 0 | AS188: 0 | AT188: 0 | AU188: 0 | AW188: 3072.084168 | AX188: 5400.76168 | AY188: 642.8839463 | AZ188: 947.3533228 | BD188: 272.6118379 | BE188: 527.6370369 | BF188: 4.5233563 | BG188: 27.76009311 | BH188: 8.98461784 | BI188: 885.9271502 | BJ188: 266.9911874 | BK188: 69.28908671 | BL188: 33.59256849 | BM188: 1.56713294 | BN188: 1.47642383 | BO188: 0.41181535 | BP188: 1.115426 | BQ188: 26.08117102 | BR188: 0.4738886 | BS188: 0.76567467 | BT188: 1.21789012 | BU188: 5.96915235 | BV188: 0.83152209 | BW188: 3.98730043 | BX188: 3.15209823 | BY188: 860.087485 | BZ188: 523.1760431 | CB188: 1 | CC188: 243.001 | CD188: 783.287 | CE188: 4.242 | CF188: 28.786 | CG188: 9.352 | CH188: 882.561 | CI188: 264.304 | CJ188: 70.417 | CK188: 30.87 | CL188: 2.361 | CM188: 0.432 | CN188: 0.223 | CO188: 2.003 | CP188: 25.092 | CQ188: 0 | CR188: 0.364 | CS188: 1.879 | CT188: 9.2 | CU188: 1.7 | CV188: 2.094 | CW188: 8.844 | CX188: 857.374 | CY188: 720.388
A189: 1 | B189: 31 | C189: 1 | D189: 2001 | E189: 3258 | F189: 3.778629481 | G189: 1032.467883 | H189: 352.9714133 | I189: 1357.452467 | J189: 689.2781828 | K189: 62.34473622 | L189: 591.0249467 | M189: 0 | N189: 0 | O189: 0 | P189: 0 | Q189: 0 | R189: 0 | S189: 0 | T189: 0 | U189: 0 | V189: 0 | W189: 0 | X189: 0 | Y189: 0 | Z189: 4089.318258 | AA189: 2001-01-31 | AB189: 0.09240243097 | AC189: 25.24792198 | AD189: 8.631546653 | AE189: 33.19507998 | AF189: 16.85557688 | AG189: 1.524575303 | AH189: 14.45289678 | AI189: 0 | AJ189: 0 | AK189: 0 | AL189: 0 | AM189: 0 | AN189: 0 | AO189: 0 | AP189: 0 | AQ189: 0 | AR189: 0 | AS189: 0 | AT189: 0 | AU189: 0 | AW189: 3106.218437 | AX189: 5434.337489 | AY189: 676.4597553 | AZ189: 630.6594657 | BD189: 102.5878741 | BE189: 359.0920856 | BF189: 0.62364543 | BG189: 6.77393257 | BH189: 2.80183267 | BI189: 295.1886247 | BJ189: 393.1625669 | BK189: 38.69233148 | BL189: 17.11449859 | BM189: 0.50078645 | BN189: 0.53830396 | BO189: 0.15709404 | BP189: 0.50798921 | BQ189: 10.92452505 | BR189: 0.25194832 | BS189: 0.33616913 | BT189: 0.54472697 | BU189: 2.62167132 | BV189: 0.35860341 | BW189: 1.91364271 | BX189: 1.36927061 | BY189: 352.4670667 | BZ189: 172.2743334 | CB189: 1 | CC189: 91.321 | CD189: 408.958 | CE189: 2.865 | CF189: 6.517 | CG189: 2.701 | CH189: 293.654 | CI189: 391.692 | CJ189: 38.999 | CK189: 16.635 | CL189: 0.456 | CM189: 0.127 | CN189: 0 | CO189: 0.895 | CP189: 11.028 | CQ189: 0 | CR189: 0 | CS189: 0.91 | CT189: 1.221 | CU189: 0.2 | CV189: 2.763 | CW189: 0.87 | CX189: 358.608 | CY189: 407.04
A190: 1 | B190: 7 | C190: 2 | D190: 2001 | E190: 5647 | F190: 2.120659402 | G190: 3071.716057 | H190: 644.1559954 | I190: 1152.739141 | J190: 264.0231109 | K190: 50.48795951 | L190: 894.970193 | M190: 0 | N190: 0 | O190: 0 | P190: 0 | Q190: 0 | R190: 0 | S190: 0 | T190: 0 | U190: 0 | V190: 0 | W190: 0 | X190: 0 | Y190: 0 | Z190: 6080.213116 | AA190: 2001-02-07 | AB190: 0.03487804394 | AC190: 50.51987485 | AD190: 10.59429963 | AE190: 18.9588608 | AF190: 4.342333169 | AG190: 0.8303649651 | AH190: 14.71938855 | AI190: 0 | AJ190: 0 | AK190: 0 | AL190: 0 | AM190: 0 | AN190: 0 | AO190: 0 | AP190: 0 | AQ190: 0 | AR190: 0 | AS190: 0 | AT190: 0 | AU190: 0 | AW190: 3140.352705 | AX190: 5467.913298 | AY190: 710.0355643 | AZ190: 374.7092167 | BD190: 95.75309757 | BE190: 861.4891689 | BF190: 0.29500085 | BG190: 8.30382402 | BH190: 2.64973004 | BI190: 300.7777611 | BJ190: 1169.587314 | BK190: 35.95501486 | BL190: 34.9130227 | BM190: 0.57357156 | BN190: 0.66527923 | BO190: 0.18812425 | BP190: 0.7036462 | BQ190: 9.8379626 | BR190: 0.35264196 | BS190: 0.52009812 | BT190: 0.71590467 | BU190: 2.86409834 | BV190: 0.47216963 | BW190: 2.28189083 | BX190: 1.59731896 | BY190: 513.8852823 | BZ190: 171.9557756 | CB190: 1 | CC190: 39.427 | CD190: 928.788 | CE190: 0 | CF190: 8.925 | CG190: 0.915 | CH190: 305.611 | CI190: 1154.727 | CJ190: 36.638 | CK190: 34.447 | CL190: 1.098 | CM190: 0.978 | CN190: 0 | CO190: 1.395 | CP190: 9.477 | CQ190: 0 | CR190: 0 | CS190: 0.868 | CT190: 4.152 | CU190: 0 | CV190: 0.76 | CW190: 2.856 | CX190: 538.326 | CY190: 0
A191: 1 | B191: 11 | C191: 2 | D191: 2001 | E191: 5051 | F191: 0 | G191: 331.4172263 | H191: 552.1221671 | I191: 3593.095433 | J191: 1309.951935 | K191: 119.5021326 | L191: 577.9541486 | M191: 0 | N191: 0 | O191: 0 | P191: 0 | Q191: 0 | R191: 0 | S191: 0 | T191: 0 | U191: 0 | V191: 0 | W191: 0 | X191: 0 | Y191: 0 | Z191: 6484.043043 | AA191: 2001-02-11 | AB191: 0 | AC191: 5.111274311 | AD191: 8.515091024 | AE191: 55.41442907 | AF191: 20.20270264 | AG191: 1.843018806 | AH191: 8.913484146 | AI191: 0 | AJ191: 0 | AK191: 0 | AL191: 0 | AM191: 0 | AN191: 0 | AO191: 0 | AP191: 0 | AQ191: 0 | AR191: 0 | AS191: 0 | AT191: 0 | AU191: 0 | AW191: 3174.486974 | AX191: 5501.489107 | AY191: 743.6113734 | AZ191: 1080.55098 | BD191: 196.8934225 | BE191: 339.5940864 | BF191: 0.58675875 | BG191: 11.0639664 | BH191: 6.73753746 | BI191: 698.9396178 | BJ191: 126.2556703 | BK191: 61.05608913 | BL191: 21.15387848 | BM191: 0.90824366 | BN191: 1.11038468 | BO191: 0.25146488 | BP191: 0.73986223 | BQ191: 20.10954806 | BR191: 0.35949789 | BS191: 0.5547559 | BT191: 0.78581022 | BU191: 4.03753852 | BV191: 0.50872149 | BW191: 2.96407386 | BX191: 1.84661462 | BY191: 484.8055989 | BZ191: 382.5620492 | CB191: 1 | CC191: 107.489 | CD191: 369.392 | CE191: 0.781 | CF191: 5.249 | CG191: 7.486 | CH191: 718.669 | CI191: 125.814 | CJ191: 62.638 | CK191: 20.892 | CL191: 0.808 | CM191: 0.419 | CN191: 0.141 | CO191: 1.119 | CP191: 20.128 | CQ191: 0 | CR191: 0.089 | CS191: 1.347 | CT191: 2.066 | CU191: 1.8 | CV191: 2.345 | CW191: 1.332 | CX191: 537.099 | CY191: 89.107
A192: 1 | B192: 14 | C192: 2 | D192: 2001 | E192: 7948 | F192: 32.77382713 | G192: 146.6136438 | H192: 836.2230803 | I192: 4293.730785 | J192: 2183.792205 | K192: 442.1482249 | L192: 946.6068727 | M192: 0 | N192: 0 | O192: 0 | P192: 0 | Q192: 0 | R192: 0 | S192: 0 | T192: 0 | U192: 0 | V192: 0 | W192: 0 | X192: 0 | Y192: 0 | Z192: 8881.888639 | AA192: 2001-02-14 | AB192: 0.36899615 | AC192: 1.650703468 | AD192: 9.414924171 | AE192: 48.34254244 | AF192: 24.58702528 | AG192: 4.978087915 | AH192: 10.65772057 | AI192: 0 | AJ192: 0 | AK192: 0 | AL192: 0 | AM192: 0 | AN192: 0 | AO192: 0 | AP192: 0 | AQ192: 0 | AR192: 0 | AS192: 0 | AT192: 0 | AU192: 0 | AW192: 3208.621242 | AX192: 5535.064916 | AY192: 777.1871824 | AZ192: 758.4864261 | BD192: 276.3222563 | BE192: 422.6077454 | BF192: 3.70953607 | BG192: 24.64043894 | BH192: 8.22754713 | BI192: 920.0946117 | BJ192: 55.97350386 | BK192: 105.2103837 | BL192: 33.82036826 | BM192: 1.85881041 | BN192: 1.75568794 | BO192: 0.48822612 | BP192: 1.98512083 | BQ192: 65.88361563 | BR192: 0.62060741 | BS192: 0.94221909 | BT192: 2.12203758 | BU192: 12.81727688 | BV192: 0.77157588 | BW192: 4.86892796 | BX192: 3.81508506 | BY192: 774.4087165 | BZ192: 480.1554039 | CB192: 1 | CC192: 183.45 | CD192: 734.473 | CE192: 2.37 | CF192: 25.222 | CG192: 11.166 | CH192: 938.493 | CI192: 55.415 | CJ192: 108.469 | CK192: 29.23 | CL192: 1.909 | CM192: 1.185 | CN192: 0 | CO192: 1.475 | CP192: 66.086 | CQ192: 0.992 | CR192: 0.015 | CS192: 4.732 | CT192: 10.455 | CU192: 2.3 | CV192: 3.426 | CW192: 4.337 | CX192: 858.577 | CY192: 318.068
A193: 1 | B193: 18 | C193: 2 | D193: 2001 | E193: 2408 | F193: 30.84595494 | G193: 850.1595167 | H193: 156.8372789 | I193: 645.9196106 | J193: 444.4273538 | K193: 227.1797081 | L193: 646.8217944 | M193: 0 | N193: 0 | O193: 0 | P193: 0 | Q193: 0 | R193: 0 | S193: 0 | T193: 0 | U193: 0 | V193: 0 | W193: 0 | X193: 0 | Y193: 0 | Z193: 3002.191217 | AA193: 2001-02-18 | AB193: 1.027448044 | AC193: 28.31796695 | AD193: 5.224093587 | AE193: 21.51493905 | AF193: 14.80343261 | AG193: 7.56712986 | AH193: 21.54498989 | AI193: 0 | AJ193: 0 | AK193: 0 | AL193: 0 | AM193: 0 | AN193: 0 | AO193: 0 | AP193: 0 | AQ193: 0 | AR193: 0 | AS193: 0 | AT193: 0 | AU193: 0 | AW193: 3242.755511 | AX193: 5568.640725 | AY193: 810.7629914 | AZ193: 451.6939367 | BD193: 71.93505922 | BE193: 236.8293574 | BF193: 2.76975155 | BG193: 12.38878032 | BH193: 1.58480756 | BI193: 201.8928508 | BJ193: 323.7791872 | BK193: 31.40165102 | BL193: 12.26622347 | BM193: 0.85438765 | BN193: 0.51255215 | BO193: 0.22757694 | BP193: 1.06589939 | BQ193: 32.12404705 | BR193: 0.2428673 | BS193: 0.38875911 | BT193: 1.11302711 | BU193: 6.87117179 | BV193: 0.33011501 | BW193: 1.71730932 | BX193: 1.88301114 | BY193: 365.2673719 | BZ193: 107.046497 | CB193: 1 | CC193: 39.567 | CD193: 187.135 | CE193: 4.612 | CF193: 11.916 | CG193: 1.663 | CH193: 203.394 | CI193: 324.238 | CJ193: 31.681 | CK193: 12.578 | CL193: 1.211 | CM193: 0.506 | CN193: 0 | CO193: 1.371 | CP193: 32.505 | CQ193: 0 | CR193: 0.145 | CS193: 0.494 | CT193: 4.591 | CU193: 1 | CV193: 3.381 | CW193: 7.18 | CX193: 388.157 | CY193: 0
A194: 1 | B194: 21 | C194: 2 | D194: 2001 | E194: 4404 | F194: 21.70784079 | G194: 539.8596981 | H194: 368.3507858 | I194: 1626.866158 | J194: 355.9576674 | K194: 86.50936267 | L194: 1674.411397 | M194: 0 | N194: 0 | O194: 0 | P194: 0 | Q194: 0 | R194: 0 | S194: 0 | T194: 0 | U194: 0 | V194: 0 | W194: 0 | X194: 0 | Y194: 0 | Z194: 4673.662909 | AA194: 2001-02-21 | AB194: 0.4644716834 | AC194: 11.55110474 | AD194: 7.881415347 | AE194: 34.80923185 | AF194: 7.616246065 | AG194: 1.850997052 | AH194: 35.82653326 | AI194: 0 | AJ194: 0 | AK194: 0 | AL194: 0 | AM194: 0 | AN194: 0 | AO194: 0 | AP194: 0 | AQ194: 0 | AR194: 0 | AS194: 0 | AT194: 0 | AU194: 0 | AW194: 3276.88978 | AX194: 5602.216534 | AY194: 844.3388005 | AZ194: 243.6138304 | BD194: 150.149111 | BE194: 273.8343975 | BF194: 1.96853535 | BG194: 13.76569114 | BH194: 4.02259176 | BI194: 331.5414762 | BJ194: 205.7352967 | BK194: 21.57967588 | BL194: 18.2112681 | BM194: 0.87376348 | BN194: 0.66774863 | BO194: 0.33397598 | BP194: 0.82626146 | BQ194: 14.38010412 | BR194: 0.21796425 | BS194: 0.41093005 | BT194: 1.01552048 | BU194: 5.15832815 | BV194: 0.65821316 | BW194: 2.15664067 | BX194: 2.89100267 | BY194: 750.7784745 | BZ194: 259.3368316 | CB194: 1 | CC194: 103.78 | CD194: 363.661 | CE194: 4.68 | CF194: 13.43 | CG194: 4.089 | CH194: 333.651 | CI194: 204.768 | CJ194: 21.877 | CK194: 17.351 | CL194: 1.365 | CM194: 1.007 | CN194: 0.03 | CO194: 1.44 | CP194: 14.497 | CQ194: 0.141 | CR194: 0 | CS194: 0.277 | CT194: 2.754 | CU194: 0.7 | CV194: 1.801 | CW194: 4.708 | CX194: 811.633 | CY194: 57.017
A195: 1 | B195: 25 | C195: 2 | D195: 2001 | E195: 7131 | F195: 16.00133913 | G195: 7.80083343 | H195: 450.7422053 | I195: 5839.293573 | J195: 768.5082152 | K195: 67.72539304 | L195: 955.0396456 | M195: 0 | N195: 0 | O195: 0 | P195: 0 | Q195: 0 | R195: 0 | S195: 0 | T195: 0 | U195: 0 | V195: 0 | W195: 0 | X195: 0 | Y195: 0 | Z195: 8105.111205 | AA195: 2001-02-25 | AB195: 0.1974228203 | AC195: 0.09624585318 | AD195: 5.561209389 | AE195: 72.04458305 | AF195: 9.481772621 | AG195: 0.8355886962 | AH195: 11.78317757 | AI195: 0 | AJ195: 0 | AK195: 0 | AL195: 0 | AM195: 0 | AN195: 0 | AO195: 0 | AP195: 0 | AQ195: 0 | AR195: 0 | AS195: 0 | AT195: 0 | AU195: 0 | AW195: 3311.024048 | AX195: 5635.792343 | AY195: 877.9146095 | AZ195: 777.6323891 | BD195: 257.9788004 | BE195: 282.4346495 | BF195: 1.67774364 | BG195: 18.97446344 | BH195: 10.96022128 | BI195: 1060.815544 | BJ195: 3.09160443 | BK195: 34.4473019 | BL195: 17.15404291 | BM195: 1.34431389 | BN195: 1.46763166 | BO195: 0.35063941 | BP195: 0.73697583 | BQ195: 12.94497645 | BR195: 0.29577186 | BS195: 0.70586773 | BT195: 0.75252086 | BU195: 3.40503699 | BV195: 0.67039204 | BW195: 2.82751501 | BX195: 2.07054234 | BY195: 702.8128324 | BZ195: 604.7417091 | CB195: 1 | CC195: 244.633 | CD195: 247.583 | CE195: 3.658 | CF195: 18.276 | CG195: 18.507 | CH195: 1069.41 | CI195: 3.132 | CJ195: 34.569 | CK195: 17.448 | CL195: 2.31 | CM195: 0.975 | CN195: 0.375 | CO195: 0.644 | CP195: 13.094 | CQ195: 0 | CR195: 0.615 | CS195: 0.719 | CT195: 2.074 | CU195: 0.7 | CV195: 1.208 | CW195: 3.425 | CX195: 725.309 | CY195: 419.988
A196: 1 | B196: 28 | C196: 2 | D196: 2001 | E196: 9958 | F196: 256.9853621 | G196: 9.087839619 | H196: 351.6785763 | I196: 4446.752284 | J196: 1150.105922 | K196: 391.9502409 | L196: 3263.117711 | M196: 0 | N196: 0 | O196: 0 | P196: 0 | Q196: 0 | R196: 0 | S196: 0 | T196: 0 | U196: 0 | V196: 0 | W196: 0 | X196: 0 | Y196: 0 | Z196: 9869.677936 | AA196: 2001-02-28 | AB196: 2.603786707 | AC196: 0.09207838065 | AD196: 3.563222413 | AE196: 45.05468479 | AF196: 11.65292251 | AG196: 3.971256645 | AH196: 33.06204855 | AI196: 0 | AJ196: 0 | AK196: 0 | AL196: 0 | AM196: 0 | AN196: 0 | AO196: 0 | AP196: 0 | AQ196: 0 | AR196: 0 | AS196: 0 | AT196: 0 | AU196: 0 | AW196: 3345.158317 | AX196: 5669.368152 | AY196: 911.4904186 | AZ196: 53.18163891 | BD196: 347.0562645 | BE196: 218.824554 | BF196: 21.93176019 | BG196: 83.8360027 | BH196: 10.09131248 | BI196: 905.9738141 | BJ196: 4.03422341 | BK196: 60.68908958 | BL196: 25.95824074 | BM196: 3.69641912 | BN196: 1.6492806 | BO196: 0.82616921 | BP196: 2.55958178 | BQ196: 65.89554194 | BR196: 0.55039612 | BS196: 1.00182074 | BT196: 2.73951285 | BU196: 15.6763737 | BV196: 1.38154272 | BW196: 4.93041903 | BX196: 6.59243535 | BY196: 1543.819998 | BZ196: 625.6795998 | CB196: 1 | CC196: 278.519 | CD196: 242.366 | CE196: 18.571 | CF196: 85.082 | CG196: 18.655 | CH196: 922.674 | CI196: 3.951 | CJ196: 61.757 | CK196: 25.659 | CL196: 4.436 | CM196: 0 | CN196: 0.528 | CO196: 2.942 | CP196: 63.941 | CQ196: 0.632 | CR196: 0.156 | CS196: 2.24 | CT196: 17.585 | CU196: 0.6 | CV196: 1.899 | CW196: 4.126 | CX196: 1642.042 | CY196: 406.481
A197: 1 | B197: 4 | C197: 3 | D197: 2001 | E197: 3225 | F197: 13.03241596 | G197: 1477.483105 | H197: 124.0046079 | I197: 558.9677966 | J197: 121.9634318 | K197: 136.6106882 | L197: 826.3555304 | M197: 0 | N197: 0 | O197: 0 | P197: 0 | Q197: 0 | R197: 0 | S197: 0 | T197: 0 | U197: 0 | V197: 0 | W197: 0 | X197: 0 | Y197: 0 | Z197: 3258.417576 | AA197: 2001-03-04 | AB197: 0.3999615047 | AC197: 45.34357769 | AD197: 3.805669624 | AE197: 17.15457837 | AF197: 3.743026453 | AG197: 4.192546995 | AH197: 25.36063937 | AI197: 0 | AJ197: 0 | AK197: 0 | AL197: 0 | AM197: 0 | AN197: 0 | AO197: 0 | AP197: 0 | AQ197: 0 | AR197: 0 | AS197: 0 | AT197: 0 | AU197: 0 | AW197: 3379.292585 | AX197: 5702.943961 | AY197: 945.0662276 | AZ197: 61.4395061 | BD197: 64.03406475 | BE197: 345.4655166 | BF197: 1.14075792 | BG197: 7.33864247 | BH197: 1.55486899 | BI197: 171.8624155 | BJ197: 562.6178967 | BK197: 20.07696628 | BL197: 12.8314007 | BM197: 0.62068916 | BN197: 0.40061257 | BO197: 0.20379635 | BP197: 0.82805854 | BQ197: 18.956666 | BR197: 0.20956263 | BS197: 0.35973771 | BT197: 0.86764417 | BU197: 4.91036002 | BV197: 0.36163941 | BW197: 1.48520121 | BX197: 1.71219732 | BY197: 406.1415154 | BZ197: 107.7588878 | CB197: 1 | CC197: 133.673 | CD197: 265.961 | CE197: 5.229 | CF197: 6.362 | CG197: 2.174 | CH197: 170.072 | CI197: 569.202 | CJ197: 19.484 | CK197: 13.589 | CL197: 1.005 | CM197: 0.703 | CN197: 0 | CO197: 0.863 | CP197: 19.486 | CQ197: 0 | CR197: 0 | CS197: 0.37 | CT197: 2.361 | CU197: 1.1 | CV197: 0.61 | CW197: 0 | CX197: 377.054 | CY197: 292.788
A198: 1 | B198: 7 | C198: 3 | D198: 2001 | E198: 5314 | F198: 0.1927872184 | G198: 3472.815475 | H198: 505.3376311 | I198: 1250.873734 | J198: 117.3436048 | K198: 6.411680883 | L198: 634.3975089 | M198: 0 | N198: 0 | O198: 0 | P198: 0 | Q198: 0 | R198: 0 | S198: 0 | T198: 0 | U198: 0 | V198: 0 | W198: 0 | X198: 0 | Y198: 0 | Z198: 5987.372422 | AA198: 2001-03-07 | AB198: 0.00321989689 | AC198: 58.00232941 | AD198: 8.440056764 | AE198: 20.89186451 | AF198: 1.959851443 | AG198: 0.1070867224 | AH198: 10.59559126 | AI198: 0 | AJ198: 0 | AK198: 0 | AL198: 0 | AM198: 0 | AN198: 0 | AO198: 0 | AP198: 0 | AQ198: 0 | AR198: 0 | AS198: 0 | AT198: 0 | AU198: 0 | AW198: 3413.426854 | AX198: 5736.51977 | AY198: 978.6420366 | AZ198: 542.0382632 | BD198: 78.15056346 | BE198: 890.19296 | BF198: 0.06862607 | BG198: 6.6423922 | BH198: 2.64358061 | BI198: 311.4859759 | BJ198: 1322.266972 | BK198: 31.65602042 | BL198: 31.13103746 | BM198: 0.47188827 | BN198: 0.57591789 | BO198: 0.13204958 | BP198: 0.52943274 | BQ198: 3.24028949 | BR198: 0.33337103 | BS198: 0.49462168 | BT198: 0.46068546 | BU198: 1.29056493 | BV198: 0.39260151 | BW198: 1.99359933 | BX198: 1.01991205 | BY198: 407.9353824 | BZ198: 163.8285348 | CB198: 1 | CC198: 144.015 | CD198: 999.928 | CE198: 0.266 | CF198: 6.299 | CG198: 2.963 | CH198: 307.639 | CI198: 1326.217 | CJ198: 30.769 | CK198: 30.287 | CL198: 0.405 | CM198: 0.35 | CN198: 0 | CO198: 0.315 | CP198: 3.42 | CQ198: 0 | CR198: 0 | CS198: 0.093 | CT198: 0.379 | CU198: 0 | CV198: 1.234 | CW198: 0 | CX198: 383.083 | CY198: 100.272
A199: 1 | B199: 11 | C199: 3 | D199: 2001 | E199: 3849 | F199: 24.63820651 | G199: 613.534236 | H199: 287.6023465 | I199: 2036.1787 | J199: 560.6160019 | K199: 105.4544298 | L199: 1242.456657 | M199: 0 | N199: 0 | O199: 0 | P199: 0 | Q199: 0 | R199: 0 | S199: 0 | T199: 0 | U199: 0 | V199: 0 | W199: 0 | X199: 0 | Y199: 0 | Z199: 4870.480578 | AA199: 2001-03-11 | AB199: 0.5058680785 | AC199: 12.59699585 | AD199: 5.905009617 | AE199: 41.8065254 | AF199: 11.51048635 | AG199: 2.16517504 | AH199: 25.50993967 | AI199: 0 | AJ199: 0 | AK199: 0 | AL199: 0 | AM199: 0 | AN199: 0 | AO199: 0 | AP199: 0 | AQ199: 0 | AR199: 0 | AS199: 0 | AT199: 0 | AU199: 0 | AW199: 3447.561122 | AX199: 5770.095579 | AY199: 1012.217846 | AZ199: 773.1222443 | BD199: 148.977526 | BE199: 266.2033877 | BF199: 2.30441607 | BG199: 14.24887226 | BH199: 4.4476153 | BI199: 412.3367104 | BJ199: 233.7460528 | BK199: 31.31300148 | BL199: 15.36144278 | BM199: 0.92159306 | BN199: 0.72051507 | BO199: 0.29459107 | BP199: 0.82067002 | BQ199: 16.97407278 | BR199: 0.2508054 | BS199: 0.43831392 | BT199: 0.92640629 | BU199: 4.86652336 | BV199: 0.57097681 | BW199: 2.23415699 | BX199: 2.4221645 | BY199: 618.1751795 | BZ199: 272.6265111 | CB199: 1 | CC199: 118.408 | CD199: 303.5 | CE199: 3.184 | CF199: 14.242 | CG199: 5.04 | CH199: 415.426 | CI199: 233.029 | CJ199: 31.697 | CK199: 14.916 | CL199: 0.628 | CM199: 0.186 | CN199: 0.39 | CO199: 0.734 | CP199: 17.032 | CQ199: 0.22 | CR199: 0.396 | CS199: 0.542 | CT199: 4.132 | CU199: 1 | CV199: 0.244 | CW199: 4.55 | CX199: 654.588 | CY199: 31.423
A200: 1 | B200: 14 | C200: 3 | D200: 2001 | E200: 5161 | F200: 99.40108981 | G200: 1221.684058 | H200: 513.7680052 | I200: 1968.11209 | J200: 325.6978008 | K200: 99.62269995 | L200: 1418.39241 | M200: 0 | N200: 0 | O200: 0 | P200: 0 | Q200: 0 | R200: 0 | S200: 0 | T200: 0 | U200: 0 | V200: 0 | W200: 0 | X200: 0 | Y200: 0 | Z200: 5646.678154 | AA200: 2001-03-14 | AB200: 1.760346297 | AC200: 21.63544699 | AD200: 9.09858843 | AE200: 34.85433446 | AF200: 5.767954042 | AG200: 1.764270908 | AH200: 25.11905887 | AI200: 0 | AJ200: 0 | AK200: 0 | AL200: 0 | AM200: 0 | AN200: 0 | AO200: 0 | AP200: 0 | AQ200: 0 | AR200: 0 | AS200: 0 | AT200: 0 | AU200: 0 | AW200: 3481.695391 | AX200: 5803.671388 | AY200: 1045.793655 | AZ200: 406.4437212 | BD200: 147.506542 | BE200: 467.6222428 | BF200: 8.42974536 | BG200: 35.08975959 | BH200: 4.44855307 | BI200: 412.2536067 | BJ200: 465.366859 | BK200: 26.3890428 | BL200: 26.76348958 | BM200: 1.45808092 | BN200: 0.81299134 | BO200: 0.32389617 | BP200: 0.96476688 | BQ200: 20.20894198 | BR200: 0.29480311 | BS200: 0.50796841 | BT200: 1.02500521 | BU200: 5.03282014 | BV200: 0.6205325 | BW200: 2.30671055 | BX200: 2.56322969 | BY200: 708.302995 | BZ200: 275.8796837 | CB200: 1 | CC200: 101.103 | CD200: 543.638 | CE200: 9.091 | CF200: 35.268 | CG200: 3.132 | CH200: 423.011 | CI200: 461.226 | CJ200: 26.875 | CK200: 25.772 | CL200: 1.004 | CM200: 0 | CN200: 0.068 | CO200: 1.801 | CP200: 20.145 | CQ200: 0.811 | CR200: 0.569 | CS200: 0.836 | CT200: 3.921 | CU200: 0.2 | CV200: 2.086 | CW200: 4.077 | CX200: 795.845 | CY200: 0
A201: 1 | B201: 18 | C201: 3 | D201: 2001 | E201: 2929 | F201: 41.52636684 | G201: 324.7720719 | H201: 285.4745524 | I201: 644.0367957 | J201: 407.0067554 | K201: 59.86383457 | L201: 699.6390622 | M201: 0 | N201: 0 | O201: 0 | P201: 0 | Q201: 0 | R201: 0 | S201: 0 | T201: 0 | U201: 0 | V201: 0 | W201: 0 | X201: 0 | Y201: 0 | Z201: 2462.319439 | AA201: 2001-03-18 | AB201: 1.686473582 | AC201: 13.1896807 | AD201: 11.59372533 | AE201: 26.15569635 | AF201: 16.52940512 | AG201: 2.431196929 | AH201: 28.41382199 | AI201: 0 | AJ201: 0 | AK201: 0 | AL201: 0 | AM201: 0 | AN201: 0 | AO201: 0 | AP201: 0 | AQ201: 0 | AR201: 0 | AS201: 0 | AT201: 0 | AU201: 0 | AW201: 3515.829659 | AX201: 5837.247198 | AY201: 1079.369464 | AZ201: 298.5402359 | BD201: 74.00628208 | BE201: 181.9436459 | BF201: 3.64301766 | BG201: 14.96100984 | BH201: 1.61777176 | BI201: 147.0602263 | BJ201: 123.7632822 | BK201: 21.54340153 | BL201: 13.08045656 | BM201: 0.62245576 | BN201: 0.35390313 | BO201: 0.15410545 | BP201: 0.46669935 | BQ201: 11.53850248 | BR201: 0.15711853 | BS201: 0.20940666 | BT201: 0.53270963 | BU201: 2.75251108 | BV201: 0.3038724 | BW201: 1.28434569 | BX201: 1.38696826 | BY201: 333.2298415 | BZ201: 108.4897783 | CB201: 1 | CC201: 60.442 | CD201: 145.162 | CE201: 2.353 | CF201: 14.992 | CG201: 2.432 | CH201: 147.407 | CI201: 123.872 | CJ201: 21.688 | CK201: 13.386 | CL201: 0.187 | CM201: 0.171 | CN201: 0.034 | CO201: 0.361 | CP201: 11.561 | CQ201: 0 | CR201: 0.294 | CS201: 0.453 | CT201: 0.505 | CU201: 0.5 | CV201: 2.157 | CW201: 1.723 | CX201: 342.503 | CY201: 82.69
A202: 1 | B202: 21 | C202: 3 | D202: 2001 | E202: 12107 | F202: 275.9556244 | G202: 0.05253086485 | H202: 142.9931502 | I202: 5847.566548 | J202: 740.3272707 | K202: 340.2379403 | L202: 4936.798267 | M202: 0 | N202: 0 | O202: 0 | P202: 0 | Q202: 0 | R202: 0 | S202: 0 | T202: 0 | U202: 0 | V202: 0 | W202: 0 | X202: 0 | Y202: 0 | Z202: 12283.93133 | AA202: 2001-03-21 | AB202: 2.246476449 | AC202: 0.0004276388677 | AD202: 1.164066668 | AE202: 47.6033803 | AF202: 6.026794279 | AG202: 2.769780546 | AH202: 40.18907411 | AI202: 0 | AJ202: 0 | AK202: 0 | AL202: 0 | AM202: 0 | AN202: 0 | AO202: 0 | AP202: 0 | AQ202: 0 | AR202: 0 | AS202: 0 | AT202: 0 | AU202: 0 | AW202: 3549.963928 | AX202: 5870.823007 | AY202: 1112.945273 | AZ202: 267.3500818 | BD202: 452.2784983 | BE202: 166.8225174 | BF202: 23.32913986 | BG202: 92.53009741 | BH202: 13.71447081 | BI202: 1127.861269 | BJ202: 0.77711357 | BK202: 42.075641 | BL202: 22.18169573 | BM202: 4.25179353 | BN202: 1.86890503 | BO202: 1.08478485 | BP202: 2.84717195 | BQ202: 58.59754665 | BR202: 0.54168486 | BS202: 1.17144565 | BT202: 3.1609996 | BU202: 17.35323412 | BV202: 1.9202538 | BW202: 5.6396432 | BX202: 8.71598801 | BY202: 2176.097413 | BZ202: 853.5423457 | CB202: 1 | CC202: 434.171 | CD202: 212.334 | CE202: 21.994 | CF202: 93.431 | CG202: 27.546 | CH202: 1139.276 | CI202: 0.605 | CJ202: 42.304 | CK202: 21.529 | CL202: 5.215 | CM202: 0.469 | CN202: 0.738 | CO202: 2.958 | CP202: 57.717 | CQ202: 0 | CR202: 0 | CS202: 1.528 | CT202: 19.62 | CU202: 0 | CV202: 4.78 | CW202: 3.444 | CX202: 2245.451 | CY202: 546.369
A203: 1 | B203: 25 | C203: 3 | D203: 2001 | E203: 8960 | F203: 174.7423348 | G203: 23.03478424 | H203: 0 | I203: 2774.698569 | J203: 1387.565028 | K203: 275.4123024 | L203: 3952.10337 | M203: 0 | N203: 0 | O203: 0 | P203: 0 | Q203: 0 | R203: 0 | S203: 0 | T203: 0 | U203: 0 | V203: 0 | W203: 0 | X203: 0 | Y203: 0 | Z203: 8587.556389 | AA203: 2001-03-25 | AB203: 2.034831876 | AC203: 0.2682344452 | AD203: 0 | AE203: 32.31068821 | AF203: 16.15785638 | AG203: 3.2071091 | AH203: 46.02127999 | AI203: 0 | AJ203: 0 | AK203: 0 | AL203: 0 | AM203: 0 | AN203: 0 | AO203: 0 | AP203: 0 | AQ203: 0 | AR203: 0 | AS203: 0 | AT203: 0 | AU203: 0 | AW203: 3584.098196 | AX203: 5904.398816 | AY203: 1146.521082 | AZ203: 161.0131971 | BD203: 338.9003504 | BE203: 58.46070673 | BF203: 15.18415466 | BG203: 58.07145928 | BH203: 7.61509431 | BI203: 582.2622375 | BJ203: 9.34519497 | BK203: 67.24609888 | BL203: 13.29056474 | BM203: 2.78864317 | BN203: 1.0756308 | BO203: 0.80580073 | BP203: 2.16094228 | BQ203: 45.93665071 | BR203: 0.49301077 | BS203: 0.7542896 | BT203: 2.49207357 | BU203: 13.96848657 | BV203: 1.5152763 | BW203: 4.99687378 | BX203: 7.24415905 | BY203: 1634.822751 | BZ203: 518.2216684 | CB203: 1 | CC203: 357.546 | CD203: 0 | CE203: 18.692 | CF203: 59.339 | CG203: 12.171 | CH203: 586.933 | CI203: 9.499 | CJ203: 67.107 | CK203: 13.196 | CL203: 2.573 | CM203: 0.418 | CN203: 1.313 | CO203: 2.544 | CP203: 43.118 | CQ203: 0.338 | CR203: 0.222 | CS203: 3.049 | CT203: 24.624 | CU203: 1.6 | CV203: 7.904 | CW203: 9.322 | CX203: 1499.133 | CY203: 293.915
... 359 more rows

Sheet Richmond (hidden)
B1: FFactor | D1: 1248 | E1: points | F1: EM=-14
B2: i= | C2: %Mass | D2: Error | E2: H | F2: Na | G2: Al | H2: Si | I2: P | J2: S | K2: Cl | L2: K | M2: Ca | N2: Ti | O2: V | P2: Cr | Q2: Mn | R2: Fe | S2: Co | T2: Ni | U2: Cu | V2: Zn | W2: Se | X2: Br | Y2: Pb | Z2: BC | AA2: TotN
A3: p1 | B3: Soil | C3: 4.223809423 | D3: 0.3149632098 | E3: 1e-50 | F3: 4e-06 | G3: 0.317201 | H3: 1 | I3: 1e-50 | J3: 1e-05 | K3: 3e-06 | L3: 0.074135 | M3: 0.086181 | N3: 0.029417 | O3: 4e-06 | P3: 0.001093 | Q3: 0.005401 | R3: 0.23999 | S3: 0.001385 | T3: 9e-06 | U3: 0.00073 | V3: 1e-50 | W3: 1e-06 | X3: 0.000968 | Y3: 1e-06 | Z3: 4e-06 | AA3: 3e-06
A4: p2 | B4: Mixed-Ind-Saged | C4: 15.03035059 | D4: 0.6350484211 | E4: 1e-06 | F4: 1 | G4: 1e-50 | H4: 0.014419 | I4: 1e-50 | J4: 0.330038 | K4: 2e-06 | L4: 0.04699 | M4: 0.038118 | N4: 0.000204 | O4: 0.000635 | P4: 1e-50 | Q4: 1e-06 | R4: 3e-06 | S4: 0.000262 | T4: 0.000393 | U4: 1e-50 | V4: 1e-50 | W4: 0.000457 | X4: 0.001414 | Y4: 1e-06 | Z4: 0.287742 | AA4: 1e-06
A5: p3 | B5: Sea | C5: 4.429366929 | D5: 0.4464081989 | E5: 0.021745 | F5: 0.134951 | G5: 1e-50 | H5: 1e-06 | I5: 1e-50 | J5: 1e-50 | K5: 1 | L5: 1e-06 | M5: 0.008646 | N5: 6.3e-05 | O5: 1e-50 | P5: 1e-50 | Q5: 0.000371 | R5: 1e-50 | S5: 0.000115 | T5: 1e-50 | U5: 0.000145 | V5: 0.000314 | W5: 0.000322 | X5: 0.001023 | Y5: 0.000648 | Z5: 6e-06 | AA5: 0.023011
A6: p4 | B6: Mixed-2ndryS | C6: 25.54511474 | D6: 0.4992236977 | E6: 0.249234 | F6: 1e-06 | G6: 1e-50 | H6: 0.011565 | I6: 0.012425 | J6: 1 | K6: 1e-50 | L6: 1e-50 | M6: 0.002761 | N6: 0.000957 | O6: 0.000378 | P6: 8.2e-05 | Q6: 0.00036 | R6: 1e-50 | S6: 3e-06 | T6: 0.000175 | U6: 1e-50 | V6: 0.000237 | W6: 0.000555 | X6: 0.001609 | Y6: 1e-06 | Z6: 0.170068 | AA6: 0.602779
A7: p5 | B7: Mixed-Smoke-Auto | C7: 30.29979277 | D7: 0.2767918819 | E7: 0.555074 | F7: 1e-50 | G7: 0.005495 | H7: 0.016216 | I7: 1e-50 | J7: 0.015244 | K7: 0.001511 | L7: 0.177773 | M7: 1e-50 | N7: 0.000349 | O7: 1e-50 | P7: 1e-50 | Q7: 1e-50 | R7: 1e-50 | S7: 4.2e-05 | T7: 8e-06 | U7: 0.000504 | V7: 0.011847 | W7: 4.1e-05 | X7: 0.00425 | Y7: 0.014558 | Z7: 1 | AA7: 0.669591
A8: p6 | B8: Auto2 | C8: 1.825630102 | D8: 0.6699743855 | E8: 2.3e-05 | F8: 9e-06 | G8: 2e-06 | H8: 3.8e-05 | I8: 0.017664 | J8: 0.319446 | K8: 2.2e-05 | L8: 3e-05 | M8: 0.067421 | N8: 0.012989 | O8: 0.005327 | P8: 0.025151 | Q8: 0.025153 | R8: 1 | S8: 1.1e-05 | T8: 0.007866 | U8: 0.045137 | V8: 0.227665 | W8: 0.006753 | X8: 6.7e-05 | Y8: 0.03947 | Z8: 0.000944 | AA8: 5.6e-05
A9: p7 | B9: Auto1 | C9: 18.64593545 | D9: 0.7496027291 | E9: 0.079071 | F9: 1e-50 | G9: 1e-50 | H9: 0.002792 | I9: 0.004342 | J9: 0.014583 | K9: 1e-06 | L9: 0.010185 | M9: 0.003107 | N9: 0.000345 | O9: 0.00012 | P9: 8.3e-05 | Q9: 0.000475 | R9: 1e-50 | S9: 0.00024 | T9: 0.000233 | U9: 0.00117 | V9: 1e-06 | W9: 0.000702 | X9: 0.001832 | Y9: 0.003017 | Z9: 1 | AA9: 1e-50
A10: p8 | B10: f8 | C10: 0 | E10: 1e-50 | F10: 1e-50 | G10: 1e-50 | H10: 1e-50 | I10: 1e-50 | J10: 1e-50 | K10: 1e-50 | L10: 1e-50 | M10: 1e-50 | N10: 1e-50 | O10: 1e-50 | P10: 1e-50 | Q10: 1e-50 | R10: 1e-50 | S10: 1e-50 | T10: 1e-50 | U10: 1e-50 | V10: 1e-50 | W10: 1e-50 | X10: 1e-50 | Y10: 1e-50 | Z10: 1e-50 | AA10: 1e-50
A11: p9 | B11: f9 | C11: 0 | E11: 1e-50 | F11: 1e-50 | G11: 1e-50 | H11: 1e-50 | I11: 1e-50 | J11: 1e-50 | K11: 1e-50 | L11: 1e-50 | M11: 1e-50 | N11: 1e-50 | O11: 1e-50 | P11: 1e-50 | Q11: 1e-50 | R11: 1e-50 | S11: 1e-50 | T11: 1e-50 | U11: 1e-50 | V11: 1e-50 | W11: 1e-50 | X11: 1e-50 | Y11: 1e-50 | Z11: 1e-50 | AA11: 1e-50
A12: p10 | B12: f10 | C12: 0 | E12: 1e-50 | F12: 1e-50 | G12: 1e-50 | H12: 1e-50 | I12: 1e-50 | J12: 1e-50 | K12: 1e-50 | L12: 1e-50 | M12: 1e-50 | N12: 1e-50 | O12: 1e-50 | P12: 1e-50 | Q12: 1e-50 | R12: 1e-50 | S12: 1e-50 | T12: 1e-50 | U12: 1e-50 | V12: 1e-50 | W12: 1e-50 | X12: 1e-50 | Y12: 1e-50 | Z12: 1e-50 | AA12: 1e-50
A13: p11 | B13: f11 | C13: 0 | E13: 1e-50 | F13: 1e-50 | G13: 1e-50 | H13: 1e-50 | I13: 1e-50 | J13: 1e-50 | K13: 1e-50 | L13: 1e-50 | M13: 1e-50 | N13: 1e-50 | O13: 1e-50 | P13: 1e-50 | Q13: 1e-50 | R13: 1e-50 | S13: 1e-50 | T13: 1e-50 | U13: 1e-50 | V13: 1e-50 | W13: 1e-50 | X13: 1e-50 | Y13: 1e-50 | Z13: 1e-50 | AA13: 1e-50
A14: p12 | B14: f12 | C14: 0 | E14: 1e-50 | F14: 1e-50 | G14: 1e-50 | H14: 1e-50 | I14: 1e-50 | J14: 1e-50 | K14: 1e-50 | L14: 1e-50 | M14: 1e-50 | N14: 1e-50 | O14: 1e-50 | P14: 1e-50 | Q14: 1e-50 | R14: 1e-50 | S14: 1e-50 | T14: 1e-50 | U14: 1e-50 | V14: 1e-50 | W14: 1e-50 | X14: 1e-50 | Y14: 1e-50 | Z14: 1e-50 | AA14: 1e-50
A15: p13 | B15: f13 | C15: 0 | E15: 1e-50 | F15: 1e-50 | G15: 1e-50 | H15: 1e-50 | I15: 1e-50 | J15: 1e-50 | K15: 1e-50 | L15: 1e-50 | M15: 1e-50 | N15: 1e-50 | O15: 1e-50 | P15: 1e-50 | Q15: 1e-50 | R15: 1e-50 | S15: 1e-50 | T15: 1e-50 | U15: 1e-50 | V15: 1e-50 | W15: 1e-50 | X15: 1e-50 | Y15: 1e-50 | Z15: 1e-50 | AA15: 1e-50
A16: p14 | B16: f14 | C16: 0 | E16: 1e-50 | F16: 1e-50 | G16: 1e-50 | H16: 1e-50 | I16: 1e-50 | J16: 1e-50 | K16: 1e-50 | L16: 1e-50 | M16: 1e-50 | N16: 1e-50 | O16: 1e-50 | P16: 1e-50 | Q16: 1e-50 | R16: 1e-50 | S16: 1e-50 | T16: 1e-50 | U16: 1e-50 | V16: 1e-50 | W16: 1e-50 | X16: 1e-50 | Y16: 1e-50 | Z16: 1e-50 | AA16: 1e-50
A17: p15 | B17: f15 | C17: 0 | E17: 1e-50 | F17: 1e-50 | G17: 1e-50 | H17: 1e-50 | I17: 1e-50 | J17: 1e-50 | K17: 1e-50 | L17: 1e-50 | M17: 1e-50 | N17: 1e-50 | O17: 1e-50 | P17: 1e-50 | Q17: 1e-50 | R17: 1e-50 | S17: 1e-50 | T17: 1e-50 | U17: 1e-50 | V17: 1e-50 | W17: 1e-50 | X17: 1e-50 | Y17: 1e-50 | Z17: 1e-50 | AA17: 1e-50
A18: p16 | B18: f16 | C18: 0 | E18: 1e-50 | F18: 1e-50 | G18: 1e-50 | H18: 1e-50 | I18: 1e-50 | J18: 1e-50 | K18: 1e-50 | L18: 1e-50 | M18: 1e-50 | N18: 1e-50 | O18: 1e-50 | P18: 1e-50 | Q18: 1e-50 | R18: 1e-50 | S18: 1e-50 | T18: 1e-50 | U18: 1e-50 | V18: 1e-50 | W18: 1e-50 | X18: 1e-50 | Y18: 1e-50 | Z18: 1e-50 | AA18: 1e-50
A19: p17 | B19: f17 | C19: 0 | E19: 1e-50 | F19: 1e-50 | G19: 1e-50 | H19: 1e-50 | I19: 1e-50 | J19: 1e-50 | K19: 1e-50 | L19: 1e-50 | M19: 1e-50 | N19: 1e-50 | O19: 1e-50 | P19: 1e-50 | Q19: 1e-50 | R19: 1e-50 | S19: 1e-50 | T19: 1e-50 | U19: 1e-50 | V19: 1e-50 | W19: 1e-50 | X19: 1e-50 | Y19: 1e-50 | Z19: 1e-50 | AA19: 1e-50
A20: p18 | B20: f18 | C20: 0 | E20: 1e-50 | F20: 1e-50 | G20: 1e-50 | H20: 1e-50 | I20: 1e-50 | J20: 1e-50 | K20: 1e-50 | L20: 1e-50 | M20: 1e-50 | N20: 1e-50 | O20: 1e-50 | P20: 1e-50 | Q20: 1e-50 | R20: 1e-50 | S20: 1e-50 | T20: 1e-50 | U20: 1e-50 | V20: 1e-50 | W20: 1e-50 | X20: 1e-50 | Y20: 1e-50 | Z20: 1e-50 | AA20: 1e-50
A21: p19 | B21: f19 | C21: 0 | E21: 1e-50 | F21: 1e-50 | G21: 1e-50 | H21: 1e-50 | I21: 1e-50 | J21: 1e-50 | K21: 1e-50 | L21: 1e-50 | M21: 1e-50 | N21: 1e-50 | O21: 1e-50 | P21: 1e-50 | Q21: 1e-50 | R21: 1e-50 | S21: 1e-50 | T21: 1e-50 | U21: 1e-50 | V21: 1e-50 | W21: 1e-50 | X21: 1e-50 | Y21: 1e-50 | Z21: 1e-50 | AA21: 1e-50
A22: p20 | B22: f20 | C22: 0 | E22: 1e-50 | F22: 1e-50 | G22: 1e-50 | H22: 1e-50 | I22: 1e-50 | J22: 1e-50 | K22: 1e-50 | L22: 1e-50 | M22: 1e-50 | N22: 1e-50 | O22: 1e-50 | P22: 1e-50 | Q22: 1e-50 | R22: 1e-50 | S22: 1e-50 | T22: 1e-50 | U22: 1e-50 | V22: 1e-50 | W22: 1e-50 | X22: 1e-50 | Y22: 1e-50 | Z22: 1e-50 | AA22: 1e-50
C23: 100
A25: Computed 1.95996 SD of F (corresponding to 95% confidence interval)
E26: H | F26: Na | G26: Al | H26: Si | I26: P | J26: S | K26: Cl | L26: K | M26: Ca | N26: Ti | O26: V | P26: Cr | Q26: Mn | R26: Fe | S26: Co | T26: Ni | U26: Cu | V26: Zn | W26: Se | X26: Br | Y26: Pb | Z26: BC | AA26: TotN
B27: Soil | E27: 0.00190900104 | F27: 0.01046030652 | G27: 0.0083690292 | H27: 0.01093461684 | I27: 0.0004311912 | J27: 0.00868458276 | K27: 0.00339269076 | L27: 0.0044001102 | M27: 0.00325157364 | N27: 0.00159344748 | O27: 0.00098193996 | P27: 0.00099173976 | Q27: 0.00092314116 | R27: 0.00313005612 | S27: 0.00133081284 | T27: 0.00093490092 | U27: 0.00096430032 | V27: 0.00018031632 | W27: 0.00190508112 | X27: 0.00356124732 | Y27: 0.00180904308 | Z27: 0.00947052672 | AA27: 0.00848270688
B28: Mixed-Ind-Saged | E28: 0.00298305912 | F28: 0.02429762412 | G28: 0.00020775576 | H28: 0.00207951756 | I28: 0.0001371972 | J28: 0.0054486888 | K28: 0.00188744148 | L28: 0.0013131732 | M28: 0.0011563764 | N28: 0.00059190792 | O28: 0.00039395196 | P28: 0.00015483684 | Q28: 0.00036063264 | R28: 0.0006271872 | S28: 0.00040571172 | T28: 0.0003527928 | U28: 8.427828e-05 | V28: 0.00016463664 | W28: 0.00113089692 | X28: 0.00148368972 | Y28: 0.00122105508 | Z28: 0.0235979184 | AA28: 0.00277922328
B29: Sea | E29: 0.00334761168 | F29: 0.02523056508 | G29: 0.00033515316 | H29: 0.00154640844 | I29: 9.603804e-05 | J29: 0.00121713516 | K29: 0.00628559172 | L29: 0.00097214016 | M29: 0.00103681884 | N29: 0.00047823024 | O29: 0.00020775576 | P29: 0.00013915716 | Q29: 0.00030575376 | R29: 0.00037631232 | S29: 0.00031947348 | T29: 0.00026067468 | U29: 0.00020383584 | V29: 0.00030771372 | W29: 0.00095450052 | X29: 0.00116225628 | Y29: 0.00169732536 | Z29: 0.01316701128 | AA29: 0.02282961408
B30: Mixed-2ndryS | E30: 0.00494497908 | F30: 0.00138961164 | G30: 0.00025871472 | H30: 0.00133081284 | I30: 0.00099565968 | J30: 0.00654430644 | K30: 0.00062522724 | L30: 0.00034103304 | M30: 0.00061346748 | N30: 0.0003723924 | O30: 0.00030183384 | P30: 0.00024303504 | Q30: 0.00022931532 | R30: 0.00034495296 | S30: 0.00022931532 | T30: 0.00023127528 | U30: 5.87988e-05 | V30: 0.000342993 | W30: 0.00071342544 | X30: 0.00097998 | Y30: 0.00135629232 | Z30: 0.0180904308 | AA30: 0.02323336584
B31: Mixed-Smoke-Auto | E31: 0.00860030448 | F31: 0.00117009612 | G31: 0.00150524928 | H31: 0.00152288892 | I31: 8.231832e-05 | J31: 0.00311241648 | K31: 0.00162872676 | L31: 0.00192468072 | M31: 0.00010583784 | N31: 0.00039003204 | O31: 0.000146997 | P31: 0.000195996 | Q31: 0.00025087488 | R31: 0.00039003204 | S31: 0.00026067468 | T31: 0.00021755556 | U31: 0.00023911512 | V31: 0.00047627028 | W31: 0.00067814616 | X31: 0.00098389992 | Y31: 0.00215007612 | Z31: 0.0268220526 | AA31: 0.03089288952
B32: Auto2 | E32: 0.05618029344 | F32: 0.02480133384 | G32: 0.00469018428 | H32: 0.03223350216 | I32: 0.02669269524 | J32: 0.0915595314 | K32: 0.02586951204 | L32: 0.02458965816 | M32: 0.01751812248 | N32: 0.00963712332 | O32: 0.00833570988 | P32: 0.00711661476 | Q32: 0.00627971184 | R32: 0.01437238668 | S32: 0.00711269484 | T32: 0.00673834248 | U32: 0.0063796698 | V32: 0.01118549172 | W32: 0.01850594232 | X32: 0.02373707556 | Y32: 0.04632169464 | Z32: 0.5645311987 | AA32: 0.1462286957
B33: Auto1 | E33: 0.00368276484 | F33: 0.00055270872 | G33: 0.00039395196 | H33: 0.00103485888 | I33: 0.00080946348 | J33: 0.00233039244 | K33: 0.00077222424 | L33: 0.00078986388 | M33: 0.00052134936 | N33: 0.00028811412 | O33: 0.0002351952 | P33: 0.00020971572 | Q33: 0.0001861962 | R33: 0.00020971572 | S33: 0.00019403604 | T33: 0.00018423624 | U33: 0.00020383584 | V33: 0.00030575376 | W33: 0.0005781882 | X33: 0.00077614416 | Y33: 0.00151308912 | Z33: 0.01735152588 | AA33: 0.001273974
B34: f8 | E34: 0 | F34: 0 | G34: 0 | H34: 0 | I34: 0 | J34: 0 | K34: 0 | L34: 0 | M34: 0 | N34: 0 | O34: 0 | P34: 0 | Q34: 0 | R34: 0 | S34: 0 | T34: 0 | U34: 0 | V34: 0 | W34: 0 | X34: 0 | Y34: 0 | Z34: 0 | AA34: 0
B35: f9 | E35: 0 | F35: 0 | G35: 0 | H35: 0 | I35: 0 | J35: 0 | K35: 0 | L35: 0 | M35: 0 | N35: 0 | O35: 0 | P35: 0 | Q35: 0 | R35: 0 | S35: 0 | T35: 0 | U35: 0 | V35: 0 | W35: 0 | X35: 0 | Y35: 0 | Z35: 0 | AA35: 0
B36: f10 | E36: 0 | F36: 0 | G36: 0 | H36: 0 | I36: 0 | J36: 0 | K36: 0 | L36: 0 | M36: 0 | N36: 0 | O36: 0 | P36: 0 | Q36: 0 | R36: 0 | S36: 0 | T36: 0 | U36: 0 | V36: 0 | W36: 0 | X36: 0 | Y36: 0 | Z36: 0 | AA36: 0
B37: f11 | E37: 0 | F37: 0 | G37: 0 | H37: 0 | I37: 0 | J37: 0 | K37: 0 | L37: 0 | M37: 0 | N37: 0 | O37: 0 | P37: 0 | Q37: 0 | R37: 0 | S37: 0 | T37: 0 | U37: 0 | V37: 0 | W37: 0 | X37: 0 | Y37: 0 | Z37: 0 | AA37: 0
B38: f12 | E38: 0 | F38: 0 | G38: 0 | H38: 0 | I38: 0 | J38: 0 | K38: 0 | L38: 0 | M38: 0 | N38: 0 | O38: 0 | P38: 0 | Q38: 0 | R38: 0 | S38: 0 | T38: 0 | U38: 0 | V38: 0 | W38: 0 | X38: 0 | Y38: 0 | Z38: 0 | AA38: 0
B39: f13 | E39: 0 | F39: 0 | G39: 0 | H39: 0 | I39: 0 | J39: 0 | K39: 0 | L39: 0 | M39: 0 | N39: 0 | O39: 0 | P39: 0 | Q39: 0 | R39: 0 | S39: 0 | T39: 0 | U39: 0 | V39: 0 | W39: 0 | X39: 0 | Y39: 0 | Z39: 0 | AA39: 0
B40: f14 | E40: 0 | F40: 0 | G40: 0 | H40: 0 | I40: 0 | J40: 0 | K40: 0 | L40: 0 | M40: 0 | N40: 0 | O40: 0 | P40: 0 | Q40: 0 | R40: 0 | S40: 0 | T40: 0 | U40: 0 | V40: 0 | W40: 0 | X40: 0 | Y40: 0 | Z40: 0 | AA40: 0
B41: f15 | E41: 0 | F41: 0 | G41: 0 | H41: 0 | I41: 0 | J41: 0 | K41: 0 | L41: 0 | M41: 0 | N41: 0 | O41: 0 | P41: 0 | Q41: 0 | R41: 0 | S41: 0 | T41: 0 | U41: 0 | V41: 0 | W41: 0 | X41: 0 | Y41: 0 | Z41: 0 | AA41: 0
B42: f16 | E42: 0 | F42: 0 | G42: 0 | H42: 0 | I42: 0 | J42: 0 | K42: 0 | L42: 0 | M42: 0 | N42: 0 | O42: 0 | P42: 0 | Q42: 0 | R42: 0 | S42: 0 | T42: 0 | U42: 0 | V42: 0 | W42: 0 | X42: 0 | Y42: 0 | Z42: 0 | AA42: 0
B43: f17 | E43: 0 | F43: 0 | G43: 0 | H43: 0 | I43: 0 | J43: 0 | K43: 0 | L43: 0 | M43: 0 | N43: 0 | O43: 0 | P43: 0 | Q43: 0 | R43: 0 | S43: 0 | T43: 0 | U43: 0 | V43: 0 | W43: 0 | X43: 0 | Y43: 0 | Z43: 0 | AA43: 0
B44: f18 | E44: 0 | F44: 0 | G44: 0 | H44: 0 | I44: 0 | J44: 0 | K44: 0 | L44: 0 | M44: 0 | N44: 0 | O44: 0 | P44: 0 | Q44: 0 | R44: 0 | S44: 0 | T44: 0 | U44: 0 | V44: 0 | W44: 0 | X44: 0 | Y44: 0 | Z44: 0 | AA44: 0
B45: f19 | E45: 0 | F45: 0 | G45: 0 | H45: 0 | I45: 0 | J45: 0 | K45: 0 | L45: 0 | M45: 0 | N45: 0 | O45: 0 | P45: 0 | Q45: 0 | R45: 0 | S45: 0 | T45: 0 | U45: 0 | V45: 0 | W45: 0 | X45: 0 | Y45: 0 | Z45: 0 | AA45: 0
B46: f20 | E46: 0 | F46: 0 | G46: 0 | H46: 0 | I46: 0 | J46: 0 | K46: 0 | L46: 0 | M46: 0 | N46: 0 | O46: 0 | P46: 0 | Q46: 0 | R46: 0 | S46: 0 | T46: 0 | U46: 0 | V46: 0 | W46: 0 | X46: 0 | Y46: 0 | Z46: 0 | AA46: 0
A48: Elemental Percent Across Factors | E48: 100 | F48: 100 | G48: 100 | H48: 100 | I48: 100 | J48: 100 | K48: 100 | L48: 100 | M48: 100 | N48: 100 | O48: 100 | P48: 100 | Q48: 100 | R48: 100 | S48: 100 | T48: 100 | U48: 100 | V48: 100 | W48: 100 | X48: 100 | Y48: 100 | Z48: 100 | AA48: 100
A49: 0 | B49: i= | C49: %Mass | D49: Error | E49: H | F49: Na | G49: Al | H49: Si | I49: P | J49: S | K49: Cl | L49: K | M49: Ca | N49: Ti | O49: V | P49: Cr | Q49: Mn | R49: Fe | S49: Co | T49: Ni | U49: Cu | V49: Zn | W49: Se | X49: Br | Y49: Pb | Z49: BC | AA49: TotN
A50: p1 | B50: Soil | C50: 4.223809423 | D50: 0.3149632098 | E50: 2.12841033e-49 | F50: 0.0001041311851 | G50: 91.88742262 | H50: 82.36097897 | I50: 9.82965115e-48 | J50: 0.0001495644194 | K50: 0.0001930654675 | L50: 6.070641992 | M50: 28.51897204 | N50: 65.59827265 | O50: 0.05448889779 | P50: 8.611861012 | Q50: 24.86109894 | R50: 36.27981027 | S50: 31.42743722 | T50: 0.1231493078 | U50: 2.383158566 | V50: 6.326921907e-48 | W50: 0.007730258592 | X50: 1.922288656 | Y50: 0.000887425507 | Z50: 2.871260854e-05 | AA50: 4.568379868e-05
A51: p2 | B51: Mixed-Ind-Saged | C51: 15.03035059 | D51: 0.6350484211 | E51: 7.731750569e-05 | F51: 94.56780238 | G51: 1.052310731e-47 | H51: 4.313989849 | I51: 3.57075935e-47 | J51: 17.93142124 | K51: 0.0004675583516 | L51: 13.97781382 | M51: 45.82209284 | N51: 1.652519783 | O51: 31.42275316 | P51: 2.862195713e-46 | Q51: 0.01672124543 | R51: 0.001647462709 | S51: 21.59647954 | T51: 19.53459865 | U51: 1.185912253e-46 | V51: 2.298343574e-47 | W51: 12.83313311 | X51: 10.20035137 | Y51: 0.003223698255 | Z51: 7.503059549 | AA51: 5.531761293e-05
A52: p3 | B52: Sea | C52: 4.429366929 | D52: 0.4464081989 | E52: 0.7155935453 | F52: 5.431860043 | G52: 4.478918569e-48 | H52: 0.0001273424334 | I52: 1.519811581e-47 | J52: 2.312490375e-49 | K52: 99.5027287 | L52: 0.0001266085323 | M52: 4.42373613 | N52: 0.2172132016 | O52: 2.106200328e-46 | P52: 1.218227768e-46 | Q52: 2.640412005 | R52: 2.337348689e-48 | S52: 4.03467613 | T52: 2.115636788e-46 | U52: 0.7318965939 | V52: 0.3071664415 | W52: 3.848589036 | X52: 3.141018714 | Y52: 0.8891162702 | Z52: 6.659100254e-05 | AA52: 0.54178639
A53: p4 | B53: Mixed-2ndryS | C53: 25.54511474 | D53: 0.4992236977 | E53: 27.44701328 | F53: 0.0001346955558 | G53: 1.498835493e-47 | H53: 4.92832777 | I53: 63.19270548 | J53: 77.38570369 | K53: 3.329781936e-48 | L53: 4.23685671e-48 | M53: 4.727387381 | N53: 11.04176265 | O53: 26.64233459 | P53: 3.342898183 | Q53: 8.573952872 | R53: 7.821756795e-48 | S53: 0.3522190939 | T53: 12.38967633 | U53: 1.689127864e-46 | V53: 0.7758419648 | W53: 22.19828648 | X53: 16.53224134 | Y53: 0.004591603243 | Z53: 6.316372145 | AA53: 47.49320898
A54: p5 | B54: Mixed-Smoke-Auto | C54: 30.29979277 | D54: 0.2767918819 | E54: 60.20919263 | F54: 1.326714208e-48 | G54: 8.112333181 | H54: 6.806467828 | I54: 5.009503282e-47 | J54: 1.161940233 | K54: 0.4955692731 | L54: 74.18800481 | M54: 1.686471081e-47 | N54: 3.966212786 | O54: 6.94231942e-46 | P54: 4.015442491e-46 | Q54: 2.345863321e-46 | R54: 7.704215491e-48 | S54: 4.856965793 | T54: 0.5578738607 | U54: 8.385272412 | V54: 38.19947751 | W54: 1.615230249 | X54: 43.01191076 | Y54: 65.84005464 | Z54: 36.58214938 | AA54: 51.96454419
A55: p6 | B55: Auto2 | C55: 1.825630102 | D55: 0.6699743855 | E55: 0.0002063370249 | F55: 9.875459208e-05 | G55: 0.0002441999035 | H55: 0.001319164838 | I55: 7.318484061 | J55: 2.013815661 | K55: 0.0005967604011 | L55: 0.001035443854 | M55: 9.403975699 | N55: 12.20853942 | O55: 30.58614186 | P55: 83.526845 | Q55: 48.80113306 | R55: 63.71854226 | S55: 0.1052072938 | T55: 45.36671967 | U55: 62.10931509 | V55: 60.71314267 | W55: 22.00314405 | X55: 0.05608051827 | Y55: 14.76362494 | Z55: 0.002856134288 | AA55: 0.0003594371412
A56: p7 | B56: Auto1 | C56: 18.64593545 | D56: 0.7496027291 | E56: 11.6279169 | F56: 1.798664444e-48 | G56: 2.001478144e-47 | H56: 1.588789072 | I56: 29.48881046 | J56: 1.506969613 | K56: 0.0004446442454 | L56: 5.762377326 | M56: 7.103835912 | N56: 5.315479504 | O56: 11.29428149 | P56: 4.518395809 | Q56: 15.10668189 | R56: 1.044482556e-47 | S56: 37.62701492 | T56: 22.02798218 | U56: 26.39035734 | V56: 0.00437141264 | W56: 37.49388682 | X56: 25.13610865 | Y56: 18.49850142 | Z56: 49.59546749 | AA56: 1.052132132e-48
A57: p8 | B57: f8 | C57: 0 | E57: 0 | F57: 0 | G57: 0 | H57: 0 | I57: 0 | J57: 0 | K57: 0 | L57: 0 | M57: 0 | N57: 0 | O57: 0 | P57: 0 | Q57: 0 | R57: 0 | S57: 0 | T57: 0 | U57: 0 | V57: 0 | W57: 0 | X57: 0 | Y57: 0 | Z57: 0 | AA57: 0
A58: p9 | B58: f9 | C58: 0 | E58: 0 | F58: 0 | G58: 0 | H58: 0 | I58: 0 | J58: 0 | K58: 0 | L58: 0 | M58: 0 | N58: 0 | O58: 0 | P58: 0 | Q58: 0 | R58: 0 | S58: 0 | T58: 0 | U58: 0 | V58: 0 | W58: 0 | X58: 0 | Y58: 0 | Z58: 0 | AA58: 0
A59: p10 | B59: f10 | C59: 0 | E59: 0 | F59: 0 | G59: 0 | H59: 0 | I59: 0 | J59: 0 | K59: 0 | L59: 0 | M59: 0 | N59: 0 | O59: 0 | P59: 0 | Q59: 0 | R59: 0 | S59: 0 | T59: 0 | U59: 0 | V59: 0 | W59: 0 | X59: 0 | Y59: 0 | Z59: 0 | AA59: 0
A60: p11 | B60: f11 | C60: 0 | E60: 0 | F60: 0 | G60: 0 | H60: 0 | I60: 0 | J60: 0 | K60: 0 | L60: 0 | M60: 0 | N60: 0 | O60: 0 | P60: 0 | Q60: 0 | R60: 0 | S60: 0 | T60: 0 | U60: 0 | V60: 0 | W60: 0 | X60: 0 | Y60: 0 | Z60: 0 | AA60: 0
A61: p12 | B61: f12 | C61: 0 | E61: 0 | F61: 0 | G61: 0 | H61: 0 | I61: 0 | J61: 0 | K61: 0 | L61: 0 | M61: 0 | N61: 0 | O61: 0 | P61: 0 | Q61: 0 | R61: 0 | S61: 0 | T61: 0 | U61: 0 | V61: 0 | W61: 0 | X61: 0 | Y61: 0 | Z61: 0 | AA61: 0
A62: p13 | B62: f13 | C62: 0 | E62: 0 | F62: 0 | G62: 0 | H62: 0 | I62: 0 | J62: 0 | K62: 0 | L62: 0 | M62: 0 | N62: 0 | O62: 0 | P62: 0 | Q62: 0 | R62: 0 | S62: 0 | T62: 0 | U62: 0 | V62: 0 | W62: 0 | X62: 0 | Y62: 0 | Z62: 0 | AA62: 0
A63: p14 | B63: f14 | C63: 0 | E63: 0 | F63: 0 | G63: 0 | H63: 0 | I63: 0 | J63: 0 | K63: 0 | L63: 0 | M63: 0 | N63: 0 | O63: 0 | P63: 0 | Q63: 0 | R63: 0 | S63: 0 | T63: 0 | U63: 0 | V63: 0 | W63: 0 | X63: 0 | Y63: 0 | Z63: 0 | AA63: 0
A64: p15 | B64: f15 | C64: 0 | E64: 0 | F64: 0 | G64: 0 | H64: 0 | I64: 0 | J64: 0 | K64: 0 | L64: 0 | M64: 0 | N64: 0 | O64: 0 | P64: 0 | Q64: 0 | R64: 0 | S64: 0 | T64: 0 | U64: 0 | V64: 0 | W64: 0 | X64: 0 | Y64: 0 | Z64: 0 | AA64: 0
A65: p16 | B65: f16 | C65: 0 | E65: 0 | F65: 0 | G65: 0 | H65: 0 | I65: 0 | J65: 0 | K65: 0 | L65: 0 | M65: 0 | N65: 0 | O65: 0 | P65: 0 | Q65: 0 | R65: 0 | S65: 0 | T65: 0 | U65: 0 | V65: 0 | W65: 0 | X65: 0 | Y65: 0 | Z65: 0 | AA65: 0
A66: p17 | B66: f17 | C66: 0 | E66: 0 | F66: 0 | G66: 0 | H66: 0 | I66: 0 | J66: 0 | K66: 0 | L66: 0 | M66: 0 | N66: 0 | O66: 0 | P66: 0 | Q66: 0 | R66: 0 | S66: 0 | T66: 0 | U66: 0 | V66: 0 | W66: 0 | X66: 0 | Y66: 0 | Z66: 0 | AA66: 0
A67: p18 | B67: f18 | C67: 0 | E67: 0 | F67: 0 | G67: 0 | H67: 0 | I67: 0 | J67: 0 | K67: 0 | L67: 0 | M67: 0 | N67: 0 | O67: 0 | P67: 0 | Q67: 0 | R67: 0 | S67: 0 | T67: 0 | U67: 0 | V67: 0 | W67: 0 | X67: 0 | Y67: 0 | Z67: 0 | AA67: 0
A68: p19 | B68: f19 | C68: 0 | E68: 0 | F68: 0 | G68: 0 | H68: 0 | I68: 0 | J68: 0 | K68: 0 | L68: 0 | M68: 0 | N68: 0 | O68: 0 | P68: 0 | Q68: 0 | R68: 0 | S68: 0 | T68: 0 | U68: 0 | V68: 0 | W68: 0 | X68: 0 | Y68: 0 | Z68: 0 | AA68: 0
A69: p20 | B69: f20 | C69: 0 | E69: 0 | F69: 0 | G69: 0 | H69: 0 | I69: 0 | J69: 0 | K69: 0 | L69: 0 | M69: 0 | N69: 0 | O69: 0 | P69: 0 | Q69: 0 | R69: 0 | S69: 0 | T69: 0 | U69: 0 | V69: 0 | W69: 0 | X69: 0 | Y69: 0 | Z69: 0 | AA69: 0
A70: Fkey Manual Element Pull-down Strength (0-9)
A71: p1 | B71: Soil | E71: 9 | F71: 0 | G71: 0 | H71: 0 | I71: 0 | J71: 0 | K71: 0 | L71: 0 | M71: 0 | N71: 0 | O71: 0 | P71: 0 | Q71: 0 | R71: 0 | S71: 0 | T71: 0 | U71: 0 | V71: 0 | W71: 0 | X71: 0 | Y71: 0 | Z71: 0 | AA71: 0
A72: p2 | B72: Mixed-Ind-Saged | E72: 0 | F72: 0 | G72: 0 | H72: 0 | I72: 0 | J72: 0 | K72: 0 | L72: 0 | M72: 0 | N72: 0 | O72: 0 | P72: 0 | Q72: 0 | R72: 0 | S72: 0 | T72: 0 | U72: 0 | V72: 0 | W72: 0 | X72: 0 | Y72: 0 | Z72: 0 | AA72: 0
A73: p3 | B73: Sea | E73: 0 | F73: 0 | G73: 0 | H73: 0 | I73: 0 | J73: 0 | K73: 0 | L73: 0 | M73: 0 | N73: 0 | O73: 0 | P73: 0 | Q73: 0 | R73: 0 | S73: 0 | T73: 0 | U73: 0 | V73: 0 | W73: 0 | X73: 0 | Y73: 0 | Z73: 0 | AA73: 0
A74: p4 | B74: Mixed-2ndryS | E74: 0 | F74: 0 | G74: 0 | H74: 0 | I74: 0 | J74: 0 | K74: 0 | L74: 0 | M74: 0 | N74: 0 | O74: 0 | P74: 0 | Q74: 0 | R74: 0 | S74: 0 | T74: 0 | U74: 0 | V74: 0 | W74: 0 | X74: 0 | Y74: 0 | Z74: 0 | AA74: 0
A75: p5 | B75: Mixed-Smoke-Auto | E75: 0 | F75: 0 | G75: 0 | H75: 0 | I75: 0 | J75: 0 | K75: 0 | L75: 0 | M75: 0 | N75: 0 | O75: 0 | P75: 0 | Q75: 0 | R75: 0 | S75: 0 | T75: 0 | U75: 0 | V75: 0 | W75: 0 | X75: 0 | Y75: 0 | Z75: 0 | AA75: 0
A76: p6 | B76: Auto2 | E76: 0 | F76: 0 | G76: 0 | H76: 0 | I76: 0 | J76: 0 | K76: 0 | L76: 0 | M76: 0 | N76: 0 | O76: 0 | P76: 0 | Q76: 0 | R76: 0 | S76: 0 | T76: 0 | U76: 0 | V76: 0 | W76: 0 | X76: 0 | Y76: 0 | Z76: 0 | AA76: 0
A77: p7 | B77: Auto1 | E77: 0 | F77: 0 | G77: 0 | H77: 0 | I77: 0 | J77: 0 | K77: 0 | L77: 0 | M77: 0 | N77: 0 | O77: 0 | P77: 0 | Q77: 0 | R77: 0 | S77: 0 | T77: 0 | U77: 0 | V77: 0 | W77: 0 | X77: 0 | Y77: 0 | Z77: 0 | AA77: 0
A78: p8 | B78: f8 | E78: 0 | F78: 0 | G78: 0 | H78: 0 | I78: 0 | J78: 0 | K78: 0 | L78: 0 | M78: 0 | N78: 0 | O78: 0 | P78: 0 | Q78: 0 | R78: 0 | S78: 0 | T78: 0 | U78: 0 | V78: 0 | W78: 0 | X78: 0 | Y78: 0 | Z78: 0 | AA78: 0
A79: p9 | B79: f9 | E79: 0 | F79: 0 | G79: 0 | H79: 0 | I79: 0 | J79: 0 | K79: 0 | L79: 0 | M79: 0 | N79: 0 | O79: 0 | P79: 0 | Q79: 0 | R79: 0 | S79: 0 | T79: 0 | U79: 0 | V79: 0 | W79: 0 | X79: 0 | Y79: 0 | Z79: 0 | AA79: 0
A80: p10 | B80: f10 | E80: 0 | F80: 0 | G80: 0 | H80: 0 | I80: 0 | J80: 0 | K80: 0 | L80: 0 | M80: 0 | N80: 0 | O80: 0 | P80: 0 | Q80: 0 | R80: 0 | S80: 0 | T80: 0 | U80: 0 | V80: 0 | W80: 0 | X80: 0 | Y80: 0 | Z80: 0 | AA80: 0
A81: p11 | B81: f11 | E81: 0 | F81: 0 | G81: 0 | H81: 0 | I81: 0 | J81: 0 | K81: 0 | L81: 0 | M81: 0 | N81: 0 | O81: 0 | P81: 0 | Q81: 0 | R81: 0 | S81: 0 | T81: 0 | U81: 0 | V81: 0 | W81: 0 | X81: 0 | Y81: 0 | Z81: 0 | AA81: 0
A82: p12 | B82: f12 | E82: 0 | F82: 0 | G82: 0 | H82: 0 | I82: 0 | J82: 0 | K82: 0 | L82: 0 | M82: 0 | N82: 0 | O82: 0 | P82: 0 | Q82: 0 | R82: 0 | S82: 0 | T82: 0 | U82: 0 | V82: 0 | W82: 0 | X82: 0 | Y82: 0 | Z82: 0 | AA82: 0
A83: p13 | B83: f13 | E83: 0 | F83: 0 | G83: 0 | H83: 0 | I83: 0 | J83: 0 | K83: 0 | L83: 0 | M83: 0 | N83: 0 | O83: 0 | P83: 0 | Q83: 0 | R83: 0 | S83: 0 | T83: 0 | U83: 0 | V83: 0 | W83: 0 | X83: 0 | Y83: 0 | Z83: 0 | AA83: 0
A84: p14 | B84: f14 | E84: 0 | F84: 0 | G84: 0 | H84: 0 | I84: 0 | J84: 0 | K84: 0 | L84: 0 | M84: 0 | N84: 0 | O84: 0 | P84: 0 | Q84: 0 | R84: 0 | S84: 0 | T84: 0 | U84: 0 | V84: 0 | W84: 0 | X84: 0 | Y84: 0 | Z84: 0 | AA84: 0
A85: p15 | B85: f15 | E85: 0 | F85: 0 | G85: 0 | H85: 0 | I85: 0 | J85: 0 | K85: 0 | L85: 0 | M85: 0 | N85: 0 | O85: 0 | P85: 0 | Q85: 0 | R85: 0 | S85: 0 | T85: 0 | U85: 0 | V85: 0 | W85: 0 | X85: 0 | Y85: 0 | Z85: 0 | AA85: 0
A86: p16 | B86: f16 | E86: 0 | F86: 0 | G86: 0 | H86: 0 | I86: 0 | J86: 0 | K86: 0 | L86: 0 | M86: 0 | N86: 0 | O86: 0 | P86: 0 | Q86: 0 | R86: 0 | S86: 0 | T86: 0 | U86: 0 | V86: 0 | W86: 0 | X86: 0 | Y86: 0 | Z86: 0 | AA86: 0
A87: p17 | B87: f17 | E87: 0 | F87: 0 | G87: 0 | H87: 0 | I87: 0 | J87: 0 | K87: 0 | L87: 0 | M87: 0 | N87: 0 | O87: 0 | P87: 0 | Q87: 0 | R87: 0 | S87: 0 | T87: 0 | U87: 0 | V87: 0 | W87: 0 | X87: 0 | Y87: 0 | Z87: 0 | AA87: 0
A88: p18 | B88: f18 | E88: 0 | F88: 0 | G88: 0 | H88: 0 | I88: 0 | J88: 0 | K88: 0 | L88: 0 | M88: 0 | N88: 0 | O88: 0 | P88: 0 | Q88: 0 | R88: 0 | S88: 0 | T88: 0 | U88: 0 | V88: 0 | W88: 0 | X88: 0 | Y88: 0 | Z88: 0 | AA88: 0
A89: p19 | B89: f19 | E89: 0 | F89: 0 | G89: 0 | H89: 0 | I89: 0 | J89: 0 | K89: 0 | L89: 0 | M89: 0 | N89: 0 | O89: 0 | P89: 0 | Q89: 0 | R89: 0 | S89: 0 | T89: 0 | U89: 0 | V89: 0 | W89: 0 | X89: 0 | Y89: 0 | Z89: 0 | AA89: 0
A90: p20 | B90: f20 | E90: 0 | F90: 0 | G90: 0 | H90: 0 | I90: 0 | J90: 0 | K90: 0 | L90: 0 | M90: 0 | N90: 0 | O90: 0 | P90: 0 | Q90: 0 | R90: 0 | S90: 0 | T90: 0 | U90: 0 | V90: 0 | W90: 0 | X90: 0 | Y90: 0 | Z90: 0 | AA90: 0
D92: Av= | E92: =AVERAGE(E98:E1345) -> 6499.960737 | F92: =AVERAGE(F98:F1345) -> 262.5400515 | G92: 815.0592267 | H92: 234.1999307 | I92: 1614.964936 | J92: 2519.967249 | K92: 108.6345127 | L92: 1009.1817 | M92: 0 | N92: 0 | O92: 0 | P92: 0 | Q92: 0 | R92: 0 | S92: 0 | T92: 0 | U92: 0 | V92: 0 | W92: 0 | X92: 0 | Y92: 0 | Z92: 6564.547607
D93: Std= | E93: =STDEV(E98:E1345) -> 4548.826009 | F93: =STDEV(F98:F1345) -> 392.1622226 | G93: 917.2412661 | H93: 385.1721884 | I93: 1500.325402 | J93: 3704.736118 | K93: 91.28531131 | L93: 633.5311595 | M93: 0 | N93: 0 | O93: 0 | P93: 0 | Q93: 0 | R93: 0 | S93: 0 | T93: 0 | U93: 0 | V93: 0 | W93: 0 | X93: 0 | Y93: 0 | Z93: 4353.045585
B94: GFactor | D94: Q= | E94: 15480.9482 | F94: Fpeak= | G94: 0 | I94: c2= | J94: 0.7815897511 | L94: Seed= | M94: 20
E95: skcoeff | F95: 4.917854405 | G95: 4.273946819 | H95: 1.51529392 | I95: 5.346568043 | J95: 11.01950733 | K95: 8.027375612 | L95: 2.040179954 | M95: 0 | N95: 0 | O95: 0 | P95: 0 | Q95: 0 | R95: 0 | S95: 0 | T95: 0 | U95: 0 | V95: 0 | W95: 0 | X95: 0 | Y95: 0 | Z95: Percent% | AB95: PercentPMF
A96: 2000-2014 | E96: k= | F96: Soil | G96: Mixed-Ind-Saged | H96: Sea | I96: Mixed-2ndryS | J96: Mixed-Smoke-Auto | K96: Auto2 | L96: Auto1 | M96: f8 | N96: f9 | O96: f10 | P96: f11 | Q96: f12 | R96: f13 | S96: f14 | T96: f15 | U96: f16 | V96: f17 | W96: f18 | X96: f19 | Y96: f20 | AB96: Soil | AC96: Mixed-Ind-Saged | AD96: Sea | AE96: Mixed-2ndryS | AF96: Mixed-Smoke-Auto | AG96: Auto2 | AH96: Auto1 | AI96: f8 | AJ96: f9 | AK96: f10 | AL96: f11 | AM96: f12 | AN96: f13 | AO96: f14 | AP96: f15 | AQ96: f16 | AR96: f17 | AS96: f18 | AT96: f19 | AU96: f20 | AW96: Tramline Data | BA96: Tolerance | BB96: STDEV(Distances) | BD96: PMFvsNATplots Data
A97: Site | B97: Day | C97: Mnth | D97: Year | E97: CMass | F97: p1 | G97: p2 | H97: p3 | I97: p4 | J97: p5 | K97: p6 | L97: p7 | M97: p8 | N97: p9 | O97: p10 | P97: p11 | Q97: p12 | R97: p13 | S97: p14 | T97: p15 | U97: p16 | V97: p17 | W97: p18 | X97: p19 | Y97: p20 | Z97: FitCmass | AA97: DateCode | AW97: x | AX97: Upper Tram Line | AY97: Lower Tram Line | AZ97: Distances | BA97: 6 | BB97: 468.434174 | BD97: H | BE97: Na | BF97: Al | BG97: Si | BH97: P | BI97: S | BJ97: Cl | BK97: K | BL97: Ca | BM97: Ti | BN97: V | BO97: Cr | BP97: Mn | BQ97: Fe | BR97: Co | BS97: Ni | BT97: Cu | BU97: Zn | BV97: Se | BW97: Br | BX97: Pb | BY97: BC | BZ97: TotN | CB97: Check | CC97: H | CD97: Na | CE97: Al | CF97: Si | CG97: P | CH97: S | CI97: Cl | CJ97: K | CK97: Ca | CL97: Ti | CM97: V | CN97: Cr | CO97: Mn | CP97: Fe | CQ97: Co | CR97: Ni | CS97: Cu | CT97: Zn | CU97: Se | CV97: Br | CW97: Pb | CX97: BC | CY97: TotN
A98: 18 | B98: 12 | C98: 1 | D98: 2000 | E98: 3686 | F98: 44.94918926 | G98: 1970.118526 | H98: 650.0913975 | I98: 1057.711556 | J98: 82.42591483 | K98: 95.52576978 | L98: 1033.84079 | M98: 0 | N98: 0 | O98: 0 | P98: 0 | Q98: 0 | R98: 0 | S98: 0 | T98: 0 | U98: 0 | V98: 0 | W98: 0 | X98: 0 | Y98: 0 | Z98: 4934.663143 | AA98: 2000-01-12 | AB98: =100*(F98/$Z98) -> 0.9108866798 | AC98: =100*(G98/$Z98) -> 39.92407321 | AD98: 13.1739772 | AE98: 21.43432136 | AF98: 1.670345319 | AG98: 1.935811362 | AH98: 20.95058487 | AI98: 0 | AJ98: 0 | AK98: 0 | AL98: 0 | AM98: 0 | AN98: 0 | AO98: 0 | AP98: 0 | AQ98: 0 | AR98: 0 | AS98: 0 | AT98: 0 | AU98: 0 | AW98: 0 | AX98: 3946.547408 | AY98: -3946.547408 | AZ98: 926.7043265 | BD98: 102.8561288 | BE98: 518.8570195 | BF98: 2.94034354 | BG98: 19.61148117 | BH98: 4.86850443 | BI98: 361.2696298 | BJ98: 429.0330202 | BK98: 28.82977926 | BL98: 24.99083425 | BM98: 0.91126371 | BN98: 0.491726 | BO98: 0.3675684 | BP98: 0.82023352 | BQ98: 14.09489148 | BR98: 0.30542387 | BS98: 0.42759545 | BT98: 1.20266612 | BU98: 2.97993379 | BV98: 0.89500681 | BW98: 2.37877587 | BX98: 2.38609431 | BY98: 680.515949 | BZ98: 134.1296443 | CB98: 1 | CC98: 85.181 | CD98: 458.127 | CE98: 2.712 | CF98: 20.511 | CG98: 3.346 | CH98: 367.155 | CI98: 430.904 | CJ98: 29.681 | CK98: 23.726 | CL98: 0.55 | CM98: 0 | CN98: 0.022 | CO98: 0.666 | CP98: 13.772 | CQ98: 0.197 | CR98: 0.402 | CS98: 0.224 | CT98: 4.993 | CU98: 0.5 | CV98: 0 | CW98: 3.363 | CX98: 702.689 | CY98: 165.381
A99: 18 | B99: 16 | C99: 1 | D99: 2000 | E99: 3404 | F99: 155.8468061 | G99: 857.4819502 | H99: 13.74371585 | I99: 2338.054205 | J99: 92.12308128 | K99: 35.64154772 | L99: 1051.488346 | M99: 0 | N99: 0 | O99: 0 | P99: 0 | Q99: 0 | R99: 0 | S99: 0 | T99: 0 | U99: 0 | V99: 0 | W99: 0 | X99: 0 | Y99: 0 | Z99: 4544.379653 | AA99: 2000-01-16 | AB99: =100*(F99/$Z99) -> 3.429440716 | AC99: 18.86906499 | AD99: 0.3024332671 | AE99: 51.44935907 | AF99: 2.02718717 | AG99: 0.7842995181 | AH99: 23.13821526 | AI99: 0 | AJ99: 0 | AK99: 0 | AL99: 0 | AM99: 0 | AN99: 0 | AO99: 0 | AP99: 0 | AQ99: 0 | AR99: 0 | AS99: 0 | AT99: 0 | AU99: 0 | AW99: 80.78557114 | AX99: 4026.180575 | AY99: -3866.914242 | AZ99: 846.7234267 | BD99: 154.5803794 | BE99: 201.8546096 | BF99: 10.09804677 | BG99: 41.2149709 | BH99: 7.74970404 | BI99: 512.5775533 | BJ99: 9.08374136 | BK99: 18.51251355 | BL99: 13.56516072 | BM99: 1.63061911 | BN99: 0.37832489 | BO99: 0.22494358 | BP99: 0.68864086 | BQ99: 12.04588499 | BR99: 0.22290422 | BS99: 0.31073809 | BT99: 0.83207687 | BU99: 1.21687699 | BV99: 0.7294715 | BW99: 2.00728301 | BX99: 1.85843029 | BY99: 655.8547864 | BZ99: 269.4022916 | CB99: 1 | CC99: 143.721 | CD99: 234.201 | CE99: 15.973 | CF99: 41.896 | CG99: 8.899 | CH99: 527.891 | CI99: 9.15 | CJ99: 18.917 | CK99: 11.802 | CL99: 2.239 | CM99: 0 | CN99: 0.301 | CO99: 0.639 | CP99: 11.729 | CQ99: 0 | CR99: 0.355 | CS99: 0.405 | CT99: 3.113 | CU99: 0 | CV99: 2.739 | CW99: 4.599 | CX99: 665.346 | CY99: 0
A100: 18 | B100: 19 | C100: 1 | D100: 2000 | E100: 8312 | F100: 561.4222588 | G100: 3091.473952 | H100: 507.668922 | I100: 2492.890816 | J100: 847.840894 | K100: 68.9551565 | L100: 964.4542695 | M100: 0 | N100: 0 | O100: 0 | P100: 0 | Q100: 0 | R100: 0 | S100: 0 | T100: 0 | U100: 0 | V100: 0 | W100: 0 | X100: 0 | Y100: 0 | Z100: 8534.706269 | AA100: 2000-01-19 | AB100: 6.578108738 | AC100: 36.22238253 | AD100: 5.948288154 | AE100: 29.20886481 | AF100: 9.93403718 | AG100: 0.8079382504 | AH100: 11.30038034 | AI100: 0 | AJ100: 0 | AK100: 0 | AL100: 0 | AM100: 0 | AN100: 0 | AO100: 0 | AP100: 0 | AQ100: 0 | AR100: 0 | AS100: 0 | AT100: 0 | AU100: 0 | AW100: 161.5711423 | AX100: 4105.813741 | AY100: -3787.281075 | AZ100: 243.0464297 | BD100: 203.5806205 | BE100: 768.5436337 | BF100: 36.63446864 | BG100: 132.5501748 | BH100: 7.99760792 | BI100: 715.7982642 | BJ100: 335.1487072 | BK100: 60.9457307 | BL100: 43.64224764 | BM100: 4.27464117 | BN100: 0.738504 | BO100: 0.41829388 | BP100: 1.35006224 | BQ100: 35.98942839 | BR100: 0.50433246 | BS100: 0.54522218 | BT100: 1.11151484 | BU100: 3.0833263 | BV100: 1.0903492 | BW100: 3.41985542 | BX100: 3.10376942 | BY100: 837.1089023 | BZ100: 340.2809903 | CB100: 1 | CC100: 179.138 | CD100: 773.102 | CE100: 25.95 | CF100: 137.327 | CG100: 4.288 | CH100: 716.194 | CI100: 335.42 | CJ100: 61.144 | CK100: 42.631 | CL100: 4.21 | CM100: 0.119 | CN100: 0.273 | CO100: 1.63 | CP100: 35.32 | CQ100: 1.211 | CR100: 0 | CS100: 0.555 | CT100: 4.832 | CU100: 0 | CV100: 2.445 | CW100: 9.391 | CX100: 856.569 | CY100: 850.221
A101: 18 | B101: 23 | C101: 1 | D101: 2000 | E101: 3683 | F101: 199.5665317 | G101: 1168.197884 | H101: 360.5187294 | I101: 1300.766539 | J101: 103.1425886 | K101: 62.3727085 | L101: 1008.705773 | M101: 0 | N101: 0 | O101: 0 | P101: 0 | Q101: 0 | R101: 0 | S101: 0 | T101: 0 | U101: 0 | V101: 0 | W101: 0 | X101: 0 | Y101: 0 | Z101: 4203.270754 | AA101: 2000-01-23 | AB101: 4.747886668 | AC101: 27.79259182 | AD101: 8.577099847 | AE101: 30.94653224 | AF101: 2.45386497 | AG101: 1.483908893 | AH101: 23.99811556 | AI101: 0 | AJ101: 0 | AK101: 0 | AL101: 0 | AM101: 0 | AN101: 0 | AO101: 0 | AP101: 0 | AQ101: 0 | AR101: 0 | AS101: 0 | AT101: 0 | AU101: 0 | AW101: 242.3567134 | AX101: 4185.446908 | AY101: -3707.647909 | AZ101: 407.9360491 | BD101: 110.0999388 | BE101: 305.4380175 | BF101: 12.92346532 | BG101: 48.8675297 | BH101: 5.30689917 | BI101: 343.3345985 | BJ101: 237.9354767 | BK101: 22.552269 | BL101: 18.70482204 | BM101: 1.77208474 | BN101: 0.36641168 | BO101: 0.30076385 | BP101: 0.82558694 | BQ101: 17.50961419 | BR101: 0.27504582 | BS101: 0.32675322 | BT101: 0.99802513 | BU101: 2.012706 | BV101: 0.73652599 | BW101: 2.00669386 | BX101: 2.08933928 | BY101: 623.8132893 | BZ101: 158.393082 | CB101: 1 | CC101: 141.324 | CD101: 196.71 | CE101: 11.899 | CF101: 48.582 | CG101: 2.798 | CH101: 332.959 | CI101: 236.186 | CJ101: 20.365 | CK101: 27.344 | CL101: 1.442 | CM101: 0 | CN101: 0.541 | CO101: 0.57 | CP101: 16.982 | CQ101: 0.192 | CR101: 0 | CS101: 1.695 | CT101: 3.51 | CU101: 1.1 | CV101: 1.342 | CW101: 8.359 | CX101: 604.084 | CY101: 564.182
A102: 18 | B102: 26 | C102: 1 | D102: 2000 | E102: 7443 | F102: 135.683603 | G102: 515.1815495 | H102: 7.894681323 | I102: 3589.311524 | J102: 3888.233161 | K102: 73.69130811 | L102: 920.7332131 | M102: 0 | N102: 0 | O102: 0 | P102: 0 | Q102: 0 | R102: 0 | S102: 0 | T102: 0 | U102: 0 | V102: 0 | W102: 0 | X102: 0 | Y102: 0 | Z102: 9130.729041 | AA102: 2000-01-26 | AB102: 1.486010618 | AC102: 5.642282749 | AD102: 0.0864627708 | AE102: 39.31024027 | AF102: 42.58403841 | AG102: 0.8070692689 | AH102: 10.08389592 | AI102: 0 | AJ102: 0 | AK102: 0 | AL102: 0 | AM102: 0 | AN102: 0 | AO102: 0 | AP102: 0 | AQ102: 0 | AR102: 0 | AS102: 0 | AT102: 0 | AU102: 0 | AW102: 323.1422846 | AX102: 4265.080075 | AY102: -3628.014742 | AZ102: 1277.560641 | BD102: 398.9744875 | BE102: 121.243959 | BF102: 10.6905047 | BG102: 44.07419696 | BH102: 10.46297537 | BI102: 726.005724 | BJ102: 5.74413346 | BK102: 75.03353341 | BL102: 10.89217918 | BM102: 1.8770784 | BN102: 0.43347386 | BO102: 0.35354901 | BP102: 0.83801788 | BQ102: 15.80168572 | BR102: 0.19563945 | BS102: 0.34528886 | BT102: 1.14111121 | BU102: 6.4313711 | BV102: 0.82265213 | BW102: 3.60965964 | BX102: 6.86489254 | BY102: 953.0149787 | BZ102: 641.0494151 | CB102: 1 | CC102: 271.251 | CD102: 0 | CE102: 8.145 | CF102: 45.629 | CG102: 17.073 | CH102: 751.14 | CI102: 5.834 | CJ102: 80.751 | CK102: 10.823 | CL102: 2.289 | CM102: 0 | CN102: 0.243 | CO102: 0.996 | CP102: 15.056 | CQ102: 0.7 | CR102: 0.209 | CS102: 1.658 | CT102: 11.241 | CU102: 0 | CV102: 5.741 | CW102: 17.905 | CX102: 980.1 | CY102: 796.52
A103: 18 | B103: 30 | C103: 1 | D103: 2000 | E103: 5221 | F103: 31.42508965 | G103: 1570.675456 | H103: 174.3194125 | I103: 2910.030054 | J103: 554.9423891 | K103: 114.3901025 | L103: 964.2706533 | M103: 0 | N103: 0 | O103: 0 | P103: 0 | Q103: 0 | R103: 0 | S103: 0 | T103: 0 | U103: 0 | V103: 0 | W103: 0 | X103: 0 | Y103: 0 | Z103: 6320.053157 | AA103: 2000-01-30 | AB103: 0.4972282489 | AC103: 24.85225071 | AD103: 2.758195354 | AE103: 46.04439206 | AF103: 8.780660152 | AG103: 1.809954752 | AH103: 15.25731872 | AI103: 0 | AJ103: 0 | AK103: 0 | AL103: 0 | AM103: 0 | AN103: 0 | AO103: 0 | AP103: 0 | AQ103: 0 | AR103: 0 | AS103: 0 | AT103: 0 | AU103: 0 | AW103: 403.9278557 | AX103: 4344.713241 | AY103: -3548.381576 | AZ103: 835.7510349 | BD103: 203.4809656 | BE103: 383.0254611 | BF103: 2.30367109 | BG103: 20.12048588 | BH103: 9.06659388 | BI103: 677.7813314 | BJ103: 115.1176343 | BK103: 31.50957687 | BL103: 19.48569624 | BM103: 1.1567978 | BN103: 0.57175245 | BO103: 0.4492461 | BP103: 0.85643478 | BQ103: 15.7846386 | BR103: 0.23570306 | BS103: 0.46235251 | BT103: 1.24291799 | BU103: 4.00643073 | BV103: 0.93716046 | BW103: 2.60012419 | BX103: 2.79700735 | BY103: 721.3239638 | BZ103: 364.449527 | CB103: 1 | CC103: 159.252 | CD103: 213.511 | CE103: 2.085 | CF103: 20.024 | CG103: 7.176 | CH103: 690.018 | CI103: 115.266 | CJ103: 32.81 | CK103: 20.779 | CL103: 1.511 | CM103: 0.761 | CN103: 0.373 | CO103: 0.873 | CP103: 15.529 | CQ103: 0 | CR103: 0 | CS103: 0.594 | CT103: 5.449 | CU103: 3 | CV103: 3.379 | CW103: 8.298 | CX103: 743.532 | CY103: 735.558
A104: 18 | B104: 2 | C104: 2 | D104: 2000 | E104: 5998 | F104: 446.5903585 | G104: 1849.080352 | H104: 78.53768387 | I104: 2472.78772 | J104: 363.3131567 | K104: 119.5276229 | L104: 1188.792457 | M104: 0 | N104: 0 | O104: 0 | P104: 0 | Q104: 0 | R104: 0 | S104: 0 | T104: 0 | U104: 0 | V104: 0 | W104: 0 | X104: 0 | Y104: 0 | Z104: 6518.629351 | AA104: 2000-02-02 | AB104: 6.850985606 | AC104: 28.36609128 | AD104: 1.204818983 | AE104: 37.93416663 | AF104: 5.573459345 | AG104: 1.83363122 | AH104: 18.23684694 | AI104: 0 | AJ104: 0 | AK104: 0 | AL104: 0 | AM104: 0 | AN104: 0 | AO104: 0 | AP104: 0 | AQ104: 0 | AR104: 0 | AS104: 0 | AT104: 0 | AU104: 0 | AW104: 484.7134269 | AX104: 4424.346408 | AY104: -3468.748409 | AZ104: 431.7096622 | BD104: 180.7732142 | BE104: 439.6354701 | BF104: 28.98622274 | BG104: 104.5591783 | BH104: 8.53961944 | BI104: 619.0450623 | BJ104: 51.88186565 | BK104: 38.85832494 | BL104: 28.85686933 | BM104: 3.61143491 | BN104: 0.59915647 | BO104: 0.56004199 | BP104: 1.3279323 | BQ104: 36.68478982 | BR104: 0.38786561 | BS104: 0.50493758 | BT104: 1.44426076 | BU104: 3.90699725 | BV104: 0.98213637 | BW104: 2.70544984 | BX104: 2.86023308 | BY104: 818.8198793 | BZ104: 302.0559018 | CB104: 1 | CC104: 147.821 | CD104: 398.187 | CE104: 23.279 | CF104: 108.929 | CG104: 0 | CH104: 633.818 | CI104: 52.106 | CJ104: 39.899 | CK104: 26.56 | CL104: 3.876 | CM104: 0.106 | CN104: 0.452 | CO104: 1.712 | CP104: 35.342 | CQ104: 0 | CR104: 0 | CS104: 0.418 | CT104: 9.071 | CU104: 0 | CV104: 2.587 | CW104: 11.772 | CX104: 857.232 | CY104: 503.37
A105: 18 | B105: 6 | C105: 2 | D105: 2000 | E105: 10396 | F105: 55.07996933 | G105: 5318.670379 | H105: 2444.15394 | I105: 1397.432489 | J105: 1129.830087 | K105: 196.1890599 | L105: 317.125572 | M105: 0 | N105: 0 | O105: 0 | P105: 0 | Q105: 0 | R105: 0 | S105: 0 | T105: 0 | U105: 0 | V105: 0 | W105: 0 | X105: 0 | Y105: 0 | Z105: 10858.4815 | AA105: 2000-02-06 | AB105: 0.5072529649 | AC105: 48.98171426 | AD105: 22.5091689 | AE105: 12.86950196 | AF105: 10.40504685 | AG105: 1.806781731 | AH105: 2.920533337 | AI105: 0 | AJ105: 0 | AK105: 0 | AL105: 0 | AM105: 0 | AN105: 0 | AO105: 0 | AP105: 0 | AQ105: 0 | AR105: 0 | AS105: 0 | AT105: 0 | AU105: 0 | AW105: 565.498998 | AX105: 4503.979574 | AY105: -3389.115243 | AZ105: 434.9781786 | BD105: 169.4210982 | BE105: 1462.11514 | BF105: 4.11610243 | BG105: 34.26548108 | BH105: 4.35415089 | BI105: 683.7196098 | BJ105: 1613.148138 | BK105: 79.11911588 | BL105: 65.19906655 | BM105: 1.34194655 | BN105: 1.03790674 | BO105: 0.6612659 | BP105: 1.44282145 | BQ105: 27.13162132 | BR105: 0.56971394 | BS105: 0.76418827 | BT105: 1.57874775 | BU105: 7.3473845 | BV105: 1.51152934 | BW105: 4.56326892 | BX105: 3.97297555 | BY105: 660.5311217 | BZ105: 263.320672 | CB105: 1 | CC105: 186.329 | CD105: 1814.23 | CE105: 0 | CF105: 36.487 | CG105: 0 | CH105: 662.88 | CI105: 1598.247 | CJ105: 73.18 | CK105: 64.902 | CL105: 1.382 | CM105: 1.642 | CN105: 0 | CO105: 2.822 | CP105: 28.094 | CQ105: 0 | CR105: 0.151 | CS105: 1.026 | CT105: 5.278 | CU105: 1 | CV105: 3.674 | CW105: 10.922 | CX105: 664.697 | CY105: 660.459
A106: 18 | B106: 9 | C106: 2 | D106: 2000 | E106: 9413 | F106: 1693.512343 | G106: 1138.408475 | H106: 1.545599798 | I106: 2868.433755 | J106: 2203.130101 | K106: 0 | L106: 1765.755348 | M106: 0 | N106: 0 | O106: 0 | P106: 0 | Q106: 0 | R106: 0 | S106: 0 | T106: 0 | U106: 0 | V106: 0 | W106: 0 | X106: 0 | Y106: 0 | Z106: 9670.785621 | AA106: 2000-02-09 | AB106: 17.51163152 | AC106: 11.77162352 | AD106: 0.01598215346 | AE106: 29.6608142 | AF106: 22.78129396 | AG106: 0 | AH106: 18.25865465 | AI106: 0 | AJ106: 0 | AK106: 0 | AL106: 0 | AM106: 0 | AN106: 0 | AO106: 0 | AP106: 0 | AQ106: 0 | AR106: 0 | AS106: 0 | AT106: 0 | AU106: 0 | AW106: 646.2845691 | AX106: 4583.612741 | AY106: -3309.482076 | AZ106: 279.2139531 | BD106: 313.1475919 | BE106: 266.499564 | BF106: 110.3299517 | BG106: 360.0637813 | BH106: 10.42397008 | BI106: 640.0815389 | BJ106: 1.32452552 | BK106: 82.40255756 | BL106: 44.00957249 | BM106: 11.06623994 | BN106: 0.47717184 | BO106: 0.49221415 | BP106: 2.46478089 | BQ106: 82.64375548 | BR106: 0.76456638 | BS106: 0.40492483 | BT106: 1.36491872 | BU106: 2.49690698 | BV106: 1.03592793 | BW106: 4.00952566 | BX106: 5.52357245 | BY106: 1233.305825 | BZ106: 457.2870328 | CB106: 1 | CC106: 272.038 | CD106: 362.963 | CE106: 142.224 | CF106: 449.384 | CG106: 0.908 | CH106: 638.395 | CI106: 1.444 | CJ106: 83.595 | CK106: 33.486 | CL106: 13.094 | CM106: 0 | CN106: 1.176 | CO106: 3.405 | CP106: 66.791 | CQ106: 0.734 | CR106: 0.15 | CS106: 2.711 | CT106: 2.233 | CU106: 0.6 | CV106: 8.307 | CW106: 10.874 | CX106: 1263.937 | CY106: 874.912
A107: 18 | B107: 13 | C107: 2 | D107: 2000 | E107: 6256 | F107: 16.72070498 | G107: 2491.240861 | H107: 1680.127593 | I107: 584.7006812 | J107: 336.8663391 | K107: 65.58365875 | L107: 974.2675351 | M107: 0 | N107: 0 | O107: 0 | P107: 0 | Q107: 0 | R107: 0 | S107: 0 | T107: 0 | U107: 0 | V107: 0 | W107: 0 | X107: 0 | Y107: 0 | Z107: 6149.507373 | AA107: 2000-02-13 | AB107: 0.2719031617 | AC107: 40.51122651 | AD107: 27.32133634 | AE107: 9.508089766 | AF107: 5.477940242 | AG107: 1.066486383 | AH107: 15.8430176 | AI107: 0 | AJ107: 0 | AK107: 0 | AL107: 0 | AM107: 0 | AN107: 0 | AO107: 0 | AP107: 0 | AQ107: 0 | AR107: 0 | AS107: 0 | AT107: 0 | AU107: 0 | AW107: 727.0701403 | AX107: 4663.245907 | AY107: -3229.848909 | AZ107: 12.28554691 | BD107: 106.0955997 | BE107: 732.5211663 | BF107: 1.24648189 | BG107: 14.89987335 | BH107: 3.57659156 | BI107: 311.7757325 | BJ107: 1108.828025 | BK107: 37.94167949 | BL107: 34.43461761 | BM107: 0.67497838 | BN107: 0.51231322 | BO107: 0.25780321 | BP107: 0.90200478 | BQ107: 8.98771467 | BR107: 0.40124737 | BS107: 0.42402097 | BT107: 1.10615347 | BU107: 2.59673862 | BV107: 1.07576455 | BW107: 3.14306301 | BX107: 2.92743123 | BY107: 694.4449496 | BZ107: 111.9044955 | CB107: 1 | CC107: 101.748 | CD107: 1027.217 | CE107: 1.996 | CF107: 16.478 | CG107: 0 | CH107: 310.919 | CI107: 1109.954 | CJ107: 36.483 | CK107: 28.196 | CL107: 1.211 | CM107: 0 | CN107: 0 | CO107: 1.61 | CP107: 8.729 | CQ107: 0 | CR107: 0 | CS107: 1.651 | CT107: 5.119 | CU107: 1.2 | CV107: 0.076 | CW107: 6.9 | CX107: 712.072 | CY107: 316.896
A108: 18 | B108: 16 | C108: 2 | D108: 2000 | E108: 2632 | F108: 223.811554 | G108: 11.53965641 | H108: 0.0151529392 | I108: 1568.896927 | J108: 0 | K108: 27.29307708 | L108: 1481.864308 | M108: 0 | N108: 0 | O108: 0 | P108: 0 | Q108: 0 | R108: 0 | S108: 0 | T108: 0 | U108: 0 | V108: 0 | W108: 0 | X108: 0 | Y108: 0 | Z108: 3313.420674 | AA108: 2000-02-16 | AB108: 6.754697817 | AC108: 0.3482701879 | AD108: 0.0004573201138 | AE108: 47.34976571 | AF108: 0 | AG108: 0.8237130072 | AH108: 44.72309595 | AI108: 0 | AJ108: 0 | AK108: 0 | AL108: 0 | AM108: 0 | AN108: 0 | AO108: 0 | AP108: 0 | AQ108: 0 | AR108: 0 | AS108: 0 | AT108: 0 | AU108: 0 | AW108: 807.8557114 | AX108: 4742.879074 | AY108: -3150.215743 | AZ108: 512.0247007 | BD108: 130.5679535 | BE108: 2.70185559 | BF108: 14.43582431 | BG108: 50.97063539 | BH108: 6.85981788 | BI108: 306.0098903 | BJ108: 0.01094307 | BK108: 10.89863176 | BL108: 7.32125999 | BM108: 1.91489108 | BN108: 0.21808946 | BO108: 0.21960413 | BP108: 0.78197602 | BQ108: 14.321953 | BR108: 0.23897922 | BS108: 0.24880431 | BT108: 1.03650735 | BU108: 0.84433576 | BV108: 0.69699271 | BW108: 1.85090935 | BX108: 2.32591391 | BY108: 777.025049 | BZ108: 176.8800295 | CB108: 1 | CC108: 88.881 | CD108: 0 | CE108: 9.714 | CF108: 52.245 | CG108: 6.029 | CH108: 308.748 | CI108: 0.041 | CJ108: 10.928 | CK108: 6.408 | CL108: 2.721 | CM108: 0 | CN108: 0.569 | CO108: 0.802 | CP108: 14.042 | CQ108: 0.51 | CR108: 0.078 | CS108: 0.142 | CT108: 2.605 | CU108: 1.2 | CV108: 0.328 | CW108: 6.919 | CX108: 821.568 | CY108: 534.047
A109: 18 | B109: 20 | C109: 2 | D109: 2000 | E109: 7926 | F109: 840.0187109 | G109: 0 | H109: 14.50136281 | I109: 2820.368108 | J109: 3158.300996 | K109: 52.33848899 | L109: 1476.682251 | M109: 0 | N109: 0 | O109: 0 | P109: 0 | Q109: 0 | R109: 0 | S109: 0 | T109: 0 | U109: 0 | V109: 0 | W109: 0 | X109: 0 | Y109: 0 | Z109: 8362.209917 | AA109: 2000-02-20 | AB109: 10.04541526 | AC109: 0 | AD109: 0.1734154363 | AE109: 33.72754495 | AF109: 37.7687361 | AG109: 0.6258930295 | AH109: 17.65899523 | AI109: 0 | AJ109: 0 | AK109: 0 | AL109: 0 | AM109: 0 | AN109: 0 | AO109: 0 | AP109: 0 | AQ109: 0 | AR109: 0 | AS109: 0 | AT109: 0 | AU109: 0 | AW109: 888.6412826 | AX109: 4822.51224 | AY109: -3070.582576 | AZ109: 391.1755121 | BD109: 348.0030259 | BE109: 1.2927505 | BF109: 55.7560378 | BG109: 183.5794278 | BH109: 9.81222063 | BI109: 544.5187543 | BJ109: 10.00444738 | BK109: 70.98662705 | BL109: 18.94820546 | BM109: 5.96457392 | BN109: 0.32167006 | BO109: 0.45401107 | BP109: 1.62380144 | BQ109: 47.5126919 | BR109: 0.42507627 | BS109: 0.31607614 | BT109: 1.41166963 | BU109: 5.00859312 | BV109: 0.85990857 | BW109: 3.56842872 | BX109: 6.62041706 | BY109: 1100.129466 | BZ109: 510.1045196 | CB109: 1 | CC109: 297.61 | CD109: 0 | CE109: 42.768 | CF109: 197.243 | CG109: 0.24 | CH109: 544.438 | CI109: 10.092 | CJ109: 70.43 | CK109: 16.568 | CL109: 6.207 | CM109: 0 | CN109: 0.563 | CO109: 1.192 | CP109: 44.977 | CQ109: 0 | CR109: 0.201 | CS109: 0.952 | CT109: 11.284 | CU109: 0 | CV109: 5.778 | CW109: 14.311 | CX109: 1137.37 | CY109: 935.926
A110: 18 | B110: 23 | C110: 2 | D110: 2000 | E110: 4721 | F110: 372.0356857 | G110: 512.488963 | H110: 33.13947803 | I110: 2155.843166 | J110: 517.145479 | K110: 29.05909971 | L110: 1606.539705 | M110: 0 | N110: 0 | O110: 0 | P110: 0 | Q110: 0 | R110: 0 | S110: 0 | T110: 0 | U110: 0 | V110: 0 | W110: 0 | X110: 0 | Y110: 0 | Z110: 5226.251576 | AA110: 2000-02-23 | AB110: 7.118595044 | AC110: 9.806052302 | AD110: 0.6340964943 | AE110: 41.25027536 | AF110: 9.895150883 | AG110: 0.5560218311 | AH110: 30.73980808 | AI110: 0 | AJ110: 0 | AK110: 0 | AL110: 0 | AM110: 0 | AN110: 0 | AO110: 0 | AP110: 0 | AQ110: 0 | AR110: 0 | AS110: 0 | AT110: 0 | AU110: 0 | AW110: 969.4268537 | AX110: 4902.145407 | AY110: -2990.94941 | AZ110: 407.7849782 | BD110: 189.2859816 | BE110: 122.8621168 | BF110: 24.25414324 | BG110: 85.0019583 | BH110: 8.49306008 | BI110: 456.1507919 | BJ110: 21.94224509 | BK110: 27.60607926 | BL110: 15.08337164 | BM110: 2.97218604 | BN110: 0.34264035 | BO110: 0.27215446 | BP110: 1.02707114 | BQ110: 21.77560323 | BR110: 0.33091526 | BS110: 0.33069519 | BT110: 1.16676081 | BU110: 1.48334478 | BV110: 0.86486365 | BW110: 2.55623937 | BX110: 3.21659553 | BY110: 937.4618133 | BZ110: 274.9802542 | CB110: 1 | CC110: 143.333 | CD110: 0 | CE110: 7.419 | CF110: 86.236 | CG110: 3.627 | CH110: 460.948 | CI110: 22.013 | CJ110: 29.001 | CK110: 17.748 | CL110: 2.215 | CM110: 0.097 | CN110: 0.424 | CO110: 1.495 | CP110: 21.078 | CQ110: 0 | CR110: 0 | CS110: 1.536 | CT110: 3.359 | CU110: 2.3 | CV110: 1.203 | CW110: 8.592 | CX110: 966.617 | CY110: 617.082
A111: 18 | B111: 27 | C111: 3 | D111: 2000 | E111: 7975 | F111: 0 | G111: 3445.613186 | H111: 795.9384373 | I111: 3360.264549 | J111: 661.7214152 | K111: 277.6669224 | L111: 570.8831547 | M111: 0 | N111: 0 | O111: 0 | P111: 0 | Q111: 0 | R111: 0 | S111: 0 | T111: 0 | U111: 0 | V111: 0 | W111: 0 | X111: 0 | Y111: 0 | Z111: 9112.087665 | AA111: 2000-03-27 | AB111: 0 | AC111: 37.81365273 | AD111: 8.73497344 | AE111: 36.87699979 | AF111: 7.262017658 | AG111: 3.047237171 | AH111: 6.265119209 | AI111: 0 | AJ111: 0 | AK111: =100*(O111/$Z111) -> 0 | AL111: =100*(P111/$Z111) -> 0 | AM111: =100*(Q111/$Z111) -> 0 | AN111: =100*(R111/$Z111) -> 0 | AO111: =100*(S111/$Z111) -> 0 | AP111: =100*(T111/$Z111) -> 0 | AQ111: =100*(U111/$Z111) -> 0 | AR111: =100*(V111/$Z111) -> 0 | AS111: =100*(W111/$Z111) -> 0 | AT111: =100*(X111/$Z111) -> 0 | AU111: =100*(Y111/$Z111) -> 0 | AW111: 1050.212425 | AX111: 4981.778573 | AY111: -2911.316243 | AZ111: 890.8160575 | BD111: 223.5225155 | BE111: 877.0766516 | BF111: 0.33004393 | BG111: 20.64980839 | BH111: 9.63496445 | BI111: 910.6089896 | BJ111: 525.3633887 | BK111: 51.40966642 | BL111: 40.20858886 | BM111: 1.36580456 | BN111: 0.9673392 | BO111: 0.94473433 | BP111: 1.42489453 | BQ111: 34.59241857 | BR111: 0.34357269 | BS111: 0.76458182 | BT111: 1.99510758 | BU111: 8.90051143 | BV111: 1.31885968 | BW111: 3.45870455 | BX111: 3.42550178 | BY111: 678.7665649 | BZ111: 431.1392445 | CB111: 1 | CC111: 213.726 | CD111: 1153.396 | CE111: 0 | CF111: 20.445 | CG111: 0 | CH111: 902.511 | CI111: 525.123 | CJ111: 49.193 | CK111: 35.056 | CL111: 1.866 | CM111: 0 | CN111: 0.38 | CO111: 1.577 | CP111: 33.932 | CQ111: 0.005 | CR111: 0 | CS111: 1.057 | CT111: 12.173 | CU111: 1.6 | CV111: 5.115 | CW111: 12.423 | CX111: 698.682 | CY111: 943.726
A112: 18 | B112: 1 | C112: 3 | D112: 2000 | E112: 5273 | F112: 145.1258835 | G112: 1587.429327 | H112: 408.2959467 | I112: 1137.482351 | J112: 0 | K112: 151.7976728 | L112: 1609.191938 | M112: 0 | N112: 0 | O112: 0 | P112: 0 | Q112: 0 | R112: 0 | S112: 0 | T112: 0 | U112: 0 | V112: 0 | W112: 0 | X112: 0 | Y112: 0 | Z112: 5039.32312 | AA112: 2000-03-01 | AB112: 2.879868586 | AC112: =100*(G112/$Z112) -> 31.50084425 | AD112: =100*(H112/$Z112) -> 8.102198192 | AE112: =100*(I112/$Z112) -> 22.57212574 | AF112: =100*(J112/$Z112) -> 0 | AG112: =100*(K112/$Z112) -> 3.012263139 | AH112: =100*(L112/$Z112) -> 31.93270009 | AI112: =100*(M112/$Z112) -> 0 | AJ112: =100*(N112/$Z112) -> 0 | AK112: 0 | AL112: 0 | AM112: 0 | AN112: 0 | AO112: 0 | AP112: 0 | AQ112: 0 | AR112: 0 | AS112: 0 | AT112: 0 | AU112: 0 | AW112: 1130.997996 | AX112: 5061.41174 | AY112: -2831.683077 | AZ112: 112.8484699 | BD112: 121.2517814 | BE112: 407.7830479 | BF112: 9.36063933 | BG112: 39.52913676 | BH112: 6.40219749 | BI112: 352.8760742 | BJ112: 269.4520361 | BK112: 27.67500515 | BL112: 23.34363368 | BM112: 1.68218319 | BN112: 0.51177281 | BO112: 0.59077159 | BP112: 1.18661036 | BQ112: 25.99321916 | BR112: 0.3593164 | BS112: 0.51598971 | BT112: 1.83699072 | BU112: 4.44096295 | BV112: 1.05600933 | BW112: 2.61797263 | BX112: 3.30125373 | BY112: 931.8246864 | BZ112: 134.4430651 | CB112: 1 | CC112: 90.068 | CD112: 378.087 | CE112: 6.51 | CF112: 41.163 | CG112: 2.448 | CH112: 363.804 | CI112: 269.959 | CJ112: 25.994 | CK112: 23.35 | CL112: 0.977 | CM112: 0 | CN112: 0.725 | CO112: 1.354 | CP112: 25.302 | CQ112: 0.024 | CR112: 0 | CS112: 1.693 | CT112: 8.188 | CU112: 2.3 | CV112: 4.111 | CW112: 6.977 | CX112: 975.32 | CY112: 0
A113: 18 | B113: 5 | C113: 3 | D113: 2000 | E113: 6001 | F113: 132.9296046 | G113: 687.0369511 | H113: 58.02060419 | I113: 3425.332282 | J113: 2149.4651 | K113: 113.5873649 | L113: 695.6401588 | M113: 0 | N113: 0 | O113: 0 | P113: 0 | Q113: 0 | R113: 0 | S113: 0 | T113: 0 | U113: 0 | V113: 0 | W113: 0 | X113: 0 | Y113: 0 | Z113: 7262.012066 | AA113: 2000-03-05 | AB113: 1.830478982 | AC113: 9.46069691 | AD113: 0.7989604488 | AE113: 47.16781315 | AF113: 29.59875418 | AG113: 1.564130765 | AH113: 9.579165561 | AI113: 0 | AJ113: 0 | AK113: 0 | AL113: 0 | AM113: 0 | AN113: 0 | AO113: 0 | AP113: 0 | AQ113: 0 | AR113: 0 | AS113: 0 | AT113: 0 | AU113: 0 | AW113: 1211.783567 | AX113: 5141.044907 | AY113: -2752.04991 | AZ113: 959.0170674 | BD113: 295.74093 | BE113: 165.9181499 | BF113: 9.64582603 | BG113: 40.87274434 | BH113: 9.69063784 | BI113: 706.1798998 | BJ113: 38.58579052 | BK113: 47.70715517 | BL113: 12.57025947 | BM113: 1.81296334 | BN113: 0.4606473 | BO113: 0.46626507 | BP113: 0.90886867 | BQ113: 20.63741195 | BR113: 0.17605935 | BS113: 0.36784391 | BT113: 1.16121764 | BU113: 5.69653602 | BV113: 0.78429881 | BW113: 2.77806824 | BX113: 4.45253083 | BY113: 691.2539868 | BZ113: 517.66894 | CB113: 1 | CC113: 259.41 | CD113: 0 | CE113: 13.39 | CF113: 38.383 | CG113: 10.065 | CH113: 756.508 | CI113: 38.826 | CJ113: 53.248 | CK113: 12.81 | CL113: 4.318 | CM113: 0 | CN113: 0.407 | CO113: 1.162 | CP113: 21.029 | CQ113: 0 | CR113: 0.049 | CS113: 0 | CT113: 3.735 | CU113: 0 | CV113: 0.128 | CW113: 3.33 | CX113: 694.728 | CY113: 0
A114: 18 | B114: 12 | C114: 3 | D114: 2000 | E114: 7443 | F114: 26.70394942 | G114: 0.04273946819 | H114: 5.500516929 | I114: 3781.681042 | J114: 1086.964203 | K114: 186.7167567 | L114: 1902.263789 | M114: 0 | N114: 0 | O114: 0 | P114: 0 | Q114: 0 | R114: 0 | S114: 0 | T114: 0 | U114: 0 | V114: 0 | W114: 0 | X114: 0 | Y114: 0 | Z114: 6989.872997 | AA114: 2000-03-12 | AB114: 0.3820376912 | AC114: 0.0006114484227 | AD114: 0.0786926591 | AE114: 54.10228547 | AF114: 15.55055726 | AG114: 2.671246771 | AH114: 27.2145687 | AI114: 0 | AJ114: 0 | AK114: 0 | AL114: 0 | AM114: 0 | AN114: 0 | AO114: 0 | AP114: 0 | AQ114: 0 | AR114: 0 | AS114: 0 | AT114: 0 | AU114: 0 | AW114: 1292.569138 | AX114: 5220.678073 | AY114: -2672.416744 | AZ114: 247.0886723 | BD114: 304.8434696 | BE114: 0.5008105 | BF114: 2.26447475 | BG114: 17.81387889 | BH114: 13.24767219 | BI114: 729.844526 | BJ114: 3.78050547 | BK114: 27.4357471 | BL114: 6.91779116 | BM114: 1.49508821 | BN114: 0.50318527 | BO114: 0.72633587 | BP114: 1.31325455 | BQ114: 24.56314573 | BR114: 0.23823729 | BS114: 0.52483353 | BT114: 2.19499943 | BU114: 6.63378067 | BV114: 1.20939973 | BW114: 3.27598088 | BX114: 5.17018911 | BY114: 1151.355675 | BZ114: 492.4849195 | CB114: 1 | CC114: 317.033 | CD114: 0 | CE114: 5.849 | CF114: 19.323 | CG114: 15.263 | CH114: 759.622 | CI114: 3.838 | CJ114: 27.69 | CK114: 5.007 | CL114: 2.738 | CM114: 0.16 | CN114: 0.417 | CO114: 2.152 | CP114: 22.9 | CQ114: 0 | CR114: 0.731 | CS114: 2.195 | CT114: 14.283 | CU114: 2.9 | CV114: 6.381 | CW114: 32.863 | CX114: 1133.411 | CY114: 0
A115: 18 | B115: 15 | C115: 3 | D115: 2000 | E115: 6590 | F115: 36.39212259 | G115: 1562.640436 | H115: 5.833881592 | I115: 2854.853472 | J115: 926.7405665 | K115: 237.0484018 | L115: 769.7190929 | M115: 0 | N115: 0 | O115: 0 | P115: 0 | Q115: 0 | R115: 0 | S115: 0 | T115: 0 | U115: 0 | V115: 0 | W115: 0 | X115: 0 | Y115: 0 | Z115: 6393.227973 | AA115: 2000-03-15 | AB115: 0.5692292336 | AC115: 24.44211973 | AD115: 0.09125095516 | AE115: 44.65433556 | AF115: 14.49565963 | AG115: 3.707804614 | AH115: 12.03960028 | AI115: 0 | AJ115: 0 | AK115: 0 | AL115: 0 | AM115: 0 | AN115: 0 | AO115: 0 | AP115: 0 | AQ115: 0 | AR115: 0 | AS115: 0 | AT115: 0 | AU115: 0 | AW115: 1373.354709 | AX115: 5300.31124 | AY115: -2592.783577 | AZ115: 73.18652506 | BD115: 209.67938 | BE115: 366.1403907 | BF115: 2.80947596 | BG115: 21.26537953 | BH115: 8.79422068 | BI115: 670.8457026 | BJ115: 3.97885548 | BK115: 36.52327865 | BL115: 19.24514431 | BM115: 1.34659222 | BN115: 0.63661509 | BO115: 0.82589619 | BP115: 1.15596306 | BQ115: 31.30702286 | BR115: 0.2024903 | BS115: 0.55806028 | BT115: 1.82265986 | BU115: 7.84741485 | BV115: 0.93239799 | BW115: 2.43781054 | BX115: 3.53153244 | BY115: 657.4216683 | BZ115: 378.2631118 | CB115: 1 | CC115: 102.468 | CD115: 183.72 | CE115: 5.517 | CF115: 20.575 | CG115: 25.493 | CH115: 745.806 | CI115: 4.321 | CJ115: 44.752 | CK115: 12.406 | CL115: 2.255 | CM115: 0.33 | CN115: 1.005 | CO115: 1.153 | CP115: 32.001 | CQ115: 0.518 | CR115: 0.029 | CS115: 3.242 | CT115: 4.453 | CU115: 1.3 | CV115: 1.651 | CW115: 6.316 | CX115: 672.206 | CY115: 0
A116: 18 | B116: 19 | C116: 3 | D116: 2000 | E116: 15069 | F116: 89.30823599 | G116: 5433.083935 | H116: 647.8487625 | I116: 4191.923208 | J116: 1561.794774 | K116: 265.0639427 | L116: 226.6639929 | M116: 0 | N116: 0 | O116: 0 | P116: 0 | Q116: 0 | R116: 0 | S116: 0 | T116: 0 | U116: 0 | V116: 0 | W116: 0 | X116: 0 | Y116: 0 | Z116: 12415.68685 | AA116: 2000-03-19 | AB116: 0.7193177233 | AC116: 43.75983383 | AD116: 5.217985684 | AE116: 33.76311966 | AF116: 12.57920559 | AG116: 2.134911631 | AH116: 1.825625884 | AI116: 0 | AJ116: 0 | AK116: 0 | AL116: 0 | AM116: 0 | AN116: 0 | AO116: 0 | AP116: 0 | AQ116: 0 | AR116: 0 | AS116: 0 | AT116: 0 | AU116: 0 | AW116: 1454.140281 | AX116: 5379.944406 | AY116: -2513.15041 | AZ116: 1736.51797 | BD116: 292.1637394 | BE116: 1328.908104 | BF116: 6.53924255 | BG116: 48.16716677 | BH116: 10.80735848 | BI116: 1217.916598 | BJ116: 427.7575885 | BK116: 87.40918843 | BL116: 58.45370414 | BM116: 2.08749091 | BN116: 1.29288765 | BO116: 0.92384748 | BP116: 1.42354967 | BQ116: 37.38203203 | BR116: 0.44270772 | BS116: 0.92371143 | BT116: 1.76709276 | BU116: 9.51674975 | BV116: 1.4605584 | BW116: 4.32206364 | BX116: 3.98091277 | BY116: 751.9844313 | BZ116: 577.3452773 | CB116: 1 | CC116: 358.167 | CD116: 1336.407 | CE116: 6.257 | CF116: 48.707 | CG116: 2.613 | CH116: 1278.489 | CI116: 428.427 | CJ116: 88.179 | CK116: 54.632 | CL116: 2.035 | CM116: 0.196 | CN116: 0.576 | CO116: 1.5 | CP116: 37.407 | CQ116: 0.695 | CR116: 0.957 | CS116: 1.596 | CT116: 9.622 | CU116: 1 | CV116: 5.215 | CW116: 11.123 | CX116: 732.965 | CY116: 0
A117: 18 | B117: 22 | C117: 3 | D117: 2000 | E117: 8598 | F117: 0 | G117: 2151.034694 | H117: 1012.701233 | I117: 200.8170957 | J117: 36.47456926 | K117: 149.2289126 | L117: 1302.144855 | M117: 0 | N117: 0 | O117: 0 | P117: 0 | Q117: 0 | R117: 0 | S117: 0 | T117: 0 | U117: 0 | V117: 0 | W117: 0 | X117: 0 | Y117: 0 | Z117: 4852.40136 | AA117: 2000-03-22 | AB117: 0 | AC117: 44.32928224 | AD117: 20.87010446 | AE117: 4.138509591 | AF117: 0.751680798 | AG117: 3.075362105 | AH117: 26.83506081 | AI117: 0 | AJ117: 0 | AK117: 0 | AL117: 0 | AM117: 0 | AN117: 0 | AO117: 0 | AP117: 0 | AQ117: 0 | AR117: 0 | AS117: 0 | AT117: 0 | AU117: 0 | AW117: 1534.925852 | AX117: 5459.577573 | AY117: -2433.517244 | AZ117: 2580.148119 | BD117: 76.19913899 | BE117: 593.4806572 | BF117: 0.01822563 | BG117: 9.52836361 | BH117: 3.56633826 | BI117: 218.9613835 | BJ117: 668.3270552 | BK117: 30.739828 | BL117: 28.30280524 | BM117: 0.64353719 | BN117: 0.50940576 | BO117: 0.52361176 | BP117: 1.03273463 | BQ117: 18.59150987 | BR117: 0.36235497 | BS117: 0.49933364 | BT117: 1.68442397 | BU117: 4.49089837 | BV117: 1.03977385 | BW117: 2.64036449 | BX117: 3.14114674 | BY117: 792.7869841 | BZ117: 40.2369813 | CB117: 1 | CC117: 62.831 | CD117: 611.139 | CE117: 1.101 | CF117: 7.92 | CG117: 16.03 | CH117: 220.268 | CI117: 670.842 | CJ117: 32.032 | CK117: 25.845 | CL117: 1.598 | CM117: 0.144 | CN117: 0.299 | CO117: 1.397 | CP117: 18.283 | CQ117: 0.623 | CR117: 0.084 | CS117: 4.659 | CT117: 5.349 | CU117: 1.3 | CV117: 5.323 | CW117: 10.792 | CX117: 785.024 | CY117: 0
A118: 18 | B118: 26 | C118: 3 | D118: 2000 | E118: 3931 | F118: 63.93210726 | G118: 335.0774306 | H118: 8.743245918 | I118: 1812.807361 | J118: 608.6073898 | K118: 80.91594616 | L118: 1326.218979 | M118: 0 | N118: 0 | O118: 0 | P118: 0 | Q118: 0 | R118: 0 | S118: 0 | T118: 0 | U118: 0 | V118: 0 | W118: 0 | X118: 0 | Y118: 0 | Z118: 4236.302459 | AA118: 2000-03-26 | AB118: 1.509148789 | AC118: 7.909667305 | AD118: 0.2063886137 | AE118: 42.79220802 | AF118: 14.36647632 | AG118: 1.910060647 | AH118: 31.3060503 | AI118: 0 | AJ118: 0 | AK118: 0 | AL118: 0 | AM118: 0 | AN118: 0 | AO118: 0 | AP118: 0 | AQ118: 0 | AR118: 0 | AS118: 0 | AT118: 0 | AU118: 0 | AW118: 1615.711423 | AX118: 5539.210739 | AY118: -2353.884077 | AZ118: 257.3619416 | BD118: 166.6878995 | BE118: 79.17914905 | BF118: 4.42712201 | BG118: 20.76261659 | BH118: 7.21339072 | BI118: 378.4767301 | BJ118: 5.85452014 | BK118: 21.08724121 | BL118: 7.79414531 | BM118: 1.09773017 | BN118: 0.30970284 | BO118: 0.34948815 | BP118: 0.75680966 | BQ118: 13.2001052 | BR118: 0.19866907 | BS118: 0.32145647 | BT118: 1.25370203 | BU118: 3.03199206 | BV118: 0.75254781 | BW118: 2.10118631 | BX118: 3.16726621 | BY118: 785.511831 | BZ118: 241.493214 | CB118: 1 | CC118: 126.376 | CD118: 0 | CE118: 6.09 | CF118: 21.472 | CG118: 10.241 | CH118: 393.271 | CI118: 5.96 | CJ118: 22.922 | CK118: 6.075 | CL118: 0.588 | CM118: 0.475 | CN118: 0.288 | CO118: 0.28 | CP118: 12.765 | CQ118: 0.132 | CR118: 0.388 | CS118: 1.578 | CT118: 6.609 | CU118: 0.1 | CV118: 0.844 | CW118: 14.28 | CX118: 797.332 | CY118: 0
A119: 18 | B119: 29 | C119: 3 | D119: 2000 | E119: 8599 | F119: 483.8676949 | G119: 380.5094853 | H119: 38.95820668 | I119: 3500.98622 | J119: 1885.768289 | K119: 96.81014988 | L119: 1640.651513 | M119: 0 | N119: 0 | O119: 0 | P119: 0 | Q119: 0 | R119: 0 | S119: 0 | T119: 0 | U119: 0 | V119: 0 | W119: 0 | X119: 0 | Y119: 0 | Z119: 8027.55156 | AA119: 2000-03-29 | AB119: 6.027587506 | AC119: 4.740044115 | AD119: 0.4853062156 | AE119: 43.61212998 | AF119: 23.49120121 | AG119: 1.205973567 | AH119: 20.43775741 | AI119: 0 | AJ119: 0 | AK119: 0 | AL119: 0 | AM119: 0 | AN119: 0 | AO119: 0 | AP119: 0 | AQ119: 0 | AR119: 0 | AS119: 0 | AT119: 0 | AU119: 0 | AW119: 1696.496994 | AX119: 5618.843906 | AY119: -2274.250911 | AZ119: 319.6095441 | BD119: 322.3366856 | BE119: 92.50074712 | BF119: 32.14978986 | BG119: 112.2673719 | BH119: 11.84074823 | BI119: 702.3827026 | BJ119: 25.97012015 | BK119: 50.0908148 | BL119: 17.21486665 | BM119: 4.03458401 | BN119: 0.46518981 | BO119: 0.53130186 | BP119: 1.46208936 | BQ119: 35.67288319 | BR119: 0.36483801 | BS119: 0.43407066 | BT119: 1.64703329 | BU119: 4.93708409 | BV119: 1.06546812 | BW119: 3.50237052 | BX119: 5.41100194 | BY119: 1112.29183 | BZ119: 509.8854972 | CB119: 1 | CC119: 281.617 | CD119: 0 | CE119: 35.583 | CF119: 109.91 | CG119: 14.828 | CH119: 738.34 | CI119: 26.102 | CJ119: 53.99 | CK119: 17.259 | CL119: 4.151 | CM119: 0 | CN119: 0.272 | CO119: 1.203 | CP119: 35.73 | CQ119: 0.429 | CR119: 0.458 | CS119: 2.348 | CT119: 4.48 | CU119: 1.4 | CV119: 2.286 | CW119: 11.38 | CX119: 1111.894 | CY119: 0
A120: 18 | B120: 2 | C120: 4 | D120: 2000 | E120: 9271 | F120: 39.68708505 | G120: 203.6535659 | H120: 93.8573054 | I120: 3159.875179 | J120: 4260.251729 | K120: 185.3521029 | L120: 1754.962796 | M120: 0 | N120: 0 | O120: 0 | P120: 0 | Q120: 0 | R120: 0 | S120: 0 | T120: 0 | U120: 0 | V120: 0 | W120: 0 | X120: 0 | Y120: 0 | Z120: 9697.639763 | AA120: 2000-04-02 | AB120: 0.4092447855 | AC120: 2.100032285 | AD120: 0.9678365838 | AE120: 32.58396121 | AF120: 43.93081031 | AG120: 1.911311488 | AH120: 18.09680334 | AI120: 0 | AJ120: 0 | AK120: 0 | AL120: 0 | AM120: 0 | AN120: 0 | AO120: 0 | AP120: 0 | AQ120: 0 | AR120: 0 | AS120: 0 | AT120: 0 | AU120: 0 | AW120: 1777.282565 | AX120: 5698.477072 | AY120: -2194.617744 | AZ120: 398.0238945 | BD120: 431.2612837 | BE120: 56.00969604 | BF120: 4.6842802 | BG120: 24.26398152 | BH120: 11.48614941 | BI120: 632.550179 | BJ120: 62.5256554 | BK120: 80.32805412 | BL120: 8.90850751 | BM120: 1.54822648 | BN120: 0.47991624 | BO120: 0.70941652 | BP120: 1.26875483 | BQ120: 25.02686225 | BR120: 0.25549699 | BS120: 0.50737125 | BT120: 2.25837117 | BU120: 9.99733225 | BV120: 1.14537753 | BW120: 4.3100145 | BX120: 9.17563793 | BY120: 1361.054996 | BZ120: 616.5456595 | CB120: 1 | CC120: 387.445 | CD120: 0 | CE120: 5.004 | CF120: 23.843 | CG120: 12.118 | CH120: 658.209 | CI120: 62.69 | CJ120: 87.481 | CK120: 7.873 | CL120: 0.721 | CM120: 0.37 | CN120: 1.258 | CO120: 0.979 | CP120: 25.413 | CQ120: 0.055 | CR120: 0.006 | CS120: 4.219 | CT120: 6.506 | CU120: 3.2 | CV120: 8.424 | CW120: 13.963 | CX120: 1351.029 | CY120: 0
A121: 18 | B121: 5 | C121: 4 | D121: 2000 | E121: 5446 | F121: 395.7889225 | G121: 775.4221713 | H121: 9.970633993 | I121: 2611.477695 | J121: 815.4435424 | K121: 136.4653854 | L121: 1531.236662 | M121: 0 | N121: 0 | O121: 0 | P121: 0 | Q121: 0 | R121: 0 | S121: 0 | T121: 0 | U121: 0 | V121: 0 | W121: 0 | X121: 0 | Y121: 0 | Z121: 6275.805013 | AA121: 2000-04-05 | AB121: 6.306584122 | AC121: 12.35574033 | AD121: 0.1588741838 | AE121: 41.61183608 | AF121: 12.9934493 | AG121: 2.174468217 | AH121: 24.39904776 | AI121: 0 | AJ121: 0 | AK121: 0 | AL121: 0 | AM121: 0 | AN121: 0 | AO121: 0 | AP121: 0 | AQ121: 0 | AR121: 0 | AS121: 0 | AT121: 0 | AU121: 0 | AW121: 1858.068136 | AX121: 5778.110239 | AY121: -2114.984578 | AZ121: 646.2868933 | BD121: 222.3009338 | BE121: 182.3189409 | BF121: 25.93500048 | BG121: 92.04099203 | BH121: 9.62799968 | BI121: 565.823362 | BJ121: 6.69354284 | BK121: 35.29174898 | BL121: 18.73515392 | BM121: 3.3779188 | BN121: 0.48078409 | BO121: 0.61787854 | BP121: 1.39724099 | BQ121: 36.31493949 | BR121: 0.34464608 | BS121: 0.46669313 | BT121: 1.7424613 | BU121: 4.86555994 | BV121: 1.00091103 | BW121: 2.81770624 | BX121: 4.01767537 | BY121: 959.8294544 | BZ121: 344.123896 | CB121: 1 | CC121: 226.891 | CD121: 130.197 | CE121: 28.848 | CF121: 90.074 | CG121: 17.224 | CH121: 573.701 | CI121: 6.711 | CJ121: 36.327 | CK121: 19.387 | CL121: 4.667 | CM121: 0.286 | CN121: 0.966 | CO121: 1.406 | CP121: 36.105 | CQ121: 0.869 | CR121: 0 | CS121: 2.039 | CT121: 4.754 | CU121: 2.5 | CV121: 2.214 | CW121: 8.859 | CX121: 932.273 | CY121: 0
A122: 18 | B122: 9 | C122: 4 | D122: 2000 | E122: 4845 | F122: 73.9153517 | G122: 247.7606971 | H122: 19.07755045 | I122: 2000.525365 | J122: 1589.123152 | K122: 54.98752294 | L122: 1474.621669 | M122: 0 | N122: 0 | O122: 0 | P122: 0 | Q122: 0 | R122: 0 | S122: 0 | T122: 0 | U122: 0 | V122: 0 | W122: 0 | X122: 0 | Y122: 0 | Z122: 5460.011308 | AA122: 2000-04-09 | AB122: 1.353758217 | AC122: 4.537732307 | AD122: 0.3494049623 | AE122: 36.63958281 | AF122: 29.10475936 | AG122: 1.007095404 | AH122: 27.00766694 | AI122: 0 | AJ122: 0 | AK122: 0 | AL122: 0 | AM122: 0 | AN122: 0 | AO122: 0 | AP122: 0 | AQ122: 0 | AR122: 0 | AS122: 0 | AT122: 0 | AU122: 0 | AW122: 1938.853707 | AX122: 5857.743406 | AY122: -2035.351411 | AZ122: 487.2120779 | BD122: 230.7288205 | BE122: 59.66952903 | BF122: 5.55997868 | BG122: 24.54995741 | BH122: 7.90841483 | BI122: 408.2294421 | BJ122: 12.80893583 | BK122: 36.83673792 | BL122: 7.35447978 | BM122: 1.20150374 | BN122: 0.30153208 | BO122: 0.27938565 | BP122: 0.73623039 | BQ122: 10.45722361 | BR122: 0.21817682 | BS122: 0.31184308 | BT122: 1.24033204 | BU122: 3.36131546 | BV122: 0.79779489 | BW122: 2.64894045 | BX122: 4.5590416 | BY122: 947.3213494 | BZ122: 322.3937317 | CB122: 1 | CC122: 224.174 | CD122: 0 | CE122: 9.542 | CF122: 23.888 | CG122: 10.407 | CH122: 417.458 | CI122: 12.857 | CJ122: 38.493 | CK122: 7.437 | CL122: 0.988 | CM122: 0.165 | CN122: 0.196 | CO122: 0.512 | CP122: 10.499 | CQ122: 0 | CR122: 0.171 | CS122: 1.299 | CT122: 3.026 | CU122: 2 | CV122: 5.937 | CW122: 14.804 | CX122: 932.711 | CY122: 0
A123: 18 | B123: 12 | C123: 4 | D123: 2000 | E123: 9072 | F123: 297.1367631 | G123: 48.85121214 | H123: 9.531198756 | I123: 3491.736657 | J123: 2110.676434 | K123: 219.0670804 | L123: 2668.759397 | M123: 0 | N123: 0 | O123: 0 | P123: 0 | Q123: 0 | R123: 0 | S123: 0 | T123: 0 | U123: 0 | V123: 0 | W123: 0 | X123: 0 | Y123: 0 | Z123: 8845.758743 | AA123: 2000-04-12 | AB123: 3.359087352 | AC123: 0.5522557596 | AD123: 0.1077487984 | AE123: 39.47356873 | AF123: 23.86088628 | AG123: 2.476521085 | AH123: 30.169932 | AI123: 0 | AJ123: 0 | AK123: 0 | AL123: 0 | AM123: 0 | AN123: 0 | AO123: 0 | AP123: 0 | AQ123: 0 | AR123: 0 | AS123: 0 | AT123: 0 | AU123: 0 | AW123: 2019.639279 | AX123: 5937.376572 | AY123: -1955.718245 | AZ123: 68.95877388 | BD123: 372.6588049 | BE123: 12.27998216 | BF123: 20.2178513 | BG123: 74.89695052 | BH123: 14.27633976 | BI123: 687.5664779 | BJ123: 6.58152954 | BK123: 52.39079631 | BL123: 13.40446777 | BM123: 3.27771246 | BN123: 0.5567098 | BO123: 0.91453471 | BP123: 1.87155511 | BQ123: 41.79023009 | BR123: 0.41164782 | BS123: 0.64030753 | BT123: 2.90382054 | BU123: 8.64021535 | BV123: 1.48019742 | BW123: 4.3442016 | BX123: 7.81691417 | BY123: 1614.022942 | BZ123: 522.0628296 | CB123: 1 | CC123: 365.225 | CD123: 0 | CE123: 26.864 | CF123: 72.632 | CG123: 17.088 | CH123: 711.734 | CI123: 6.664 | CJ123: 54.974 | CK123: 11.584 | CL123: 3.93 | CM123: 0 | CN123: 0.799 | CO123: 0.845 | CP123: 42.952 | CQ123: 0 | CR123: 0 | CS123: 2.744 | CT123: 5.105 | CU123: 0.9 | CV123: 16.809 | CW123: 30.351 | CX123: 1593.356 | CY123: 0
A124: 18 | B124: 16 | C124: 4 | D124: 2000 | E124: 6744 | F124: 113.0122942 | G124: 9.744598747 | H124: 8.985692945 | I124: 2051.21083 | J124: 2138.445593 | K124: 105.7205368 | L124: 1980.423083 | M124: 0 | N124: 0 | O124: 0 | P124: 0 | Q124: 0 | R124: 0 | S124: 0 | T124: 0 | U124: 0 | V124: 0 | W124: 0 | X124: 0 | Y124: 0 | Z124: 6407.542628 | AA124: 2000-04-16 | AB124: 1.763738469 | AC124: 0.1520801236 | AD124: 0.1402361789 | AE124: 32.01244141 | AF124: 33.37388008 | AG124: 1.649938876 | AH124: 30.90768486 | AI124: 0 | AJ124: 0 | AK124: 0 | AL124: 0 | AM124: 0 | AN124: 0 | AO124: 0 | AP124: 0 | AQ124: 0 | AR124: 0 | AS124: 0 | AT124: 0 | AU124: 0 | AW124: 2100.42485 | AX124: 6017.009739 | AY124: -1876.085078 | AZ124: 171.1014721 | BD124: 280.220548 | BE124: 3.08085353 | BF124: 8.35566502 | BG124: 33.30739324 | BH124: 9.21430895 | BI124: 405.7239348 | BJ124: 6.22455861 | BK124: 46.19647026 | BL124: 7.08180739 | BM124: 1.61768144 | BN124: 0.33320121 | BO124: 0.46838404 | BP124: 1.05678355 | BQ124: 18.68497704 | BR124: 0.27552335 | BS124: 0.39956474 | BT124: 1.84562648 | BU124: 5.39113465 | BV124: 0.99423204 | BW124: 3.25280591 | BX124: 6.277829 | BY124: 1230.6852 | BZ124: 361.3342568 | CB124: 1 | CC124: 337.508 | CD124: 0 | CE124: 12.691 | CF124: 32.903 | CG124: 14.315 | CH124: 405.142 | CI124: 6.187 | CJ124: 45.229 | CK124: 7.923 | CL124: 1.956 | CM124: 0.472 | CN124: 0.61 | CO124: 1.063 | CP124: 18.39 | CQ124: 0 | CR124: 0.441 | CS124: 0.958 | CT124: 6.765 | CU124: 3.2 | CV124: 7.916 | CW124: 20.927 | CX124: 1172.09 | CY124: 0
A125: 18 | B125: 19 | C125: 4 | D125: 2000 | E125: 5057 | F125: 129.9788919 | G125: 209.9362677 | H125: 16.21364494 | I125: 1815.373713 | J125: 2026.817983 | K125: 226.3719922 | L125: 2512.685631 | M125: 0 | N125: 0 | O125: 0 | P125: 0 | Q125: 0 | R125: 0 | S125: 0 | T125: 0 | U125: 0 | V125: 0 | W125: 0 | X125: 0 | Y125: 0 | Z125: 6937.378124 | AA125: 2000-04-19 | AB125: 1.873602528 | AC125: 3.026161526 | AD125: 0.2337143032 | AE125: 26.16800873 | AF125: 29.21590761 | AG125: 3.263077033 | AH125: 36.21952827 | AI125: 0 | AJ125: 0 | AK125: 0 | AL125: 0 | AM125: 0 | AN125: 0 | AO125: 0 | AP125: 0 | AQ125: 0 | AR125: 0 | AS125: 0 | AT125: 0 | AU125: 0 | AW125: 2181.210421 | AX125: 6096.642905 | AY125: -1796.451912 | AZ125: 1390.519641 | BD125: 284.336886 | BE125: 50.56467476 | BF125: 9.39437418 | BG125: 37.48735976 | BH125: 10.0645165 | BI125: 385.5243598 | BJ125: 10.97994776 | BK125: 49.51002744 | BL125: 10.90795553 | BM125: 1.96850904 | BN125: 0.45765644 | BO125: 0.86821127 | BP125: 1.56332625 | BQ125: 34.54308306 | BR125: 0.35534337 | BS125: 0.58921697 | BT125: 2.82738152 | BU125: 8.68423409 | BV125: 1.2769233 | BW125: 3.69218898 | BX125: 7.51379283 | BY125: 1487.435566 | BZ125: 328.0733796 | CB125: 1 | CC125: 231.191 | CD125: 0 | CE125: 11.712 | CF125: 37.954 | CG125: 33.08 | CH125: 396.007 | CI125: 11.078 | CJ125: 54.286 | CK125: 9.522 | CL125: 1.469 | CM125: 0 | CN125: 0.483 | CO125: 0.907 | CP125: 33.66 | CQ125: 0.401 | CR125: 0.221 | CS125: 5.574 | CT125: 10.866 | CU125: 1 | CV125: 6.672 | CW125: 22.429 | CX125: 1443.689 | CY125: 0
A126: 18 | B126: 23 | C126: 4 | D126: 2000 | E126: 8688 | F126: 79.07909883 | G126: 457.5260069 | H126: 343.9565669 | I126: 971.364482 | J126: 5589.534898 | K126: 116.8785889 | L126: 1477.457519 | M126: 0 | N126: 0 | O126: 0 | P126: 0 | Q126: 0 | R126: 0 | S126: 0 | T126: 0 | U126: 0 | V126: 0 | W126: 0 | X126: 0 | Y126: 0 | Z126: 9035.797161 | AA126: 2000-04-23 | AB126: 0.8751756754 | AC126: 5.063482489 | AD126: 3.806599028 | AE126: 10.75018025 | AF126: 61.8598979 | AG126: 1.293506116 | AH126: 16.35115854 | AI126: 0 | AJ126: 0 | AK126: 0 | AL126: 0 | AM126: 0 | AN126: 0 | AO126: 0 | AP126: 0 | AQ126: 0 | AR126: 0 | AS126: 0 | AT126: 0 | AU126: 0 | AW126: 2261.995992 | AX126: 6176.276072 | AY126: -1716.818745 | AZ126: 335.9519764 | BD126: 389.0345451 | BE126: 137.6829045 | BF126: 7.887905 | BG126: 29.97277782 | BH126: 5.6589514 | BI126: 239.954946 | BJ126: 227.7577465 | BK126: 103.7723839 | BL126: 11.16217342 | BM126: 1.29902039 | BN126: 0.30117883 | BO126: 0.4587787 | BP126: 0.9467864 | BQ126: 18.41936035 | BR126: 0.27223423 | BS126: 0.36133019 | BT126: 1.80478623 | BU126: 9.43913188 | BV126: 0.85035599 | BW126: 4.17491131 | BX126: 10.29132851 | BY126: 1293.135906 | BZ126: 454.3804651 | CB126: 1 | CC126: 348.489 | CD126: 0 | CE126: 10.082 | CF126: 30.053 | CG126: 2.484 | CH126: 245.529 | CI126: 228.2 | CJ126: 111.01 | CK126: 13.197 | CL126: 0.86 | CM126: 0 | CN126: 0.926 | CO126: 0.824 | CP126: 17.747 | CQ126: 0.183 | CR126: 0.318 | CS126: 1.166 | CT126: 13.303 | CU126: 2.5 | CV126: 10.518 | CW126: 20.215 | CX126: 1294.959 | CY126: 0
A127: 18 | B127: 26 | C127: 4 | D127: 2000 | E127: 5849 | F127: 46.37536704 | G127: 1441.431304 | H127: 565.5531497 | I127: 865.8232289 | J127: 678.5812614 | K127: 133.3347089 | L127: 1177.612271 | M127: 0 | N127: 0 | O127: 0 | P127: 0 | Q127: 0 | R127: 0 | S127: 0 | T127: 0 | U127: 0 | V127: 0 | W127: 0 | X127: 0 | Y127: 0 | Z127: 4908.711291 | AA127: 2000-04-26 | AB127: 0.9447564602 | AC127: 29.36476029 | AD127: 11.52141807 | AE127: 17.63850383 | AF127: 13.82402063 | AG127: 2.716287453 | AH127: 23.99025327 | AI127: 0 | AJ127: 0 | AK127: 0 | AL127: 0 | AM127: 0 | AN127: 0 | AO127: 0 | AP127: 0 | AQ127: 0 | AR127: 0 | AS127: 0 | AT127: 0 | AU127: 0 | AW127: 2342.781563 | AX127: 6255.909238 | AY127: -1637.185578 | AZ127: 610.2232305 | BD127: 128.2995884 | BE127: 387.6281109 | BF127: 3.32962075 | BG127: 18.77694405 | BH127: 4.81174936 | BI127: 287.9108872 | BJ127: 373.3246928 | BK127: 33.37395717 | BL127: 20.25568071 | BM127: 0.96106958 | BN127: 0.43315781 | BO127: 0.48925261 | BP127: 0.9400015 | BQ127: 18.87411748 | BR127: 0.28612941 | BS127: 0.42660438 | BT127: 1.51709984 | BU127: 4.66720512 | BV127: 0.88408754 | BW127: 2.44866622 | BX127: 3.53588258 | BY127: 763.3926358 | BZ127: 147.4371363 | CB127: 1 | CC127: 143.201 | CD127: 448.168 | CE127: 6.224 | CF127: 18.501 | CG127: 2.138 | CH127: 288.678 | CI127: 373.336 | CJ127: 33.081 | CK127: 18.981 | CL127: 1.117 | CM127: 1.234 | CN127: 0 | CO127: 1.243 | CP127: 19.116 | CQ127: 0.232 | CR127: 0.236 | CS127: 1.456 | CT127: 4.108 | CU127: 1.4 | CV127: 2.278 | CW127: 4.631 | CX127: 755.299 | CY127: 0
A128: 18 | B128: 30 | C128: 4 | D128: 2000 | E128: 3872 | F128: 104.4552276 | G128: 194.7637565 | H128: 124.1631838 | I128: 798.884197 | J128: 1642.788153 | K128: 53.86369035 | L128: 2037.935756 | M128: 0 | N128: 0 | O128: 0 | P128: 0 | Q128: 0 | R128: 0 | S128: 0 | T128: 0 | U128: 0 | V128: 0 | W128: 0 | X128: 0 | Y128: 0 | Z128: 4956.853964 | AA128: 2000-04-30 | AB128: 2.107288783 | AC128: 3.929180846 | AD128: 2.504878794 | AE128: 16.11675879 | AF128: 33.14175009 | AG128: 1.086650742 | AH128: 41.11349196 | AI128: 0 | AJ128: 0 | AK128: 0 | AL128: 0 | AM128: 0 | AN128: 0 | AO128: 0 | AP128: 0 | AQ128: 0 | AR128: 0 | AS128: 0 | AT128: 0 | AU128: 0 | AW128: 2423.567134 | AX128: 6335.542405 | AY128: -1557.552412 | AZ128: 811.9342459 | BD128: 200.7569833 | BE128: 56.62817971 | BF128: 7.55655726 | BG128: 28.83186313 | BH128: 6.31229274 | BI128: 183.4430609 | BJ128: 82.16656126 | BK128: 40.39244028 | BL128: 8.24450077 | BM128: 1.26607613 | BN128: 0.24111484 | BO128: 0.28713967 | BP128: 0.84220788 | BQ128: 11.80752431 | BR128: 0.29729927 | BS128: 0.33096587 | BT128: 1.57410509 | BU128: 3.35592351 | BV128: 0.88281222 | BW128: 2.87326207 | BX128: 5.50214499 | BY128: 1186.510874 | BZ128: 191.7758708 | CB128: 1 | CC128: 160.36 | CD128: 0 | CE128: 8.978 | CF128: 28.95 | CG128: 3.565 | CH128: 187.495 | CI128: 82.448 | CJ128: 43.802 | CK128: 6.289 | CL128: 1.675 | CM128: 0 | CN128: 0.377 | CO128: 0.37 | CP128: 11.683 | CQ128: 0 | CR128: 0.405 | CS128: 0.188 | CT128: 4.535 | CU128: 1.2 | CV128: 5.835 | CW128: 20.981 | CX128: 1223.404 | CY128: 0
A129: 18 | B129: 3 | C129: 5 | D129: 2000 | E129: 5838 | F129: 71.11217469 | G129: 585.0178405 | H129: 293.330597 | I129: 1640.701335 | J129: 217.8556599 | K129: 248.5275489 | L129: 2776.37889 | M129: 0 | N129: 0 | O129: 0 | P129: 0 | Q129: 0 | R129: 0 | S129: 0 | T129: 0 | U129: 0 | V129: 0 | W129: 0 | X129: 0 | Y129: 0 | Z129: 5832.924046 | AA129: 2000-05-03 | AB129: 1.219151392 | AC129: 10.02958098 | AD129: 5.028877364 | AE129: 28.12828218 | AF129: 3.734930511 | AG129: 4.260771218 | AH129: 47.59840636 | AI129: 0 | AJ129: 0 | AK129: 0 | AL129: 0 | AM129: 0 | AN129: 0 | AO129: 0 | AP129: 0 | AQ129: 0 | AR129: 0 | AS129: 0 | AT129: 0 | AU129: 0 | AW129: 2504.352705 | AX129: 6415.175571 | AY129: -1477.919245 | AZ129: 55.69368113 | BD129: 199.270267 | BE129: 163.0044579 | BF129: 4.69542453 | BG129: 24.10407785 | BH129: 10.26854789 | BI129: 382.0824436 | BJ129: 193.6122316 | BK129: 24.87993514 | BL129: 15.30024496 | BM129: 1.63769589 | BN129: 0.53119942 | BO129: 0.93259363 | BP129: 1.68566735 | BQ129: 34.43066604 | BR129: 0.40684687 | BS129: 0.6683938 | BT129: 3.038225 | BU129: 7.41759675 | BV129: 1.46041438 | BW129: 3.47850579 | BX129: 5.74138536 | BY129: 1472.225338 | BZ129: 202.6689892 | CB129: 1 | CC129: 128.218 | CD129: 0 | CE129: 3.743 | CF129: 25.07 | CG129: 25.578 | CH129: 384.286 | CI129: 193.734 | CJ129: 26.214 | CK129: 18.182 | CL129: 1.524 | CM129: 0.564 | CN129: 0.889 | CO129: 2.177 | CP129: 31.566 | CQ129: 0.085 | CR129: 0.637 | CS129: 8.439 | CT129: 14.158 | CU129: 2.7 | CV129: 4.759 | CW129: 19.146 | CX129: 1460.244 | CY129: 494.586
A130: 18 | B130: 7 | C130: 5 | D130: 2000 | E130: 4644 | F130: 225.9262314 | G130: 323.2813374 | H130: 99.73664581 | I130: 1421.06432 | J130: 1633.311376 | K130: 65.50338499 | L130: 1138.400012 | M130: 0 | N130: 0 | O130: 0 | P130: 0 | Q130: 0 | R130: 0 | S130: 0 | T130: 0 | U130: 0 | V130: 0 | W130: 0 | X130: 0 | Y130: 0 | Z130: 4907.223308 | AA130: 2000-05-07 | AB130: 4.603952524 | AC130: 6.587866845 | AD130: 2.032445632 | AE130: 28.95862346 | AF130: 33.28382007 | AG130: 1.334836034 | AH130: 23.19845544 | AI130: 0 | AJ130: 0 | AK130: 0 | AL130: 0 | AM130: 0 | AN130: 0 | AO130: 0 | AP130: 0 | AQ130: 0 | AR130: 0 | AS130: 0 | AT130: 0 | AU130: 0 | AW130: 2585.138277 | AX130: 6494.808738 | AY130: -1398.286079 | AZ130: 234.6379264 | BD130: 194.0693197 | BE130: 84.52299781 | BF130: 15.38669916 | BG130: 54.06633401 | BH130: 5.86937157 | BI130: 303.7578469 | BJ130: 66.04498703 | BK130: 38.99303833 | BL130: 10.42915686 | BM130: 1.9755808 | BN130: 0.2591109 | BO130: 0.32355253 | BP130: 0.83859493 | BQ130: 19.18536752 | BR130: 0.23204385 | BS130: 0.27203722 | BT130: 1.1389492 | BU130: 3.69792644 | BV130: 0.65621139 | BW130: 2.29913425 | BX130: 4.20635652 | BY130: 773.1854603 | BZ130: 260.9746629 | CB130: 1 | CC130: 117.276 | CD130: 0 | CE130: 16.713 | CF130: 56.559 | CG130: 5.558 | CH130: 309.253 | CI130: 66.164 | CJ130: 40.567 | CK130: 10.396 | CL130: 2.872 | CM130: 0.343 | CN130: 0.136 | CO130: 0.623 | CP130: 17.594 | CQ130: 0.136 | CR130: 0.123 | CS130: 3.201 | CT130: 15.061 | CU130: 3.2 | CV130: 5.127 | CW130: 13.631 | CX130: 803.203 | CY130: 445.753
A131: 18 | B131: 10 | C131: 5 | D131: 2000 | E131: 6683 | F131: 165.3382651 | G131: 430.3009657 | H131: 25.60846725 | I131: 1919.043668 | J131: 2319.496098 | K131: 252.0595942 | L131: 2289.489944 | M131: 0 | N131: 0 | O131: 0 | P131: 0 | Q131: 0 | R131: 0 | S131: 0 | T131: 0 | U131: 0 | V131: 0 | W131: 0 | X131: 0 | Y131: 0 | Z131: 7401.337002 | AA131: 2000-05-10 | AB131: 2.233897268 | AC131: 5.813827496 | AD131: 0.3459978547 | AE131: 25.92833791 | AF131: 31.33887968 | AG131: 3.405595423 | AH131: 30.93346437 | AI131: 0 | AJ131: 0 | AK131: 0 | AL131: 0 | AM131: 0 | AN131: 0 | AO131: 0 | AP131: 0 | AQ131: 0 | AR131: 0 | AS131: 0 | AT131: 0 | AU131: 0 | AW131: 2665.923848 | AX131: 6574.441904 | AY131: -1318.652912 | AZ131: 579.4696969 | BD131: 295.3968755 | BE131: 102.9614479 | BF131: 11.82100297 | BG131: 45.77042871 | BH131: 9.88694725 | BI131: 421.7629186 | BJ131: 17.22016561 | BK131: 56.07337657 | BL131: 13.47594339 | BM131: 2.22257358 | BN131: 0.50167362 | BO131: 0.94906292 | BP131: 1.6400162 | BQ131: 39.46876584 | BR131: 0.35447613 | BS131: 0.61283149 | BT131: 2.86335586 | BU131: 9.73385124 | BV131: 1.25915102 | BW131: 3.72226945 | BX131: 7.70079325 | BY131: 1422.732249 | BZ131: 357.6885219 | CB131: 1 | CC131: 212.986 | CD131: 0 | CE131: 5.913 | CF131: 45.516 | CG131: 54.872 | CH131: 426.403 | CI131: 17.278 | CJ131: 61.157 | CK131: 14.179 | CL131: 2.2 | CM131: 0.189 | CN131: 0.478 | CO131: 0.867 | CP131: 39.444 | CQ131: 0 | CR131: 0 | CS131: 9.127 | CT131: 7.726 | CU131: 1.4 | CV131: 7.31 | CW131: 19.735 | CX131: 1398.188 | CY131: 429.36
A132: 18 | B132: 14 | C132: 5 | D132: 2000 | E132: 2576 | F132: 88.57055783 | G132: 1327.316924 | H132: 377.7930801 | I132: 236.7994986 | J132: 127.3855047 | K132: 12.52270595 | L132: 511.9627576 | M132: 0 | N132: 0 | O132: 0 | P132: 0 | Q132: 0 | R132: 0 | S132: 0 | T132: 0 | U132: 0 | V132: 0 | W132: 0 | X132: 0 | Y132: 0 | Z132: 2682.351029 | AA132: 2000-05-14 | AB132: 3.301974905 | AC132: 49.48334166 | AD132: 14.08440119 | AE132: 8.828057777 | AF132: 4.749024396 | AG132: 0.4668555987 | AH132: 19.08634448 | AI132: 0 | AJ132: 0 | AK132: 0 | AL132: 0 | AM132: 0 | AN132: 0 | AO132: 0 | AP132: 0 | AQ132: 0 | AR132: 0 | AS132: 0 | AT132: 0 | AU132: 0 | AW132: 2746.709419 | AX132: 6654.075071 | AY132: -1239.019746 | AZ132: 101.9095545 | BD132: 42.71911588 | BE132: 344.2061137 | BF132: 5.77631533 | BG132: 23.88856853 | BH132: 1.66744057 | BI132: 151.1207958 | BJ132: 249.3384276 | BK132: 20.53956165 | BL132: 16.55279864 | BM132: 0.76211868 | BN132: 0.25244218 | BO132: 0.08338029 | BP132: 0.36445987 | BQ132: 5.88315158 | BR132: 0.19584352 | BS132: 0.20079538 | BT132: 0.41913846 | BU132: 0.58114287 | BV132: 0.43397444 | BW132: 1.29183909 | BX132: 1.14888188 | BY132: 359.3965078 | BZ132: 40.17510834 | CB132: 1 | CC132: 33.793 | CD132: 237.108 | CE132: 6.003 | CF132: 23.522 | CG132: 1.041 | CH132: 151.484 | CI132: 249.42 | CJ132: 20.966 | CK132: 17.73 | CL132: 0.258 | CM132: 0.144 | CN132: 0.068 | CO132: 0.49 | CP132: 5.896 | CQ132: 0.146 | CR132: 0.026 | CS132: 0.014 | CT132: 0.301 | CU132: 0.5 | CV132: 1.167 | CW132: 1.119 | CX132: 362.306 | CY132: 109.259
A133: 18 | B133: 17 | C133: 5 | D133: 2000 | E133: 5436 | F133: 132.0443908 | G133: 1617.346955 | H133: 334.9405681 | I133: 108.6957283 | J133: 1239.033404 | K133: 158.5406683 | L133: 2689.732447 | M133: 0 | N133: 0 | O133: 0 | P133: 0 | Q133: 0 | R133: 0 | S133: 0 | T133: 0 | U133: 0 | V133: 0 | W133: 0 | X133: 0 | Y133: 0 | Z133: 6280.334162 | AA133: 2000-05-17 | AB133: 2.102505812 | AC133: 25.7525621 | AD133: 5.333164755 | AE133: 1.730731606 | AF133: 19.7287815 | AG133: 2.524398611 | AH133: 42.82785562 | AI133: 0 | AJ133: 0 | AK133: 0 | AL133: 0 | AM133: 0 | AN133: 0 | AO133: 0 | AP133: 0 | AQ133: 0 | AR133: 0 | AS133: 0 | AT133: 0 | AU133: 0 | AW133: 2827.49499 | AX133: 6733.708238 | AY133: -1159.386579 | AZ133: 656.5324988 | BD133: 176.5324202 | BE133: 408.2498745 | BF133: 9.13474415 | BG133: 38.04676997 | BH133: 6.32587021 | BI133: 172.4722779 | BJ133: 221.2124871 | BK133: 53.18979051 | BL133: 24.13358779 | BM133: 1.65104087 | BN133: 0.51150269 | BO133: 0.6371719 | BP133: 1.35772216 | BQ133: 26.19486676 | BR133: 0.48316481 | BS133: 0.61595402 | BT133: 2.54228141 | BU133: 5.90400358 | BV133: 1.31890737 | BW133: 3.71437698 | BX133: 6.537646 | BY133: 1543.184888 | BZ133: 92.63122552 | CB133: 1 | CC133: 178.314 | CD133: 0 | CE133: 9.754 | CF133: 36.254 | CG133: 3.189 | CH133: 172.549 | CI133: 220.403 | CJ133: 53.164 | CK133: 45.782 | CL133: 1.752 | CM133: 0 | CN133: 0.84 | CO133: 0.9 | CP133: 25.765 | CQ133: 0 | CR133: 0 | CS133: 1.306 | CT133: 6.606 | CU133: 2.2 | CV133: 10.402 | CW133: 17.526 | CX133: 1500.169 | CY133: 33.825
A134: 18 | B134: 24 | C134: 5 | D134: 2000 | E134: 24172 | F134: 1544.206283 | G134: 39.57674754 | H134: 252.0842965 | I134: 1435.286191 | J134: 9617.054632 | K134: 360.9108075 | L134: 6549.997741 | M134: 0 | N134: 0 | O134: 0 | P134: 0 | Q134: 0 | R134: 0 | S134: 0 | T134: 0 | U134: 0 | V134: 0 | W134: 0 | X134: 0 | Y134: 0 | Z134: 19799.1167 | AA134: 2000-05-24 | AB134: 7.79936957 | AC134: 0.1998914807 | AD134: 1.273209812 | AE134: 7.249243554 | AF134: 48.57314989 | AG134: 1.822863176 | AH134: 33.08227251 | AI134: 0 | AJ134: 0 | AK134: 0 | AL134: 0 | AM134: 0 | AN134: 0 | AO134: 0 | AP134: 0 | AQ134: 0 | AR134: 0 | AS134: 0 | AT134: 0 | AU134: 0 | AW134: 2908.280561 | AX134: 6813.341404 | AY134: -1079.753413 | AZ134: 2868.662968 | BD134: 808.8125864 | BE134: 31.71237745 | BF134: 104.3968553 | BG134: 340.3559247 | BH134: 18.06965569 | BI134: 345.9942017 | BJ134: 167.6838552 | BK134: 211.5618053 | BL134: 42.59961735 | BM134: 11.50240508 | BN134: 0.73337212 | BO134: 1.76247536 | BP134: 4.5101512 | BQ134: 120.3168878 | BR134: 1.26492209 | BS134: 1.16212763 | BT134: 6.47884264 | BU134: 20.6941209 | BV134: 2.8002713 | BW134: 10.51291879 | BX134: 24.27424603 | BY134: 4131.593942 | BZ134: 750.019755 | CB134: 1 | CC134: 839.955 | CD134: 0 | CE134: 98.604 | CF134: 350.48 | CG134: 41.319 | CH134: 342.64 | CI134: 167.397 | CJ134: 203.897 | CK134: 49.505 | CL134: 13.292 | CM134: 0.995 | CN134: 0.515 | CO134: 2.871 | CP134: 111.947 | CQ134: 2.124 | CR134: 0.124 | CS134: 11.635 | CT134: 27.695 | CU134: 1.3 | CV134: 23.416 | CW134: 61.963 | CX134: 3824.941 | CY134: 805.881
A135: 18 | B135: 28 | C135: 5 | D135: 2000 | E135: 1242 | F135: 91.6688061 | G135: 6.325441292 | H135: 125.4360307 | I135: 224.1281324 | J135: 238.7927238 | K135: 0 | L135: 232.4989075 | M135: 0 | N135: 0 | O135: 0 | P135: 0 | Q135: 0 | R135: 0 | S135: 0 | T135: 0 | U135: 0 | V135: 0 | W135: 0 | X135: 0 | Y135: 0 | Z135: 918.8500418 | AA135: 2000-05-28 | AB135: 9.976470798 | AC135: 0.6884084458 | AD135: 13.65141481 | AE135: 24.39224271 | AF135: 25.98821494 | AG135: 0 | AH135: 25.30324829 | AI135: 0 | AJ135: 0 | AK135: 0 | AL135: 0 | AM135: 0 | AN135: 0 | AO135: 0 | AP135: 0 | AQ135: 0 | AR135: 0 | AS135: 0 | AT135: 0 | AU135: 0 | AW135: 2989.066132 | AX135: 6892.974571 | AY135: -1000.120246 | AZ135: 217.5195245 | BD135: 33.2873266 | BE135: 12.65136026 | BF135: 6.03170329 | BG135: 19.81580474 | BH135: 1.01567032 | BI135: 44.4008588 | BJ135: 82.81291621 | BK135: 6.46452789 | BL135: 2.8483592 | BM135: 0.64084641 | BN135: 0.03053532 | BO135: 0.03326964 | BP135: 0.2006097 | BQ135: 4.47341804 | BR135: 0.06411016 | BS135: 0.03481144 | BT135: 0.16986518 | BU135: 0.29276641 | BV135: 0.13150415 | BW135: 0.47314168 | BX135: 0.71299266 | BY135: 143.18568 | BZ135: 41.68344063 | CB135: 1 | CC135: 29.215 | CD135: 0 | CE135: 4.29 | CF135: 24.365 | CG135: 3.122 | CH135: 44.155 | CI135: 82.768 | CJ135: 6.271 | CK135: 3.253 | CL135: 0.341 | CM135: 0.022 | CN135: 0 | CO135: 0.667 | CP135: 1.798 | CQ135: 0 | CR135: 0.015 | CS135: 0.173 | CT135: 0.554 | CU135: 0 | CV135: 1.17 | CW135: 4.367 | CX135: 142.056 | CY135: 263.19
A136: 18 | B136: 31 | C136: 5 | D136: 2000 | E136: 3445 | F136: 179.1082574 | G136: 123.0469289 | H136: 26.97223177 | I136: 609.7760853 | J136: 342.2658977 | K136: 21.35281913 | L136: 1131.463401 | M136: 0 | N136: 0 | O136: 0 | P136: 0 | Q136: 0 | R136: 0 | S136: 0 | T136: 0 | U136: 0 | V136: 0 | W136: 0 | X136: 0 | Y136: 0 | Z136: 2433.985621 | AA136: 2000-05-31 | AB136: 7.358640737 | AC136: 5.055367947 | AD136: 1.108150827 | AE136: 25.0525755 | AF136: 14.06195233 | AG136: 0.8772779488 | AH136: 46.48603471 | AI136: 0 | AJ136: 0 | AK136: 0 | AL136: 0 | AM136: 0 | AN136: 0 | AO136: 0 | AP136: 0 | AQ136: 0 | AR136: 0 | AS136: 0 | AT136: 0 | AU136: 0 | AW136: 3069.851703 | AX136: 6972.607737 | AY136: -920.4870795 | AZ136: 685.0141834 | BD136: 89.904873 | BE136: 31.19241147 | BF136: 11.72314044 | BG136: 40.20631438 | BH136: 3.87208727 | BI136: 132.9629492 | BJ136: 17.84771161 | BK136: 15.22306493 | BL136: 6.60737108 | BM136: 1.42423178 | BN136: 0.14225885 | BO136: 0.16209179 | BP136: 0.57473224 | BQ136: 11.40052217 | BR136: 0.19480921 | BS136: 0.18199251 | BT136: 0.81375656 | BU136: 1.00673036 | BV136: 0.49078142 | BW136: 1.42587157 | BX136: 2.24207337 | BY136: 613.3331111 | BZ136: 89.95432422 | CB136: 1 | CC136: 43.48 | CD136: 0 | CE136: 18.606 | CF136: 41.05 | CG136: 4.663 | CH136: 134.311 | CI136: 17.887 | CJ136: 15.754 | CK136: 5.803 | CL136: 1.56 | CM136: 0.242 | CN136: 0.352 | CO136: 0.556 | CP136: 10.752 | CQ136: 0.421 | CR136: 0.278 | CS136: 0 | CT136: 6.394 | CU136: 0.1 | CV136: 1.192 | CW136: 10.673 | CX136: 645.924 | CY136: 154.663
A137: 18 | B137: 4 | C137: 6 | D137: 2000 | E137: 15225 | F137: 231.7784781 | G137: 0 | H137: 545.2027524 | I137: 1211.532319 | J137: 11315.05052 | K137: 174.9165146 | L137: 1682.638417 | M137: 0 | N137: 0 | O137: 0 | P137: 0 | Q137: 0 | R137: 0 | S137: 0 | T137: 0 | U137: 0 | V137: 0 | W137: 0 | X137: 0 | Y137: 0 | Z137: 15161.119 | AA137: 2000-06-04 | AB137: 1.528768939 | AC137: 0 | AD137: 3.59605879 | AE137: 7.991048146 | AF137: 74.63202762 | AG137: 1.153717708 | AH137: 11.0983788 | AI137: 0 | AJ137: 0 | AK137: 0 | AL137: 0 | AM137: 0 | AN137: 0 | AO137: 0 | AP137: 0 | AQ137: 0 | AR137: 0 | AS137: 0 | AT137: 0 | AU137: 0 | AW137: 3150.637275 | AX137: 7052.240904 | AY137: -840.853913 | AZ137: 109.1777326 | BD137: 699.4756685 | BE137: 48.55598103 | BF137: 20.59210261 | BG137: 68.70543194 | BH137: 6.78146806 | BI137: 261.241373 | BJ137: 361.3529705 | BK137: 194.4359467 | BL137: 11.82978577 | BM137: 2.55187605 | BN137: 0.30088865 | BO137: 0.68658883 | BP137: 1.40945105 | BQ137: 33.1007287 | BR137: 0.34863798 | BS137: 0.41186062 | BT137: 2.55258591 | BU137: 17.29306304 | BV137: 1.00988772 | BW137: 6.65468357 | BX137: 18.53019174 | BY137: 1890.130326 | BZ137: 832.4198714 | CB137: 1 | CC137: 704.917 | CD137: 0 | CE137: 29.87 | CF137: 69.24 | CG137: 3.117 | CH137: 259.672 | CI137: 362.633 | CJ137: 179.943 | CK137: 8.31 | CL137: 2.271 | CM137: 0 | CN137: 0.274 | CO137: 1.751 | CP137: 32.478 | CQ137: 0 | CR137: 0 | CS137: 1.397 | CT137: 21.447 | CU137: 1.8 | CV137: 15.879 | CW137: 32.471 | CX137: 1941.294 | CY137: 1222.485
A138: 18 | B138: 7 | C138: 6 | D138: 2000 | E138: 13767 | F138: 575.7823937 | G138: 0 | H138: 507.1385691 | I138: 1071.826496 | J138: 7785.281929 | K138: 183.987449 | L138: 3671.038603 | M138: 0 | N138: 0 | O138: 0 | P138: 0 | Q138: 0 | R138: 0 | S138: 0 | T138: 0 | U138: 0 | V138: 0 | W138: 0 | X138: 0 | Y138: 0 | Z138: 13795.05544 | AA138: 2000-06-07 | AB138: 4.173831676 | AC138: 0 | AD138: 3.676234368 | AE138: 7.769642538 | AF138: 56.43530729 | AG138: 1.333720258 | AH138: 26.61126386 | AI138: 0 | AJ138: 0 | AK138: 0 | AL138: 0 | AM138: 0 | AN138: 0 | AO138: 0 | AP138: 0 | AQ138: 0 | AR138: 0 | AS138: 0 | AT138: 0 | AU138: 0 | AW138: 3231.422846 | AX138: 7131.87407 | AY138: -761.2207464 | AZ138: 159.8400164 | BD138: 591.67985 | BE138: 45.16627575 | BF138: 41.02015642 | BG138: 135.8800862 | BH138: 10.70856317 | BI138: 244.8029718 | BJ138: 335.7501764 | BK138: 152.603956 | BL138: 20.67314434 | BM138: 4.82213602 | BN138: 0.41426522 | BO138: 0.87021561 | BP138: 2.25989207 | BQ138: 51.0180292 | BR138: 0.66301933 | BS138: 0.6413299 | BT138: 3.62987594 | BU138: 13.74238758 | BV138: 1.66604789 | BW138: 7.07887379 | BX138: 16.83576888 | BY138: 2539.987645 | BZ138: 601.6081039 | CB138: 1 | CC138: 616.252 | CD138: 0 | CE138: 42.597 | CF138: 134.652 | CG138: 4.679 | CH138: 245.021 | CI138: 336.115 | CJ138: 151.148 | CK138: 20.258 | CL138: 4.665 | CM138: 0.271 | CN138: 0.596 | CO138: 1.721 | CP138: 51.798 | CQ138: 0.47 | CR138: 0 | CS138: 3.107 | CT138: 12.569 | CU138: 0.8 | CV138: 18.601 | CW138: 42.567 | CX138: 2535.396 | CY138: 537.819
A139: 18 | B139: 14 | C139: 6 | D139: 2000 | E139: 9835 | F139: 141.7817425 | G139: 0 | H139: 312.1657004 | I139: 912.7660963 | J139: 5312.504484 | K139: 221.2344719 | L139: 3301.194781 | M139: 0 | N139: 0 | O139: 0 | P139: 0 | Q139: 0 | R139: 0 | S139: 0 | T139: 0 | U139: 0 | V139: 0 | W139: 0 | X139: 0 | Y139: 0 | Z139: 10201.64728 | AA139: 2000-06-14 | AB139: 1.389792635 | AC139: 0 | AD139: 3.059953868 | AE139: 8.94724226 | AF139: 52.07496731 | AG139: 2.168615184 | AH139: 32.35942875 | AI139: 0 | AJ139: 0 | AK139: 0 | AL139: 0 | AM139: 0 | AN139: 0 | AO139: 0 | AP139: 0 | AQ139: 0 | AR139: 0 | AS139: 0 | AT139: 0 | AU139: 0 | AW139: 3312.208417 | AX139: 7211.507237 | AY139: -681.5875799 | AZ139: 361.0288728 | BD139: 442.5747196 | BE139: 27.80178959 | BF139: 11.79409945 | BG139: 43.14107097 | BH139: 9.63376262 | BI139: 210.4699589 | BJ139: 206.740764 | BK139: 104.3229548 | BL139: 11.622647 | BM139: 2.10892057 | BN139: 0.4056304 | BO139: 0.87297326 | BP139: 1.75540917 | BQ139: 34.4789117 | BR139: 0.47302582 | BS139: 0.6277942 | BT139: 3.43103677 | BU139: 12.09265197 | BV139: 1.50289161 | BW139: 5.52845655 | BX139: 13.12167656 | BY139: 2129.251377 | BZ139: 430.4583779 | CB139: 1 | CC139: 410.37 | CD139: 0 | CE139: 17.484 | CF139: 43.327 | CG139: 3.313 | CH139: 212.184 | CI139: 207.43 | CJ139: 105.463 | CK139: 8.283 | CL139: 1.926 | CM139: 1.26 | CN139: 0.32 | CO139: 1.151 | CP139: 34.265 | CQ139: 0 | CR139: 0 | CS139: 2.336 | CT139: 14.627 | CU139: 1.5 | CV139: 20.766 | CW139: 42.339 | CX139: 2204.185 | CY139: 347.453
A140: 18 | B140: 18 | C140: 6 | D140: 2000 | E140: 24524 | F140: 256.0726789 | G140: 0 | H140: 889.4169192 | I140: 1669.679734 | J140: 18887.65595 | K140: 242.1056484 | L140: 3029.973258 | M140: 0 | N140: 0 | O140: 0 | P140: 0 | Q140: 0 | R140: 0 | S140: 0 | T140: 0 | U140: 0 | V140: 0 | W140: 0 | X140: 0 | Y140: 0 | Z140: 24974.90419 | AA140: 2000-06-18 | AB140: 1.025319965 | AC140: 0 | AD140: 3.561242567 | AE140: 6.685429987 | AF140: 75.62654018 | AG140: 0.9693957045 | AH140: 12.1320716 | AI140: 0 | AJ140: 0 | AK140: 0 | AL140: 0 | AM140: 0 | AN140: 0 | AO140: 0 | AP140: 0 | AQ140: 0 | AR140: 0 | AS140: 0 | AT140: 0 | AU140: 0 | AW140: 3392.993988 | AX140: 7291.140403 | AY140: -601.9544133 | AZ140: 570.2604433 | BD140: 1159.437658 | BE140: 79.21163097 | BF140: 25.93525629 | BG140: 87.62445401 | BH140: 10.86147079 | BI140: 369.7114754 | BJ140: 589.5521891 | BK140: 323.6944314 | BL140: 17.07231193 | BM140: 3.36990117 | BN140: 0.45713422 | BO140: 0.9643419 | BP140: 2.07547736 | BQ140: 42.6562793 | BR140: 0.56931082 | BS140: 0.65211005 | BT140: 4.0859438 | BU140: 27.43217466 | BV140: 1.67889474 | BW140: 11.16073897 | BX140: 31.00453035 | BY140: 3252.312737 | BZ140: 1349.442601 | CB140: 1 | CC140: 1196.204 | CD140: 0 | CE140: 27.474 | CF140: 88.219 | CG140: 9.591 | CH140: 367.419 | CI140: 590.824 | CJ140: 306.519 | CK140: 15.349 | CL140: 1.545 | CM140: 0 | CN140: 0 | CO140: 1.215 | CP140: 42.971 | CQ140: 0 | CR140: 0 | CS140: 5.099 | CT140: 27.733 | CU140: 0 | CV140: 27.402 | CW140: 60.603 | CX140: 3277.369 | CY140: 1818.872
A141: 18 | B141: 21 | C141: 6 | D141: 2000 | E141: 4240 | F141: 116.159721 | G141: 54.36460353 | H141: 18.27444467 | I141: 753.9195597 | J141: 1007.84414 | K141: 35.72182147 | L141: 1788.523756 | M141: 0 | N141: 0 | O141: 0 | P141: 0 | Q141: 0 | R141: 0 | S141: 0 | T141: 0 | U141: 0 | V141: 0 | W141: 0 | X141: 0 | Y141: 0 | Z141: 3774.808047 | AA141: 2000-06-21 | AB141: 3.077235175 | AC141: 1.44019518 | AD141: 0.4841158662 | AE141: 19.97239463 | AF141: 26.69921564 | AG141: 0.9463215354 | AH141: 47.38052198 | AI141: 0 | AJ141: 0 | AK141: 0 | AL141: 0 | AM141: 0 | AN141: 0 | AO141: 0 | AP141: 0 | AQ141: 0 | AR141: 0 | AS141: 0 | AT141: 0 | AU141: 0 | AW141: 3473.779559 | AX141: 7370.77357 | AY141: -522.3212468 | AZ141: 288.2204247 | BD141: 155.4915063 | BE141: 14.3477846 | BF141: 7.99486922 | BG141: 29.36509365 | BH141: 5.63706835 | BI141: 160.8082574 | BJ141: 12.19926691 | BK141: 27.53672589 | BL141: 6.03783055 | BM141: 1.22529561 | BN141: 0.19037661 | BO141: 0.22206338 | BP141: 0.7111618 | BQ141: 10.11860196 | BR141: 0.25214254 | BS141: 0.26988312 | BT141: 1.29162729 | BU141: 2.13471873 | BV141: 0.73718954 | BW141: 2.27509866 | BX141: 4.15996146 | BY141: 995.7557346 | BZ141: 146.5165051 | CB141: 1 | CC141: 144.701 | CD141: 0 | CE141: 12.248 | CF141: 29.388 | CG141: 6.023 | CH141: 161.485 | CI141: 12.209 | CJ141: 27.727 | CK141: 5.917 | CL141: 1.019 | CM141: 0.301 | CN141: 0.201 | CO141: 0.546 | CP141: 9.905 | CQ141: 0.378 | CR141: 0.043 | CS141: 0.301 | CT141: 4.034 | CU141: 0 | CV141: 5.992 | CW141: 10.448 | CX141: 1004.673 | CY141: 87.272
A142: 18 | B142: 25 | C142: 6 | D142: 2000 | E142: 16597 | F142: 77.11195707 | G142: 0 | H142: 544.808776 | I142: 1501.262841 | J142: 10230.731 | K142: 210.1566935 | L142: 2706.033485 | M142: 0 | N142: 0 | O142: 0 | P142: 0 | Q142: 0 | R142: 0 | S142: 0 | T142: 0 | U142: 0 | V142: 0 | W142: 0 | X142: 0 | Y142: 0 | Z142: 15270.10475 | AA142: 2000-06-25 | AB142: 0.5049864316 | AC142: 0 | AD142: 3.567812958 | AE142: 9.831385348 | AF142: 66.99843363 | AG142: 1.376262291 | AH142: 17.72111934 | AI142: 0 | AJ142: 0 | AK142: 0 | AL142: 0 | AM142: 0 | AN142: 0 | AO142: 0 | AP142: 0 | AQ142: 0 | AR142: 0 | AS142: 0 | AT142: 0 | AU142: 0 | AW142: 3554.56513 | AX142: 7450.406736 | AY142: -442.6880802 | AZ142: 776.3624501 | BD142: 698.0204196 | BE142: 48.52086167 | BF142: 10.07543194 | BG142: 37.68717449 | BH142: 9.71035781 | BI142: 322.6485413 | BJ142: 360.944792 | BK142: 179.7206689 | BL142: 11.12127548 | BM142: 1.87429386 | BN142: 0.4048266 | BO142: 0.80870491 | BP142: 1.60769271 | BQ142: 29.9430432 | BR142: 0.42151669 | BS142: 0.57168282 | BT142: 3.26504294 | BU142: 17.1400306 | BV142: 1.41759651 | BW142: 7.21222767 | BX142: 18.78419964 | BY142: 2302.570328 | BZ142: 799.1908797 | CB142: 1 | CC142: 779.774 | CD142: 0 | CE142: 17.062 | CF142: 36.989 | CG142: 3.47 | CH142: 320.466 | CI142: 361.818 | CJ142: 170.544 | CK142: 8.502 | CL142: 1.494 | CM142: 0 | CN142: 0.42 | CO142: 0.41 | CP142: 30.632 | CQ142: 0 | CR142: 0 | CS142: 2.7 | CT142: 15.095 | CU142: 0.5 | CV142: 27.19 | CW142: 34.014 | CX142: 2306.145 | CY142: 923.545
A143: 18 | B143: 2 | C143: 7 | D143: 2000 | E143: 2893 | F143: 34.32662374 | G143: 409.6150631 | H143: 309.6503125 | I143: 347.3130601 | J143: 1035.062324 | K143: 43.50837581 | L143: 690.6009143 | M143: 0 | N143: 0 | O143: 0 | P143: 0 | Q143: 0 | R143: 0 | S143: 0 | T143: 0 | U143: 0 | V143: 0 | W143: 0 | X143: 0 | Y143: 0 | Z143: 2870.076673 | AA143: 2000-07-02 | AB143: 1.196017656 | AC143: 14.27192057 | AD143: 10.78892127 | AE143: 12.10117706 | AF143: 36.06392586 | AG143: 1.515930784 | AH143: 24.0621068 | AI143: 0 | AJ143: 0 | AK143: 0 | AL143: 0 | AM143: 0 | AN143: 0 | AO143: 0 | AP143: 0 | AQ143: 0 | AR143: 0 | AS143: 0 | AT143: 0 | AU143: 0 | AW143: 3635.350701 | AX143: 7530.039903 | AY143: -363.0549137 | AZ143: 13.06490951 | BD143: 99.53768621 | BE143: 123.4173785 | BF143: 2.73021917 | BG143: 11.58185055 | BH143: 2.37263388 | BI143: 104.6905235 | BJ143: 204.4925986 | BK143: 25.16719124 | BL143: 7.61807848 | BM143: 0.51988724 | BN143: 0.15493354 | BO143: 0.17736978 | BP143: 0.43411103 | BQ143: 7.09541772 | BR143: 0.14371719 | BS143: 0.1713516 | BT143: 0.72275441 | BU143: 2.42663293 | BV143: 0.42373875 | BW143: 1.47554273 | BX143: 2.73520142 | BY143: 471.0611811 | BZ143: 106.7539246 | CB143: 1 | CC143: 66.171 | CD143: 0 | CE143: 2.009 | CF143: 11.505 | CG143: 1.342 | CH143: 106.367 | CI143: 205.296 | CJ143: 27.356 | CK143: 7.52 | CL143: 0.968 | CM143: 0.286 | CN143: 0.233 | CO143: 0.019 | CP143: 7 | CQ143: 0.248 | CR143: 0.102 | CS143: 3.386 | CT143: 2.594 | CU143: 1.1 | CV143: 2.325 | CW143: 8.187 | CX143: 476.849 | CY143: 0
A144: 18 | B144: 9 | C144: 7 | D144: 2000 | E144: 11505 | F144: 46.62125976 | G144: 0 | H144: 389.9911962 | I144: 852.6172058 | J144: 8113.002077 | K144: 83.64525387 | L144: 1891.246817 | M144: 0 | N144: 0 | O144: 0 | P144: 0 | Q144: 0 | R144: 0 | S144: 0 | T144: 0 | U144: 0 | V144: 0 | W144: 0 | X144: 0 | Y144: 0 | Z144: 11377.12381 | AA144: 2000-07-09 | AB144: 0.4097807191 | AC144: 0 | AD144: 3.427854023 | AE144: 7.494136656 | AF144: 71.30978104 | AG144: 0.735205622 | AH144: 16.62324194 | AI144: 0 | AJ144: 0 | AK144: 0 | AL144: 0 | AM144: 0 | AN144: 0 | AO144: 0 | AP144: 0 | AQ144: 0 | AR144: 0 | AS144: 0 | AT144: 0 | AU144: 0 | AW144: 3716.136273 | AX144: 7609.67307 | AY144: -283.4217471 | AZ144: 25.8106869 | BD144: 527.3085951 | BE144: 34.73263004 | BF144: 7.05272512 | BG144: 25.85197572 | BH144: 6.19050763 | BI144: 187.5404057 | BJ144: 258.4836433 | BK144: 141.0284583 | BL144: 7.06522939 | BM144: 1.1598084 | BN144: 0.22706492 | BO144: 0.3624526 | BP144: 0.90651421 | BQ144: 12.6951052 | BR144: 0.29672246 | BS144: 0.33183721 | BT144: 1.97022155 | BU144: 11.21404015 | BV144: 0.92269457 | BW144: 5.35703552 | BX144: 14.09316303 | BY144: 1690.372163 | BZ144: 595.027798 | CB144: 1 | CC144: 564.916 | CD144: 0 | CE144: 9.4 | CF144: 26.656 | CG144: 1.861 | CH144: 186.414 | CI144: 258.808 | CJ144: 130.224 | CK144: 5.241 | CL144: 2.129 | CM144: 0 | CN144: 0.166 | CO144: 0.924 | CP144: 12.3 | CQ144: 0.309 | CR144: 0.073 | CS144: 0.623 | CT144: 16.558 | CU144: 0.8 | CV144: 20.652 | CW144: 35.089 | CX144: 1695.055 | CY144: 738.458
